Workbook

Sheet Consolidated Cap Structure
A1: Atmos Energy Corp. - Consolidated | H1: Atmos Energy Corp. - Consolidated
A2: Capital Structure and Proforma Cost of Capital | H2: Capital Structure with Earned ROR Computed
A4: =CONCATENATE("13 Month Average at ",A20) -> 13 Month Average at June 30, 2018 | F4: Proforma | H4: =+A4 -> 13 Month Average at June 30, 2018 | K4: Actual
A5: Line | F5: Wtd Cost | J5: Actual | K5: Wtd Cost
A6: No. | B6: Description | C6: Capital | D6: Ratio | E6: Cost Rate | F6: of Capital | H6: Description | I6: Capital | J6: Cost Rate | K6: of Capital
B7: (a) | C7: (b) | D7: (c) | E7: (d) | F7: (e) | H7: (f) | I7: (g) | J7: (h) | K7: (i)
B8: Atmos Energy Corp., Consolidated:
A9: 1 | B9: Long Term Debt Capital | C9: ='LTD rate'!T36 -> 3067477833 | D9: =+C9/C$12 -> 0.3991298609 | E9: =+'LTD rate'!U37 -> 0.05194974674 | F9: =+D9*E9 -> 0.02073469519 | H9: =+B9 -> Long Term Debt Capital | I9: 3067477833 | J9: =+E9 -> 0.05194974674 | K9: =+F9 -> 0.02073469519
A10: 2 | B10: Short Term Debt | C10: =+'Consolidated Balance Detail'!I26 -> 281542431.3 | D10: =+C10/C$12 -> 0.03663335079 | E10: =+'Consolidated Balance Detail'!K26 -> 0.02400945147 | F10: =+D10*E10 -> 0.000879546658 | H10: Short Term Debt | I10: 281542431.3 | J10: =+E10 -> 0.02400945147 | K10: =+F10 -> 0.000879546658 | N10: (12 Mth Avg)
A11: 3 | B11: Equity Capital | C11: =+'Consolidated Balance Detail'!F26 -> 4336392763 | D11: =+C11/C$12 -> 0.5642367883 | E11: 0.105 | F11: =+D11*E11 -> 0.05924486277 | H11: Equity Capital | I11: 4336392763 | J11: =+K11/D11 ->  | K11: =+K15-K9-K10 -> 
A12: 4 | B12: Total Capital | C12: =SUM(C9:C11) -> 7685413027 | D12: =SUM(D9:D11) -> 1 | F12: =SUM(F9:F11) -> 0.08085910462 | H12: Total Capital | I12: 7685413027
H15: Juris Average Rate Base | J15: ROR | K15: =+I14/I15 -> 
A18: =+A1 -> Atmos Energy Corp. - Consolidated | H18: =+H1 -> Atmos Energy Corp. - Consolidated
A19: =+A2 -> Capital Structure and Proforma Cost of Capital | H19: =+H2 -> Capital Structure with Earned ROR Computed
A20: ='LTD rate'!A3 -> June 30, 2018 | F20: Proforma | H20: =+A20 -> June 30, 2018 | K20: Actual
A21: Line | F21: Wtd Cost | J21: Actual | K21: Wtd Cost
A22: No. | B22: Description | C22: Capital | D22: Ratio | E22: Cost Rate | F22: of Capital | H22: Description | I22: Capital | J22: Cost Rate | K22: of Capital
B23: (a) | C23: (b) | D23: (c) | E23: (d) | F23: (e) | H23: (f) | I23: (g) | J23: (h) | K23: (i)
B24: Atmos Energy Corp., Consolidated:
A25: 5 | B25: Long Term Debt Capital | C25: =+'Consolidated Balance Detail'!D23 -> 3068314703 | D25: =+C25/C$28 -> 0.3800583561 | E25: =+'LTD rate'!Q37 -> 0.05215744839 | F25: =+D25*E25 -> 0.01982287409 | H25: =+B25 -> Long Term Debt Capital | I25: 3068314703 | J25: =+E25 -> 0.05215744839 | K25: =+F25 -> 0.01982287409
A26: 6 | B26: Short Term Debt | C26: =+'Consolidated Balance Detail'!E23 -> 244777193 | D26: =+C26/C$28 -> 0.03031945109 | E26: =+E10 -> 0.02400945147 | F26: =+D26*E26 -> 0.0007279533897 | H26: Short Term Debt | I26: 244777193 | J26: =+E26 -> 0.02400945147 | K26: =+F26 -> 0.0007279533897
A27: 7 | B27: Equity Capital | C27: =+'Consolidated Balance Detail'!F23 -> 4760180678 | D27: =+C27/C$28 -> 0.5896221928 | E27: =+E11 -> 0.105 | F27: =+D27*E27 -> 0.06191033024 | H27: Equity Capital | I27: 4760180678 | J27: =+K27/D27 ->  | K27: =+#REF!-K25-K26 -> 
A28: 8 | B28: Total Capital | C28: =SUM(C25:C27) -> 8073272573 | D28: =SUM(D25:D27) -> 1 | F28: =SUM(F25:F27) -> 0.08246115773 | H28: Total Capital | I28: 8073272573
H30: Juris NOI (after tax) | I30: =+I14 -> 0

Sheet Consolidated Balance Detail
A1: Atmos Energy Corp - Consolidated
O2: RBS-Effective 05/02/11 Ended 9/24/15
A3: Schedule of Debt and Equity | N3: Commitment | O3: CA-Effective 09/25/15 to mature 9/25/20
A4: ='LTD rate'!A3 -> June 30, 2018 | M4: Interest on CP or Interest on | N4: Fees on Credit | O4: Bank Fees on
I5: 12 Month Avg | J5: 12 Month Avg | M5: Draws on Credit Facilitiy | N5: Facility | O5: AEC Credit Facility
D6: Atmos Consolidated Balances | I6: Atmos Consolidated - calc of STD rate | N6: 30120,30121 | O6: 30121
A7: Line | D7: Long-Term | E7: Short-Term | I7: STD | J7: STD | K7: STD | M7: Detail of Colm (f) Consolidated Int Exp & Fees
A8: No. | B8: Date | D8: Debt** | E8: Debt | F8: Equity | I8: Avg Daily Bal | J8: Int Exp & fees | K8: avg rate | O8: Utility
B9: (a) | D9: (b) | E9: (c) | F9: (d) | I9: (e) | J9: (f) | K9: (g) | M9: Int Exp | N9: Commit fees | O9: Bank Admin
A11: 1 | B11: 2017-06-30 | D11: 3066734196 | E11: 258573383 | F11: 3901710103
A12: 2 | B12: 2017-07-31 | D12: 3066772609 | E12: 262202530.2 | F12: 3923183120 | I12: 231767129 | J12: 474144.8637 | M12: 245023.107 | N12: 131820.5767 | O12: 97301.18
A13: 3 | B13: 2017-08-31 | D13: 3066904471 | E13: 362721571.9 | F13: 3876930951 | I13: 277363548.4 | J13: 524040.7237 | M13: 294918.967 | N13: 131820.5767 | O13: 97301.18
A14: 4 | B14: 2017-09-17 | D14: 3067045495 | E14: 447745269.1 | F14: 3898665243 | I14: 382200000 | J14: 619875.0285 | M14: 395005.5485 | N14: 127568.3 | O14: 97301.18
A15: 5 | B15: 2017-10-17 | D15: 3067186078 | E15: 572550585.5 | F15: 3933727046 | I15: 492516129 | J15: 759848.9767 | M15: 530727.22 | N15: 131820.5767 | O15: 97301.18
A16: 6 | B16: 2017-11-17 | D16: 3067327541 | E16: 657589374.3 | F16: 3925107994 | I16: 636332033.3 | J16: 899753.559 | M16: 674884.079 | N16: 127568.3 | O16: 97301.18
A17: 7 | B17: 2017-12-31 | D17: 3067468564 | E17: 336816271 | F17: 4563619781 | I17: 384445161.3 | J17: 677635.9607 | M17: 448514.204 | N17: 131820.5767 | O17: 97301.18
A18: 8 | B18: 2018-01-31 | D18: 3067609587 | E18: 268675525.3 | F18: 4666561070 | I18: 261155645.2 | J18: 563862.0452 | M18: 334740.2885 | N18: 131820.5767 | O18: 97301.18
A19: 9 | B19: 2018-02-28 | D19: 3067750610 | E19: 215748078.6 | F19: 4695448924 | I19: 208922142.9 | J19: 471327.9737 | M19: 254963.047 | N19: 119063.7467 | O19: 97301.18
A20: 10 | B20: 2018-03-31 | D20: 3067891633 | E20: 129601816.4 | F20: 4721346388 | I20: 133250645.2 | J20: 427968.8827 | M20: 195328.065 | N20: 131820.5767 | O20: 100820.24
A21: 11 | B21: 2018-04-30 | D21: 3068032657 | E21: 109795722.1 | F21: 4768024508 | I21: 70122333.33 | J21: 351220.904 | M21: 108169.604 | N21: 127568.3 | O21: 115483
A22: 12 | B22: 2018-05-31 | D22: 3068173680 | E22: 143846586 | F22: 4738600109 | I22: 99967741.94 | J22: 415026.0797 | M22: 167722.503 | N22: 131820.5767 | O22: 115483
A23: 13 | B23: 2018-06-30 | D23: 3068314703 | E23: 244777193 | F23: 4760180678 | I23: 200466666.7 | J23: 574974.3455 | M23: 331923.0455 | N23: 127568.3 | O23: 115483 | Q23: 0
A24: 14 | J24: =SUM(J12:J23) -> 6759679.343 | M24: =SUM(M12:M23) -> 3981919.678 | N24: =SUM(N12:N23) -> 1552080.983 | O24: =SUM(O12:O23) -> 1225678.68
A25: 15
A26: 16 | B26: Average | D26: =AVERAGE(D11:D23) -> 3067477833 | E26: =AVERAGE(E11:E23) -> 308511069.7 | F26: =AVERAGE(F11:F23) -> 4336392763 | I26: =AVERAGE(I12:I23) -> 281542431.3 | K26: =+J24/I26 -> 0.02400945147 | M26: per STD rpts: | N26: =+M24+N24+O24 -> 6759679.342
B32: Check | D32: 0 | E32: 0 | F32: 0

Sheet LTD rate
A1: Atmos Energy Corporation
A2: Consolidated Long-Term Debt Outstanding w/ calculation of Effective Interest Rates
A3: June 30, 2018 | Z3: Unamort Debt | AC3: (Offset to | AF3: (Offset to 4280, 4310) | AG3: (Offset to 4281) | AH3: (Offset to 4280, 4290) | AI3: (Offset to 4270 or 2530)
Y4: Annualized | Z4: Exp 2241, 1650 | AB4: (Offset to 2150) | AC4: 2241,1650) | AD4: (Offset to 2260, 2250) | AE4: (Offset to 1890) | AF4: Unamort Debt Exp | AG4: Unamort Loss | AH4: Debt Dsct/Prem | AI4: App Retained Earnings
X5: Annualized | Y5: 4280, 4281, 4290 & 4310 | Z5: Penalty 1890 | AB5: 4270.30937 | AC5: 4280, 4310 | AD5: 4280, 4290 | AE5: 4281 | AF5: 2241, 1650 | AG5: 1890 | AH5: 2260, 2250 | AI5: 2150
A6: Atmos Energy Corp., Consolidated: | D6: Outstanding | E6: Outstanding | F6: Outstanding | G6: Outstanding | H6: Outstanding | I6: Outstanding | J6: Outstanding | K6: Outstanding | L6: Outstanding | M6: Outstanding | N6: Outstanding | O6: Outstanding | P6: Outstanding | Q6: End | R6: Annual Int at | T6: Outstanding | U6: Avg | V6: Annual Int | X6: 4270 Amort | Y6: Amortization | Z6: Dsct 2260 | AB6: Exp on T-lock/Swaps | AC6: Mthly Debt Exp | AD6: Mthly Dsct/Prem. Exp | AE6: Mthly Exp | AF6: Balance | AG6: Balance | AH6: Balance | AI6: T-Lock/Swap Balance
A7: Line | B7: Debt Series | C7: Issued | D7: 2017-06-30 | E7: 2017-07-31 | F7: 2017-08-31 | G7: 2017-09-30 | H7: 2017-10-31 | I7: 2017-11-30 | J7: 2017-12-31 | K7: 2018-01-31 | L7: 2018-02-28 | M7: 2018-03-31 | N7: 2018-04-30 | O7: 2018-05-31 | P7: 2018-06-30 | Q7: Int Rate | R7: =A3 -> June 30, 2018 | T7: 13 mth Average | U7: Int Rate | V7: =+T7 -> 13 mth Average | X7: for T-lock/Swaps | Y7: Debt Exp, Dsct & Prem | Z7: =A3 -> June 30, 2018 | AB7: =A3 -> June 30, 2018 | AC7: =AB7 -> June 30, 2018 | AD7: June 30, 2018 | AE7: June 30, 2018 | AF7: June 30, 2018 | AG7: June 30, 2018 | AH7: June 30, 2018 | AI7: =AH7 -> June 30, 2018 | AK7: Effective Cost of Debt
B8: (a) | C8: (b) | D8: (d) | E8: (e) | F8: (f) | G8: (g) | H8: (h) | I8: (i) | J8: (j) | K8: (k) | L8: (l) | M8: (m) | N8: (m) | O8: (m) | P8: (m) | Q8: (n) | R8: (o) | S8: (p) | T8: (q) | U8: (r) | V8: (s) | W8: (t) | X8: (u) | Y8: (v) | Z8: (w) | AA8: (x) | AB8: (aa) | AC8: (ab) | AD8: (ac) | AE8: (ad) | AF8: (ae) | AG8: (af) | AH8: (ag) | AI8: (ah)
A10: 1 | B10: 9.40% First Mortgage Bond J due May 2021/RET 2005 | C10: 1991-04-01 | D10: 0 | E10: 0 | F10: 0 | G10: 0 | H10: 0 | I10: 0 | J10: 0 | K10: 0 | L10: 0 | M10: 0 | N10: 0 | O10: 0 | P10: 0 | Q10: 0.094 | R10: =+P10*Q10 -> 0 | T10: =AVERAGE(D10:P10) -> 0 | U10: 0.094 | V10: =+T10*U10 -> 0 | X10: =+AB10*12 -> 0 | Y10: =SUM(AC10:AE10)*12 -> 560397.48 | Z10: =SUM(AF10:AH10) -> 1587792.76 | AE10: =-'1890 Unamort Loss on Reacq Debt'!N16 -> 46699.79 | AF10: 0 | AG10: ='1890 Unamort Loss on Reacq Debt'!N36 -> 1587792.76
A11: 2 | B11: 6.75% Debentures Unsecured due July 2028 | C11: 1998-07-27 | D11: 150000000 | E11: 150000000 | F11: 150000000 | G11: 150000000 | H11: 150000000 | I11: 150000000 | J11: 150000000 | K11: 150000000 | L11: 150000000 | M11: 150000000 | N11: 150000000 | O11: 150000000 | P11: 150000000 | Q11: 0.0675 | R11: =+P11*Q11 -> 10125000 | T11: 150000000 | U11: 0.0675 | V11: =+T11*U11 -> 10125000 | X11: =+AB11*12 -> 0 | Y11: =SUM(AC11:AE11)*12 -> 99938.16 | Z11: =SUM(AF11:AH11) -> 1004023.17 | AC11: =-'Acct 2241 Unamort Debt Exp'!X33 -> 4640.68 | AD11: =-'2260 LTDebt Discount'!BJ11 -> 3687.5 | AF11: ='Acct 2241 Unamort Debt Exp'!X14 -> 561523.17 | AH11: ='2260 LTDebt Discount'!R11 -> 442500 | AK11: =IF(N11="","",(+R11+X11+Y11)/(+N11-AF11-AH11)) -> 0.06862559901
A12: 3 | B12: 5.125% Senior Note due Jan 2013 | C12: 2003-01-13 | D12: 0 | E12: 0 | F12: 0 | G12: 0 | H12: 0 | I12: 0 | J12: 0 | K12: 0 | L12: 0 | M12: 0 | N12: 0 | O12: 0 | P12: 0 | Q12: 0.05125 | R12: 0 | T12: 0 | U12: 0.05125 | V12: =+T12*U12 -> 0 | X12: =+AB12*12 -> 0 | Y12: 0 | Z12: 0 | AD12: =-'2260 LTDebt Discount'!BJ12 -> 0 | AE12: 0 | AF12: 0 | AG12: 0 | AH12: ='2260 LTDebt Discount'!R12 -> 0 | AK12: =IF(N12=0,"",(+R12+X12+Y12)/(+N12-AF12-AH12)) -> 
A13: 4 | B13: 10.43% First Mortgage Bond P due 2017 (eff 2012) | C13: 1987-11-01 | D13: 0 | E13: 0 | F13: 0 | G13: 0 | H13: 0 | I13: 0 | J13: 0 | K13: 0 | L13: 0 | M13: 0 | N13: 0 | O13: 0 | P13: 0 | Q13: 0.1043 | R13: 0 | T13: 0 | U13: 0.1043 | V13: 0 | X13: 0 | Y13: 0 | Z13: =SUM(AF13:AH13) -> 2.182785203e-13 | AE13: =-'1890 Unamort Loss on Reacq Debt'!N15 -> 0 | AF13: 0 | AG13: ='1890 Unamort Loss on Reacq Debt'!N35 -> 2.182785203e-13
A14: 5 | B14: 9.75% First Mortgage Bond Q due Apr 2020/RET 2005 | C14: 1990-04-01 | D14: 0 | E14: 0 | F14: 0 | G14: 0 | H14: 0 | I14: 0 | J14: 0 | K14: 0 | L14: 0 | M14: 0 | N14: 0 | O14: 0 | P14: 0 | Q14: 0.0975 | R14: 0 | T14: 0 | U14: 0.0975 | V14: 0 | X14: 0 | Y14: 337580.76 | Z14: 618897.78 | AE14: =-'1890 Unamort Loss on Reacq Debt'!N12 -> 28131.73 | AF14: 0 | AG14: ='1890 Unamort Loss on Reacq Debt'!N32 -> 618897.78
A15: 6 | B15: 9.32% First Mortgage Bond T due June 2021/RET 2005 | C15: 1991-06-01 | D15: 0 | E15: 0 | F15: 0 | G15: 0 | H15: 0 | I15: 0 | J15: 0 | K15: 0 | L15: 0 | M15: 0 | N15: 0 | O15: 0 | P15: 0 | Q15: 0.0932 | R15: 0 | T15: 0 | U15: 0.0932 | V15: 0 | X15: 0 | Y15: 362746.44 | Z15: 1058010.35 | AE15: =-'1890 Unamort Loss on Reacq Debt'!N13 -> 30228.87 | AF15: 0 | AG15: ='1890 Unamort Loss on Reacq Debt'!N33 -> 1058010.35
A16: 7 | B16: 8.77% First Mortgage Bond U due May 2022/RET 2005 | C16: 1992-05-01 | D16: 0 | E16: 0 | F16: 0 | G16: 0 | H16: 0 | I16: 0 | J16: 0 | K16: 0 | L16: 0 | M16: 0 | N16: 0 | O16: 0 | P16: 0 | Q16: 0.0877 | R16: 0 | T16: 0 | U16: 0.0877 | V16: 0 | X16: 0 | Y16: 368719.08 | Z16: 1413423.54 | AE16: =-'1890 Unamort Loss on Reacq Debt'!N14 -> 30726.59 | AF16: 0 | AG16: ='1890 Unamort Loss on Reacq Debt'!N34 -> 1413423.54
A17: 8 | B17: 6.67% MTN A1 due Dec 2025 | C17: 1995-12-15 | D17: 10000000 | E17: 10000000 | F17: 10000000 | G17: 10000000 | H17: 10000000 | I17: 10000000 | J17: 10000000 | K17: 10000000 | L17: 10000000 | M17: 10000000 | N17: 10000000 | O17: 10000000 | P17: 10000000 | Q17: 0.0667 | R17: 667000 | T17: 10000000 | U17: 0.0667 | V17: =+T17*U17 -> 667000 | X17: 0 | Y17: 7776.96 | Z17: 58002.88 | AC17: =-'Acct 2241 Unamort Debt Exp'!X32 -> 648.08 | AF17: ='Acct 2241 Unamort Debt Exp'!X13 -> 58002.88 | AK17: 0.06787136949
A18: 9 | B18: 4.95% Sr Note due 10/15/2014 | C18: 2004-10-22 | D18: 0 | E18: 0 | F18: 0 | G18: 0 | H18: 0 | I18: 0 | J18: 0 | K18: 0 | L18: 0 | M18: 0 | N18: 0 | O18: 0 | P18: 0 | Q18: 0.0495 | R18: 0 | T18: 0 | U18: 0.0495 | V18: =+T18*U18 -> 0 | X18: 0 | Y18: =SUM(AC18:AE18)*12 -> 0 | Z18: 0 | AB18: ='20102'!L189 -> 0 | AD18: =-'2260 LTDebt Discount'!BJ13 -> 0 | AF18: 0 | AH18: ='2260 LTDebt Discount'!R13 -> 0 | AI18: ='20102'!N189 -> 0
A19: 10 | B19: 5.95% Sr Note due 10/15/2034 | C19: 2004-10-22 | D19: 200000000 | E19: 200000000 | F19: 200000000 | G19: 200000000 | H19: 200000000 | I19: 200000000 | J19: 200000000 | K19: 200000000 | L19: 200000000 | M19: 200000000 | N19: 200000000 | O19: 200000000 | P19: 200000000 | Q19: 0.0595 | R19: 11900000 | T19: 200000000 | U19: 0.0595 | V19: =+T19*U19 -> 11900000 | X19: =+AB19*12 -> -7047.066667 | Y19: 115723.56 | Z19: 1886774.47 | AB19: ='20102'!K189 -> -587.2555556 | AC19: =-'Acct 2241 Unamort Debt Exp'!X34 -> 6265.85 | AD19: =-'2260 LTDebt Discount'!BJ14 -> 3377.78 | AF19: ='Acct 2241 Unamort Debt Exp'!X15 -> 1228107.94 | AH19: ='2260 LTDebt Discount'!R14 -> 658666.53 | AI19: ='20102'!M189 -> -115102.0889 | AJ19: Offset to 4270 | AK19: 0.0606152187
A20: 11 | B20: 6.35% Sr Note due 6/15/2017 | C20: 06/2007 | D20: 0 | E20: 0 | F20: 0 | G20: 0 | H20: 0 | I20: 0 | J20: 0 | K20: 0 | L20: 0 | M20: 0 | N20: 0 | O20: 0 | P20: 0 | Q20: 0.0635 | R20: 0 | T20: 0 | U20: 0.0635 | V20: 0 | X20: =+AB20*12 -> 0 | Y20: =SUM(AC20:AE20)*12 -> 0 | Z20: 0 | AB20: 0 | AC20: =-'Acct 2241 Unamort Debt Exp'!X35 -> 0 | AD20: =-'2260 LTDebt Discount'!BJ15 -> 0 | AE20: =-'1890 Unamort Loss on Reacq Debt'!N9 -> 0 | AF20: ='Acct 2241 Unamort Debt Exp'!X16 -> 0 | AG20: ='1890 Unamort Loss on Reacq Debt'!N29 -> 0 | AH20: ='2260 LTDebt Discount'!R15 -> 0 | AI20: 0 | AJ20: Offset to 4270
A21: 12 | B21: Sr Note 5.50% Due 06/15/2041 | C21: 6/10/2011 | D21: 400000000 | E21: 400000000 | F21: 400000000 | G21: 400000000 | H21: 400000000 | I21: 400000000 | J21: 400000000 | K21: 400000000 | L21: 400000000 | M21: 400000000 | N21: 400000000 | O21: 400000000 | P21: 400000000 | Q21: 0.055 | R21: 22000000 | T21: 400000000 | U21: 0.055 | V21: 22000000 | X21: =+AB21*12 -> -669301.5667 | Y21: 186859.56 | Z21: 4282199.12 | AB21: =-'20105'!C110 -> -55775.13056 | AC21: =-'Acct 2241 Unamort Debt Exp'!X37 -> 11993.85 | AD21: =-'2260 LTDebt Discount'!BJ16 -> 3577.78 | AF21: ='Acct 2241 Unamort Debt Exp'!X18 -> 3298310.37 | AH21: ='2260 LTDebt Discount'!R16 -> 983888.75 | AI21: ='20105'!D110 -> -15338160.9 | AJ21: Offset to 4270 | AK21: 0.05437601732
A22: 13 | B22: 8.50% Sr Note due 3/15/2019 | C22: 2009-03-23 | D22: 450000000 | E22: 450000000 | F22: 450000000 | G22: 450000000 | H22: 450000000 | I22: 450000000 | J22: 450000000 | K22: 450000000 | L22: 450000000 | M22: 450000000 | N22: 450000000 | O22: 450000000 | P22: 450000000 | Q22: 0.085 | R22: 38250000 | T22: 450000000 | U22: 0.085 | V22: 38250000 | X22: =AB22*12 -> -77733.568 | Y22: 1161169.44 | Z22: =SUM(AF22:AH22) -> 870876.89 | AB22: =-'20104'!C136 -> -6477.797333 | AC22: =-'Acct 2241 Unamort Debt Exp'!X36 -> 30868.81 | AD22: =-'2260 LTDebt Discount'!BJ17 -> 7012.5 | AE22: =-'1890 Unamort Loss on Reacq Debt'!N10 -> 58882.81 | AF22: ='Acct 2241 Unamort Debt Exp'!X17 -> 277819.37 | AG22: ='1890 Unamort Loss on Reacq Debt'!N30 -> 529945.02 | AH22: ='2260 LTDebt Discount'!R17 -> 63112.5 | AI22: ='20104'!D136 -> -58300.176 | AJ22: Offset to 4270 | AK22: 0.08747390781
A23: 14 | B23: 4.15% Sr Note due 1/15/2043 | C23: 2013-01-15 | D23: 500000000 | E23: 500000000 | F23: 500000000 | G23: 500000000 | H23: 500000000 | I23: 500000000 | J23: 500000000 | K23: 500000000 | L23: 500000000 | M23: 500000000 | N23: 500000000 | O23: 500000000 | P23: 500000000 | Q23: 0.0415 | R23: 20750000 | T23: 500000000 | U23: 0.0415 | V23: =+T23*U23 -> 20750000 | X23: =AB23*12 -> 2220856.802 | Y23: 378080.28 | Z23: 9277412.44 | AB23: =-'20107'!C89 -> 185071.4001 | AC23: =-'Acct 2241 Unamort Debt Exp'!X38 -> 14907.23 | AD23: =-'2260 LTDebt Discount'!BJ18 -> 2611.11 | AE23: =-'1890 Unamort Loss on Reacq Debt'!N11 -> 13988.35 | AF23: ='Acct 2241 Unamort Debt Exp'!X19 -> 4390178.37 | AG23: ='1890 Unamort Loss on Reacq Debt'!N31 -> 4119567.33 | AH23: ='2260 LTDebt Discount'!R18 -> 767666.74 | AI23: ='20107'!D89 -> 54596063.04 | AJ23: Offset to 4270 | AK23: 0.04718461605
A24: 15 | B24: 4.125% Sr Note due 10/15/2044 (500MM(2014) & 250MM(2017) | C24: 10/15/2014 | D24: 750000000 | E24: 750000000 | F24: 750000000 | G24: 750000000 | H24: 750000000 | I24: 750000000 | J24: 750000000 | K24: 750000000 | L24: 750000000 | M24: 750000000 | N24: 750000000 | O24: 750000000 | P24: 750000000 | Q24: 0.04125 | R24: 30937500 | T24: 750000000 | U24: 0.04125 | V24: =+T24*U24 -> 30937500 | X24: =AB24*12 -> 908015.8252 | Y24: =SUM(AC24:AE24)*12 -> -43555.08 | Z24: =SUM(AF24:AH24) -> -1146441.11 | AB24: =SUM('20108'!C69+'20109'!C37)*-1 -> 75667.98543 | AC24: =-'Acct 2241 Unamort Debt Exp'!X39 -> 23538.26 | AD24: =-SUM('2260 LTDebt Discount'!BJ19+'2250 LTDebt Premium'!BK12) -> -27167.85 | AF24: ='Acct 2241 Unamort Debt Exp'!X20 -> 7426321.84 | AH24: ='2260 LTDebt Discount'!R19+'2250 LTDebt Premium'!R11 -> -8572762.95 | AI24: ='20108'!D69+'20109'!D37 -> 23911083.4 | AJ24: Offset to 4270 | AK24: 0.04233789712
A25: 16 | B25: 3% Sr Note due 6/15/2027 | C25: 06/2017 | D25: 500000000 | E25: 500000000 | F25: 500000000 | G25: 500000000 | H25: 500000000 | I25: 500000000 | J25: 500000000 | K25: 500000000 | L25: 500000000 | M25: 500000000 | N25: 500000000 | O25: 500000000 | P25: 500000000 | Q25: 0.03 | R25: 15000000 | T25: =AVERAGE(D25:P25) -> 500000000 | U25: 0.03 | V25: 15000000 | X25: =AB25*12 -> 0 | Y25: =SUM(AC25:AE25)*12 -> 555072 | Z25: 4972520.1 | AB25: 0 | AC25: =-'Acct 2241 Unamort Debt Exp'!X40 -> 34797.67 | AD25: =-'2260 LTDebt Discount'!BJ20 -> 11458.33 | AF25: ='Acct 2241 Unamort Debt Exp'!X21 -> 3740749.24 | AH25: ='2260 LTDebt Discount'!R20 -> 1231770.86 | AI25: 0 | AJ25: Offset to 2530 | AK25: 0.03142264345
A26: 17 | B26: March 2019 - Swap Position | C26: 03/2019 | D26: 0 | E26: 0 | F26: 0 | G26: 0 | H26: 0 | I26: 0 | J26: 0 | K26: 0 | L26: 0 | M26: 0 | N26: 0 | O26: 0 | P26: 0 | R26: 0 | T26: 0 | V26: 0 | X26: 0 | Y26: =SUM(AC26:AE26)*12 -> 0 | Z26: 0 | AF26: 0 | AI26: =-'June-18'!B48 -> 75762900.73 | AJ26: Offset to 2530
A27: 18 | B27: $200MM 3YR. Sr Credit Facility (Established 9/22/16) | D27: 125000000 | E27: 125000000 | F27: 125000000 | G27: 125000000 | H27: 125000000 | I27: 125000000 | J27: 125000000 | K27: 125000000 | L27: 125000000 | M27: 125000000 | N27: 125000000 | O27: 125000000 | P27: 125000000 | Q27: =+'Oct16_$200MM TL'!AJ20 -> 0.0306 | R27: 3825000 | T27: 125000000 | U27: =+'Oct16_$200MM TL'!AK20 -> 0.02515384615 | V27: =+T27*U27 -> 3144230.769 | X27: 0 | Y27: =SUM(AC27:AE27)*12 -> 115666.68 | Z27: =SUM(AF27:AH27) -> 131941.64 | AC27: =-SUM('Acct 2241 Unamort Debt Exp'!X41+'Acct 1650.13201 Prepayments'!Z23) -> 9638.89 | AF27: =SUM('Acct 2241 Unamort Debt Exp'!X22+'Acct 1650.13201 Prepayments'!Z13) -> 131941.64
A28: 19 | B28: Subtotal -- Utility Long-Term Debt | D28: =SUM(D10:D27) -> 3085000000 | E28: 3085000000 | F28: 3085000000 | G28: 3085000000 | H28: 3085000000 | I28: 3085000000 | J28: 3085000000 | K28: =SUM(K10:K27) -> 3085000000 | L28: 3085000000 | M28: 3085000000 | N28: 3085000000 | O28: =SUM(O10:O27) -> 3085000000 | P28: 3085000000 | R28: =SUM(R10:R27) -> 153454500 | T28: =SUM(T10:T27) -> 3085000000 | V28: =SUM(V10:V27) -> 152773730.8 | X28: =SUM(X10:X27) -> 2374790.426 | Y28: =SUM(Y10:Y27) -> 4206175.32 | Z28: =SUM(Z10:Z27) -> 26015434.03 | AB28: =SUM(AB10:AB27) -> 197899.2021 | AC28: =SUM(AC10:AC27) -> 137299.32 | AD28: =SUM(AD10:AD27) -> 4557.15 | AE28: =SUM(AE10:AE27) -> 208658.14 | AF28: 21112954.82 | AG28: 9327636.78 | AH28: -4425157.57 | AI28: =SUM(AI10:AI27) -> 138758484
A29: 20
A30: 21 | B30: Atmos Leasing, Inc.
A31: 22 | B31: Industrial Develop Revenue Bond 07/13 | C31: 1991 | D31: 0 | E31: 0 | F31: 0 | G31: 0 | H31: 0 | I31: 0 | J31: 0 | K31: 0 | L31: 0 | M31: 0 | N31: 0 | O31: 0 | P31: 0 | Q31: 0.079 | R31: =+P31*Q31 -> 0 | T31: =AVERAGE(D31:P31) -> 0 | U31: 0.079 | V31: =+T31*U31 -> 0 | X31: =AB31*12 -> 0 | Y31: =SUM(AC31:AE31)*12 -> 0 | Z31: =SUM(AF31:AH31) -> 0
A32: 23 | B32: Total Long-Term Debt | D32: =+D28+D31 -> 3085000000 | E32: 3085000000 | F32: 3085000000 | G32: 3085000000 | H32: 3085000000 | I32: 3085000000 | J32: 3085000000 | K32: 3085000000 | L32: 3085000000 | M32: 3085000000 | N32: 3085000000 | O32: 3085000000 | P32: =+P28+P31 -> 3085000000 | R32: =+R28+R31 -> 153454500 | T32: =+T28+T31 -> 3085000000 | V32: =+V28+V31 -> 152773730.8
A33: 24 | B33: Less Unamortized Debt Discount & Debt Premium | D33: ='2260 LTDebt Discount'!F21+'2250 LTDebt Premium'!F11 -> -4370287.94 | E33: ='2260 LTDebt Discount'!G21+'2250 LTDebt Premium'!G11 -> -4384189.23 | F33: ='2260 LTDebt Discount'!H21+'2250 LTDebt Premium'!H11 -> -4379586.07 | G33: ='2260 LTDebt Discount'!I21+'2250 LTDebt Premium'!I11 -> -4384143.22 | H33: ='2260 LTDebt Discount'!J21+'2250 LTDebt Premium'!J11 -> -4388700.37 | I33: ='2260 LTDebt Discount'!K21+'2250 LTDebt Premium'!K11 -> -4393257.52 | J33: ='2260 LTDebt Discount'!L21+'2250 LTDebt Premium'!L11 -> -4397814.67 | K33: ='2260 LTDebt Discount'!M21+'2250 LTDebt Premium'!M11 -> -4402371.82 | L33: ='2260 LTDebt Discount'!N21+'2250 LTDebt Premium'!N11 -> -4406928.97 | M33: ='2260 LTDebt Discount'!O21+'2250 LTDebt Premium'!O11 -> -4411486.12 | N33: ='2260 LTDebt Discount'!P21+'2250 LTDebt Premium'!P11 -> -4416043.27 | O33: ='2260 LTDebt Discount'!Q21+'2250 LTDebt Premium'!Q11 -> -4420600.42 | P33: ='2260 LTDebt Discount'!R21+'2250 LTDebt Premium'!R11 -> -4425157.57 | T33: =AVERAGE(D33:P33) -> -4398505.168 | X33: =+X28+SUM(X30:X32) -> 2374790.426 | Y33: =+Y28+SUM(Y30:Y32) -> 4206175.32 | Z33: =+Z28+SUM(Z30:Z32) -> 26015434.03 | AB33: =AB28 -> 197899.2021 | AC33: =AC28 -> 137299.32 | AD33: =AD28 -> 4557.15 | AE33: =-'1890 Unamort Loss on Reacq Debt'!N17 -> 208658.14 | AF33: =AF28 -> 21112954.82 | AG33: =AG28 -> 9327636.78 | AH33: =+AH28 -> -4425157.57 | AI33: =+AI28 -> 138758484
A34: 25 | B34: Less Unamortized Debt Expense | D34: ='Acct 2241 Unamort Debt Exp'!L23 -> 22636092.19 | E34: ='Acct 2241 Unamort Debt Exp'!M23 -> 22611580.64 | F34: ='Acct 2241 Unamort Debt Exp'!N23 -> 22475114.65 | G34: ='Acct 2241 Unamort Debt Exp'!O23 -> 22338648.66 | H34: ='Acct 2241 Unamort Debt Exp'!P23 -> 22202622.67 | I34: ='Acct 2241 Unamort Debt Exp'!Q23 -> 22065716.68 | J34: ='Acct 2241 Unamort Debt Exp'!R23 -> 21929250.69 | K34: ='Acct 2241 Unamort Debt Exp'!S23 -> 21792784.7 | L34: ='Acct 2241 Unamort Debt Exp'!T23 -> 21656318.71 | M34: ='Acct 2241 Unamort Debt Exp'!U23 -> 21519852.72 | N34: ='Acct 2241 Unamort Debt Exp'!V23 -> 21383386.73 | O34: ='Acct 2241 Unamort Debt Exp'!W23 -> 21246920.74 | P34: ='Acct 2241 Unamort Debt Exp'!X23 -> 21110454.75 | T34: =AVERAGE(D46:P46) -> 21920672.66
A35: 26 | B35: Annualized Amortization of T-Lock Settlement, Debt Exp, Debt Disc. & Debt Prem. | R35: =+X33+Y33 -> 6580965.746 | V35: =+X33+Y33 -> 6580965.746 | AB35: ck | AC35: ck | AD35: ck | AE35: ck | AF35: ck | AG35: ck | AH35: ck | AI35: ck
A36: 27 | D36: =D32-D33-D34 -> 3066734196 | E36: 3066772609 | F36: 3066904471 | G36: 3067045495 | H36: 3067186078 | I36: 3067327541 | J36: 3067468564 | K36: 3067609587 | L36: 3067750610 | M36: 3067891633 | N36: 3068032657 | O36: =O32-O33-O34 -> 3068173680 | P36: 3068314703 | R36: =+R32+R35 -> 160035465.7 | T36: =+T32-T33-T34 -> 3067477833 | V36: =+V32+V35 -> 159354696.5 | X36: check | Y36: check | Z36: check | AB36: =112791.18+185071.4-587.26-6477.8-37123.19-55775.13 -> 197899.2 | AC36: =-'Acct 2241 Unamort Debt Exp'!X42-'Acct 1650.13201 Prepayments'!Z22-'2260 LTDebt Discount'!BJ21-'2250 LTDebt Premium'!BK11 -> 141856.47 | AE36: =-'1890 Unamort Loss on Reacq Debt'!N17 -> 208658.14 | AF36: =SUM('Acct 2241 Unamort Debt Exp'!X23+'Acct 1650.13201 Prepayments'!Z14) -> 21112954.82 | AG36: ='1890 Unamort Loss on Reacq Debt'!N37 -> 9327636.78 | AH36: ='2260 LTDebt Discount'!R21+'2250 LTDebt Premium'!R12 -> -4425157.57 | AI36: =AH50 -> 138758484
A37: 28 | B37: Effective Avg Cost of Consol Debt | Q37: =+R36/P36 -> 0.05215744839 | R37: end of period | U37: =+V36/T36 -> 0.05194974674 | V37: 13 mth avg | X37: =AB33*12 -> 2374790.426 | Y37: =SUM(AC33:AE33)*12 -> 4206175.32 | Z37: =SUM(AF36:AH36) -> 26015434.03 | AA37: diff g/l vs calc | AB37: =+AB33-AB36 -> 0.0021280488 | AC37: =SUM(AC28+AD28)-SUM(AC33+AD33) -> 0 | AE37: =+AE33-AE36 -> 0 | AF37: =+AF33-AF36 -> 0 | AG37: =+AG33-AG36 -> 0 | AH37: =+AH33-AH36 -> 0 | AI37: =+AI33-AI36 -> 0
A38: 29 | B38: Consolidated & Utility | Q38: =(R28+X28+Y28)/(P28-P33-P34) -> 0.05215744839 | R38: end of period | U38: =(V28+X28+Y28)/(T28-T33-T34) -> 0.05194974674 | V38: 13 mth avg | X38: =X33-X37 -> 0 | Y38: =Y33-Y37 -> 0 | Z38: =Z33-Z37 -> 0
B39: Note: includes current maturities | O39: ck Fin Rptg Bal | P39: ='Consolidated Balance Detail'!D23 -> 3068314703 | AB39: Diff | AC39: =AC36-SUM(AC33:AD33) -> 0 | AF39: Recon of 2150-20102 thru 2150-20111
O40: diff Fin Rptg vs calc | P40: =+P36-P39 -> 0 | AG40: Per Amort Sch & Value | AH40: Per Amort Sch & Value | AI40: Amort Sch vs. G/L
AF41: Ledger Bal @02/28/18 | AG41: Def Tax Bal | AH41: Lock Bal | AI41: Diff
A42: . | AD42: Realized | AE42: 20102 | AF42: ='20102'!G189 -> -72607.70138 | AG42: ='20102'!F189 -> 42494.38751 | AH42: =SUM(AI18:AI19) -> -115102.0889 | AI42: =AF42-AG42-AH42 -> -3.731111065e-08 | AJ42: (Offset to 4270)
AD43: Realized | AE43: 20103 | AF43: 0 | AG43: 0 | AH43: =AI20 -> 0 | AI43: 0 | AJ43: (Offset to 4270)
D44: Acct 2241 | E44: Acct 2241 | F44: Acct 2241 | G44: Acct 2241 | H44: Acct 2241 | I44: Acct 2241 | J44: Acct 2241 | K44: Acct 2241 | L44: Acct 2241 | M44: Acct 2241 | N44: Acct 2241 | O44: Acct 2241 | P44: Acct 2241 | AD44: Realized | AE44: 20104 | AF44: ='20104'!G136 -> -31702.46971 | AG44: ='20104'!F136 -> 26597.70629 | AH44: =AI22 -> -58300.176 | AI44: 7.421476766e-10 | AJ44: (Offset to 4270)
D45: =+D7 -> 2017-06-30 | E45: 2017-07-31 | F45: 2017-08-31 | G45: 2017-09-30 | H45: 2017-10-31 | I45: 2017-11-30 | J45: 2017-12-31 | K45: 2018-01-31 | L45: 2018-02-28 | M45: 2018-03-31 | N45: 2018-04-30 | O45: 2018-05-31 | P45: =+P7 -> 2018-06-30 | R45: 13 mth Average | AD45: Realized | AE45: 20105 | AF45: ='20105'!G110 -> -9693941.907 | AG45: ='20105'!F110 -> 5644218.996 | AH45: =AI21 -> -15338160.9 | AI45: 7.823109627e-08 | AJ45: (Offset to 4270)
A46: Note: | B46: Unamortized Debt Expense | D46: =+D34 -> 22636092.19 | E46: 22611580.64 | F46: 22475114.65 | G46: 22338648.66 | H46: 22202622.67 | I46: 22065716.68 | J46: 21929250.69 | K46: 21792784.7 | L46: 21656318.71 | M46: 21519852.72 | N46: 21383386.73 | O46: =+O34 -> 21246920.74 | P46: 21110454.75 | R46: =AVERAGE(D46:P46) -> 21920672.66 | AD46: Realized | AE46: 20107 | AF46: ='20107'!G89 -> 34516560.11 | AG46: ='20107'!F89 -> -20079502.93 | AH46: =AI23 -> 54596063.04 | AI46: 2.011656761e-07 | AJ46: (Offset to 4270)
B47: **In Sept 16 the Company implemented FASB ASU 201503. | AD47: Realized | AE47: 20108 | AF47: ='20108'!G69 -> -7418662.797 | AG47: ='20108'!F69 -> 4312266.647 | AH47: ='20108'!D69 -> -11730929.44 | AI47: 0 | AJ47: (Offset to 4270)
AD48: Realized | AE48: 20109 | AF48: ='20109'!G37 -> 22540078.85 | AG48: ='20109'!F37 -> -13101933.99 | AH48: ='20109'!D37 -> 35642012.84 | AI48: =AF48-AG48-AH48 -> 0 | AJ48: (Offset to 2530)
AD49: Un-Realized | AE49: 20111 | AF49: =-'June-18'!F48 -> 58476079.67 | AG49: ='June-18'!E48 -> -17286821.06 | AH49: =AI26 -> 75762900.73 | AI49: =AF49-AG49-AH49 -> 0 | AJ49: (Offset to 2530)
AF50: =SUM(AF42:AF49) -> 98315803.76 | AG50: =SUM(AG42:AG49) -> -40442680.24 | AH50: =SUM(AH42:AH49) -> 138758484 | AI50: =SUM(AI42:AI49) -> 2.428278094e-07

Sheet Oct16_$200MM TL
C3: ATMOS ENERGY CORPORATION - LONG TERM DEBT DETAIL | U3: ATMOS ENERGY CORPORATION - LONG TERM DEBT DETAIL
C4: BB&T | E4: 200000000 | I4: Three Year Term Loan | M4: Effective 09/22/16 to 09/21/19 | U4: BB&T | W4: 200000000 | AD4: Three Year Term Loan | AF4: Effective 09/22/16 to 09/21/19 | AK4: 13Mth Avg
E5: Principal | G5: Interest | I5: Interest | K5: Unused | M5: Commitment | O5: Commitment | P5: Utilization | Q5: Utilization | W5: Principal | Y5: Principal | AA5: Interest | AC5: Daily | AD5: Unused | AF5: Commitment | AH5: Commitment | AJ5: Ending | AK5: M/E Average
C6: Date | E6: Outstanding | G6: Rate | K6: Portion of | M6: Fee Rate | O6: Fee | P6: Fee Rate | Q6: Fee | U6: Date | W6: Outstanding | Y6: Outstanding | AA6: Rate | AC6: Interest | AD6: Portion of | AF6: Fee Rate | AH6: Fee | AJ6: Interest | AK6: Interest
K7: Line | Q7: (3) | W7: M/E | Y7: Average | AC7: Calc | AD7: Line | AH7: Calc | AJ7: Rate | AK7: Rate
C8: =DATE(2016,10,1) -> 2016-10-01 | E8: 0 | G8: 0 | I8: =ROUND(E8*G8/366,3) -> 0 | K8: =$E$4-E8 -> 200000000 | M8: 0.001 | O8: =K8*M8/360 -> 555.5555556 | P8: 0 | Q8: =IF(E39<($AA$4*0.5),0,(E39*P8)/360) -> 0 | U8: 2017-06-01 | W8: =+$E$280 -> 125000000 | Y8: =IF(W8=0,0,SUM($W$8:W8)/13) -> 9615384.615 | AA8: =+$G$280 -> 0.0213 | AC8: =+AA8/360*W8 -> 7395.833333 | AD8: =IF(W8=0,0,200000000-W8) -> 75000000 | AF8: =IF(AD8=0,0,0.1%) -> 0.001 | AH8: =+AF8/360*AD8 -> 208.3333333 | AJ8: =IF(W8=0,0,((W8*AA8)+(AD8*AF8))/W8) -> 0.0219 | AK8: =IF(W8=0,0,+((AVERAGE($AC$8:AC8)+AVERAGE($AH$8:AH8))/AVERAGE($W$8:W8))*360) -> 0.0219
C9: =C8+1 -> 2016-10-02 | E9: =+E8 -> 0 | G9: =IF(E9>0,G8,0) -> 0 | I9: 0 | K9: 200000000 | M9: =+M8 -> 0.001 | O9: =K9*M9/360 -> 555.5555556 | P9: 0 | Q9: 0 | U9: 2017-07-01 | W9: =+$E$311 -> 125000000 | Y9: =IF(W9=0,0,SUM($W$8:W9)/13) -> 19230769.23 | AA9: =+$G$311 -> 0.0214 | AC9: 7430.555556 | AD9: 75000000 | AF9: 0.001 | AH9: 208.3333333 | AJ9: 0.022 | AK9: =IF(W9=0,0,+((AVERAGE($AC$8:AC9)+AVERAGE($AH$8:AH9))/AVERAGE($W$8:W9))*360) -> 0.02195
C10: =C9+1 -> 2016-10-03 | E10: =+E9 -> 0 | G10: =IF(E10>0,G9,0) -> 0 | I10: 0 | K10: 200000000 | M10: =+M9 -> 0.001 | O10: =K10*M10/360 -> 555.5555556 | P10: 0 | Q10: 0 | U10: 2017-08-01 | W10: =+$E$342 -> 125000000 | Y10: =IF(W10=0,0,SUM($W$8:W10)/13) -> 28846153.85 | AA10: =+$G$342 -> 0.0214 | AC10: 7430.555556 | AD10: 75000000 | AF10: 0.001 | AH10: 208.3333333 | AJ10: 0.022 | AK10: =IF(W10=0,0,+((AVERAGE($AC$8:AC10)+AVERAGE($AH$8:AH10))/AVERAGE($W$8:W10))*360) -> 0.02196666667
C11: 2016-10-04 | E11: 0 | G11: 0 | I11: 0 | K11: 200000000 | M11: 0.001 | O11: 555.5555556 | P11: 0 | Q11: 0 | U11: 2017-09-01 | W11: =+$E$372 -> 125000000 | Y11: =IF(W11=0,0,SUM($W$8:W11)/13) -> 38461538.46 | AA11: =+$G$372 -> 0.0214 | AC11: 7430.555556 | AD11: 75000000 | AF11: 0.001 | AH11: 208.3333333 | AJ11: 0.022 | AK11: =IF(W11=0,0,+((AVERAGE($AC$8:AC11)+AVERAGE($AH$8:AH11))/AVERAGE($W$8:W11))*360) -> 0.021975
C12: 2016-10-05 | E12: 0 | G12: 0 | I12: 0 | K12: 200000000 | M12: 0.001 | O12: 555.5555556 | P12: 0 | Q12: 0 | U12: 2017-10-01 | W12: =+$E$403 -> 125000000 | Y12: =IF(W12=0,0,SUM($W$8:W12)/13) -> 48076923.08 | AA12: =+$G$402 -> 0.0214 | AC12: 7430.555556 | AD12: 75000000 | AF12: 0.001 | AH12: 208.3333333 | AJ12: 0.022 | AK12: =IF(W12=0,0,+((AVERAGE($AC$8:AC12)+AVERAGE($AH$8:AH12))/AVERAGE($W$8:W12))*360) -> 0.02198
C13: 2016-10-06 | E13: 0 | G13: 0 | I13: 0 | K13: 200000000 | M13: 0.001 | O13: 555.5555556 | P13: 0 | Q13: 0 | U13: 2017-11-01 | W13: =+$E$433 -> 125000000 | Y13: =IF(W13=0,0,SUM(W8:W13)/13) -> 57692307.69 | AA13: =+$G$433 -> 0.0225 | AC13: 7812.5 | AD13: 75000000 | AF13: 0.001 | AH13: 208.3333333 | AJ13: 0.0231 | AK13: =IF(W13=0,0,+((AVERAGE($AC$8:AC13)+AVERAGE($AH$8:AH13))/AVERAGE($W$8:W13))*360) -> 0.02216666667
C14: 2016-10-07 | E14: 0 | G14: 0 | I14: 0 | K14: 200000000 | M14: 0.001 | O14: =K14*M14/360 -> 555.5555556 | P14: 0 | Q14: 0 | U14: 2017-12-01 | W14: =+$E$464 -> 125000000 | Y14: =IF(W14=0,0,SUM(W8:W14)/13) -> 67307692.31 | AA14: =+$G$464 -> 0.0247 | AC14: 8576.388889 | AD14: 75000000 | AF14: 0.001 | AH14: 208.3333333 | AJ14: 0.0253 | AK14: =IF(W14=0,0,+((AVERAGE($AC$8:AC14)+AVERAGE($AH$8:AH14))/AVERAGE($W$8:W14))*360) -> 0.02261428571
C15: 2016-10-08 | E15: 0 | G15: 0 | I15: 0 | K15: 200000000 | M15: 0.001 | O15: 555.5555556 | P15: 0 | Q15: 0 | U15: 2018-01-01 | W15: =+$E$495 -> 125000000 | Y15: =IF(W15=0,0,SUM(W8:W15)/13) -> 76923076.92 | AA15: =+$G$495 -> 0.0248 | AC15: 8611.111111 | AD15: 75000000 | AF15: 0.001 | AH15: 208.3333333 | AJ15: 0.0254 | AK15: =IF(W15=0,0,+((AVERAGE(AC8:AC15)+AVERAGE(AH8:AH15))/AVERAGE(W8:W15))*360) -> 0.0229625
C16: 2016-10-09 | E16: 0 | G16: 0 | I16: 0 | K16: 200000000 | M16: 0.001 | O16: 555.5555556 | P16: 0 | Q16: 0 | U16: 2018-02-01 | W16: =+$E$523 -> 125000000 | Y16: =IF(W16=0,0,SUM(W8:W16)/13) -> 86538461.54 | AA16: =+$G$523 -> 0.0255 | AC16: 8854.166667 | AD16: 75000000 | AF16: 0.001 | AH16: 208.3333333 | AJ16: 0.0261 | AK16: =IF(W16=0,0,+((AVERAGE(AC8:AC16)+AVERAGE(AH8:AH16))/AVERAGE(W8:W16))*360) -> 0.02331111111
C17: 2016-10-10 | E17: 0 | G17: 0 | I17: 0 | K17: 200000000 | M17: 0.001 | O17: 555.5555556 | P17: 0 | Q17: 0 | U17: 2018-03-31 | W17: =+$E$554 -> 125000000 | Y17: =IF(W17=0,0,SUM(W8:W17)/13) -> 96153846.15 | AA17: =+$G$554 -> 0.0278 | AC17: 9652.777778 | AD17: 75000000 | AF17: 0.001 | AH17: 208.3333333 | AJ17: 0.0284 | AK17: =IF(W17=0,0,+((AVERAGE(AC8:AC17)+AVERAGE(AH8:AH17))/AVERAGE(W8:W17))*360) -> 0.02382
C18: 2016-10-11 | E18: 0 | G18: 0 | I18: 0 | K18: 200000000 | M18: 0.001 | O18: 555.5555556 | P18: 0 | Q18: 0 | U18: 2018-04-18 | W18: =+$E$584 -> 125000000 | Y18: =IF(W18=0,0,SUM(W8:W18)/13) -> 105769230.8 | AA18: =+$G$584 -> 0.0281 | AC18: 9756.944444 | AD18: 75000000 | AF18: 0.001 | AH18: 208.3333333 | AJ18: 0.0287 | AK18: =IF(W18=0,0,+((AVERAGE(AC8:AC18)+AVERAGE(AH8:AH18))/AVERAGE(W8:W18))*360) -> 0.02426363636
C19: 2016-10-12 | E19: 0 | G19: 0 | I19: 0 | K19: 200000000 | M19: 0.001 | O19: 555.5555556 | P19: 0 | Q19: 0 | U19: 2018-05-18 | W19: =+$E$615 -> 125000000 | Y19: =IF(W19=0,0,SUM(W8:W19)/13) -> 115384615.4 | AA19: =+$G$615 -> 0.0289 | AC19: 10034.72222 | AD19: 75000000 | AF19: 0.001 | AH19: 208.3333333 | AJ19: 0.0295 | AK19: =IF(W19=0,0,+((AVERAGE(AC8:AC19)+AVERAGE(AH8:AH19))/AVERAGE(W8:W19))*360) -> 0.0247
C20: 2016-10-13 | E20: 0 | G20: 0 | I20: 0 | K20: 200000000 | M20: 0.001 | O20: 555.5555556 | P20: 0 | Q20: 0 | U20: 2018-06-18 | W20: =+$E$645 -> 125000000 | Y20: =IF(W20=0,0,SUM(W8:W20)/13) -> 125000000 | AA20: =+$G$645 -> 0.03 | AC20: =+AA20/360*W20 -> 10416.66667 | AD20: =IF(W20=0,0,200000000-W20) -> 75000000 | AF20: =IF(AD20=0,0,0.1%) -> 0.001 | AH20: =+AF20/360*AD20 -> 208.3333333 | AJ20: =IF(W20=0,0,((W20*AA20)+(AD20*AF20))/W20) -> 0.0306 | AK20: =IF(W20=0,0,+((AVERAGE(AC8:AC20)+AVERAGE(AH8:AH20))/AVERAGE(W8:W20))*360) -> 0.02515384615
C21: 2016-10-14 | E21: 0 | G21: 0 | I21: 0 | K21: 200000000 | M21: 0.001 | O21: 555.5555556 | P21: 0 | Q21: 0
C22: 2016-10-15 | E22: 0 | G22: 0 | I22: 0 | K22: 200000000 | M22: 0.001 | O22: 555.5555556 | P22: 0 | Q22: 0
C23: 2016-10-16 | E23: 0 | G23: 0 | I23: 0 | K23: 200000000 | M23: 0.001 | O23: 555.5555556 | P23: 0 | Q23: 0
C24: 2016-10-17 | E24: 0 | G24: 0 | I24: 0 | K24: 200000000 | M24: 0.001 | O24: 555.5555556 | P24: 0 | Q24: 0
C25: 2016-10-18 | E25: 0 | G25: 0 | I25: 0 | K25: 200000000 | M25: 0.001 | O25: 555.5555556 | P25: 0 | Q25: 0
C26: 2016-10-19 | E26: 0 | G26: 0 | I26: 0 | K26: 200000000 | M26: 0.001 | O26: 555.5555556 | P26: 0 | Q26: 0
C27: 2016-10-20 | E27: 0 | G27: 0 | I27: 0 | K27: 200000000 | M27: 0.001 | O27: 555.5555556 | P27: 0 | Q27: 0
C28: 2016-10-21 | E28: 0 | G28: 0 | I28: 0 | K28: 200000000 | M28: 0.001 | O28: 555.5555556 | P28: 0 | Q28: 0
C29: 2016-10-22 | E29: 0 | G29: 0 | I29: 0 | K29: 200000000 | M29: 0.001 | O29: 555.5555556 | P29: 0 | Q29: 0
C30: 2016-10-23 | E30: 0 | G30: 0 | I30: 0 | K30: =$E$4-E30 -> 200000000 | M30: 0.001 | O30: 555.5555556 | P30: 0 | Q30: 0
C31: 2016-10-24 | E31: 125000000 | G31: 0.01424 | I31: =ROUND(E31*G31/360,3) -> 4944.444 | K31: =IF(E31=0,0,$E$4-E31) -> 75000000 | M31: 0.001 | O31: 208.3333333 | P31: 0 | Q31: 0
C32: 2016-10-25 | E32: =+E31 -> 125000000 | G32: 0.01424 | I32: =ROUND(E32*G32/360,3) -> 4944.444 | K32: =IF(E32=0,0,$E$4-E32) -> 75000000 | M32: 0.001 | O32: 208.3333333 | P32: 0 | Q32: 0
C33: 2016-10-26 | E33: =+E32 -> 125000000 | G33: 0.01424 | I33: 4944.444 | K33: 75000000 | M33: 0.001 | O33: 208.3333333 | P33: 0 | Q33: 0
C34: 2016-10-27 | E34: 125000000 | G34: 0.01424 | I34: 4944.444 | K34: 75000000 | M34: 0.001 | O34: 208.3333333 | P34: 0 | Q34: 0
C35: 2016-10-28 | E35: 125000000 | G35: 0.01424 | I35: 4944.444 | K35: 75000000 | M35: 0.001 | O35: 208.3333333 | P35: 0 | Q35: 0
C36: 2016-10-29 | E36: 125000000 | G36: 0.01424 | I36: 4944.444 | K36: 75000000 | M36: 0.001 | O36: 208.3333333 | P36: 0 | Q36: 0
C37: 2016-10-30 | E37: 125000000 | G37: 0.01424 | I37: 4944.444 | K37: 75000000 | M37: 0.001 | O37: 208.3333333 | P37: 0 | Q37: 0
C38: 2016-10-31 | E38: 125000000 | G38: 0.01424 | I38: 4944.444 | K38: 75000000 | M38: 0.001 | O38: 208.3333333 | P38: 0 | Q38: =IF(E68<($AA$4*0.5),0,(E68*P37)/360) -> 0
C39: 2016-11-01 | E39: 125000000 | G39: 0.0143 | I39: =ROUND(E39*G39/360,3) -> 4965.278 | K39: 75000000 | M39: 0.001 | O39: =K39*M39/360 -> 208.3333333 | Q39: =SUM(O8:O37) -> 14236.11111
C40: 2016-11-02 | E40: =+E39 -> 125000000 | G40: 0.0143 | I40: =ROUND(E40*G40/360,3) -> 4965.278 | K40: 75000000 | M40: 0.001 | O40: =K40*M40/360 -> 208.3333333
C41: 2016-11-03 | E41: =+E40 -> 125000000 | G41: 0.0143 | I41: 4965.278 | K41: 75000000 | M41: 0.001 | O41: =K41*M41/360 -> 208.3333333
C42: 2016-11-04 | E42: 125000000 | G42: 0.0143 | I42: 4965.278 | K42: 75000000 | M42: 0.001 | O42: 208.3333333
C43: 2016-11-05 | E43: 125000000 | G43: 0.0143 | I43: 4965.278 | K43: 75000000 | M43: 0.001 | O43: 208.3333333
C44: 2016-11-06 | E44: 125000000 | G44: 0.0143 | I44: 4965.278 | K44: 75000000 | M44: 0.001 | O44: 208.3333333
C45: 2016-11-07 | E45: 125000000 | G45: 0.0143 | I45: 4965.278 | K45: 75000000 | M45: 0.001 | O45: =K45*M45/360 -> 208.3333333
C46: 2016-11-08 | E46: 125000000 | G46: 0.0143 | I46: 4965.278 | K46: 75000000 | M46: 0.001 | O46: 208.3333333
C47: 2016-11-09 | E47: 125000000 | G47: 0.0143 | I47: 4965.278 | K47: 75000000 | M47: 0.001 | O47: 208.3333333
C48: 2016-11-10 | E48: 125000000 | G48: 0.0143 | I48: 4965.278 | K48: 75000000 | M48: 0.001 | O48: 208.3333333
C49: 2016-11-11 | E49: 125000000 | G49: 0.0143 | I49: 4965.278 | K49: 75000000 | M49: 0.001 | O49: 208.3333333
C50: 2016-11-12 | E50: 125000000 | G50: 0.0143 | I50: 4965.278 | K50: 75000000 | M50: 0.001 | O50: 208.3333333
C51: 2016-11-13 | E51: 125000000 | G51: 0.0143 | I51: 4965.278 | K51: 75000000 | M51: 0.001 | O51: 208.3333333
C52: 2016-11-14 | E52: 125000000 | G52: 0.0143 | I52: 4965.278 | K52: 75000000 | M52: 0.001 | O52: 208.3333333
C53: 2016-11-15 | E53: 125000000 | G53: 0.0143 | I53: 4965.278 | K53: 75000000 | M53: 0.001 | O53: 208.3333333
C54: 2016-11-16 | E54: 125000000 | G54: 0.0143 | I54: 4965.278 | K54: 75000000 | M54: 0.001 | O54: 208.3333333
C55: 2016-11-17 | E55: 125000000 | G55: 0.0143 | I55: 4965.278 | K55: 75000000 | M55: 0.001 | O55: 208.3333333
C56: 2016-11-18 | E56: 125000000 | G56: 0.0143 | I56: 4965.278 | K56: 75000000 | M56: 0.001 | O56: 208.3333333
C57: 2016-11-19 | E57: 125000000 | G57: 0.0143 | I57: 4965.278 | K57: 75000000 | M57: 0.001 | O57: 208.3333333
C58: 2016-11-20 | E58: 125000000 | G58: 0.0143 | I58: 4965.278 | K58: 75000000 | M58: 0.001 | O58: 208.3333333
C59: 2016-11-21 | E59: 125000000 | G59: 0.0143 | I59: 4965.278 | K59: 75000000 | M59: 0.001 | O59: 208.3333333
C60: 2016-11-22 | E60: 125000000 | G60: 0.0143 | I60: 4965.278 | K60: 75000000 | M60: 0.001 | O60: 208.3333333
C61: 2016-11-23 | E61: 125000000 | G61: 0.0143 | I61: 4965.278 | K61: 75000000 | M61: 0.001 | O61: 208.3333333
C62: 2016-11-24 | E62: 125000000 | G62: 0.0143 | I62: 4965.278 | K62: 75000000 | M62: 0.001 | O62: 208.3333333
C63: 2016-11-25 | E63: 125000000 | G63: 0.015 | I63: 5208.333 | K63: 75000000 | M63: 0.001 | O63: 208.3333333
C64: 2016-11-26 | E64: =+E63 -> 125000000 | G64: 0.015 | I64: 5208.333 | K64: 75000000 | M64: 0.001 | O64: 208.3333333
C65: 2016-11-27 | E65: 125000000 | G65: 0.015 | I65: 5208.333 | K65: 75000000 | M65: 0.001 | O65: 208.3333333
C66: 2016-11-28 | E66: 125000000 | G66: 0.015 | I66: 5208.333 | K66: 75000000 | M66: 0.001 | O66: 208.3333333
C67: 2016-11-29 | E67: 125000000 | G67: 0.015 | I67: 5208.333 | K67: 75000000 | M67: 0.001 | O67: 208.3333333
C68: 2016-11-30 | E68: 125000000 | G68: 0.015 | I68: 5208.333 | K68: 75000000 | M68: 0.001 | O68: 208.3333333
C69: 2016-12-01 | E69: 125000000 | G69: =IF(E69>0,G68,0) -> 0.015 | I69: =ROUND(E69*G69/360,3) -> 5208.333 | K69: =IF(E69=0,0,$E$4-E69) -> 75000000 | M69: 0.001 | O69: =K69*M69/360 -> 208.3333333
C70: 2016-12-02 | E70: 125000000 | G70: =IF(E70>0,G69,0) -> 0.015 | I70: 5208.333 | K70: 75000000 | M70: 0.001 | O70: 208.3333333
C71: 2016-12-03 | E71: 125000000 | G71: 0.015 | I71: 5208.333 | K71: 75000000 | M71: 0.001 | O71: 208.3333333
C72: 2016-12-04 | E72: 125000000 | G72: 0.015 | I72: 5208.333 | K72: 75000000 | M72: 0.001 | O72: 208.3333333
C73: 2016-12-05 | E73: 125000000 | G73: 0.015 | I73: 5208.333 | K73: 75000000 | M73: 0.001 | O73: 208.3333333
C74: 2016-12-06 | E74: 125000000 | G74: 0.015 | I74: 5208.333 | K74: 75000000 | M74: =+M73 -> 0.001 | O74: 208.3333333
C75: =C74+1 -> 2016-12-07 | E75: 125000000 | G75: 0.015 | I75: 5208.333 | K75: 75000000 | M75: 0.001 | O75: 208.3333333
C76: 2016-12-08 | E76: 125000000 | G76: 0.015 | I76: 5208.333 | K76: 75000000 | M76: 0.001 | O76: 208.3333333
C77: 2016-12-09 | E77: 125000000 | G77: 0.015 | I77: 5208.333 | K77: 75000000 | M77: 0.001 | O77: 208.3333333
C78: 2016-12-10 | E78: 125000000 | G78: 0.015 | I78: 5208.333 | K78: 75000000 | M78: 0.001 | O78: 208.3333333
C79: 2016-12-11 | E79: 125000000 | G79: 0.015 | I79: 5208.333 | K79: 75000000 | M79: 0.001 | O79: 208.3333333
C80: 2016-12-12 | E80: 125000000 | G80: 0.015 | I80: 5208.333 | K80: 75000000 | M80: 0.001 | O80: 208.3333333
C81: 2016-12-13 | E81: 125000000 | G81: 0.015 | I81: 5208.333 | K81: 75000000 | M81: 0.001 | O81: 208.3333333
C82: 2016-12-14 | E82: 125000000 | G82: 0.015 | I82: 5208.333 | K82: 75000000 | M82: 0.001 | O82: 208.3333333
C83: 2016-12-15 | E83: 125000000 | G83: 0.015 | I83: 5208.333 | K83: 75000000 | M83: 0.001 | O83: 208.3333333
C84: 2016-12-16 | E84: 125000000 | G84: 0.015 | I84: 5208.333 | K84: 75000000 | M84: 0.001 | O84: 208.3333333
C85: 2016-12-17 | E85: 125000000 | G85: 0.015 | I85: 5208.333 | K85: 75000000 | M85: 0.001 | O85: 208.3333333
C86: 2016-12-18 | E86: 125000000 | G86: 0.015 | I86: 5208.333 | K86: 75000000 | M86: 0.001 | O86: 208.3333333
C87: 2016-12-19 | E87: 125000000 | G87: 0.015 | I87: 5208.333 | K87: 75000000 | M87: 0.001 | O87: 208.3333333
C88: 2016-12-20 | E88: 125000000 | G88: 0.015 | I88: 5208.333 | K88: 75000000 | M88: 0.001 | O88: 208.3333333
C89: 2016-12-21 | E89: 125000000 | G89: 0.015 | I89: 5208.333 | K89: 75000000 | M89: 0.001 | O89: 208.3333333
C90: 2016-12-22 | E90: 125000000 | G90: 0.015 | I90: 5208.333 | K90: 75000000 | M90: 0.001 | O90: 208.3333333
C91: 2016-12-23 | E91: 125000000 | G91: 0.015 | I91: 5208.333 | K91: 75000000 | M91: 0.001 | O91: 208.3333333
C92: 2016-12-24 | E92: 125000000 | G92: 0.015 | I92: 5208.333 | K92: 75000000 | M92: 0.001 | O92: 208.3333333
C93: 2016-12-25 | E93: 125000000 | G93: 0.015 | I93: 5208.333 | K93: 75000000 | M93: 0.001 | O93: 208.3333333
C94: 2016-12-26 | E94: 125000000 | G94: 0.015 | I94: 5208.333 | K94: 75000000 | M94: 0.001 | O94: 208.3333333
C95: 2016-12-27 | E95: 125000000 | G95: 0.0166 | I95: 5763.889 | K95: 75000000 | M95: 0.001 | O95: 208.3333333
C96: 2016-12-28 | E96: 125000000 | G96: 0.0166 | I96: 5763.889 | K96: 75000000 | M96: 0.001 | O96: 208.3333333
C97: 2016-12-29 | E97: 125000000 | G97: 0.0166 | I97: 5763.889 | K97: 75000000 | M97: 0.001 | O97: 208.3333333
C98: 2016-12-30 | E98: 125000000 | G98: 0.0166 | I98: 5763.889 | K98: 75000000 | M98: 0.001 | O98: 208.3333333
C99: 2016-12-31 | E99: 125000000 | G99: 0.0166 | I99: 5763.889 | K99: 75000000 | M99: 0.001 | O99: 208.3333333
C100: 2017-01-01 | E100: 125000000 | G100: =IF(E100>0,G99,0) -> 0.0166 | I100: =ROUND(E100*G100/360,3) -> 5763.889 | K100: =IF(E100=0,0,$E$4-E100) -> 75000000 | M100: 0.001 | O100: =K100*M100/360 -> 208.3333333
C101: 2017-01-02 | E101: 125000000 | G101: =IF(E101>0,G100,0) -> 0.0166 | I101: 5763.889 | K101: 75000000 | M101: 0.001 | O101: 208.3333333
C102: 2017-01-03 | E102: 125000000 | G102: 0.0166 | I102: 5763.889 | K102: 75000000 | M102: 0.001 | O102: 208.3333333
C103: 2017-01-04 | E103: 125000000 | G103: 0.0166 | I103: 5763.889 | K103: 75000000 | M103: 0.001 | O103: 208.3333333
C104: 2017-01-05 | E104: 125000000 | G104: 0.0166 | I104: 5763.889 | K104: 75000000 | M104: 0.001 | O104: 208.3333333
C105: 2017-01-06 | E105: 125000000 | G105: 0.0166 | I105: 5763.889 | K105: 75000000 | M105: 0.001 | O105: 208.3333333
C106: 2017-01-07 | E106: 125000000 | G106: 0.0166 | I106: 5763.889 | K106: 75000000 | M106: 0.001 | O106: 208.3333333
C107: 2017-01-08 | E107: 125000000 | G107: 0.0166 | I107: 5763.889 | K107: 75000000 | M107: 0.001 | O107: 208.3333333
C108: 2017-01-09 | E108: 125000000 | G108: 0.0166 | I108: 5763.889 | K108: 75000000 | M108: 0.001 | O108: 208.3333333
C109: 2017-01-10 | E109: 125000000 | G109: 0.0166 | I109: 5763.889 | K109: 75000000 | M109: 0.001 | O109: 208.3333333
C110: 2017-01-11 | E110: 125000000 | G110: 0.0166 | I110: 5763.889 | K110: 75000000 | M110: 0.001 | O110: 208.3333333
C111: 2017-01-12 | E111: 125000000 | G111: 0.0166 | I111: 5763.889 | K111: 75000000 | M111: 0.001 | O111: 208.3333333
C112: 2017-01-13 | E112: 125000000 | G112: 0.0166 | I112: 5763.889 | K112: 75000000 | M112: 0.001 | O112: 208.3333333
C113: 2017-01-14 | E113: 125000000 | G113: 0.0166 | I113: 5763.889 | K113: 75000000 | M113: 0.001 | O113: 208.3333333
C114: 2017-01-15 | E114: 125000000 | G114: 0.0166 | I114: 5763.889 | K114: 75000000 | M114: 0.001 | O114: 208.3333333
C115: 2017-01-16 | E115: 125000000 | G115: 0.0166 | I115: 5763.889 | K115: 75000000 | M115: 0.001 | O115: 208.3333333
C116: 2017-01-17 | E116: 125000000 | G116: 0.0166 | I116: 5763.889 | K116: 75000000 | M116: 0.001 | O116: 208.3333333
C117: 2017-01-18 | E117: 125000000 | G117: 0.0166 | I117: 5763.889 | K117: 75000000 | M117: 0.001 | O117: 208.3333333
C118: 2017-01-19 | E118: 125000000 | G118: 0.0166 | I118: 5763.889 | K118: 75000000 | M118: 0.001 | O118: 208.3333333
C119: 2017-01-20 | E119: 125000000 | G119: 0.0166 | I119: 5763.889 | K119: 75000000 | M119: 0.001 | O119: 208.3333333
C120: 2017-01-21 | E120: 125000000 | G120: 0.0166 | I120: 5763.889 | K120: 75000000 | M120: 0.001 | O120: 208.3333333
C121: 2017-01-22 | E121: 125000000 | G121: 0.0166 | I121: 5763.889 | K121: 75000000 | M121: 0.001 | O121: 208.3333333
C122: 2017-01-23 | E122: 125000000 | G122: 0.0166 | I122: 5763.889 | K122: 75000000 | M122: 0.001 | O122: 208.3333333
C123: 2017-01-24 | E123: 125000000 | G123: 0.0166 | I123: 5763.889 | K123: 75000000 | M123: 0.001 | O123: 208.3333333
C124: 2017-01-25 | E124: 125000000 | G124: 0.0166 | I124: 5763.889 | K124: 75000000 | M124: 0.001 | O124: 208.3333333
C125: 2017-01-26 | E125: 125000000 | G125: 0.0166 | I125: 5763.889 | K125: 75000000 | M125: 0.001 | O125: 208.3333333
C126: 2017-01-27 | E126: 125000000 | G126: 0.0168 | I126: 5833.333 | K126: 75000000 | M126: 0.001 | O126: 208.3333333
C127: 2017-01-28 | E127: 125000000 | G127: 0.0168 | I127: 5833.333 | K127: 75000000 | M127: 0.001 | O127: 208.3333333
C128: 2017-01-29 | E128: =+E127 -> 125000000 | G128: 0.0168 | I128: 5833.333 | K128: 75000000 | M128: 0.001 | O128: 208.3333333
C129: 2017-01-30 | E129: 125000000 | G129: 0.0168 | I129: 5833.333 | K129: 75000000 | M129: 0.001 | O129: 208.3333333
C130: 2017-01-31 | E130: 125000000 | G130: 0.0168 | I130: 5833.333 | K130: 75000000 | M130: 0.001 | O130: 208.3333333
C131: 2017-02-01 | E131: 125000000 | G131: 0.0168 | I131: =ROUND(E131*G131/360,3) -> 5833.333 | K131: 75000000 | M131: 0.001 | O131: 208.3333333 | P131: 0 | Q131: =IF(E131<($Y$4*0.5),0,(E131*P131)/360) -> 0
C132: 2017-02-02 | E132: =+E131 -> 125000000 | G132: 0.0168 | I132: =ROUND(E132*G132/360,3) -> 5833.333 | K132: 75000000 | M132: 0.001 | O132: 208.3333333 | P132: 0 | Q132: =IF(E132<($Y$4*0.5),0,(E132*P132)/360) -> 0
C133: 2017-02-03 | E133: =+E132 -> 125000000 | G133: 0.0168 | I133: 5833.333 | K133: 75000000 | M133: 0.001 | O133: 208.3333333 | P133: 0 | Q133: =IF(E133<($Y$4*0.5),0,(E133*P133)/360) -> 0
C134: 2017-02-04 | E134: 125000000 | G134: 0.0168 | I134: 5833.333 | K134: 75000000 | M134: 0.001 | O134: 208.3333333 | P134: 0 | Q134: =IF(E134<($Y$4*0.5),0,(E134*P134)/360) -> 0
C135: 2017-02-05 | E135: 125000000 | G135: 0.0168 | I135: 5833.333 | K135: 75000000 | M135: 0.001 | O135: 208.3333333 | P135: 0 | Q135: 0
C136: 2017-02-06 | E136: 125000000 | G136: 0.0168 | I136: 5833.333 | K136: 75000000 | M136: 0.001 | O136: 208.3333333 | P136: 0 | Q136: 0
C137: 2017-02-07 | E137: 125000000 | G137: 0.0168 | I137: 5833.333 | K137: 75000000 | M137: 0.001 | O137: 208.3333333 | P137: 0 | Q137: 0
C138: 2017-02-08 | E138: 125000000 | G138: 0.0168 | I138: 5833.333 | K138: 75000000 | M138: 0.001 | O138: 208.3333333 | P138: 0 | Q138: 0
C139: =C138+1 -> 2017-02-09 | E139: 125000000 | G139: 0.0168 | I139: 5833.333 | K139: 75000000 | M139: 0.001 | O139: 208.3333333 | P139: 0 | Q139: 0
C140: 2017-02-10 | E140: 125000000 | G140: 0.0168 | I140: 5833.333 | K140: 75000000 | M140: 0.001 | O140: 208.3333333 | P140: 0 | Q140: 0
C141: 2017-02-11 | E141: 125000000 | G141: 0.0168 | I141: 5833.333 | K141: 75000000 | M141: 0.001 | O141: 208.3333333 | P141: 0 | Q141: 0
C142: 2017-02-12 | E142: 125000000 | G142: 0.0168 | I142: 5833.333 | K142: 75000000 | M142: 0.001 | O142: 208.3333333 | P142: 0 | Q142: 0
C143: 2017-02-13 | E143: 125000000 | G143: 0.0168 | I143: 5833.333 | K143: 75000000 | M143: 0.001 | O143: 208.3333333 | P143: 0 | Q143: 0
C144: 2017-02-14 | E144: 125000000 | G144: 0.0168 | I144: 5833.333 | K144: 75000000 | M144: 0.001 | O144: 208.3333333 | P144: 0 | Q144: 0
C145: 2017-02-15 | E145: 125000000 | G145: 0.0168 | I145: 5833.333 | K145: 75000000 | M145: 0.001 | O145: 208.3333333 | P145: 0 | Q145: 0
C146: 2017-02-16 | E146: 125000000 | G146: 0.0168 | I146: 5833.333 | K146: 75000000 | M146: 0.001 | O146: 208.3333333 | P146: 0 | Q146: 0
C147: 2017-02-17 | E147: 125000000 | G147: 0.0168 | I147: 5833.333 | K147: 75000000 | M147: 0.001 | O147: 208.3333333 | P147: 0 | Q147: 0
C148: 2017-02-18 | E148: 125000000 | G148: 0.0168 | I148: 5833.333 | K148: 75000000 | M148: 0.001 | O148: 208.3333333 | P148: 0 | Q148: 0
C149: 2017-02-19 | E149: 125000000 | G149: 0.0168 | I149: 5833.333 | K149: 75000000 | M149: 0.001 | O149: 208.3333333 | P149: 0 | Q149: 0
C150: 2017-02-20 | E150: 125000000 | G150: 0.0168 | I150: 5833.333 | K150: 75000000 | M150: 0.001 | O150: 208.3333333 | P150: 0 | Q150: 0
C151: 2017-02-21 | E151: 125000000 | G151: 0.0168 | I151: 5833.333 | K151: 75000000 | M151: 0.001 | O151: 208.3333333 | P151: 0 | Q151: 0
C152: 2017-02-22 | E152: 125000000 | G152: 0.0168 | I152: 5833.333 | K152: 75000000 | M152: 0.001 | O152: 208.3333333 | P152: 0 | Q152: 0
C153: 2017-02-23 | E153: 125000000 | G153: 0.0168 | I153: 5833.333 | K153: 75000000 | M153: 0.001 | O153: 208.3333333 | P153: 0 | Q153: 0
C154: 2017-02-24 | E154: 125000000 | G154: 0.0168 | I154: 5833.333 | K154: 75000000 | M154: 0.001 | O154: 208.3333333 | P154: 0 | Q154: 0
C155: 2017-02-25 | E155: =+E154 -> 125000000 | G155: 0.0168 | I155: 5833.333 | K155: 75000000 | M155: 0.001 | O155: 208.3333333 | P155: 0 | Q155: 0
C156: 2017-02-26 | E156: =+E155 -> 125000000 | G156: 0.0168 | I156: 5833.333 | K156: 75000000 | M156: 0.001 | O156: 208.3333333 | P156: 0 | Q156: 0
C157: 2017-02-27 | E157: 125000000 | G157: 0.0168 | I157: 5833.333 | K157: 75000000 | M157: 0.001 | O157: 208.3333333 | P157: 0 | Q157: 0
C158: 2017-02-28 | E158: 125000000 | G158: 0.0168 | I158: 5833.333 | K158: 75000000 | M158: 0.001 | O158: 208.3333333 | P158: 0 | Q158: 0
C159: 2017-03-01 | E159: 125000000 | G159: =IF(E159>0,G158,0) -> 0.0168 | I159: =ROUND(E159*G159/360,3) -> 5833.333 | K159: =IF(E159=0,0,$E$4-E159) -> 75000000 | M159: =+M158 -> 0.001 | O159: =K159*M159/360 -> 208.3333333
C160: 2017-03-02 | E160: 125000000 | G160: 0.0168 | I160: 5833.333 | K160: =IF(E160=0,0,$E$4-E160) -> 75000000 | M160: 0.001 | O160: 208.3333333
C161: 2017-03-03 | E161: 125000000 | G161: 0.0168 | I161: 5833.333 | K161: 75000000 | M161: 0.001 | O161: 208.3333333
C162: 2017-03-04 | E162: 125000000 | G162: 0.0168 | I162: 5833.333 | K162: 75000000 | M162: 0.001 | O162: 208.3333333
C163: 2017-03-05 | E163: 125000000 | G163: 0.0168 | I163: 5833.333 | K163: 75000000 | M163: 0.001 | O163: 208.3333333
C164: 2017-03-06 | E164: 125000000 | G164: 0.0168 | I164: 5833.333 | K164: 75000000 | M164: 0.001 | O164: 208.3333333
C165: 2017-03-07 | E165: 125000000 | G165: 0.0168 | I165: 5833.333 | K165: 75000000 | M165: 0.001 | O165: 208.3333333
C166: 2017-03-08 | E166: 125000000 | G166: 0.0168 | I166: 5833.333 | K166: 75000000 | M166: 0.001 | O166: 208.3333333
C167: 2017-03-09 | E167: 125000000 | G167: 0.0168 | I167: 5833.333 | K167: 75000000 | M167: 0.001 | O167: 208.3333333
C168: 2017-03-10 | E168: 125000000 | G168: 0.0168 | I168: 5833.333 | K168: 75000000 | M168: 0.001 | O168: 208.3333333
C169: 2017-03-11 | E169: 125000000 | G169: 0.0168 | I169: 5833.333 | K169: 75000000 | M169: 0.001 | O169: 208.3333333
C170: 2017-03-12 | E170: 125000000 | G170: 0.0168 | I170: 5833.333 | K170: 75000000 | M170: 0.001 | O170: 208.3333333
C171: 2017-03-13 | E171: 125000000 | G171: 0.0168 | I171: 5833.333 | K171: 75000000 | M171: 0.001 | O171: 208.3333333
C172: 2017-03-14 | E172: 125000000 | G172: 0.0168 | I172: 5833.333 | K172: 75000000 | M172: 0.001 | O172: 208.3333333
C173: 2017-03-15 | E173: 125000000 | G173: 0.0168 | I173: 5833.333 | K173: 75000000 | M173: 0.001 | O173: 208.3333333
C174: 2017-03-16 | E174: 125000000 | G174: 0.0168 | I174: 5833.333 | K174: 75000000 | M174: 0.001 | O174: 208.3333333
C175: 2017-03-17 | E175: 125000000 | G175: 0.0168 | I175: 5833.333 | K175: 75000000 | M175: 0.001 | O175: 208.3333333
C176: 2017-03-18 | E176: 125000000 | G176: 0.0168 | I176: 5833.333 | K176: 75000000 | M176: 0.001 | O176: 208.3333333
C177: 2017-03-19 | E177: 125000000 | G177: 0.0168 | I177: 5833.333 | K177: 75000000 | M177: 0.001 | O177: 208.3333333
C178: 2017-03-20 | E178: 125000000 | G178: 0.0168 | I178: 5833.333 | K178: 75000000 | M178: 0.001 | O178: 208.3333333
C179: 2017-03-21 | E179: 125000000 | G179: 0.0168 | I179: 5833.333 | K179: 75000000 | M179: 0.001 | O179: 208.3333333
C180: 2017-03-22 | E180: 125000000 | G180: 0.0168 | I180: 5833.333 | K180: 75000000 | M180: 0.001 | O180: 208.3333333
C181: 2017-03-23 | E181: 125000000 | G181: 0.0168 | I181: 5833.333 | K181: 75000000 | M181: 0.001 | O181: 208.3333333
C182: 2017-03-24 | E182: 125000000 | G182: 0.0168 | I182: 5833.333 | K182: 75000000 | M182: 0.001 | O182: 208.3333333
C183: 2017-03-25 | E183: 125000000 | G183: 0.0168 | I183: 5833.333 | K183: 75000000 | M183: 0.001 | O183: 208.3333333
C184: 2017-03-26 | E184: 125000000 | G184: 0.0168 | I184: 5833.333 | K184: 75000000 | M184: 0.001 | O184: 208.3333333
C185: 2017-03-27 | E185: 125000000 | G185: 0.0189 | I185: 6562.5 | K185: 75000000 | M185: 0.001 | O185: 208.3333333
C186: 2017-03-28 | E186: 125000000 | G186: 0.0189 | I186: 6562.5 | K186: 75000000 | M186: 0.001 | O186: 208.3333333
C187: 2017-03-29 | E187: 125000000 | G187: 0.0189 | I187: 6562.5 | K187: 75000000 | M187: 0.001 | O187: 208.3333333
C188: 2017-03-30 | E188: 125000000 | G188: 0.0189 | I188: 6562.5 | K188: 75000000 | M188: 0.001 | O188: 208.3333333
C189: 2017-03-31 | E189: 125000000 | G189: 0.0189 | I189: 6562.5 | K189: 75000000 | M189: 0.001 | O189: 208.3333333
C190: 2017-04-01 | E190: 125000000 | G190: =IF(E190>0,G189,0) -> 0.0189 | I190: =ROUND(E190*G190/360,3) -> 6562.5 | K190: =IF(E190=0,0,$E$4-E190) -> 75000000 | M190: 0.001 | O190: =K190*M190/360 -> 208.3333333
C191: 2017-04-02 | E191: 125000000 | G191: 0.0189 | I191: 6562.5 | K191: 75000000 | M191: 0.001 | O191: 208.3333333
C192: 2017-04-03 | E192: 125000000 | G192: 0.0189 | I192: 6562.5 | K192: 75000000 | M192: 0.001 | O192: 208.3333333
C193: 2017-04-04 | E193: 125000000 | G193: 0.0189 | I193: 6562.5 | K193: 75000000 | M193: 0.001 | O193: 208.3333333
C194: 2017-04-05 | E194: 125000000 | G194: 0.0189 | I194: 6562.5 | K194: 75000000 | M194: 0.001 | O194: 208.3333333
C195: 2017-04-06 | E195: 125000000 | G195: 0.0189 | I195: 6562.5 | K195: 75000000 | M195: 0.001 | O195: 208.3333333
C196: 2017-04-07 | E196: 125000000 | G196: 0.0189 | I196: 6562.5 | K196: 75000000 | M196: 0.001 | O196: 208.3333333
C197: 2017-04-08 | E197: 125000000 | G197: 0.0189 | I197: 6562.5 | K197: 75000000 | M197: 0.001 | O197: 208.3333333
C198: 2017-04-09 | E198: 125000000 | G198: 0.0189 | I198: 6562.5 | K198: 75000000 | M198: 0.001 | O198: 208.3333333
C199: 2017-04-10 | E199: 125000000 | G199: 0.0189 | I199: 6562.5 | K199: 75000000 | M199: 0.001 | O199: 208.3333333
C200: 2017-04-11 | E200: 125000000 | G200: 0.0189 | I200: 6562.5 | K200: 75000000 | M200: 0.001 | O200: 208.3333333
C201: 2017-04-12 | E201: 125000000 | G201: 0.0189 | I201: 6562.5 | K201: 75000000 | M201: 0.001 | O201: 208.3333333
C202: 2017-04-13 | E202: 125000000 | G202: 0.0189 | I202: 6562.5 | K202: 75000000 | M202: 0.001 | O202: 208.3333333
... 443 more rows

Sheet 2250 LTDebt Premium
A1: Atmos Energy Corporation | W1: Atmos Energy Corporation
A2: Consolidated Long-Term Debt - Unamortized Premium Acct 2250 | W2: Unamortized Debt Premium - Acct 2250
A3: Calculation of 13 mth average balance | F3: 2250 | G3: 2250 | H3: 2250 | I3: 2250 | J3: 2250 | K3: 2250 | L3: 2250 | M3: 2250 | N3: 2250 | O3: 2250 | P3: 2250 | Q3: 2250 | R3: 2250 | W3: Analysis of monthly acct activity and balances
A4: ='LTD rate'!A3 -> June 30, 2018 | F4: Balance | G4: Balance | H4: Balance | I4: Balance | J4: Balance | K4: Balance | L4: Balance | M4: Balance | N4: Balance | O4: Balance | P4: Balance | Q4: Balance | R4: Balance | S4: 13 mth Avg | W4: =+'2260 LTDebt Discount'!V4 -> September 30, 2016 - September 30, 2017 | AA4: Debt Premium | AB4: Debt Premium | AD4: Debt Premium | AE4: Debt Premium | AG4: Debt Premium | AH4: Debt Premium | AJ4: Debt Premium | AK4: Debt Premium | AM4: Debt Premium | AN4: Debt Premium | AP4: Debt Premium | AQ4: Debt Premium | AS4: Debt Premium | AT4: Debt Premium | AV4: Debt Premium | AW4: Debt Premium | AY4: Debt Premium | AZ4: Debt Premium | BB4: Debt Premium | BC4: Debt Premium | BE4: Debt Premium | BF4: Debt Premium | BH4: Debt Premium | BI4: Debt Premium | BK4: Debt Premium | BL4: Debt Premium | BN4: Debt Premium | BO4: Debt Premium
D5: Full Premium | E5: 4290 | F5: Unamortized | G5: Unamortized | H5: Unamortized | I5: Unamortized | J5: Unamortized | K5: Unamortized | L5: Unamortized | M5: Unamortized | N5: Unamortized | O5: Unamortized | P5: Unamortized | Q5: Unamortized | R5: Unamortized | S5: Unamortized | AA5: 2250 | AB5: 2250 | AC5: 2250 | AD5: 2250 | AE5: 2250 | AG5: 2250 | AH5: 2250 | AJ5: 2250 | AK5: 2250 | AL5: 2250 | AM5: 2250 | AN5: 2250 | AO5: 2250 | AP5: 2250 | AQ5: 2250 | AR5: 2250 | AS5: 2250 | AT5: 2250 | AU5: 2250 | AV5: 2250 | AW5: 2250 | AX5: 2250 | AY5: 2250 | AZ5: 2250 | BA5: 2250 | BB5: 2250 | BC5: 2250 | BE5: 2250 | BF5: 2250 | BH5: 2250 | BI5: 2250 | BJ5: 2250 | BK5: 2250 | BL5: 2250 | BM5: 2250 | BN5: 2250 | BO5: 2250 | BP5: 2250
A6: Atmos Energy Corp., Consolidated: | C6: Year | D6: before | E6: monthly | F6: Premium | G6: Premium | H6: Premium | I6: Premium | J6: Premium | K6: Premium | L6: Premium | M6: Premium | N6: Premium | O6: Premium | P6: Premium | Q6: Premium | R6: Premium | S6: Premium | W6: Year | X6: sub | Y6: Orig | Z6: 4290 | AA6: Activity | AB6: Balance | AD6: Activity | AE6: Balance | AG6: Activity | AH6: Balance | AJ6: Activity | AK6: Balance | AM6: Activity | AN6: Balance | AP6: Activity | AQ6: Balance | AS6: Activity | AT6: Balance | AV6: Activity | AW6: Balance | AY6: Activity | AZ6: Balance | BB6: Activity | BC6: Balance | BE6: Balance | BF6: Balance | BH6: Activity | BI6: Balance | BK6: Activity | BL6: Balance | BN6: Activity | BO6: Balance
A7: Line | B7: Debt Series | C7: Issued | D7: Amort | E7: Amort. | F7: 2017-06-30 | G7: 2017-07-31 | H7: 2017-08-31 | I7: 2017-09-30 | J7: 2017-10-31 | K7: 2017-11-30 | L7: 2017-12-31 | M7: 2018-01-31 | N7: 2018-02-28 | O7: 2018-03-31 | P7: 2018-04-30 | Q7: 2018-05-31 | R7: 2018-06-30 | S7: =+R7 -> 2018-06-30 | W7: Issued | X7: acct | Y7: Debt Premium | Z7: mthly exp | AA7: =+AB7 -> 2017-06-30 | AB7: =+F7 -> 2017-06-30 | AD7: =+AE7 -> 2017-07-31 | AE7: =+G7 -> 2017-07-31 | AG7: =+AH7 -> 2017-08-31 | AH7: =+H7 -> 2017-08-31 | AJ7: =+AK7 -> 2017-09-30 | AK7: =+I7 -> 2017-09-30 | AM7: =+AN7 -> 2017-10-31 | AN7: =+J7 -> 2017-10-31 | AP7: =+AQ7 -> 2017-11-30 | AQ7: =+K7 -> 2017-11-30 | AS7: =+AT7 -> 2017-12-31 | AT7: =+L7 -> 2017-12-31 | AV7: =+AW7 -> 2018-01-31 | AW7: =+M7 -> 2018-01-31 | AY7: =+AZ7 -> 2018-02-28 | AZ7: =+N7 -> 2018-02-28 | BB7: =+BC7 -> 2018-03-31 | BC7: =+O7 -> 2018-03-31 | BE7: =+BF7 -> 2018-04-30 | BF7: =+P7 -> 2018-04-30 | BH7: =+BI7 -> 2018-05-31 | BI7: =+Q7 -> 2018-05-31 | BK7: =+BL7 -> 2018-06-30 | BL7: =+R7 -> 2018-06-30 | BN7: =+BO7 -> 2018-06-30 | BO7: =+S7 -> 2018-06-30
A11: 1 | B11: $250M 4.1250% senior notes, due 2044 | C11: 2017 | D11: -9767500 | E11: -29778.96341 | F11: -9752426.7 | G11: -9737721.04 | H11: -9693052.6 | I11: -9663273.64 | J11: -9633494.68 | K11: -9603715.72 | L11: -9573936.76 | M11: -9544157.8 | N11: -9514378.84 | O11: -9484599.88 | P11: -9454820.92 | Q11: -9425041.96 | R11: -9395263 | S11: =AVERAGE(F11:R11) -> -9575067.965 | W11: 2017 | X11: 13536 | Y11: -9767500 | Z11: -29778.96341 | AA11: 0 | AB11: =+F11 -> -9752426.7 | AD11: 0 | AE11: =+G11 -> -9737721.04 | AG11: 0 | AH11: =+H11 -> -9693052.6 | AJ11: 0 | AK11: =+I11 -> -9663273.64 | AM11: 0 | AN11: =+J11 -> -9633494.68 | AP11: 0 | AQ11: =+K11 -> -9603715.72 | AS11: 0 | AT11: =+L11 -> -9573936.76 | AV11: 0 | AW11: =+M11 -> -9544157.8 | AY11: 15073.3 | AZ11: =+N11 -> -9514378.84 | BB11: =+BC11-AZ11 -> 29778.96 | BC11: =+O11 -> -9484599.88 | BE11: =+BF11-BC11 -> 29778.96 | BF11: =+P11 -> -9454820.92 | BH11: =+BI11-BF11 -> 29778.96 | BI11: =+Q11 -> -9425041.96 | BK11: =+BL11-BI11 -> 29778.96 | BL11: =+R11 -> -9395263 | BN11: =+BO11-BL11 -> -179804.9646 | BO11: =+S11 -> -9575067.965
A12: 2 | B12: Total Utility Long-Term Debt Unamortized Premium | D12: =SUM(D10:D11) -> -9767500 | E12: -29778.96341 | F12: =F11 -> -9752426.7 | G12: =G11 -> -9737721.04 | H12: =H11 -> -9693052.6 | I12: =I11 -> -9663273.64 | J12: -9633494.68 | K12: -9603715.72 | L12: -9573936.76 | M12: -9544157.8 | N12: -9514378.84 | O12: -9484599.88 | P12: -9454820.92 | Q12: -9425041.96 | R12: -9395263 | S12: -9575067.965 | Y12: =SUM(Y9:Y11) -> -9767500 | Z12: -29778.96341 | AA12: 0 | AB12: -9752426.7 | AC12: 0 | AD12: 0 | AE12: -9737721.04 | AF12: 0 | AG12: 0 | AH12: -9693052.6 | AI12: 0 | AJ12: 0 | AK12: -9663273.64 | AL12: 0 | AM12: 0 | AN12: -9633494.68 | AO12: 0 | AP12: 0 | AQ12: -9603715.72 | AR12: 0 | AS12: 0 | AT12: -9573936.76 | AU12: 0 | AV12: 0 | AW12: -9544157.8 | AX12: 0 | AY12: 15073.3 | AZ12: -9514378.84 | BA12: =SUM(BA9:BA11) -> 0 | BB12: 29778.96 | BC12: -9484599.88 | BE12: =SUM(BE9:BE11) -> 29778.96 | BF12: -9454820.92 | BH12: =SUM(BH9:BH11) -> 29778.96 | BI12: -9425041.96 | BJ12: 0 | BK12: 29778.96 | BL12: -9395263 | BM12: 0 | BN12: =SUM(BN9:BN11) -> -179804.9646 | BO12: -9575067.965 | BP12: 0
AB13: check | AE13: check | AH13: check | AK13: check | AN13: check | AQ13: check | AT13: check | AW13: check | AZ13: check | BC13: check | BF13: check | BI13: check | BL13: check | BO13: check
E14: =+E11*2 -> -59557.92683 | F14: 0 | G14: 0 | H14: 0 | I14: 0 | J14: 0 | K14: 0 | L14: 0 | M14: 0 | N14: 0 | O14: 0 | P14: 0 | Q14: 0 | R14: 0 | Z14: G/L Bal | AB14: =+F12 -> -9752426.7 | AE14: =AB14+AD12 -> -9752426.7 | AH14: =AE14+AG12 -> -9752426.7 | AK14: =AH14+AJ12 -> -9752426.7 | AN14: =AK14+AM12 -> -9752426.7 | AQ14: =AN14+AP12 -> -9752426.7 | AT14: =+L12 -> -9573936.76 | AW14: =+M12 -> -9544157.8 | AZ14: =+N12 -> -9514378.84 | BC14: =+O12 -> -9484599.88 | BF14: =+P12 -> -9454820.92 | BI14: =+Q12 -> -9425041.96 | BL14: =+R12 -> -9395263 | BO14: =+S12 -> -9575067.965
F15: =F12-F11 -> 0 | G15: =G12-G11 -> 0 | H15: =H12-H11 -> 0 | I15: =I12-I11 -> 0 | J15: =J12-J11 -> 0 | K15: 0 | L15: 0 | M15: 0 | N15: 0 | O15: 0 | P15: 0 | Q15: 0 | R15: 0 | S15: =S12-S11 -> 0
AB16: =AB12-AB14 -> 0 | AE16: =AE12-AE14 -> 14705.66 | AH16: =AH12-AH14 -> 59374.1 | AK16: =AK12-AK14 -> 89153.06 | AN16: =AN12-AN14 -> 118932.02 | AQ16: =AQ12-AQ14 -> 148710.98 | AT16: =AT12-AT14 -> 0 | AW16: =AW12-AW14 -> 0 | AZ16: =+AZ12-AZ14 -> 0 | BC16: =+BC12-BC14 -> 0 | BF16: =+BF12-BF14 -> 0 | BI16: =+BI12-BI14 -> 0 | BL16: =+BL12-BL14 -> 0 | BO16: =+BO12-BO14 -> 0

Sheet 2260 LTDebt Discount
A1: Atmos Energy Corporation | V1: Atmos Energy Corporation
A2: Consolidated Long-Term Debt - Unamortized Discount Acct 2260 | V2: Unamortized Debt Dsct - Acct 2260
A3: Calculation of 13 mth average balance | F3: 2260 | G3: 2260 | H3: 2260 | I3: 2260 | J3: 2260 | K3: 2260 | L3: 2260 | M3: 2260 | N3: 2260 | O3: 2260 | P3: 2260 | Q3: 2260 | R3: 2260 | V3: Analysis of monthly acct activity and balances
A4: ='LTD rate'!A3 -> June 30, 2018 | F4: Balance | G4: Balance | H4: Balance | I4: Balance | J4: Balance | K4: Balance | L4: Balance | M4: Balance | N4: Balance | O4: Balance | P4: Balance | Q4: Balance | R4: Balance | S4: 13 mth Avg | V4: September 30, 2016 - September 30, 2017 | Z4: Debt Dsct | AA4: Debt Dsct | AC4: Debt Dsct | AD4: Debt Dsct | AF4: Debt Dsct | AG4: Debt Dsct | AI4: Debt Dsct | AJ4: Debt Dsct | AL4: Debt Dsct | AM4: Debt Dsct | AO4: Debt Dsct | AP4: Debt Dsct | AR4: Debt Dsct | AS4: Debt Dsct | AU4: Debt Dsct | AV4: Debt Dsct | AX4: Debt Dsct | AY4: Debt Dsct | BA4: Debt Dsct | BB4: Debt Dsct | BD4: Debt Dsct | BE4: Debt Dsct | BG4: Debt Dsct | BH4: Debt Dsct | BJ4: Debt Dsct | BK4: Debt Dsct
D5: Full Dsct | E5: 4280 | F5: Unamortized | G5: Unamortized | H5: Unamortized | I5: Unamortized | J5: Unamortized | K5: Unamortized | L5: Unamortized | M5: Unamortized | N5: Unamortized | O5: Unamortized | P5: Unamortized | Q5: Unamortized | R5: Unamortized | S5: Unamortized | Z5: 2260 | AA5: 2260 | AC5: 2260 | AD5: 2260 | AF5: 2260 | AG5: 2260 | AI5: 2260 | AJ5: 2260 | AL5: 2260 | AM5: 2260 | AO5: 2260 | AP5: 2260 | AR5: 2260 | AS5: 2260 | AU5: 2260 | AV5: 2260 | AX5: 2260 | AY5: 2260 | BA5: 2260 | BB5: 2260 | BD5: 2260 | BE5: 2260 | BG5: 2260 | BH5: 2260 | BJ5: 2260 | BK5: 2260
A6: Atmos Energy Corp., Consolidated: | C6: Year | D6: before | E6: monthly | F6: Discount | G6: Discount | H6: Discount | I6: Discount | J6: Discount | K6: Discount | L6: Discount | M6: Discount | N6: Discount | O6: Discount | P6: Discount | Q6: Discount | R6: Discount | S6: Discount | V6: Year | W6: sub | X6: Orig | Y6: 4280 | Z6: Activity | AA6: Balance | AC6: Activity | AD6: Balance | AF6: Activity | AG6: Balance | AI6: Activity | AJ6: Balance | AL6: Activity | AM6: Balance | AO6: Activity | AP6: Balance | AR6: Activity | AS6: Balance | AU6: Activity | AV6: Balance | AX6: Activity | AY6: Balance | BA6: Activity | BB6: Balance | BD6: Activity | BE6: Balance | BG6: Activity | BH6: Balance | BJ6: Activity | BK6: Balance
A7: Line | B7: Debt Series | C7: Issued | D7: Amort | E7: Amort. | F7: 2017-06-30 | G7: 2017-07-31 | H7: 2017-08-31 | I7: 2017-09-30 | J7: 2017-10-31 | K7: 2017-11-30 | L7: 2017-12-31 | M7: 2018-01-31 | N7: 2018-02-28 | O7: 2018-03-31 | P7: 2018-04-30 | Q7: 2018-05-31 | R7: 2018-06-30 | S7: =+R7 -> 2018-06-30 | V7: Issued | W7: acct | X7: Debt dsct | Y7: mthly exp | Z7: =+AA7 -> 2017-06-30 | AA7: =+F7 -> 2017-06-30 | AC7: =+AD7 -> 2017-07-31 | AD7: =+G7 -> 2017-07-31 | AF7: =+AG7 -> 2017-08-31 | AG7: =+H7 -> 2017-08-31 | AI7: =+AJ7 -> 2017-09-30 | AJ7: =+I7 -> 2017-09-30 | AL7: =+AM7 -> 2017-10-31 | AM7: =+J7 -> 2017-10-31 | AO7: =+AP7 -> 2017-11-30 | AP7: =+K7 -> 2017-11-30 | AR7: =+AS7 -> 2017-12-31 | AS7: =+L7 -> 2017-12-31 | AU7: =+AV7 -> 2018-01-31 | AV7: =+M7 -> 2018-01-31 | AX7: =+AY7 -> 2018-02-28 | AY7: =+N7 -> 2018-02-28 | BA7: =+BB7 -> 2018-03-31 | BB7: =+O7 -> 2018-03-31 | BD7: =+BE7 -> 2018-04-30 | BE7: =+P7 -> 2018-04-30 | BG7: =+BH7 -> 2018-05-31 | BH7: =+Q7 -> 2018-05-31 | BJ7: =+BK7 -> 2018-06-30 | BK7: =+R7 -> 2018-06-30
A11: 1 | B11: 6.75% Debentures Unsecured due July 2028 | C11: 1998 | D11: 1327500 | E11: =(1327500/360) -> 3687.5 | F11: 486750 | G11: 483062.5 | H11: 479375 | I11: 475687.5 | J11: 472000 | K11: 468312.5 | L11: 464625 | M11: 460937.5 | N11: 457250 | O11: 453562.5 | P11: 449875 | Q11: 446187.5 | R11: 442500 | S11: =AVERAGE(F11:R11) -> 464625 | V11: 1998 | W11: 13521 | X11: =1327500 -> 1327500 | Y11: =(+X11/360) -> 3687.5 | Z11: =+AD11-AA11 -> -3687.5 | AA11: =+F11 -> 486750 | AC11: =+AD11-AA11 -> -3687.5 | AD11: =+G11 -> 483062.5 | AF11: =+AG11-AD11 -> -3687.5 | AG11: =+H11 -> 479375 | AI11: =+AJ11-AG11 -> -3687.5 | AJ11: =+I11 -> 475687.5 | AL11: =+AM11-AJ11 -> -3687.5 | AM11: =+J11 -> 472000 | AO11: =+AP11-AM11 -> -3687.5 | AP11: =+K11 -> 468312.5 | AR11: =+AS11-AP11 -> -3687.5 | AS11: =+L11 -> 464625 | AU11: =+AV11-AS11 -> -3687.5 | AV11: =+M11 -> 460937.5 | AX11: =+AY11-AV11 -> -3687.5 | AY11: =+N11 -> 457250 | BA11: =+BB11-AY11 -> -3687.5 | BB11: =+O11 -> 453562.5 | BD11: =+BE11-BB11 -> -3687.5 | BE11: =+P11 -> 449875 | BG11: =+BH11-BE11 -> -3687.5 | BH11: =+Q11 -> 446187.5 | BJ11: =+BK11-BH11 -> -3687.5 | BK11: =+R11 -> 442500
A12: 2 | B12: 5.125% Senior Notes due Jan 2013 | C12: 2003 | D12: 212500 | E12: 0 | F12: 0 | G12: 0 | H12: 0 | I12: 0 | J12: 0 | K12: 0 | L12: 0 | M12: 0 | N12: 0 | O12: 0 | P12: 0 | Q12: 0 | R12: 0 | S12: =AVERAGE(F12:R12) -> 0 | V12: 2003 | W12: 13513/26 | X12: =212500 -> 212500 | Y12: 0 | Z12: =+AD12-AA12 -> 0 | AA12: 0 | AC12: =+AD12-AA12 -> 0 | AD12: 0 | AF12: =+AG12-AD12 -> 0 | AG12: 0 | AI12: =+AJ12-AG12 -> 0 | AJ12: 0 | AL12: =+AM12-AJ12 -> 0 | AM12: 0 | AO12: =+AP12-AM12 -> 0 | AP12: 0 | AR12: =+AS12-AP12 -> 0 | AS12: 0 | AU12: =+AV12-AS12 -> 0 | AV12: 0 | AX12: =+AY12-AV12 -> 0 | AY12: 0 | BA12: =+BB12-AY12 -> 0 | BB12: 0 | BD12: =+BE12-BB12 -> 0 | BE12: 0 | BG12: =+BH12-BE12 -> 0 | BH12: 0 | BJ12: =+BK12-BH12 -> 0 | BK12: 0
A13: 3 | B13: 4.95% Sr Note due 10/15/2014 | C13: 2004 | D13: 35000 | E13: 0 | F13: 0 | G13: 0 | H13: 0 | I13: 0 | J13: 0 | K13: 0 | L13: 0 | M13: 0 | N13: 0 | O13: 0 | P13: 0 | Q13: 0 | R13: 0 | S13: 0 | V13: 2004 | W13: 13529 | X13: 35000 | Y13: 0 | Z13: 0 | AA13: 0 | AC13: 0 | AD13: 0 | AF13: 0 | AG13: 0 | AI13: 0 | AJ13: 0 | AL13: 0 | AM13: 0 | AO13: 0 | AP13: 0 | AR13: 0 | AS13: 0 | AU13: 0 | AV13: 0 | AX13: 0 | AY13: 0 | BA13: 0 | BB13: 0 | BD13: 0 | BE13: 0 | BG13: 0 | BH13: 0 | BJ13: 0 | BK13: 0
A14: 4 | B14: 5.95% Sr Note due 10/15/2034 | C14: 2004 | D14: 1216000 | E14: =(1216000/360) -> 3377.777778 | F14: 699199.89 | G14: 695822.11 | H14: 692444.33 | I14: 689066.55 | J14: 685688.77 | K14: 682310.99 | L14: 678933.21 | M14: 675555.43 | N14: 672177.65 | O14: 668799.87 | P14: 665422.09 | Q14: 662044.31 | R14: 658666.53 | S14: 678933.21 | V14: 2004 | W14: 13530 | X14: 1216000 | Y14: =+X14/360 -> 3377.777778 | Z14: -3377.78 | AA14: 699199.89 | AC14: -3377.78 | AD14: 695822.11 | AF14: -3377.78 | AG14: 692444.33 | AI14: -3377.78 | AJ14: 689066.55 | AL14: -3377.78 | AM14: 685688.77 | AO14: -3377.78 | AP14: 682310.99 | AR14: -3377.78 | AS14: 678933.21 | AU14: -3377.78 | AV14: 675555.43 | AX14: -3377.78 | AY14: 672177.65 | BA14: -3377.78 | BB14: 668799.87 | BD14: -3377.78 | BE14: 665422.09 | BG14: -3377.78 | BH14: 662044.31 | BJ14: -3377.78 | BK14: 658666.53
A15: 5 | B15: 6.35% Sr Note due 6/15/2017 | C15: 2007 | D15: 677500 | E15: =677500/120 -> 5645.833333 | F15: 0 | G15: 0 | H15: 0 | I15: 0 | J15: 0 | K15: 0 | L15: 0 | M15: 0 | N15: 0 | O15: 0 | P15: 0 | Q15: 0 | R15: 0 | S15: 0 | V15: 2007 | W15: 13531 | X15: 677500 | Z15: 0 | AA15: 0 | AC15: 0 | AD15: 0 | AF15: 0 | AG15: 0 | AI15: 0 | AJ15: 0 | AL15: 0 | AM15: 0 | AO15: 0 | AP15: 0 | AR15: 0 | AS15: 0 | AU15: 0 | AV15: 0 | AX15: 0 | AY15: 0 | BA15: 0 | BB15: 0 | BD15: 0 | BE15: 0 | BG15: 0 | BH15: 0 | BJ15: 0 | BK15: 0
A16: 6 | B16: Sr Note 5.50% Due 06/15/2041 | C16: 2011 | D16: 1288000 | E16: 3578 | F16: 1026822.11 | G16: 1023244.33 | H16: 1019666.55 | I16: 1016088.77 | J16: 1012510.99 | K16: 1008933.21 | L16: 1005355.43 | M16: 1001777.65 | N16: 998199.87 | O16: 994622.09 | P16: 991044.31 | Q16: 987466.53 | R16: 983888.75 | S16: 1005355.43 | V16: 2011 | W16: 13534 | X16: 1288000 | Y16: 3578 | Z16: -3577.78 | AA16: 1026822.11 | AC16: -3577.78 | AD16: 1023244.33 | AF16: -3577.78 | AG16: 1019666.55 | AI16: -3577.78 | AJ16: 1016088.77 | AL16: -3577.78 | AM16: 1012510.99 | AO16: -3577.78 | AP16: 1008933.21 | AR16: -3577.78 | AS16: 1005355.43 | AU16: -3577.78 | AV16: 1001777.65 | AX16: -3577.78 | AY16: 998199.87 | BA16: -3577.78 | BB16: 994622.09 | BD16: -3577.78 | BE16: 991044.31 | BG16: -3577.78 | BH16: 987466.53 | BJ16: -3577.78 | BK16: 983888.75
A17: 7 | B17: 8.50% Sr Note due 3/15/2019 | C17: 2009 | D17: 841500 | E17: 7012.5 | F17: 147262.5 | G17: 140250 | H17: 133237.5 | I17: 126225 | J17: 119212.5 | K17: 112200 | L17: 105187.5 | M17: 98175 | N17: 91162.5 | O17: 84150 | P17: 77137.5 | Q17: 70125 | R17: 63112.5 | S17: 105187.5 | V17: 2009 | W17: 13532 | X17: 841500 | Y17: 7012.5 | Z17: -7012.5 | AA17: 147262.5 | AC17: -7012.5 | AD17: 140250 | AF17: -7012.5 | AG17: 133237.5 | AI17: -7012.5 | AJ17: 126225 | AL17: -7012.5 | AM17: 119212.5 | AO17: -7012.5 | AP17: 112200 | AR17: -7012.5 | AS17: 105187.5 | AU17: -7012.5 | AV17: 98175 | AX17: -7012.5 | AY17: 91162.5 | BA17: -7012.5 | BB17: 84150 | BD17: -7012.5 | BE17: 77137.5 | BG17: -7012.5 | BH17: 70125 | BJ17: -7012.5 | BK17: 63112.5
A18: 8 | B18: 4.15% Sr Note due 1/15/2043 | C18: 2013 | D18: 940000 | E18: =+D18/360 -> 2611.111111 | F18: 799000.06 | G18: 796388.95 | H18: 793777.84 | I18: 791166.73 | J18: 788555.62 | K18: 785944.51 | L18: 783333.4 | M18: 780722.29 | N18: 778111.18 | O18: 775500.07 | P18: 772888.96 | Q18: 770277.85 | R18: 767666.74 | S18: 783333.4 | V18: 2013 | W18: 13535 | X18: 940000 | Y18: =+X18/360 -> 2611.111111 | Z18: -2611.11 | AA18: 799000.06 | AC18: -2611.11 | AD18: 796388.95 | AF18: -2611.11 | AG18: 793777.84 | AI18: -2611.11 | AJ18: 791166.73 | AL18: -2611.11 | AM18: 788555.62 | AO18: -2611.11 | AP18: 785944.51 | AR18: -2611.11 | AS18: 783333.4 | AU18: -2611.11 | AV18: 780722.29 | AX18: -2611.11 | AY18: 778111.18 | BA18: -2611.11 | BB18: 775500.07 | BD18: -2611.11 | BE18: 772888.96 | BG18: -2611.11 | BH18: 770277.85 | BJ18: -2611.11 | BK18: 767666.74
A19: 9 | B19: 4.125% Sr Note due 10/15/2044 | C19: 2014 | D19: 940000 | E19: =+D19/360 -> 2611.111111 | F19: 853833.37 | G19: 851222.26 | H19: 848611.15 | I19: 846000.04 | J19: 843388.93 | K19: 840777.82 | L19: 838166.71 | M19: 835555.6 | N19: 832944.49 | O19: 830333.38 | P19: 827722.27 | Q19: 825111.16 | R19: 822500.05 | S19: 838166.71 | V19: 2014 | W19: 13536 | X19: 940000 | Y19: 2611 | Z19: -2611.11 | AA19: 853833.37 | AC19: -2611.11 | AD19: 851222.26 | AF19: -2611.11 | AG19: 848611.15 | AI19: -2611.11 | AJ19: 846000.04 | AL19: -2611.11 | AM19: 843388.93 | AO19: -2611.11 | AP19: 840777.82 | AR19: -2611.11 | AS19: 838166.71 | AU19: -2611.11 | AV19: 835555.6 | AX19: -2611.11 | AY19: 832944.49 | BA19: -2611.11 | BB19: 830333.38 | BD19: -2611.11 | BE19: 827722.27 | BG19: -2611.11 | BH19: 825111.16 | BJ19: -2611.11 | BK19: 822500.05
A20: 10 | B20: 3.000% Sr Note due 6/15/27 | C20: 2017 | D20: 1375000 | E20: 11458.33333 | F20: 1369270.83 | G20: 1363541.66 | H20: 1346354.16 | I20: 1334895.83 | J20: 1323437.5 | K20: 1311979.17 | L20: 1300520.84 | M20: 1289062.51 | N20: 1277604.18 | O20: 1266145.85 | P20: 1254687.52 | Q20: 1243229.19 | R20: 1231770.86 | S20: 1300961.546 | V20: 2017 | W20: 13537 | X20: 1375000 | Y20: 11458.33333 | Z20: -5729.17 | AA20: 1369270.83 | AB20: 0 | AC20: -5729.17 | AD20: 1363541.66 | AE20: 0 | AF20: -17187.5 | AG20: 1346354.16 | AH20: 0 | AI20: -11458.33 | AJ20: 1334895.83 | AK20: 0 | AL20: -11458.33 | AM20: 1323437.5 | AN20: 0 | AO20: -11458.33 | AP20: 1311979.17 | AQ20: 0 | AR20: -11458.33 | AS20: 1300520.84 | AT20: 0 | AU20: -11458.33 | AV20: 1289062.51 | AW20: 0 | AX20: -5729.17 | AY20: 1277604.18 | BA20: -11458.33 | BB20: 1266145.85 | BD20: -11458.33 | BE20: 1254687.52 | BG20: -11458.33 | BH20: 1243229.19 | BJ20: -11458.33 | BK20: 1231770.86
A21: 11 | B21: Total Utility Long-Term Debt Unamortized Discount | D21: =SUM(D10:D20) -> 8853000 | E21: 39982.16667 | F21: =SUM(F11:F20) -> 5382138.76 | G21: =SUM(G11:G20) -> 5353531.81 | H21: 5313466.53 | I21: 5279130.42 | J21: 5244794.31 | K21: 5210458.2 | L21: 5176122.09 | M21: 5141785.98 | N21: 5107449.87 | O21: 5073113.76 | P21: 5038777.65 | Q21: 5004441.54 | R21: 4970105.43 | S21: 5176562.796 | X21: =SUM(X9:X20) -> 8853000 | Y21: =SUM(Y9:Y20) -> 34336.22222 | Z21: =SUM(Z9:Z20) -> -28606.95 | AA21: 5382138.76 | AB21: 0 | AC21: -28606.95 | AD21: 5353531.81 | AE21: 0 | AF21: -40065.28 | AG21: 5313466.53 | AH21: 0 | AI21: -34336.11 | AJ21: 5279130.42 | AK21: 0 | AL21: -34336.11 | AM21: 5244794.31 | AN21: 0 | AO21: -34336.11 | AP21: 5210458.2 | AQ21: 0 | AR21: -34336.11 | AS21: 5176122.09 | AT21: 0 | AU21: -34336.11 | AV21: 5141785.98 | AW21: 0 | AX21: -28606.95 | AY21: 5107449.87 | AZ21: 0 | BA21: =SUM(BA9:BA20) -> -34336.11 | BB21: =SUM(BB9:BB20) -> 5073113.76 | BC21: =SUM(BC9:BC20) -> 0 | BD21: =SUM(BD9:BD20) -> -34336.11 | BE21: =SUM(BE9:BE20) -> 5038777.65 | BF21: =SUM(BF9:BF20) -> 0 | BG21: =SUM(BG9:BG20) -> -34336.11 | BH21: =SUM(BH9:BH20) -> 5004441.54 | BI21: =SUM(BI9:BI20) -> 0 | BJ21: =SUM(BJ9:BJ20) -> -34336.11 | BK21: =SUM(BK9:BK20) -> 4970105.43
AA22: check | AD22: check | AG22: check | AJ22: check | AM22: check | AP22: check | AS22: check | AV22: check | AY22: check | BB22: check | BE22: check | BG22: =BG21-BD20 -> -22877.78 | BH22: check | BJ22: =BJ21-BG20 -> -22877.78 | BK22: check
F23: 0 | G23: 0 | H23: 0 | I23: 0 | J23: 0 | K23: 0 | L23: 0 | M23: 0 | N23: 0 | O23: 0 | P23: 0 | Q23: 0 | R23: 0 | Y23: G/L Bal | AA23: =+F21 -> 5382138.76 | AD23: =+G21 -> 5353531.81 | AG23: =+H21 -> 5313466.53 | AJ23: =+I21 -> 5279130.42 | AM23: =+J21 -> 5244794.31 | AP23: =+K21 -> 5210458.2 | AS23: =+L21 -> 5176122.09 | AV23: =+M21 -> 5141785.98 | AY23: =+N21 -> 5107449.87 | BB23: =+O21 -> 5073113.76 | BE23: =+P21 -> 5038777.65 | BH23: =+Q21 -> 5004441.54 | BK23: =+R21 -> 4970105.43
AA25: =AA21-AA23 -> 0 | AD25: =AD21-AD23 -> 0 | AG25: =AG21-AG23 -> 0 | AJ25: =AJ21-AJ23 -> 0 | AM25: =AM21-AM23 -> 0 | AP25: =AP21-AP23 -> 0 | AS25: =AS21-AS23 -> 0 | AV25: =AV21-AV23 -> 0 | AY25: =+AY21-AY23 -> 0 | BB25: =+BB21-BB23 -> 0 | BE25: =+BE21-BE23 -> 0 | BH25: =+BH21-BH23 -> 0 | BK25: =+BK21-BK23 -> 0
BA31: This should have been the | BD31: =+BA20*2 -> -22916.66 | BG31: =+BD20*2 -> -22916.66 | BH31: This should have been the | BJ31: =+BG20*2 -> -22916.66 | BK31: This should have been the
BA32: activity for July

Sheet Acct 2241 Unamort Debt Exp
A1: Atmos Energy Corporation
A2: Monthly Capital Structure Report
A3: ='LTD rate'!A3 -> June 30, 2018
A5: Currency: USD
A6: Account=2241 (Unamortized debt expense)
B8: 2016-11-15 | C8: 2016-12-15 | D8: 2016-01-16 | E8: 2016-02-16 | F8: 2016-03-16 | G8: 2016-04-16 | H8: 2016-05-16 | I8: 2016-06-16 | J8: 2016-09-16 | K8: 2016-10-16 | L8: 2017-06-17 | M8: 2017-07-17 | N8: 2017-08-17 | O8: 2017-09-17 | P8: 2018-10-17 | Q8: 2017-11-17 | R8: 2017-12-31 | S8: 2018-01-31 | T8: 2018-02-28 | U8: 2018-03-31 | V8: 2018-04-30 | W8: 2018-05-31 | X8: 2018-06-30
A9: Sub Account | B9: Actual | C9: Actual | D9: Actual | E9: Actual | F9: Actual | G9: Actual | H9: Actual | I9: Actual | J9: Actual | K9: Actual | L9: Actual | M9: Actual | N9: Actual | O9: Actual | P9: Actual | Q9: Actual | R9: Actual | S9: Actual | T9: Actual | U9: Actual | V9: Actual | W9: Actual | X9: Actual
A10: =------------------------------------------------------- | B10: _______ | C10: _______ | D10: _______ | E10: _______ | F10: _______ | G10: _______ | H10: _______ | I10: _______ | J10: _______ | K10: _______ | L10: _______ | M10: _______ | N10: _______ | O10: _______ | P10: _______ | Q10: _______ | R10: _______ | S10: _______ | T10: _______ | U10: _______ | V10: _______ | W10: _______ | X10: _______
A11: Balances
A12: Trial Balance
A13: 13501 Med Terms Ser A-1 | B13: 0 | C13: 0 | D13: 0 | E13: 0 | F13: 0 | G13: 0 | H13: 0 | I13: 0 | J13: 71612.56 | K13: 70964.48 | L13: 65779.84 | M13: 65131.76 | N13: 64483.68 | O13: 63835.6 | P13: 63187.52 | Q13: 62539.44 | R13: 61891.36 | S13: 61243.28 | T13: 60595.2 | U13: 59947.12 | V13: 59299.04 | W13: 58650.96 | X13: 58002.88
A14: 13521 150MM 6.75% due Jul-28 | B14: 0 | C14: 0 | D14: 0 | E14: 0 | F14: 0 | G14: 0 | H14: 0 | I14: 0 | J14: 658977.45 | K14: 654336.77 | L14: 617211.33 | M14: 612570.65 | N14: 607929.97 | O14: 603289.29 | P14: 598648.61 | Q14: 594007.93 | R14: 589367.25 | S14: 584726.57 | T14: 580085.89 | U14: 575445.21 | V14: 570804.53 | W14: 566163.85 | X14: 561523.17
A15: 13530 200MM 5.95% due Oct-34 | B15: 0 | C15: 0 | D15: 0 | E15: 0 | F15: 0 | G15: 0 | H15: 0 | I15: 0 | J15: 1359690.79 | K15: 1353424.94 | L15: 1303298.14 | M15: 1297032.29 | N15: 1290766.44 | O15: 1284500.59 | P15: 1278234.74 | Q15: 1271968.89 | R15: 1265703.04 | S15: 1259437.19 | T15: 1253171.34 | U15: 1246905.49 | V15: 1240639.64 | W15: 1234373.79 | X15: 1228107.94
A16: 13531 250MM 6.35% due Jun-17 | B16: 0 | C16: 0 | D16: 0 | E16: 0 | F16: 0 | G16: 0 | H16: 0 | I16: 0 | J16: 164343.13 | K16: 146082.77 | L16: 0 | M16: 0 | N16: 0 | O16: 0 | P16: 0 | Q16: 0 | R16: 0 | S16: 0 | T16: 0 | U16: 0 | V16: 0 | W16: 0 | X16: 0
A17: 13532 450MM 8.5% due Mar-19 | B17: 0 | C17: 0 | D17: 0 | E17: 0 | F17: 0 | G17: 0 | H17: 0 | I17: 0 | J17: 926064.38 | K17: 895195.57 | L17: 648245.09 | M17: 617376.28 | N17: 586507.47 | O17: 555638.66 | P17: 524769.85 | Q17: 493901.04 | R17: 463032.23 | S17: 432163.42 | T17: 401294.61 | U17: 370425.8 | V17: 339556.99 | W17: 308688.18 | X17: 277819.37
A18: 13534 400MM 5.5% due Jun-41 | B18: 0 | C18: 0 | D18: 0 | E18: 0 | F18: 0 | G18: 0 | H18: 0 | I18: 0 | J18: 3550181.22 | K18: 3538187.37 | L18: 3442236.57 | M18: 3430242.72 | N18: 3418248.87 | O18: 3406255.02 | P18: 3394261.17 | Q18: 3382267.32 | R18: 3370273.47 | S18: 3358279.62 | T18: 3346285.77 | U18: 3334291.92 | V18: 3322298.07 | W18: 3310304.22 | X18: 3298310.37
A19: 13535 500MM 4.15% due JAN-43 | B19: 0 | C19: 0 | D19: 0 | E19: 0 | F19: 0 | G19: 0 | H19: 0 | I19: 0 | J19: 4703230.2 | K19: 4688322.97 | L19: 4569065.13 | M19: 4554157.9 | N19: 4539250.67 | O19: 4524343.44 | P19: 4509436.21 | Q19: 4494528.98 | R19: 4479621.75 | S19: 4464714.52 | T19: 4449807.29 | U19: 4434900.06 | V19: 4419992.83 | W19: 4405085.6 | X19: 4390178.37
A20: 13536 500MM 4.125% due Oct-44 | B20: 0 | C20: 0 | D20: 0 | E20: 0 | F20: 0 | G20: 0 | H20: 0 | I20: 0 | J20: 5161745.89 | K20: 5146406.38 | L20: 7684770.85 | M20: 7685242.7 | N20: 7661704.44 | O20: 7638166.18 | P20: 7614627.92 | Q20: 7591089.66 | R20: 7567551.4 | S20: 7544013.14 | T20: 7520474.88 | U20: 7496936.62 | V20: 7473398.36 | W20: 7449860.1 | X20: 7426321.84
A21: 13537 Jun-17 debt issuance costs | B21: 0 | C21: 0 | D21: 0 | E21: 0 | F21: 0 | G21: 0 | H21: 0 | I21: 0 | J21: 41580 | K21: 41580 | L21: 4070376.95 | M21: 4123523.61 | N21: 4088725.94 | O21: 4053928.27 | P21: 4019570.6 | Q21: 3984332.93 | R21: 3949535.26 | S21: 3914737.59 | T21: 3879939.92 | U21: 3845142.25 | V21: 3810344.58 | W21: 3775546.91 | X21: 3740749.24
A22: 13538 200MM BBT 3 YR Term Loan | B22: 0 | C22: 0 | D22: 0 | E22: 0 | F22: 0 | G22: 0 | H22: 0 | I22: 0 | J22: 314358.33 | K22: 305552.77 | L22: 235108.29 | M22: 226302.73 | N22: 217497.17 | O22: 208691.61 | P22: 199886.05 | Q22: 191080.49 | R22: 182274.93 | S22: 173469.37 | T22: 164663.81 | U22: 155858.25 | V22: 147052.69 | W22: 138247.13 | X22: 129441.57
A23: TOTAL | B23: 0 | C23: 0 | D23: 0 | E23: 0 | F23: 0 | G23: 0 | H23: 0 | I23: 0 | J23: =SUM(J13:J22) -> 16951783.95 | K23: =SUM(K13:K22) -> 16840054.02 | L23: =SUM(L13:L22) -> 22636092.19 | M23: 22611580.64 | N23: 22475114.65 | O23: 22338648.66 | P23: 22202622.67 | Q23: 22065716.68 | R23: 21929250.69 | S23: 21792784.7 | T23: 21656318.71 | U23: 21519852.72 | V23: 21383386.73 | W23: =SUM(W13:W22) -> 21246920.74 | X23: 21110454.75
L25: 0 | M25: 0 | N25: 0 | O25: 0 | P25: 0 | Q25: 0 | R25: 0 | S25: 0 | T25: 0 | U25: 0 | V25: 0 | W25: 0 | X25: 0
B27: 2016-11-15 | C27: 2016-12-15 | D27: 2016-01-16 | E27: 2016-02-16 | F27: 2016-03-16 | G27: 2016-04-16 | H27: 2016-05-16 | I27: 2016-06-16 | J27: 2016-09-16 | K27: 2016-10-16 | L27: 2017-06-17 | M27: 2017-07-17 | N27: 2017-09-17 | O27: 2017-10-17 | P27: 2017-11-17 | Q27: 2017-12-31 | R27: 2017-12-31 | S27: 2018-01-31 | T27: 2018-02-28 | U27: 2018-03-31 | V27: 2018-04-30 | W27: 2018-05-31 | X27: 2018-06-30
A28: Sub Account | B28: Actual | C28: Actual | D28: Actual | E28: Actual | F28: Actual | G28: Actual | H28: Actual | I28: Actual | J28: Actual | K28: Actual | L28: Actual | M28: Actual | N28: Actual | O28: Actual | P28: Actual | Q28: Actual | R28: Actual | S28: Actual | T28: Actual | U28: Actual | V28: Actual | W28: Actual | X28: Actual
A29: =------------------------------------------------------- | B29: _______ | C29: _______ | D29: _______ | E29: _______ | F29: _______ | G29: _______ | H29: _______ | I29: _______ | J29: _______ | K29: _______ | L29: _______ | M29: _______ | N29: _______ | O29: _______ | P29: _______ | Q29: _______ | R29: _______ | S29: _______ | T29: _______ | U29: _______ | V29: _______ | W29: _______ | X29: _______
A30: Activity
A31: Trial Balance
A32: 13501 Med Terms Ser A-1 | B32: 0 | C32: 0 | D32: 0 | E32: 0 | F32: 0 | G32: 0 | H32: 0 | I32: 0 | J32: 0 | K32: -648.08 | L32: -648.08 | M32: -648.08 | N32: -648.08 | O32: -648.08 | P32: -648.08 | Q32: -648.08 | R32: -648.08 | S32: -648.08 | T32: -648.08 | U32: -648.08 | V32: -648.08 | W32: -648.08 | X32: -648.08
A33: 13521 150MM 6.75% due Jul-28 | B33: 0 | C33: 0 | D33: 0 | E33: 0 | F33: 0 | G33: 0 | H33: 0 | I33: 0 | J33: 0 | K33: -4640.68 | L33: -4640.68 | M33: -4640.68 | N33: -4640.68 | O33: -4640.68 | P33: -4640.68 | Q33: -4640.68 | R33: -4640.68 | S33: -4640.68 | T33: -4640.68 | U33: -4640.68 | V33: -4640.68 | W33: -4640.68 | X33: -4640.68
A34: 13530 200MM 5.95% due Oct-34 | B34: 0 | C34: 0 | D34: 0 | E34: 0 | F34: 0 | G34: 0 | H34: 0 | I34: 0 | J34: 0 | K34: -6265.85 | L34: -6265.85 | M34: -6265.85 | N34: -6265.85 | O34: -6265.85 | P34: -6265.85 | Q34: -6265.85 | R34: -6265.85 | S34: -6265.85 | T34: -6265.85 | U34: -6265.85 | V34: -6265.85 | W34: -6265.85 | X34: -6265.85
A35: 13531 250MM 6.35% due Jun-17 | B35: 0 | C35: 0 | D35: 0 | E35: 0 | F35: 0 | G35: 0 | H35: 0 | I35: 0 | J35: 0 | K35: -18260.36 | L35: -18260.25 | M35: 0 | N35: 0 | O35: 0 | P35: 0 | Q35: 0 | R35: 0 | S35: 0 | T35: 0 | U35: 0 | V35: 0 | W35: 0 | X35: 0
A36: 13532 450MM 8.5% due Mar-19 | B36: 0 | C36: 0 | D36: 0 | E36: 0 | F36: 0 | G36: 0 | H36: 0 | I36: 0 | J36: 0 | K36: -30868.81 | L36: -30868.81 | M36: -30868.81 | N36: -30868.81 | O36: -30868.81 | P36: -30868.81 | Q36: -30868.81 | R36: -30868.81 | S36: -30868.81 | T36: -30868.81 | U36: -30868.81 | V36: -30868.81 | W36: -30868.81 | X36: -30868.81
A37: 13534 400MM 5.5% due Jun-41 | B37: 0 | C37: 0 | D37: 0 | E37: 0 | F37: 0 | G37: 0 | H37: 0 | I37: 0 | J37: 0 | K37: -11993.85 | L37: -11993.85 | M37: -11993.85 | N37: -11993.85 | O37: -11993.85 | P37: -11993.85 | Q37: -11993.85 | R37: -11993.85 | S37: -11993.85 | T37: -11993.85 | U37: -11993.85 | V37: -11993.85 | W37: -11993.85 | X37: -11993.85
A38: 13535 500MM 4.15% due JAN-43 | B38: 0 | C38: 0 | D38: 0 | E38: 0 | F38: 0 | G38: 0 | H38: 0 | I38: 0 | J38: 0 | K38: -14907.23 | L38: -14907.23 | M38: -14907.23 | N38: -14907.23 | O38: -14907.23 | P38: -14907.23 | Q38: -14907.23 | R38: -14907.23 | S38: -14907.23 | T38: -14907.23 | U38: -14907.23 | V38: -14907.23 | W38: -14907.23 | X38: -14907.23
A39: 13536 500MM 4.125% due Oct-44 | B39: 0 | C39: 0 | D39: 0 | E39: 0 | F39: 0 | G39: 0 | H39: 0 | I39: 0 | J39: 0 | K39: -15339.51 | L39: 2645741.04 | M39: 471.85 | N39: -23538.26 | O39: -23538.26 | P39: -23538.26 | Q39: -23538.26 | R39: -23538.26 | S39: -23538.26 | T39: -23538.26 | U39: -23538.26 | V39: -23538.26 | W39: -23538.26 | X39: -23538.26
A40: 13537 Jun-17 debt issuance costs | B40: 0 | C40: 0 | D40: 0 | E40: 0 | F40: 0 | G40: 0 | H40: 0 | I40: 0 | J40: 0 | K40: 0 | L40: 4028796.95 | M40: 53146.66 | N40: -34797.67 | O40: -34797.67 | P40: -34357.67 | Q40: -35237.67 | R40: -34797.67 | S40: -34797.67 | T40: -34797.67 | U40: -34797.67 | V40: -34797.67 | W40: -34797.67 | X40: -34797.67
A41: 13538 200MM BBT 3 YR Term Loan | B41: 0 | C41: 0 | D41: 0 | E41: 0 | F41: 0 | G41: 0 | H41: 0 | I41: 0 | J41: -2641.67 | K41: -8805.56 | L41: -8805.56 | M41: -8805.56 | N41: -8805.56 | O41: -8805.56 | P41: -8805.56 | Q41: -8805.56 | R41: -8805.56 | S41: -8805.56 | T41: -8805.56 | U41: -8805.56 | V41: -8805.56 | W41: -8805.56 | X41: -8805.56
A42: TOTAL | B42: 0 | C42: 0 | D42: 0 | E42: 0 | F42: 0 | G42: 0 | H42: 0 | I42: 0 | J42: =SUM(J32:J41) -> -2641.67 | K42: =SUM(K32:K41) -> -111729.93 | L42: 6578147.68 | M42: -24511.55 | N42: -136465.99 | O42: -136465.99 | P42: -136025.99 | Q42: -136905.99 | R42: -136465.99 | S42: -136465.99 | T42: -136465.99 | U42: -136465.99 | V42: -136465.99 | W42: -136465.99 | X42: =SUM(X32:X41) -> -136465.99
L44: 0 | M44: 0 | N44: 0 | O44: 0 | P44: 0 | Q44: 0 | R44: 0 | S44: 0 | T44: 0 | U44: 1.018634066e-09 | V44: -1.28056854e-09 | W44: 1.28056854e-09 | X44: 0

Sheet Acct 1650.13201 Prepayments
A1: Atmos Energy Corporation
A2: Monthly Capital Structure Report
A3: ='LTD rate'!A3 -> June 30, 2018
A5: Currency: USD
A6: Account=1650 (Prepayments), Sub Account=13201 (Prepaid admin fee BBT 200mm)
B8: 2016-11-15 | C8: 2016-12-15 | D8: 2016-01-16 | E8: 2016-02-16 | F8: 2016-03-16 | G8: 2016-04-16 | H8: 2016-05-16 | I8: 2016-06-16 | J8: 2016-07-16 | K8: 2016-08-16 | L8: 2016-09-16 | M8: 2017-05-17 | N8: 2017-06-17 | O8: 2017-07-17 | P8: 2017-08-17 | Q8: 2017-09-17 | R8: 2017-10-17 | S8: 2017-11-17 | T8: 2017-12-17 | U8: 2018-01-31 | V8: 2018-02-28 | W8: 2018-03-31 | X8: 2018-04-30 | Y8: 2018-05-31 | Z8: 2018-06-30
A9: Sub Account | B9: Actual | C9: Actual | D9: Actual | E9: Actual | F9: Actual | G9: Actual | H9: Actual | I9: Actual | J9: Actual | K9: Actual | L9: Actual | M9: Actual | N9: Actual | O9: Actual | P9: Actual | Q9: Actual | R9: Actual | S9: Actual | T9: Actual | U9: Actual | V9: Actual | W9: Actual | X9: Actual | Y9: Actual | Z9: Actual
A10: =------------------------------------------------------- | B10: _______ | C10: _______ | D10: _______ | E10: _______ | F10: _______ | G10: _______ | H10: _______ | I10: _______ | J10: _______ | K10: _______ | L10: _______ | M10: _______ | N10: _______ | O10: _______ | P10: _______ | Q10: _______ | R10: _______ | S10: _______ | T10: _______ | U10: _______ | V10: _______ | W10: _______ | X10: _______ | Y10: _______ | Z10: _______
A11: Balance
A12: Trial Balance
A13: 13201 Prepaid admin fee BBT 200mm | B13: 0 | C13: 0 | D13: 0 | E13: 0 | F13: 0 | G13: 0 | H13: 0 | I13: 0 | J13: 0 | K13: 0 | L13: 0 | M13: 3083.36 | N13: 2250.03 | O13: 1416.7 | P13: 583.37 | Q13: 0.04 | R13: 10241.71 | S13: 9658.38 | T13: 7500.05 | U13: 6666.72 | V13: 5833.39 | W13: 5000.06 | X13: 4166.73 | Y13: 3333.4 | Z13: 2500.07
A14: Total | B14: 0 | C14: 0 | D14: 0 | E14: 0 | F14: 0 | G14: 0 | H14: 0 | I14: 0 | J14: 0 | K14: 0 | L14: 0 | M14: =+M13 -> 3083.36 | N14: 2250.03 | O14: 1416.7 | P14: 583.37 | Q14: 0.04 | R14: 10241.71 | S14: 9658.38 | T14: 7500.05 | U14: 6666.72 | V14: 5833.39 | W14: 5000.06 | X14: 4166.73 | Y14: 3333.4 | Z14: =+Z13 -> 2500.07
M16: 0 | N16: 0 | O16: 0 | P16: 0 | Q16: 0 | R16: 0 | S16: 0 | T16: 0 | U16: 0 | V16: 0 | W16: 0 | X16: 0 | Y16: 0 | Z16: 0
B17: 2016-11-15 | C17: 2016-12-15 | D17: 2016-01-16 | E17: 2016-02-16 | F17: 2016-03-16 | G17: 2016-04-16 | H17: 2016-05-16 | I17: 2016-06-16 | J17: 2016-06-16 | K17: 2016-06-16 | L17: 2016-09-16 | M17: 2017-05-17 | N17: 2017-06-17 | O17: 2017-07-17 | P17: 2017-08-17 | Q17: 2017-09-17 | R17: 2017-10-17 | S17: 2017-11-17 | T17: 2017-11-17 | U17: 2018-01-31 | V17: 2018-02-28 | W17: 2018-03-31 | X17: 2018-04-30 | Y17: 2018-05-31 | Z17: 2018-06-30
A18: Sub Account | B18: Actual | C18: Actual | D18: Actual | E18: Actual | F18: Actual | G18: Actual | H18: Actual | I18: Actual | J18: Actual | K18: Actual | L18: Actual | M18: Actual | N18: Actual | O18: Actual | P18: Actual | Q18: Actual | R18: Actual | S18: Actual | T18: Actual | U18: Actual | V18: Actual | W18: Actual | X18: Actual | Y18: Actual | Z18: Actual
A19: =------------------------------------------------------- | B19: _______ | C19: _______ | D19: _______ | E19: _______ | F19: _______ | G19: _______ | H19: _______ | I19: _______ | J19: _______ | K19: _______ | L19: _______ | M19: _______ | N19: _______ | O19: _______ | P19: _______ | Q19: _______ | R19: _______ | S19: _______ | T19: _______ | U19: _______ | V19: _______ | W19: _______ | X19: _______ | Y19: _______ | Z19: _______
A20: Activity
A21: Trial Balance
A22: 13201 Prepaid admin fee BBT 200mm | B22: 0 | C22: 0 | D22: 0 | E22: 0 | F22: 0 | G22: 0 | H22: 0 | I22: 0 | J22: 0 | K22: 0 | L22: 0 | M22: -833.33 | N22: -833.33 | O22: -833.33 | P22: -833.33 | Q22: -583.33 | R22: 10241.67 | S22: -583.33 | T22: -2158.33 | U22: -833.33 | V22: -833.33 | W22: -833.33 | X22: -833.33 | Y22: -833.33 | Z22: -833.33
A23: Total | B23: 0 | C23: 0 | D23: 0 | E23: 0 | F23: 0 | G23: 0 | H23: 0 | I23: 0 | J23: 0 | K23: 0 | L23: =SUM(L22) -> 0 | M23: =+M22 -> -833.33 | N23: -833.33 | O23: -833.33 | P23: -833.33 | Q23: -583.33 | R23: 10241.67 | S23: -583.33 | T23: -2158.33 | U23: -833.33 | V23: -833.33 | W23: -833.33 | X23: -833.33 | Y23: =+Y22 -> -833.33 | Z23: -833.33
N25: 0 | O25: 0 | P25: 0 | Q25: 0 | R25: 0 | S25: 0 | T25: 0 | U25: 0 | V25: 0 | W25: -9.094947018e-13 | X25: 0 | Y25: 0 | Z25: 0
L26: Note to File:

Sheet 1810 Unamort Debt exp
A1: Atmos Energy Corporation
A2: Total Consolidated Unamortized Debt Expense - Acct 1810
A3: September 30, 2015 - September 30, 2016
H5: 1810 | J5: 1810 | K5: 1810 | M5: 1810 | N5: 1810 | P5: 1810 | Q5: 1810 | S5: 1810 | T5: 1810 | V5: 1810 | W5: 1810 | Y5: 1810 | Z5: 1810 | AB5: 1810 | AC5: 1810 | AE5: 1810 | AF5: 1810 | AH5: 1810 | AI5: 1810 | AK5: 1810 | AL5: 1810 | AN5: 1810 | AO5: 1810 | AQ5: 1810 | AR5: 1810 | AT5: 1810 | AU5: 1810
A6: Atmos Energy Corp., Consolidated: | C6: Year | D6: sub | E6: Orig | F6: 4280 | H6: G/L Balance | J6: Amort/Othr Activity | K6: G/L Balance | M6: Amort/Othr Activity | N6: G/L Balance | P6: Amort/Othr Activity | Q6: G/L Balance | S6: Amort/Othr Activity | T6: G/L Balance | V6: Amort/Othr Activity | W6: G/L Balance | Y6: Amort/Othr Activity | Z6: G/L Balance | AB6: Amort/Othr Activity | AC6: G/L Balance | AE6: Amort/Othr Activity | AF6: G/L Balance | AH6: Amort/Othr Activity | AI6: G/L Balance | AK6: Amort/Othr Activity | AL6: G/L Balance | AN6: Amort/Othr Activity | AO6: G/L Balance | AQ6: Amort/Othr Activity | AR6: G/L Balance | AT6: Amort/Othr Activity | AU6: G/L Balance
A7: Line | B7: Debt Series | C7: Issued | D7: acct | E7: Debt exp | F7: mthly exp | H7: 2015-08-31 | J7: 2015-09-30 | K7: =+J7 -> 2015-09-30 | M7: 2015-10-31 | N7: =+M7 -> 2015-10-31 | P7: 2015-11-30 | Q7: =+P7 -> 2015-11-30 | S7: 2015-12-31 | T7: =+S7 -> 2015-12-31 | V7: 2016-01-31 | W7: =+V7 -> 2016-01-31 | Y7: 2016-02-29 | Z7: =+Y7 -> 2016-02-29 | AB7: 2016-03-31 | AC7: =+AB7 -> 2016-03-31 | AE7: 2016-04-30 | AF7: =+AE7 -> 2016-04-30 | AH7: 2016-05-31 | AI7: =+AH7 -> 2016-05-31 | AK7: 2016-06-30 | AL7: =+AK7 -> 2016-06-30 | AN7: 2016-07-31 | AO7: =+AN7 -> 2016-07-31 | AQ7: 2016-08-31 | AR7: =+AQ7 -> 2016-08-31 | AT7: 2016-09-30 | AU7: =+AT7 -> 2016-09-30
B8: (a) | C8: (b)
A9: 1 | B9: 6.75% Debentures Unsecured due July 2028 | C9: 1998 | D9: 13521 | E9: 1670646.19 | F9: 4640.68 | H9: 719306.29 | J9: =K9-H9 -> -4640.68 | K9: 714665.61 | M9: =N9-K9 -> -4640.68 | N9: 710024.93 | P9: =Q9-N9 -> -4640.68 | Q9: 705384.25 | S9: =T9-Q9 -> -4640.68 | T9: 700743.57 | V9: =W9-T9 -> -4640.68 | W9: 696102.89 | Y9: =Z9-W9 -> -4640.68 | Z9: 691462.21 | AB9: =AC9-Z9 -> -4640.68 | AC9: 686821.53 | AE9: =AF9-AC9 -> -4640.68 | AF9: 682180.85 | AH9: =AI9-AF9 -> -4640.68 | AI9: 677540.17 | AK9: =AL9-AI9 -> -4640.68 | AL9: 672899.49 | AN9: =AO9-AL9 -> -4640.68 | AO9: 668258.81 | AQ9: =AR9-AO9 -> -4640.68 | AR9: 663618.13 | AT9: =AU9-AR9 -> -663618.13 | AU9: 0 | AV9: Bal Moved to 2241 in Sept-16
A10: 2 | B10: 5.125% Senior Notes due Jan 2013 | C10: 2003 | D10: 13513/26 | E10: 782758.51 | H10: 0 | J10: =K10-H10 -> 0 | K10: 0 | M10: =N10-K10 -> 0 | N10: 0 | P10: =Q10-N10 -> 0 | Q10: 0 | S10: =T10-Q10 -> 0 | T10: 0 | V10: =W10-T10 -> 0 | W10: 0 | Y10: =Z10-W10 -> 0 | Z10: 0 | AB10: =AC10-Z10 -> 0 | AC10: 0 | AE10: =AF10-AC10 -> 0 | AF10: 0 | AH10: =AI10-AF10 -> 0 | AI10: 0 | AK10: =AL10-AI10 -> 0 | AL10: 0 | AN10: =AO10-AL10 -> 0 | AO10: 0 | AQ10: =AR10-AO10 -> 0 | AR10: 0 | AT10: =AU10-AR10 -> 0 | AU10: 0 | AV10: Bal Moved to 2241 in Sept-16
A11: 3 | B11: 6.67% MTN A1 due Dec 2025 | C11: 1995 | D11: 13501 | E11: 233308 | F11: 648.08 | H11: 80036.5 | J11: -649.18 | K11: 79387.32 | M11: -645.88 | N11: 78741.44 | P11: -648.08 | Q11: 78093.36 | S11: =T11-Q11 -> -648.08 | T11: 77445.28 | V11: =W11-T11 -> -648.08 | W11: 76797.2 | Y11: =Z11-W11 -> -648.08 | Z11: 76149.12 | AB11: =AC11-Z11 -> -648.08 | AC11: 75501.04 | AE11: =AF11-AC11 -> -648.08 | AF11: 74852.96 | AH11: =AI11-AF11 -> -648.08 | AI11: 74204.88 | AK11: =AL11-AI11 -> -648.08 | AL11: 73556.8 | AN11: =AO11-AL11 -> -648.08 | AO11: 72908.72 | AQ11: =AR11-AO11 -> -648.08 | AR11: 72260.64 | AT11: =AU11-AR11 -> -72260.64 | AU11: 0 | AV11: Bal Moved to 2241 in Sept-16
A12: 4 | B12: 4.95% Sr Note due 10/15/2014 | C12: 2004 | D12: 13529 | E12: 4496697.19 | H12: 0 | J12: 0 | K12: 0 | M12: 0 | N12: 0 | P12: 0 | Q12: 0 | S12: =T12-Q12 -> 0 | T12: 0 | V12: =W12-T12 -> 0 | W12: 0 | Y12: =Z12-W12 -> 0 | Z12: 0 | AB12: =AC12-Z12 -> 0 | AC12: 0 | AE12: =AF12-AC12 -> 0 | AF12: 0 | AH12: =AI12-AF12 -> 0 | AI12: 0 | AK12: =AL12-AI12 -> 0 | AL12: 0 | AN12: =AO12-AL12 -> 0 | AO12: 0 | AQ12: =AR12-AO12 -> 0 | AR12: 0 | AT12: 0 | AU12: 0 | AV12: Bal Moved to 2241 in Sept-16
A13: 5 | B13: 5.95% Sr Note due 10/15/2034 | C13: 2004 | D13: 13530 | E13: 2255707.29 | F13: 6265.85 | H13: 1441146.84 | J13: -6265.85 | K13: 1434880.99 | M13: -6265.85 | N13: 1428615.14 | P13: -6265.85 | Q13: 1422349.29 | S13: -6265.85 | T13: 1416083.44 | V13: -6265.85 | W13: 1409817.59 | Y13: -6265.85 | Z13: 1403551.74 | AB13: -6265.85 | AC13: 1397285.89 | AE13: -6265.85 | AF13: 1391020.04 | AH13: -6265.85 | AI13: 1384754.19 | AK13: -6265.85 | AL13: 1378488.34 | AN13: -6265.85 | AO13: 1372222.49 | AQ13: -6265.85 | AR13: 1365956.64 | AT13: =AU13-AR13 -> -1365956.64 | AU13: 0 | AV13: Bal Moved to 2241 in Sept-16
A14: 6 | B14: 6.35% Sr Note due 6/15/2017 | C14: 2007 | D14: 13531 | E14: 2191242.94 | F14: 18260.36 | H14: 401727.81 | J14: -18260.36 | K14: 383467.45 | M14: -18260.36 | N14: 365207.09 | P14: -18260.36 | Q14: 346946.73 | S14: -18260.36 | T14: 328686.37 | V14: -18260.36 | W14: 310426.01 | Y14: -18260.36 | Z14: 292165.65 | AB14: -18260.36 | AC14: 273905.29 | AE14: -18260.36 | AF14: 255644.93 | AH14: -18260.36 | AI14: 237384.57 | AK14: -18260.36 | AL14: 219124.21 | AN14: -18260.36 | AO14: 200863.85 | AQ14: -18260.36 | AR14: 182603.49 | AT14: -182603.49 | AU14: 0 | AV14: Bal Moved to 2241 in Sept-16
A15: 7 | B15: Sr Note 5.50% Due 06/15/2041 | C15: 2011 | D15: 13534 | E15: 4317787.73 | F15: 11993.85 | H15: 3706101.27 | J15: -11993.85 | K15: 3694107.42 | M15: -11993.85 | N15: 3682113.57 | P15: -11993.85 | Q15: 3670119.72 | S15: -11993.85 | T15: 3658125.87 | V15: -11993.85 | W15: 3646132.02 | Y15: -11993.85 | Z15: 3634138.17 | AB15: -11993.85 | AC15: 3622144.32 | AE15: -11993.85 | AF15: 3610150.47 | AH15: -11993.85 | AI15: 3598156.62 | AK15: -11993.85 | AL15: 3586162.77 | AN15: -11993.85 | AO15: 3574168.92 | AQ15: -11993.85 | AR15: 3562175.07 | AT15: -3562175.07 | AU15: 0 | AV15: Bal Moved to 2241 in Sept-16
A16: 8 | B16: 8.50% Sr Note due 3/15/2019 | C16: 2009 | D16: 13532 | E16: 3704257.34 | F16: 30868.81 | H16: 1327358.91 | J16: -30868.81 | K16: 1296490.1 | M16: -30868.81 | N16: 1265621.29 | P16: -30868.81 | Q16: 1234752.48 | S16: -30868.81 | T16: 1203883.67 | V16: -30868.81 | W16: 1173014.86 | Y16: -30868.81 | Z16: 1142146.05 | AB16: -30868.81 | AC16: 1111277.24 | AE16: -30868.81 | AF16: 1080408.43 | AH16: -30868.81 | AI16: 1049539.62 | AK16: -30868.81 | AL16: 1018670.81 | AN16: -30868.81 | AO16: 987802 | AQ16: -30868.81 | AR16: 956933.19 | AT16: -956933.19 | AU16: 0 | AV16: Bal Moved to 2241 in Sept-16
A17: 9 | B17: 4.15% Sr Note due 1/15/2043 | C17: 2013 | D17: 13535 | E17: 5366185 | F17: 14907.23 | H17: 4897024.19 | J17: -14907.23 | K17: 4882116.96 | M17: -14907.23 | N17: 4867209.73 | P17: -14907.23 | Q17: 4852302.5 | S17: -14907.23 | T17: 4837395.27 | V17: -14907.23 | W17: 4822488.04 | Y17: -14907.23 | Z17: 4807580.81 | AB17: -14907.23 | AC17: 4792673.58 | AE17: -14907.23 | AF17: 4777766.35 | AH17: -14907.23 | AI17: 4762859.12 | AK17: -14907.23 | AL17: 4747951.89 | AN17: -14907.23 | AO17: 4733044.66 | AQ17: -14907.23 | AR17: 4718137.43 | AT17: -4718137.43 | AU17: 0 | AV17: Bal Moved to 2241 in Sept-16
A18: 10 | B18: 4.125 Sr Note due 10/15/2044 | C18: 2014 | D18: 13536 | E18: 5522224.38 | F18: 15339.51217 | H18: 5361159.52 | J18: -15339.51 | K18: 5345820.01 | M18: -15339.51 | N18: 5330480.5 | P18: -15339.51 | Q18: 5315140.99 | S18: -15339.51 | T18: 5299801.48 | V18: -15339.51 | W18: 5284461.97 | Y18: -15339.51 | Z18: 5269122.46 | AB18: -15339.51 | AC18: 5253782.95 | AE18: -15339.51 | AF18: 5238443.44 | AH18: -15339.51 | AI18: 5223103.93 | AK18: -15339.51 | AL18: 5207764.42 | AN18: -15339.51 | AO18: 5192424.91 | AQ18: -15339.51 | AR18: 5177085.4 | AT18: -5177085.4 | AU18: 0 | AV18: Bal Moved to 2241 in Sept-16
A19: 11 | B19: Jun-17 debt issuance costs | C19: 2017 | D19: 13537 | H19: 41580 | J19: 0 | K19: 41580 | M19: 0 | N19: 41580 | P19: 0 | Q19: 41580 | S19: 0 | T19: 41580 | V19: 0 | W19: 41580 | Y19: 0 | Z19: 41580 | AB19: 0 | AC19: 41580 | AE19: 0 | AF19: 41580 | AH19: 0 | AI19: 41580 | AK19: 0 | AL19: 41580 | AN19: 0 | AO19: 41580 | AQ19: 0 | AR19: 41580 | AT19: -41580 | AU19: 0 | AV19: Bal Moved to 2241 in Sept-16
A20: 12
A21: 13 | B21: Total | F21: =SUM(F9:F19) -> 102924.3722 | H21: =SUM(H9:H20) -> 17975441.33 | J21: =SUM(J9:J20) -> -102925.47 | K21: =SUM(K9:K20) -> 17872515.86 | M21: =SUM(M9:M20) -> -102922.17 | N21: =SUM(N9:N20) -> 17769593.69 | P21: =SUM(P9:P20) -> -102924.37 | Q21: =SUM(Q9:Q20) -> 17666669.32 | S21: =SUM(S9:S20) -> -102924.37 | T21: =SUM(T9:T20) -> 17563744.95 | V21: =SUM(V9:V20) -> -102924.37 | W21: =SUM(W9:W20) -> 17460820.58 | Y21: =SUM(Y9:Y20) -> -102924.37 | Z21: =SUM(Z9:Z20) -> 17357896.21 | AB21: =SUM(AB9:AB20) -> -102924.37 | AC21: =SUM(AC9:AC20) -> 17254971.84 | AE21: =SUM(AE9:AE20) -> -102924.37 | AF21: =SUM(AF9:AF20) -> 17152047.47 | AH21: =SUM(AH9:AH20) -> -102924.37 | AI21: =SUM(AI9:AI20) -> 17049123.1 | AK21: =SUM(AK9:AK20) -> -102924.37 | AL21: =SUM(AL9:AL20) -> 16946198.73 | AN21: =SUM(AN9:AN20) -> -102924.37 | AO21: =SUM(AO9:AO20) -> 16843274.36 | AQ21: =SUM(AQ9:AQ20) -> -102924.37 | AR21: =SUM(AR9:AR20) -> 16740349.99 | AT21: =SUM(AT9:AT20) -> -16740349.99 | AU21: =SUM(AU9:AU20) -> 0
A22: 14 | H22: check | K22: check | N22: check | Q22: check | T22: check | W22: check | Z22: check | AC22: check | AF22: check | AI22: check | AL22: check | AO22: check | AR22: check | AU22: check
A23: 15 | B23: G/L Balance | H23: 17975441.33 | K23: 17872515.86 | N23: 17769593.69 | Q23: 17666669.32 | T23: 17563744.95 | W23: 17460820.58 | Z23: 17357896.21 | AC23: 17254971.84 | AF23: 17152047.47 | AI23: 17049123.1 | AL23: 16946198.73 | AO23: 16843274.36 | AR23: 16740349.99 | AU23: 0
A24: 16 | B24: reconciling item | H24: 0 | K24: =K21-K23 -> 0 | N24: =N21-N23 -> 0 | Q24: =Q21-Q23 -> 0 | T24: =T21-T23 -> 0 | W24: =W21-W23 -> 0 | Z24: =Z21-Z23 -> 0 | AC24: =AC21-AC23 -> 0 | AF24: =AF21-AF23 -> 0 | AI24: =AI21-AI23 -> 0 | AL24: =AL21-AL23 -> 0 | AO24: =AO21-AO23 -> 0 | AR24: =AR21-AR23 -> 0 | AU24: =AU21-AU23 -> 0

Sheet 20102
A1: Amortization Schedule
A2: GL# 010.0000.2150.20102.002000 | F2: 5 years | G2: 5 years | H2: 20 years
F3: Amort | G3: Amort | H3: Amort | I3: Total to Amort
B4: (Gain) Loss | C4: Years | D4: Annual Amort | F4: Nov 2004-Oct 2009 | G4: Nov 2009-Oct 2014 | H4: Nov 2014-Oct 2034 | I4: Nov 2004-Oct 2034
A5: SunTrust | B5: -63003 | C5: 30 | D5: =B5/C5 -> -2100.1 | F5: =+$D5*5 -> -10500.5 | G5: =+$D5*5 -> -10500.5 | H5: =+$D5*20 -> -42002 | I5: =SUM(F5:H5) -> -63003
A6: JP Morgan | B6: -148409 | C6: 30 | D6: =B6/C6 -> -4946.966667 | F6: =+$D6*5 -> -24734.83333 | G6: =+$D6*5 -> -24734.83333 | H6: =+$D6*20 -> -98939.33333 | I6: =SUM(F6:H6) -> -148409
A7: Merrill Lynch | B7: 0 | C7: 5 | D7: =B7/C7 -> 0 | F7: =+$D7*5 -> 0 | G7: 0 | H7: 0 | I7: =SUM(F7:H7) -> 0
A8: Merrill Lynch | B8: 32377932 | C8: 10 | D8: =B8/C8 -> 3237793.2 | F8: =+$D8*5 -> 16188966 | G8: =+$D8*5 -> 16188966 | H8: 0 | I8: =SUM(F8:H8) -> 32377932
A10: Total | B10: =SUM(B5:B8) -> 32166520 | D10: =SUM(D5:D8) -> 3230746.133 | F10: =SUM(F5:F9) -> 16153730.67 | G10: =SUM(G5:G9) -> 16153730.67 | H10: =SUM(H5:H9) -> -140941.3333 | I10: =SUM(F10:H10) -> 32166520
D12: # months to Amort | F12: =5*12 -> 60 | G12: =5*12 -> 60 | H12: =20*12 -> 240
F14: DR (CR) | G14: DR (CR) | H14: DR (CR)
C15: LT Int Exp | D15: Monthly Amort | F15: =+F10/F12 -> 269228.8444 | G15: =+G10/G12 -> 269228.8444 | H15: =+H10/H12 -> -587.2555556
C16: 2830.28206 | D16: Def State Tax | E16: 0.023 | F16: =-F$15*$E16 -> -6192.263422 | G16: -6192.263422 | H16: 13.50687778
C17: 2830.28201 | D17: Def Fed Tax | E17: 0.342 | F17: -92076.2648 | G17: -92076.2648 | H17: 200.8414
E18: 0.20517
A20: T-Lock Settlement | G20: Net OCI | H20: Def State Tax | I20: Def Fed Tax
H21: =E16 -> 0.023 | I21: =E17 -> 0.342 | J21: =H21+I21 -> 0.365 | K21: 0.20517 | L21: =H21+K21 -> 0.22817
C22: 2150.20102 | D22: 2150.20102 | E22: 2150.20102 | F22: 2150.20102 | G22: 2150.20102 | H22: 2830.28206 | I22: 2830.28201 | K22: Balance to Amortize | L22: Balance to Amortize
C23: Amort | D23: T-Lock Settlement | E23: Def Tax Adj | F23: Def Taxes | G23: Net of Tax | H23: Adjustment | I23: Adjustment | K23: =B5+B6 -> -211412 | L23: =B8 -> 32377932
C24: DR (CR) | D24: DR (CR) | E24: DR (CR) | F24: DR (CR) | H24: DR (CR) | I24: DR (CR) | K24: 30 YR | L24: 10 YR | M24: Bal 30 YR | N24: Bal 10 Yr
A25: Balance at Oct 31, 2004 | B25: 2004-10-04 | D25: =B10 -> 32166520 | F25: =-D25*$J$21 -> -11740779.8 | G25: =SUM(D25:F25) -> 20425740.2 | H25: 0 | I25: 0
B26: 2004-11-04 | C26: =-$F$15 -> -269228.8444 | D26: =+D25+C26 -> 31897291.16 | E26: =-C26*$J$21 -> 98268.52822 | F26: =+F25+E26 -> -11642511.27 | G26: =+G25+C26+E26 -> 20254779.88 | H26: =+$H$21*$C26 -> -6192.263422 | I26: =+$I$21*$C26 -> -92076.2648 | K26: =SUM(D5:D6)/12 -> -587.2555556 | L26: =D8/12 -> 269816.1 | M26: =K23-K26 -> -210824.7444 | N26: =L23-L26 -> 32108115.9
B27: 2004-12-04 | C27: =-$F$15 -> -269228.8444 | D27: 31628062.31 | E27: =-C27*$J$21 -> 98268.52822 | F27: =+F26+E27 -> -11544242.74 | G27: =+G26+C27+E27 -> 20083819.57 | H27: =+$H$21*$C27 -> -6192.263422 | I27: =+$I$21*$C27 -> -92076.2648 | K27: =K26 -> -587.2555556 | L27: =L26 -> 269816.1 | M27: =M26-K27 -> -210237.4889 | N27: =N26-L27 -> 31838299.8
B28: 2005-01-04 | C28: -269228.8444 | D28: 31358833.47 | E28: 98268.52822 | F28: -11445974.22 | G28: 19912859.25 | H28: -6192.263422 | I28: -92076.2648 | K28: =K27 -> -587.2555556 | L28: =L27 -> 269816.1 | M28: =M27-K28 -> -209650.2333 | N28: =N27-L28 -> 31568483.7
B29: 2005-02-04 | C29: -269228.8444 | D29: 31089604.62 | E29: 98268.52822 | F29: -11347705.69 | G29: 19741898.94 | H29: -6192.263422 | I29: -92076.2648 | K29: -587.2555556 | L29: 269816.1 | M29: -209062.9778 | N29: 31298667.6
B30: 2005-03-04 | C30: -269228.8444 | D30: 30820375.78 | E30: 98268.52822 | F30: -11249437.16 | G30: 19570938.62 | H30: -6192.263422 | I30: -92076.2648 | K30: -587.2555556 | L30: 269816.1 | M30: -208475.7222 | N30: 31028851.5
B31: 2005-04-04 | C31: =-$F$15 -> -269228.8444 | D31: 30551146.93 | E31: 98268.52822 | F31: -11151168.63 | G31: 19399978.3 | H31: -6192.263422 | I31: -92076.2648 | K31: -587.2555556 | L31: 269816.1 | M31: -207888.4667 | N31: 30759035.4
B32: 2005-05-04 | C32: -269228.8444 | D32: 30281918.09 | E32: 98268.52822 | F32: -11052900.1 | G32: 19229017.99 | H32: -6192.263422 | I32: -92076.2648 | K32: -587.2555556 | L32: 269816.1 | M32: -207301.2111 | N32: 30489219.3
B33: 2005-06-04 | C33: -269228.8444 | D33: 30012689.24 | E33: 98268.52822 | F33: -10954631.57 | G33: 19058057.67 | H33: -6192.263422 | I33: -92076.2648 | K33: -587.2555556 | L33: 269816.1 | M33: -206713.9556 | N33: 30219403.2
B34: 2005-07-04 | C34: -269228.8444 | D34: 29743460.4 | E34: 98268.52822 | F34: -10856363.05 | G34: 18887097.35 | H34: -6192.263422 | I34: -92076.2648 | K34: -587.2555556 | L34: 269816.1 | M34: -206126.7 | N34: 29949587.1
B35: 2005-08-04 | C35: -269228.8444 | D35: 29474231.56 | E35: 98268.52822 | F35: -10758094.52 | G35: 18716137.04 | H35: -6192.263422 | I35: -92076.2648 | K35: -587.2555556 | L35: 269816.1 | M35: -205539.4444 | N35: 29679771
B36: 2005-09-04 | C36: -269228.8444 | D36: 29205002.71 | E36: 98268.52822 | F36: -10659825.99 | G36: 18545176.72 | H36: -6192.263422 | I36: -92076.2648 | K36: -587.2555556 | L36: 269816.1 | M36: -204952.1889 | N36: 29409954.9
B37: 2005-10-04 | C37: -269228.8444 | D37: 28935773.87 | E37: 98268.52822 | F37: -10561557.46 | G37: 18374216.41 | H37: -6192.263422 | I37: -92076.2648 | K37: -587.2555556 | L37: 269816.1 | M37: -204364.9333 | N37: 29140138.8
B38: 2005-11-04 | C38: -269228.8444 | D38: 28666545.02 | E38: 98268.52822 | F38: -10463288.93 | G38: 18203256.09 | H38: -6192.263422 | I38: -92076.2648 | K38: -587.2555556 | L38: 269816.1 | M38: -203777.6778 | N38: 28870322.7
B39: 2005-12-04 | C39: -269228.8444 | D39: 28397316.18 | E39: 98268.52822 | F39: -10365020.4 | G39: 18032295.77 | H39: -6192.263422 | I39: -92076.2648 | K39: -587.2555556 | L39: 269816.1 | M39: -203190.4222 | N39: 28600506.6
B40: 2006-01-04 | C40: -269228.8444 | D40: 28128087.33 | E40: 98268.52822 | F40: -10266751.88 | G40: 17861335.46 | H40: -6192.263422 | I40: -92076.2648 | K40: -587.2555556 | L40: 269816.1 | M40: -202603.1667 | N40: 28330690.5
B41: 2006-02-04 | C41: -269228.8444 | D41: 27858858.49 | E41: 98268.52822 | F41: -10168483.35 | G41: 17690375.14 | H41: -6192.263422 | I41: -92076.2648 | K41: -587.2555556 | L41: 269816.1 | M41: -202015.9111 | N41: 28060874.4
B42: 2006-03-04 | C42: -269228.8444 | D42: 27589629.64 | E42: 98268.52822 | F42: -10070214.82 | G42: 17519414.82 | H42: -6192.263422 | I42: -92076.2648 | K42: -587.2555556 | L42: 269816.1 | M42: -201428.6556 | N42: 27791058.3
B43: 2006-04-04 | C43: -269228.8444 | D43: 27320400.8 | E43: 98268.52822 | F43: -9971946.292 | G43: 17348454.51 | H43: -6192.263422 | I43: -92076.2648 | K43: -587.2555556 | L43: 269816.1 | M43: -200841.4 | N43: 27521242.2
B44: 2006-05-04 | C44: -269228.8444 | D44: 27051171.96 | E44: 98268.52822 | F44: -9873677.764 | G44: 17177494.19 | H44: -6192.263422 | I44: -92076.2648 | K44: -587.2555556 | L44: 269816.1 | M44: -200254.1444 | N44: 27251426.1
B45: 2006-06-04 | C45: -269228.8444 | D45: 26781943.11 | E45: 98268.52822 | F45: -9775409.236 | G45: 17006533.88 | H45: -6192.263422 | I45: -92076.2648 | K45: -587.2555556 | L45: 269816.1 | M45: -199666.8889 | N45: 26981610
B46: 2006-07-04 | C46: -269228.8444 | D46: 26512714.27 | E46: 98268.52822 | F46: -9677140.707 | G46: 16835573.56 | H46: -6192.263422 | I46: -92076.2648 | K46: -587.2555556 | L46: 269816.1 | M46: -199079.6333 | N46: 26711793.9
B47: 2006-08-04 | C47: -269228.8444 | D47: 26243485.42 | E47: 98268.52822 | F47: -9578872.179 | G47: 16664613.24 | H47: -6192.263422 | I47: -92076.2648 | K47: -587.2555556 | L47: 269816.1 | M47: -198492.3778 | N47: 26441977.8
B48: 2006-09-04 | C48: -269228.8444 | D48: 25974256.58 | E48: 98268.52822 | F48: -9480603.651 | G48: 16493652.93 | H48: -6192.263422 | I48: -92076.2648 | K48: -587.2555556 | L48: 269816.1 | M48: -197905.1222 | N48: 26172161.7
B49: 2006-10-04 | C49: -269228.8444 | D49: 25705027.73 | E49: 98268.52822 | F49: -9382335.123 | G49: 16322692.61 | H49: -6192.263422 | I49: -92076.2648 | K49: -587.2555556 | L49: 269816.1 | M49: -197317.8667 | N49: 25902345.6
B50: 2006-11-04 | C50: -269228.8444 | D50: 25435798.89 | E50: 98268.52822 | F50: -9284066.594 | G50: 16151732.29 | H50: -6192.263422 | I50: -92076.2648 | K50: -587.2555556 | L50: 269816.1 | M50: -196730.6111 | N50: 25632529.5
B51: 2006-12-04 | C51: -269228.8444 | D51: 25166570.04 | E51: 98268.52822 | F51: -9185798.066 | G51: 15980771.98 | H51: -6192.263422 | I51: -92076.2648 | K51: -587.2555556 | L51: 269816.1 | M51: -196143.3556 | N51: 25362713.4
B52: 2007-01-04 | C52: -269228.8444 | D52: 24897341.2 | E52: 98268.52822 | F52: -9087529.538 | G52: 15809811.66 | H52: -6192.263422 | I52: -92076.2648 | K52: -587.2555556 | L52: 269816.1 | M52: -195556.1 | N52: 25092897.3
B53: 2007-02-04 | C53: -269228.8444 | D53: 24628112.36 | E53: 98268.52822 | F53: -8989261.01 | G53: 15638851.35 | H53: -6192.263422 | I53: -92076.2648 | K53: -587.2555556 | L53: 269816.1 | M53: -194968.8444 | N53: 24823081.2
B54: 2007-03-04 | C54: -269228.8444 | D54: 24358883.51 | E54: 98268.52822 | F54: -8890992.482 | G54: 15467891.03 | H54: -6192.263422 | I54: -92076.2648 | K54: -587.2555556 | L54: 269816.1 | M54: -194381.5889 | N54: 24553265.1
B55: 2007-04-04 | C55: -269228.8444 | D55: 24089654.67 | E55: 98268.52822 | F55: -8792723.953 | G55: 15296930.71 | H55: -6192.263422 | I55: -92076.2648 | K55: -587.2555556 | L55: 269816.1 | M55: -193794.3333 | N55: 24283449
B56: 2007-05-04 | C56: -269228.8444 | D56: 23820425.82 | E56: 98268.52822 | F56: -8694455.425 | G56: 15125970.4 | H56: -6192.263422 | I56: -92076.2648 | K56: -587.2555556 | L56: 269816.1 | M56: -193207.0778 | N56: 24013632.9
B57: 2007-06-04 | C57: -269228.8444 | D57: 23551196.98 | E57: 98268.52822 | F57: -8596186.897 | G57: 14955010.08 | H57: -6192.263422 | I57: -92076.2648 | K57: -587.2555556 | L57: 269816.1 | M57: -192619.8222 | N57: 23743816.8
B58: 2007-07-04 | C58: -269228.8444 | D58: 23281968.13 | E58: 98268.52822 | F58: -8497918.369 | G58: 14784049.76 | H58: -6192.263422 | I58: -92076.2648 | K58: -587.2555556 | L58: 269816.1 | M58: -192032.5667 | N58: 23474000.7
B59: 2007-08-04 | C59: -269228.8444 | D59: 23012739.29 | E59: 98268.52822 | F59: -8399649.84 | G59: 14613089.45 | H59: -6192.263422 | I59: -92076.2648 | K59: -587.2555556 | L59: 269816.1 | M59: -191445.3111 | N59: 23204184.6
B60: 2007-09-04 | C60: -269228.8444 | D60: 22743510.44 | E60: 98268.52822 | F60: -8301381.312 | G60: 14442129.13 | H60: -6192.263422 | I60: -92076.2648 | K60: -587.2555556 | L60: 269816.1 | M60: -190858.0556 | N60: 22934368.5
B61: 2007-10-04 | C61: -269228.8444 | D61: 22474281.6 | E61: 98268.52822 | F61: -8203112.784 | G61: 14271168.82 | H61: -6192.263422 | I61: -92076.2648 | K61: -587.2555556 | L61: 269816.1 | M61: -190270.8 | N61: 22664552.4
B62: 2007-11-04 | C62: -269228.8444 | D62: 22205052.76 | E62: 98268.52822 | F62: -8104844.256 | G62: 14100208.5 | H62: -6192.263422 | I62: -92076.2648 | K62: -587.2555556 | L62: 269816.1 | M62: -189683.5444 | N62: 22394736.3
B63: 2007-12-04 | C63: -269228.8444 | D63: 21935823.91 | E63: 98268.52822 | F63: -8006575.728 | G63: 13929248.18 | H63: -6192.263422 | I63: -92076.2648 | K63: -587.2555556 | L63: 269816.1 | M63: -189096.2889 | N63: 22124920.2
B64: 2008-01-04 | C64: -269228.8444 | D64: 21666595.07 | E64: 98268.52822 | F64: -7908307.199 | G64: 13758287.87 | H64: -6192.263422 | I64: -92076.2648 | K64: -587.2555556 | L64: 269816.1 | M64: -188509.0333 | N64: 21855104.1
B65: 2008-02-04 | C65: -269228.8444 | D65: 21397366.22 | E65: 98268.52822 | F65: -7810038.671 | G65: 13587327.55 | H65: -6192.263422 | I65: -92076.2648 | K65: -587.2555556 | L65: 269816.1 | M65: -187921.7778 | N65: 21585288
B66: 2008-03-04 | C66: -269228.8444 | D66: 21128137.38 | E66: 98268.52822 | F66: -7711770.143 | G66: 13416367.23 | H66: -6192.263422 | I66: -92076.2648 | K66: -587.2555556 | L66: 269816.1 | M66: -187334.5222 | N66: 21315471.9
B67: 2008-04-04 | C67: -269228.8444 | D67: 20858908.53 | E67: 98268.52822 | F67: -7613501.615 | G67: 13245406.92 | H67: -6192.263422 | I67: -92076.2648 | K67: -587.2555556 | L67: 269816.1 | M67: -186747.2667 | N67: 21045655.8
B68: 2008-05-04 | C68: -269228.8444 | D68: 20589679.69 | E68: 98268.52822 | F68: -7515233.086 | G68: 13074446.6 | H68: -6192.263422 | I68: -92076.2648 | K68: -587.2555556 | L68: 269816.1 | M68: -186160.0111 | N68: 20775839.7
B69: 2008-06-04 | C69: -269228.8444 | D69: 20320450.84 | E69: 98268.52822 | F69: -7416964.558 | G69: 12903486.29 | H69: -6192.263422 | I69: -92076.2648 | K69: -587.2555556 | L69: 269816.1 | M69: -185572.7556 | N69: 20506023.6
B70: 2008-07-04 | C70: -269228.8444 | D70: 20051222 | E70: 98268.52822 | F70: -7318696.03 | G70: 12732525.97 | H70: -6192.263422 | I70: -92076.2648 | K70: -587.2555556 | L70: 269816.1 | M70: -184985.5 | N70: 20236207.5
B71: 2008-08-04 | C71: -269228.8444 | D71: 19781993.16 | E71: 98268.52822 | F71: -7220427.502 | G71: 12561565.65 | H71: -6192.263422 | I71: -92076.2648 | K71: -587.2555556 | L71: 269816.1 | M71: -184398.2444 | N71: 19966391.4
B72: 2008-09-04 | C72: -269228.8444 | D72: 19512764.31 | E72: 98268.52822 | F72: -7122158.974 | G72: 12390605.34 | H72: -6192.263422 | I72: -92076.2648 | K72: -587.2555556 | L72: 269816.1 | M72: -183810.9889 | N72: 19696575.3
B73: 2008-10-04 | C73: -269228.8444 | D73: 19243535.47 | E73: 98268.52822 | F73: -7023890.445 | G73: 12219645.02 | H73: -6192.263422 | I73: -92076.2648 | K73: -587.2555556 | L73: 269816.1 | M73: -183223.7333 | N73: 19426759.2
B74: 2008-11-04 | C74: -269228.8444 | D74: 18974306.62 | E74: 98268.52822 | F74: -6925621.917 | G74: 12048684.71 | H74: -6192.263422 | I74: -92076.2648 | K74: -587.2555556 | L74: 269816.1 | M74: -182636.4778 | N74: 19156943.1
B75: 2008-12-04 | C75: -269228.8444 | D75: 18705077.78 | E75: 98268.52822 | F75: -6827353.389 | G75: 11877724.39 | H75: -6192.263422 | I75: -92076.2648 | K75: -587.2555556 | L75: 269816.1 | M75: -182049.2222 | N75: 18887127
B76: 2009-01-04 | C76: -269228.8444 | D76: 18435848.93 | E76: 98268.52822 | F76: -6729084.861 | G76: 11706764.07 | H76: -6192.263422 | I76: -92076.2648 | K76: -587.2555556 | L76: 269816.1 | M76: -181461.9667 | N76: 18617310.9
B77: 2009-02-04 | C77: -269228.8444 | D77: 18166620.09 | E77: 98268.52822 | F77: -6630816.332 | G77: 11535803.76 | H77: -6192.263422 | I77: -92076.2648 | K77: -587.2555556 | L77: 269816.1 | M77: -180874.7111 | N77: 18347494.8
B78: 2009-03-04 | C78: -269228.8444 | D78: 17897391.24 | E78: 98268.52822 | F78: -6532547.804 | G78: 11364843.44 | H78: -6192.263422 | I78: -92076.2648 | K78: -587.2555556 | L78: 269816.1 | M78: -180287.4556 | N78: 18077678.7
B79: 2009-04-04 | C79: -269228.8444 | D79: 17628162.4 | E79: 98268.52822 | F79: -6434279.276 | G79: 11193883.12 | H79: -6192.263422 | I79: -92076.2648 | K79: -587.2555556 | L79: 269816.1 | M79: -179700.2 | N79: 17807862.6
B80: 2009-05-04 | C80: -269228.8444 | D80: 17358933.56 | E80: 98268.52822 | F80: -6336010.748 | G80: 11022922.81 | H80: -6192.263422 | I80: -92076.2648 | K80: -587.2555556 | L80: 269816.1 | M80: -179112.9444 | N80: 17538046.5
B81: 2009-06-04 | C81: -269228.8444 | D81: 17089704.71 | E81: 98268.52822 | F81: -6237742.22 | G81: 10851962.49 | H81: -6192.263422 | I81: -92076.2648 | K81: -587.2555556 | L81: 269816.1 | M81: -178525.6889 | N81: 17268230.4
B82: 2009-07-04 | C82: -269228.8444 | D82: 16820475.87 | E82: 98268.52822 | F82: -6139473.691 | G82: 10681002.18 | H82: -6192.263422 | I82: -92076.2648 | K82: -587.2555556 | L82: 269816.1 | M82: -177938.4333 | N82: 16998414.3
B83: 2009-08-04 | C83: -269228.8444 | D83: 16551247.02 | E83: 98268.52822 | F83: -6041205.163 | G83: 10510041.86 | H83: -6192.263422 | I83: -92076.2648 | K83: -587.2555556 | L83: 269816.1 | M83: -177351.1778 | N83: 16728598.2
B84: 2009-09-04 | C84: -269228.8444 | D84: 16282018.18 | E84: 98268.52822 | F84: -5942936.635 | G84: 10339081.54 | H84: -6192.263422 | I84: -92076.2648 | K84: -587.2555556 | L84: 269816.1 | M84: -176763.9222 | N84: 16458782.1
B85: 2009-10-04 | C85: -269228.8444 | D85: 16012789.33 | E85: 98268.52822 | F85: -5844668.107 | G85: 10168121.23 | H85: -6192.263422 | I85: -92076.2648 | K85: -587.2555556 | L85: 269816.1 | M85: -176176.6667 | N85: 16188966
B86: 2009-11-04 | C86: =-$G$15 -> -269228.8444 | D86: 15743560.49 | E86: 98268.52822 | F86: -5746399.578 | G86: 9997160.91 | H86: -6192.263422 | I86: -92076.2648 | K86: -587.2555556 | L86: 269816.1 | M86: -175589.4111 | N86: 15919149.9
B87: 2009-12-04 | C87: -269228.8444 | D87: 15474331.64 | E87: 98268.52822 | F87: -5648131.05 | G87: 9826200.594 | H87: -6192.263422 | I87: -92076.2648 | K87: -587.2555556 | L87: 269816.1 | M87: -175002.1556 | N87: 15649333.8
B88: 2010-01-04 | C88: -269228.8444 | D88: 15205102.8 | E88: 98268.52822 | F88: -5549862.522 | G88: 9655240.278 | H88: -6192.263422 | I88: -92076.2648 | K88: -587.2555556 | L88: 269816.1 | M88: -174414.9 | N88: 15379517.7
B89: 2010-02-04 | C89: -269228.8444 | D89: 14935873.96 | E89: 98268.52822 | F89: -5451593.994 | G89: 9484279.962 | H89: -6192.263422 | I89: -92076.2648 | K89: -587.2555556 | L89: 269816.1 | M89: -173827.6444 | N89: 15109701.6
B90: 2010-03-04 | C90: -269228.8444 | D90: =+D89+C90 -> 14666645.11 | E90: 98268.52822 | F90: -5353325.466 | G90: 9313319.646 | H90: -6192.263422 | I90: -92076.2648 | K90: -587.2555556 | L90: 269816.1 | M90: -173240.3889 | N90: 14839885.5
B91: 2010-04-04 | C91: -269228.8444 | D91: 14397416.27 | E91: =-C91*$J$21 -> 98268.52822 | F91: =+F90+E91 -> -5255056.937 | G91: =+G90+C91+E91 -> 9142359.329 | H91: =+$H$21*$C91 -> -6192.263422 | I91: =+$I$21*$C91 -> -92076.2648 | K91: -587.2555556 | L91: 269816.1 | M91: -172653.1333 | N91: 14570069.4
B92: 2010-05-04 | C92: -269228.8444 | D92: 14128187.42 | E92: 98268.52822 | F92: -5156788.409 | G92: 8971399.013 | H92: -6192.263422 | I92: -92076.2648 | K92: =K91 -> -587.2555556 | L92: =L91 -> 269816.1 | M92: =M91-K92 -> -172065.8778 | N92: =N91-L92 -> 14300253.3
B93: 2010-06-04 | C93: -269228.8444 | D93: 13858958.58 | E93: 98268.52822 | F93: -5058519.881 | G93: 8800438.697 | H93: -6192.263422 | I93: -92076.2648 | K93: -587.2555556 | L93: 269816.1 | M93: -171478.6222 | N93: 14030437.2
B94: 2010-07-04 | C94: -269228.8444 | D94: 13589729.73 | E94: 98268.52822 | F94: -4960251.353 | G94: 8629478.381 | H94: -6192.263422 | I94: -92076.2648 | K94: -587.2555556 | L94: 269816.1 | M94: -170891.3667 | N94: 13760621.1
B95: 2010-08-04 | C95: -269228.8444 | D95: 13320500.89 | E95: 98268.52822 | F95: -4861982.824 | G95: 8458518.064 | H95: -6192.263422 | I95: -92076.2648 | K95: -587.2555556 | L95: 269816.1 | M95: -170304.1111 | N95: 13490805
B96: 2010-09-04 | C96: -269228.8444 | D96: 13051272.04 | E96: 98268.52822 | F96: -4763714.296 | G96: 8287557.748 | H96: -6192.263422 | I96: -92076.2648 | K96: -587.2555556 | L96: 269816.1 | M96: -169716.8556 | N96: 13220988.9
B97: 2010-10-04 | C97: -269228.8444 | D97: 12782043.2 | E97: 98268.52822 | F97: -4665445.768 | G97: 8116597.432 | H97: -6192.263422 | I97: -92076.2648 | K97: -587.2555556 | L97: 269816.1 | M97: -169129.6 | N97: 12951172.8
B98: 2010-11-04 | C98: -269228.8444 | D98: 12512814.36 | E98: 98268.52822 | F98: -4567177.24 | G98: 7945637.116 | H98: -6192.263422 | I98: -92076.2648 | K98: -587.2555556 | L98: 269816.1 | M98: -168542.3444 | N98: 12681356.7
B99: 2010-12-04 | C99: -269228.8444 | D99: 12243585.51 | E99: 98268.52822 | F99: -4468908.712 | G99: 7774676.8 | H99: -6192.263422 | I99: -92076.2648 | K99: -587.2555556 | L99: 269816.1 | M99: -167955.0889 | N99: 12411540.6
B100: 2011-01-04 | C100: -269228.8444 | D100: 11974356.67 | E100: 98268.52822 | F100: -4370640.183 | G100: 7603716.483 | H100: -6192.263422 | I100: -92076.2648 | K100: -587.2555556 | L100: 269816.1 | M100: -167367.8333 | N100: 12141724.5
B101: 2011-02-04 | C101: -269228.8444 | D101: 11705127.82 | E101: 98268.52822 | F101: -4272371.655 | G101: 7432756.167 | H101: -6192.263422 | I101: -92076.2648 | K101: -587.2555556 | L101: 269816.1 | M101: -166780.5778 | N101: 11871908.4
B102: 2011-03-04 | C102: -269228.8444 | D102: 11435898.98 | E102: 98268.52822 | F102: -4174103.127 | G102: 7261795.851 | H102: -6192.263422 | I102: -92076.2648 | K102: -587.2555556 | L102: 269816.1 | M102: -166193.3222 | N102: 11602092.3
B103: 2011-04-04 | C103: -269228.8444 | D103: 11166670.13 | E103: 98268.52822 | F103: -4075834.599 | G103: 7090835.535 | H103: -6192.263422 | I103: -92076.2648 | K103: -587.2555556 | L103: 269816.1 | M103: -165606.0667 | N103: 11332276.2
B104: 2011-05-04 | C104: -269228.8444 | D104: 10897441.29 | E104: 98268.52822 | F104: -3977566.07 | G104: 6919875.218 | H104: -6192.263422 | I104: -92076.2648 | K104: -587.2555556 | L104: 269816.1 | M104: -165018.8111 | N104: 11062460.1
B105: 2011-06-04 | C105: -269228.8444 | D105: 10628212.44 | E105: 98268.52822 | F105: -3879297.542 | G105: 6748914.902 | H105: -6192.263422 | I105: -92076.2648 | K105: -587.2555556 | L105: 269816.1 | M105: -164431.5556 | N105: 10792644
B106: 2011-07-04 | C106: -269228.8444 | D106: 10358983.6 | E106: 98268.52822 | F106: -3781029.014 | G106: 6577954.586 | H106: -6192.263422 | I106: -92076.2648 | K106: -587.2555556 | L106: 269816.1 | M106: -163844.3 | N106: 10522827.9
B107: 2011-08-04 | C107: -269228.8444 | D107: 10089754.76 | E107: 98268.52822 | F107: -3682760.486 | G107: 6406994.27 | H107: -6192.263422 | I107: -92076.2648 | K107: -587.2555556 | L107: 269816.1 | M107: -163257.0444 | N107: 10253011.8
B108: 2011-09-04 | C108: -269228.8444 | D108: 9820525.911 | E108: 98268.52822 | F108: -3584491.958 | G108: 6236033.954 | H108: -6192.263422 | I108: -92076.2648 | K108: -587.2555556 | L108: 269816.1 | M108: -162669.7889 | N108: 9983195.7
B109: 2011-10-04 | C109: -269228.8444 | D109: 9551297.067 | E109: 98268.52822 | F109: -3486223.429 | G109: 6065073.637 | H109: -6192.263422 | I109: -92076.2648 | K109: -587.2555556 | L109: 269816.1 | M109: -162082.5333 | N109: 9713379.6
B110: 2011-11-04 | C110: -269228.8444 | D110: 9282068.222 | E110: 98268.52822 | F110: -3387954.901 | G110: 5894113.321 | H110: -6192.263422 | I110: -92076.2648 | K110: -587.2555556 | L110: 269816.1 | M110: -161495.2778 | N110: 9443563.5
B111: 2011-12-04 | C111: -269228.8444 | D111: 9012839.378 | E111: 98268.52822 | F111: -3289686.373 | G111: 5723153.005 | H111: -6192.263422 | I111: -92076.2648 | K111: -587.2555556 | L111: 269816.1 | M111: -160908.0222 | N111: 9173747.4
B112: 2012-01-04 | C112: -269228.8444 | D112: 8743610.533 | E112: 98268.52822 | F112: -3191417.845 | G112: 5552192.689 | H112: -6192.263422 | I112: -92076.2648 | K112: -587.2555556 | L112: 269816.1 | M112: -160320.7667 | N112: 8903931.3
B113: 2012-02-04 | C113: -269228.8444 | D113: 8474381.689 | E113: 98268.52822 | F113: -3093149.316 | G113: 5381232.372 | H113: -6192.263422 | I113: -92076.2648 | K113: -587.2555556 | L113: 269816.1 | M113: -159733.5111 | N113: 8634115.2
B114: 2012-03-04 | C114: -269228.8444 | D114: 8205152.844 | E114: 98268.52822 | F114: -2994880.788 | G114: 5210272.056 | H114: -6192.263422 | I114: -92076.2648 | K114: -587.2555556 | L114: 269816.1 | M114: -159146.2556 | N114: 8364299.1
B115: 2012-04-04 | C115: -269228.8444 | D115: 7935924 | E115: 98268.52822 | F115: -2896612.26 | G115: 5039311.74 | H115: -6192.263422 | I115: -92076.2648 | K115: -587.2555556 | L115: 269816.1 | M115: -158559 | N115: 8094483
B116: 2012-05-04 | C116: -269228.8444 | D116: 7666695.156 | E116: 98268.52822 | F116: -2798343.732 | G116: 4868351.424 | H116: -6192.263422 | I116: -92076.2648 | K116: -587.2555556 | L116: 269816.1 | M116: -157971.7444 | N116: 7824666.9
B117: 2012-06-04 | C117: -269228.8444 | D117: 7397466.311 | E117: 98268.52822 | F117: -2700075.204 | G117: 4697391.108 | H117: -6192.263422 | I117: -92076.2648 | K117: -587.2555556 | L117: 269816.1 | M117: -157384.4889 | N117: 7554850.8
B118: 2012-07-04 | C118: -269228.8444 | D118: 7128237.467 | E118: 98268.52822 | F118: -2601806.675 | G118: 4526430.791 | H118: -6192.263422 | I118: -92076.2648 | K118: -587.2555556 | L118: 269816.1 | M118: -156797.2333 | N118: 7285034.7
B119: 2012-08-04 | C119: -269228.8444 | D119: 6859008.622 | E119: 98268.52822 | F119: -2503538.147 | G119: 4355470.475 | H119: -6192.263422 | I119: -92076.2648 | K119: -587.2555556 | L119: 269816.1 | M119: -156209.9778 | N119: 7015218.6
B120: 2012-09-04 | C120: -269228.8444 | D120: 6589779.778 | E120: 98268.52822 | F120: -2405269.619 | G120: 4184510.159 | H120: -6192.263422 | I120: -92076.2648 | K120: -587.2555556 | L120: 269816.1 | M120: -155622.7222 | N120: 6745402.5
B121: 2012-10-04 | C121: -269228.8444 | D121: 6320550.933 | E121: 98268.52822 | F121: -2307001.091 | G121: 4013549.843 | H121: -6192.263422 | I121: -92076.2648 | K121: -587.2555556 | L121: 269816.1 | M121: -155035.4667 | N121: 6475586.4
B122: 2012-11-04 | C122: -269228.8444 | D122: 6051322.089 | E122: 98268.52822 | F122: -2208732.562 | G122: 3842589.526 | H122: -6192.263422 | I122: -92076.2648 | K122: -587.2555556 | L122: 269816.1 | M122: -154448.2111 | N122: 6205770.3
B123: 2012-12-04 | C123: -269228.8444 | D123: 5782093.244 | E123: 98268.52822 | F123: -2110464.034 | G123: 3671629.21 | H123: -6192.263422 | I123: -92076.2648 | K123: -587.2555556 | L123: 269816.1 | M123: -153860.9556 | N123: 5935954.2
B124: 2013-01-04 | C124: -269228.8444 | D124: 5512864.4 | E124: 98268.52822 | F124: -2012195.506 | G124: 3500668.894 | H124: -6192.263422 | I124: -92076.2648 | K124: -587.2555556 | L124: 269816.1 | M124: -153273.7 | N124: 5666138.1
B125: 2013-02-04 | C125: -269228.8444 | D125: 5243635.556 | E125: 98268.52822 | F125: -1913926.978 | G125: 3329708.578 | H125: -6192.263422 | I125: -92076.2648 | K125: -587.2555556 | L125: 269816.1 | M125: -152686.4444 | N125: 5396322
B126: 2013-03-04 | C126: -269228.8444 | D126: 4974406.711 | E126: 98268.52822 | F126: -1815658.45 | G126: 3158748.262 | H126: -6192.263422 | I126: -92076.2648 | K126: -587.2555556 | L126: 269816.1 | M126: -152099.1889 | N126: 5126505.9
B127: 2013-04-04 | C127: -269228.8444 | D127: 4705177.867 | E127: 98268.52822 | F127: -1717389.921 | G127: 2987787.945 | H127: -6192.263422 | I127: -92076.2648 | K127: -587.2555556 | L127: 269816.1 | M127: -151511.9333 | N127: 4856689.8
B128: 2013-05-04 | C128: -269228.8444 | D128: 4435949.022 | E128: 98268.52822 | F128: -1619121.393 | G128: 2816827.629 | H128: -6192.263422 | I128: -92076.2648 | K128: -587.2555556 | L128: 269816.1 | M128: -150924.6778 | N128: 4586873.7
B129: 2013-06-04 | C129: -269228.8444 | D129: 4166720.178 | E129: 98268.52822 | F129: -1520852.865 | G129: 2645867.313 | H129: -6192.263422 | I129: -92076.2648 | K129: -587.2555556 | L129: 269816.1 | M129: -150337.4222 | N129: 4317057.6
B130: 2013-07-04 | C130: -269228.8444 | D130: 3897491.333 | E130: 98268.52822 | F130: -1422584.337 | G130: 2474906.997 | H130: -6192.263422 | I130: -92076.2648 | K130: -587.2555556 | L130: 269816.1 | M130: -149750.1667 | N130: 4047241.5
B131: 2013-08-04 | C131: -269228.8444 | D131: 3628262.489 | E131: 98268.52822 | F131: -1324315.808 | G131: 2303946.68 | H131: -6192.263422 | I131: -92076.2648 | K131: -587.2555556 | L131: 269816.1 | M131: -149162.9111 | N131: 3777425.4
B132: 2013-09-04 | C132: -269228.8444 | D132: 3359033.644 | E132: 98268.52822 | F132: -1226047.28 | G132: 2132986.364 | H132: -6192.263422 | I132: -92076.2648 | K132: -587.2555556 | L132: 269816.1 | M132: -148575.6556 | N132: 3507609.3
B133: 2013-10-04 | C133: -269228.8444 | D133: 3089804.8 | E133: 98268.52822 | F133: -1127778.752 | G133: 1962026.048 | H133: -6192.263422 | I133: -92076.2648 | K133: -587.2555556 | L133: 269816.1 | M133: -147988.4 | N133: 3237793.2
B134: 2013-11-04 | C134: -269228.8444 | D134: 2820575.956 | E134: 98268.52822 | F134: -1029510.224 | G134: 1791065.732 | H134: -6192.263422 | I134: -92076.2648 | K134: -587.2555556 | L134: 269816.1 | M134: -147401.1444 | N134: 2967977.1
B135: 2013-12-04 | C135: -269228.8444 | D135: 2551347.111 | E135: 98268.52822 | F135: -931241.6956 | G135: 1620105.416 | H135: -6192.263422 | I135: -92076.2648 | K135: -587.2555556 | L135: 269816.1 | M135: -146813.8889 | N135: 2698161
B136: 2014-01-04 | C136: -269228.8444 | D136: 2282118.267 | E136: 98268.52822 | F136: -832973.1673 | G136: 1449145.099 | H136: -6192.263422 | I136: -92076.2648 | K136: -587.2555556 | L136: 269816.1 | M136: -146226.6333 | N136: 2428344.9
B137: 2014-02-04 | C137: -269228.8444 | D137: 2012889.422 | E137: 98268.52822 | F137: -734704.6391 | G137: 1278184.783 | H137: -6192.263422 | I137: -92076.2648 | K137: -587.2555556 | L137: 269816.1 | M137: -145639.3778 | N137: 2158528.8
B138: 2014-03-04 | C138: -269228.8444 | D138: 1743660.578 | E138: 98268.52822 | F138: -636436.1109 | G138: 1107224.467 | H138: -6192.263422 | I138: -92076.2648 | K138: -587.2555556 | L138: 269816.1 | M138: -145052.1222 | N138: 1888712.7
B139: 2014-04-04 | C139: -269228.8444 | D139: 1474431.733 | E139: 98268.52822 | F139: -538167.5827 | G139: 936264.1507 | H139: -6192.263422 | I139: -92076.2648 | K139: -587.2555556 | L139: 269816.1 | M139: -144464.8667 | N139: =N138-L139 -> 1618896.6
B140: 2014-05-04 | C140: -269228.8444 | D140: 1205202.889 | E140: 98268.52822 | F140: -439899.0544 | G140: 765303.8344 | H140: -6192.263422 | I140: -92076.2648 | K140: -587.2555556 | L140: 269816.1 | M140: -143877.6111 | N140: =N139-L140 -> 1349080.5
B141: 2014-06-04 | C141: -269228.8444 | D141: 935974.0444 | E141: 98268.52822 | F141: -341630.5262 | G141: 594343.5182 | H141: -6192.263422 | I141: -92076.2648 | K141: -587.2555556 | L141: 269816.1 | M141: -143290.3556 | N141: 1079264.4
B142: 2014-07-04 | C142: -269228.8444 | D142: 666745.2 | E142: 98268.52822 | F142: -243361.998 | G142: 423383.202 | H142: -6192.263422 | I142: -92076.2648 | K142: -587.2555556 | L142: 269816.1 | M142: -142703.1 | N142: 809448.3
B143: 2014-08-04 | C143: -269228.8444 | D143: 397516.3556 | E143: 98268.52822 | F143: -145093.4698 | G143: 252422.8858 | H143: -6192.263422 | I143: -92076.2648 | K143: -587.2555556 | L143: 269816.1 | M143: -142115.8444 | N143: 539632.2
B144: 2014-09-04 | C144: =-$G$15 -> -269228.8444 | D144: 128287.5111 | E144: 98268.52822 | F144: -46824.94156 | G144: 81462.56956 | H144: -6192.263422 | I144: -92076.2648 | K144: -587.2555556 | L144: 269816.1 | M144: -141528.5889 | N144: 269816.1
B145: 2014-10-04 | C145: =-$G$15 -> -269228.8444 | D145: -140941.3333 | E145: 98268.52822 | F145: 51443.58667 | G145: -89497.74667 | H145: -6192.263422 | I145: -92076.2648 | K145: -587.2555556 | L145: =L144 -> 269816.1 | M145: -140941.3333 | N145: -6.88014552e-08
B146: 2014-11-04 | C146: =-$H$15 -> 587.2555556 | D146: =+D145+C146 -> -140354.0778 | E146: =-C146*$J$21 -> -214.3482778 | F146: 51229.23839 | G146: -89124.83939 | H146: 13.50687778 | I146: 200.8414 | K146: -587.2555556 | M146: =M145-K146 -> -140354.0778
B147: 2014-12-04 | C147: =-$H$15 -> 587.2555556 | D147: -139766.8222 | E147: -214.3482778 | F147: 51014.89011 | G147: -88751.93211 | H147: 13.50687778 | I147: 200.8414 | K147: -587.2555556 | M147: -139766.8222
B148: 2015-01-04 | C148: 587.2555556 | D148: -139179.5667 | E148: -214.3482778 | F148: 50800.54183 | G148: -88379.02483 | H148: 13.50687778 | I148: 200.8414 | K148: -587.2555556 | M148: -139179.5667
B149: 2015-02-04 | C149: 587.2555556 | D149: -138592.3111 | E149: -214.3482778 | F149: 50586.19356 | G149: -88006.11756 | H149: 13.50687778 | I149: 200.8414 | K149: -587.2555556 | M149: -138592.3111
B150: 2015-03-04 | C150: 587.2555556 | D150: -138005.0556 | E150: -214.3482778 | F150: 50371.84528 | G150: -87633.21028 | H150: 13.50687778 | I150: 200.8414 | K150: -587.2555556 | M150: -138005.0556
B151: 2015-04-04 | C151: 587.2555556 | D151: -137417.8 | E151: -214.3482778 | F151: 50157.497 | G151: -87260.303 | H151: 13.50687778 | I151: 200.8414 | K151: -587.2555556 | M151: -137417.8
B152: 2015-05-04 | C152: 587.2555556 | D152: -136830.5444 | E152: -214.3482778 | F152: 49943.14872 | G152: -86887.39572 | H152: 13.50687778 | I152: 200.8414 | K152: -587.2555556 | M152: -136830.5444
B153: 2015-06-04 | C153: 587.2555556 | D153: -136243.2889 | E153: -214.3482778 | F153: 49728.80044 | G153: -86514.48844 | H153: 13.50687778 | I153: 200.8414 | K153: -587.2555556 | M153: -136243.2889
B154: 2015-07-04 | C154: 587.2555556 | D154: =+D153+C154 -> -135656.0333 | E154: -214.3482778 | F154: 49514.45217 | G154: -86141.58117 | H154: 13.50687778 | I154: 200.8414 | K154: -587.2555556 | M154: -135656.0333
B155: 2015-08-04 | C155: 587.2555556 | D155: -135068.7778 | E155: =-C155*$J$21 -> -214.3482778 | F155: =+F154+E155 -> 49300.10389 | G155: =+G154+C155+E155 -> -85768.67389 | H155: =+$H$21*$C155 -> 13.50687778 | I155: =+$I$21*$C155 -> 200.8414 | K155: -587.2555556 | M155: -135068.7778
B156: 2015-09-04 | C156: 587.2555556 | D156: -134481.5222 | E156: -214.3482778 | F156: 49085.75561 | G156: -85395.76661 | H156: 13.50687778 | I156: 200.8414 | K156: =K155 -> -587.2555556 | M156: =M155-K156 -> -134481.5222
B157: 2015-10-04 | C157: 587.2555556 | D157: -133894.2667 | E157: -214.3482778 | F157: 48871.40733 | G157: -85022.85933 | H157: 13.50687778 | I157: 200.8414 | K157: -587.2555556 | M157: -133894.2667
B158: 2015-11-04 | C158: 587.2555556 | D158: -133307.0111 | E158: -214.3482778 | F158: 48657.05906 | G158: -84649.95206 | H158: 13.50687778 | I158: 200.8414 | K158: -587.2555556 | M158: -133307.0111
B159: 2015-12-04 | C159: 587.2555556 | D159: -132719.7556 | E159: -214.3482778 | F159: 48442.71078 | G159: -84277.04478 | H159: 13.50687778 | I159: 200.8414 | K159: -587.2555556 | M159: -132719.7556
B160: 2016-01-04 | C160: 587.2555556 | D160: -132132.5 | E160: -214.3482778 | F160: 48228.3625 | G160: -83904.1375 | H160: 13.50687778 | I160: 200.8414 | K160: -587.2555556 | M160: -132132.5
B161: 2016-02-04 | C161: 587.2555556 | D161: -131545.2444 | E161: -214.3482778 | F161: 48014.01422 | G161: -83531.23022 | H161: 13.50687778 | I161: 200.8414 | K161: -587.2555556 | M161: -131545.2444
B162: 2016-03-04 | C162: 587.2555556 | D162: -130957.9889 | E162: -214.3482778 | F162: 47799.66594 | G162: -83158.32294 | H162: 13.50687778 | I162: 200.8414 | K162: -587.2555556 | M162: -130957.9889
B163: 2016-04-04 | C163: 587.2555556 | D163: -130370.7333 | E163: -214.3482778 | F163: 47585.31767 | G163: -82785.41567 | H163: 13.50687778 | I163: 200.8414 | K163: -587.2555556 | M163: -130370.7333
B164: 2016-05-04 | C164: 587.2555556 | D164: -129783.4778 | E164: -214.3482778 | F164: 47370.96939 | G164: -82412.50839 | H164: 13.50687778 | I164: 200.8414 | K164: -587.2555556 | M164: -129783.4778
B165: 2016-06-04 | C165: 587.2555556 | D165: -129196.2222 | E165: -214.3482778 | F165: 47156.62111 | G165: -82039.60111 | H165: 13.50687778 | I165: 200.8414 | K165: -587.2555556 | M165: -129196.2222
B166: 2016-07-04 | C166: 587.2555556 | D166: -128608.9667 | E166: -214.3482778 | F166: 46942.27283 | G166: -81666.69383 | H166: 13.50687778 | I166: 200.8414 | K166: -587.2555556 | M166: -128608.9667
B167: 2016-08-04 | C167: 587.2555556 | D167: -128021.7111 | E167: -214.3482778 | F167: 46727.92456 | G167: -81293.78656 | H167: 13.50687778 | I167: 200.8414 | K167: -587.2555556 | M167: -128021.7111
B168: 2016-09-04 | C168: 587.2555556 | D168: -127434.4556 | E168: -214.3482778 | F168: 46513.57628 | G168: -80920.87928 | H168: 13.50687778 | I168: 200.8414 | K168: -587.2555556 | M168: -127434.4556
B169: 2016-10-04 | C169: 587.2555556 | D169: -126847.2 | E169: -214.3482778 | F169: 46299.228 | G169: -80547.972 | H169: 13.50687778 | I169: 200.8414 | K169: -587.2555556 | M169: -126847.2
B170: 2016-11-04 | C170: 587.2555556 | D170: -126259.9444 | E170: -214.3482778 | F170: 46084.87972 | G170: -80175.06472 | H170: 13.50687778 | I170: 200.8414 | K170: -587.2555556 | M170: -126259.9444
B171: 2016-12-04 | C171: 587.2555556 | D171: -125672.6889 | E171: -214.3482778 | F171: 45870.53144 | G171: -79802.15744 | H171: 13.50687778 | I171: 200.8414 | K171: -587.2555556 | M171: -125672.6889
B172: 2017-01-04 | C172: 587.2555556 | D172: -125085.4333 | E172: -214.3482778 | F172: 45656.18317 | G172: -79429.25017 | H172: 13.50687778 | I172: 200.8414 | K172: -587.2555556 | M172: -125085.4333
B173: 2017-02-04 | C173: 587.2555556 | D173: -124498.1778 | E173: -214.3482778 | F173: 45441.83489 | G173: -79056.34289 | H173: 13.50687778 | I173: 200.8414 | K173: -587.2555556 | M173: -124498.1778
B174: 2017-03-04 | C174: 587.2555556 | D174: -123910.9222 | E174: -214.3482778 | F174: 45227.48661 | G174: -78683.43561 | H174: 13.50687778 | I174: 200.8414 | K174: -587.2555556 | M174: -123910.9222
B175: 2017-04-04 | C175: 587.2555556 | D175: -123323.6667 | E175: -214.3482778 | F175: 45013.13833 | G175: -78310.52833 | H175: 13.50687778 | I175: 200.8414 | K175: -587.2555556 | M175: -123323.6667
B176: 2017-05-04 | C176: 587.2555556 | D176: -122736.4111 | E176: -214.3482778 | F176: 44798.79006 | G176: -77937.62106 | H176: 13.50687778 | I176: 200.8414 | K176: -587.2555556 | M176: -122736.4111
B177: 2017-06-04 | C177: 587.2555556 | D177: -122149.1556 | E177: -214.3482778 | F177: 44584.44178 | G177: -77564.71378 | H177: 13.50687778 | I177: 200.8414 | K177: -587.2555556 | M177: -122149.1556
B178: 2017-07-04 | C178: 587.2555556 | D178: -121561.9 | E178: -214.3482778 | F178: 44370.0935 | G178: -77191.8065 | H178: 13.50687778 | I178: 200.8414 | K178: -587.2555556 | M178: -121561.9
B179: 2017-08-04 | C179: 587.2555556 | D179: -120974.6444 | E179: -214.3482778 | F179: 44155.74522 | G179: -76818.89922 | H179: 13.50687778 | I179: 200.8414 | K179: -587.2555556 | M179: -120974.6444
B180: 2017-09-04 | C180: 587.2555556 | D180: -120387.3889 | E180: -214.3482778 | F180: 43941.39694 | G180: -76445.99194 | H180: 13.50687778 | I180: 200.8414 | K180: -587.2555556 | M180: -120387.3889
B181: 2017-10-04 | C181: 587.2555556 | D181: =+D180+C181 -> -119800.1333 | E181: -214.3482778 | F181: 43727.04867 | G181: -76073.08467 | H181: 13.50687778 | I181: 200.8414 | K181: -587.2555556 | M181: -119800.1333
B182: 2017-11-04 | C182: 587.2555556 | D182: -119212.8778 | E182: -214.3482778 | F182: 43512.70039 | G182: -75700.17739 | H182: 13.50687778 | I182: 200.8414 | K182: -587.2555556 | M182: -119212.8778
B183: 2017-12-04 | C183: 587.2555556 | D183: =+D182+C183 -> -118625.6222 | E183: =-C183*$J$21 -> -214.3482778 | F183: =+F182+E183 -> 43298.35211 | G183: -75327.27011 | H183: 13.50687778 | I183: =+$I$21*$C183 -> 200.8414 | K183: -587.2555556 | M183: -118625.6222
B184: 2018-01-04 | C184: =-$H$15 -> 587.2555556 | D184: =+D183+C184 -> -118038.3667 | E184: =-C184*$L$21 -> -133.9941001 | F184: =+F183+E184 -> 43164.35801 | G184: =+G183+C184+E184 -> -74874.00866 | H184: =+$H$21*$C184 -> 13.50687778 | I184: =C184*$K$21 -> 120.4872223 | K184: -587.2555556 | M184: -118038.3667
B185: 2018-02-04 | C185: =-$H$15 -> 587.2555556 | D185: =+D184+C185 -> -117451.1111 | E185: =-C185*$L$21 -> -133.9941001 | F185: =+F184+E185 -> 43030.36391 | G185: =+G184+C185+E185 -> -74420.7472 | H185: =+$H$21*$C185 -> 13.50687778 | I185: =C185*$K$21 -> 120.4872223 | K185: -587.2555556 | M185: -117451.1111
B186: 2018-03-04 | C186: =-$H$15 -> 587.2555556 | D186: -116863.8556 | E186: =-C186*$L$21 -> -133.9941001 | F186: =+F185+E186 -> 42896.36981 | G186: =+G185+C186+E186 -> -73967.48574 | H186: =+$H$21*$C186 -> 13.50687778 | I186: 120.4872223 | K186: -587.2555556 | M186: -116863.8556
B187: 2018-04-04 | C187: 587.2555556 | D187: -116276.6 | E187: =-C187*$L$21 -> -133.9941001 | F187: =+F186+E187 -> 42762.37571 | G187: =+G186+C187+E187 -> -73514.22429 | H187: =+$H$21*$C187 -> 13.50687778 | I187: 120.4872223 | K187: -587.2555556 | M187: -116276.6
B188: 2018-05-04 | C188: 587.2555556 | D188: -115689.3444 | E188: =-C188*$L$21 -> -133.9941001 | F188: =+F187+E188 -> 42628.38161 | G188: -73060.96283 | H188: 13.50687778 | I188: 120.4872223 | K188: -587.2555556 | M188: -115689.3444
B189: 2018-06-04 | C189: 587.2555556 | D189: -115102.0889 | E189: -133.9941001 | F189: 42494.38751 | G189: -72607.70138 | H189: 13.50687778 | I189: 120.4872223 | K189: -587.2555556 | M189: -115102.0889
B190: 2018-07-04 | C190: 587.2555556 | D190: -114514.8333 | E190: -133.9941001 | F190: 42360.39341 | G190: -72154.43992 | H190: 13.50687778 | I190: 120.4872223 | K190: -587.2555556 | M190: -114514.8333
B191: 2018-08-04 | C191: 587.2555556 | D191: -113927.5778 | E191: -133.9941001 | F191: 42226.39931 | G191: -71701.17847 | H191: 13.50687778 | I191: 120.4872223 | K191: -587.2555556 | M191: -113927.5778
B192: 2018-09-04 | C192: 587.2555556 | D192: -113340.3222 | E192: -133.9941001 | F192: 42092.40521 | G192: -71247.91701 | H192: 13.50687778 | I192: 120.4872223 | K192: -587.2555556 | M192: -113340.3222
B193: 2018-10-04 | C193: 587.2555556 | D193: -112753.0667 | E193: -133.9941001 | F193: 41958.41111 | G193: -70794.65556 | H193: 13.50687778 | I193: 120.4872223 | K193: -587.2555556 | M193: -112753.0667
B194: 2018-11-04 | C194: 587.2555556 | D194: -112165.8111 | E194: -133.9941001 | F194: 41824.41701 | G194: -70341.3941 | H194: 13.50687778 | I194: 120.4872223 | K194: -587.2555556 | M194: -112165.8111
B195: 2018-12-04 | C195: 587.2555556 | D195: -111578.5556 | E195: -133.9941001 | F195: 41690.42291 | G195: -69888.13265 | H195: 13.50687778 | I195: 120.4872223 | K195: -587.2555556 | M195: -111578.5556
B196: 2019-01-04 | C196: 587.2555556 | D196: -110991.3 | E196: -133.9941001 | F196: 41556.42881 | G196: -69434.87119 | H196: 13.50687778 | I196: 120.4872223 | K196: -587.2555556 | M196: -110991.3
B197: 2019-02-04 | C197: 587.2555556 | D197: -110404.0444 | E197: -133.9941001 | F197: 41422.43471 | G197: -68981.60973 | H197: 13.50687778 | I197: 120.4872223 | K197: -587.2555556 | M197: -110404.0444
B198: 2019-03-04 | C198: 587.2555556 | D198: -109816.7889 | E198: -133.9941001 | F198: 41288.44061 | G198: -68528.34828 | H198: 13.50687778 | I198: 120.4872223 | K198: -587.2555556 | M198: -109816.7889
B199: 2019-04-04 | C199: 587.2555556 | D199: -109229.5333 | E199: -133.9941001 | F199: 41154.44651 | G199: -68075.08682 | H199: 13.50687778 | I199: 120.4872223 | K199: -587.2555556 | M199: -109229.5333
B200: 2019-05-04 | C200: 587.2555556 | D200: -108642.2778 | E200: -133.9941001 | F200: 41020.45241 | G200: -67621.82537 | H200: 13.50687778 | I200: 120.4872223 | K200: -587.2555556 | M200: -108642.2778
B201: 2019-06-04 | C201: 587.2555556 | D201: -108055.0222 | E201: -133.9941001 | F201: 40886.45831 | G201: -67168.56391 | H201: 13.50687778 | I201: 120.4872223 | K201: -587.2555556 | M201: -108055.0222
B202: 2019-07-04 | C202: 587.2555556 | D202: -107467.7667 | E202: -133.9941001 | F202: 40752.46421 | G202: -66715.30246 | H202: 13.50687778 | I202: 120.4872223 | K202: -587.2555556 | M202: -107467.7667
B203: 2019-08-04 | C203: 587.2555556 | D203: -106880.5111 | E203: -133.9941001 | F203: 40618.47011 | G203: -66262.041 | H203: 13.50687778 | I203: 120.4872223 | K203: -587.2555556 | M203: -106880.5111
B204: 2019-09-04 | C204: 587.2555556 | D204: -106293.2556 | E204: -133.9941001 | F204: 40484.47601 | G204: -65808.77955 | H204: 13.50687778 | I204: 120.4872223 | K204: -587.2555556 | M204: -106293.2556
... 181 more rows

Sheet 20104
A1: Amortization Schedule
A2: GL# 010.0000.2150.20104.002000 | F2: 10 years
F3: Amort | I3: Total to Amort
B4: (Gain) Loss | C4: Years | D4: Annual Amort | F4: April 2009-Mar 2019 | I4: April 2009-Mar 2019
A5: SunTrust | B5: -1937702.25 | C5: 10 | D5: =B5/C5 -> -193770.225 | F5: =ROUND((+$D5*10),2) -> -1937702.25 | G5: =ROUND((+$D5*0),2) -> 0 | H5: =ROUND((+$D5*0),2) -> 0 | I5: =SUM(F5:H5) -> -1937702.25
A6: JP Morgan | B6: 0 | C6: 30 | D6: =B6/C6 -> 0 | F6: =ROUND((+$D6*5),2) -> 0 | G6: =ROUND((+$D6*5),2) -> 0 | H6: =ROUND((+$D6*20),2) -> 0 | I6: =SUM(F6:H6) -> 0
A7: Merrill Lynch | B7: 0 | C7: 5 | D7: =B7/C7 -> 0 | F7: =ROUND((+$D7*5),2) -> 0 | G7: 0 | H7: 0 | I7: =SUM(F7:H7) -> 0
A8: Merrill Lynch | B8: 1160366.57 | C8: 10 | D8: =B8/C8 -> 116036.657 | F8: =ROUND((+$D8*10),2) -> 1160366.57 | G8: =ROUND((+$D8*0),2) -> 0 | H8: 0 | I8: =SUM(F8:H8) -> 1160366.57
A10: Total | B10: =SUM(B5:B8) -> -777335.68 | D10: =SUM(D5:D8) -> -77733.568 | F10: =SUM(F5:F9) -> -777335.68 | G10: =SUM(G5:G9) -> 0 | H10: =SUM(H5:H9) -> 0 | I10: =SUM(F10:H10) -> -777335.68
D12: # months to Amort | F12: =10*12 -> 120 | G12: =5*12 -> 60 | H12: =20*12 -> 240
F14: DR (CR) | G14: DR (CR) | H14: DR (CR)
C15: LT Int Exp | D15: Monthly Amort | F15: =+F10/F12 -> -6477.797333 | G15: =+G10/G12 -> 0 | H15: =+H10/H12 -> 0
C16: 2830.28206 | D16: Def State Tax | E16: 0.023 | F16: =-F$15*$E16 -> 148.9893387 | G16: 0 | H16: 0
C17: 2830.28201 | D17: Def Fed Tax | E17: 0.342 | F17: 2215.406688 | G17: 0 | H17: 0
E18: 0.20517
A20: T-Lock Settlement | G20: Net OCI | H20: Def State Tax | I20: Def Fed Tax
H21: =E16 -> 0.023 | I21: =E17 -> 0.342 | J21: =H21+I21 -> 0.365 | K21: 0.20517 | L21: =H21+K21 -> 0.22817
C22: 2150.20104 | D22: 2150.20104 | E22: 2150.20104 | F22: 2150.20104 | G22: 2150.20104 | H22: 2830.28206 | I22: 2830.28201
C23: Amort | D23: T-Lock Settlement | E23: Def Tax Adj | F23: Def Taxes | G23: Net of Tax | H23: Adjustment | I23: Adjustment
C24: DR (CR) | D24: DR (CR) | E24: DR (CR) | F24: DR (CR) | H24: DR (CR) | I24: DR (CR)
A25: Balance at March 31, 2009 | B25: 2009-03-01 | D25: =B10 -> -777335.68 | F25: =-D25*$J$21 -> 283727.5232 | G25: =SUM(D25:F25) -> -493608.1568 | H25: 0 | I25: 0
B26: 2009-04-01 | C26: =-$F$15 -> 6477.797333 | D26: =+D25+C26 -> -770857.8827 | E26: =-C26*$J$21 -> -2364.396027 | F26: =+F25+E26 -> 281363.1272 | G26: =+G25+C26+E26 -> -489494.7555 | H26: =+$H$21*$C26 -> 148.9893387 | I26: =+$I$21*$C26 -> 2215.406688
B27: 2009-05-01 | C27: 6477.797333 | D27: -764380.0853 | E27: =-C27*$J$21 -> -2364.396027 | F27: 278998.7311 | G27: -485381.3542 | H27: =+$H$21*$C27 -> 148.9893387 | I27: =+$I$21*$C27 -> 2215.406688
B28: 2009-06-01 | C28: 6477.797333 | D28: -757902.288 | E28: -2364.396027 | F28: 276634.3351 | G28: -481267.9529 | H28: 148.9893387 | I28: 2215.406688
B29: 2009-07-01 | C29: 6477.797333 | D29: -751424.4907 | E29: -2364.396027 | F29: 274269.9391 | G29: -477154.5516 | H29: 148.9893387 | I29: 2215.406688
B30: 2009-08-01 | C30: 6477.797333 | D30: -744946.6933 | E30: -2364.396027 | F30: 271905.5431 | G30: -473041.1503 | H30: 148.9893387 | I30: 2215.406688
B31: 2009-09-01 | C31: 6477.797333 | D31: -738468.896 | E31: -2364.396027 | F31: 269541.147 | G31: -468927.749 | H31: 148.9893387 | I31: 2215.406688
B32: 2009-10-01 | C32: 6477.797333 | D32: -731991.0987 | E32: -2364.396027 | F32: 267176.751 | G32: -464814.3477 | H32: 148.9893387 | I32: 2215.406688
B33: 2009-11-01 | C33: 6477.797333 | D33: -725513.3013 | E33: -2364.396027 | F33: 264812.355 | G33: -460700.9463 | H33: 148.9893387 | I33: 2215.406688
B34: 2009-12-01 | C34: 6477.797333 | D34: -719035.504 | E34: -2364.396027 | F34: 262447.959 | G34: -456587.545 | H34: 148.9893387 | I34: 2215.406688
B35: 2010-01-01 | C35: 6477.797333 | D35: -712557.7067 | E35: -2364.396027 | F35: 260083.5629 | G35: -452474.1437 | H35: 148.9893387 | I35: 2215.406688
B36: 2010-02-01 | C36: 6477.797333 | D36: -706079.9093 | E36: -2364.396027 | F36: 257719.1669 | G36: -448360.7424 | H36: 148.9893387 | I36: 2215.406688
B37: 2010-03-01 | C37: 6477.797333 | D37: -699602.112 | E37: -2364.396027 | F37: 255354.7709 | G37: -444247.3411 | H37: 148.9893387 | I37: 2215.406688
B38: 2010-04-01 | C38: 6477.797333 | D38: -693124.3147 | E38: -2364.396027 | F38: 252990.3749 | G38: -440133.9398 | H38: 148.9893387 | I38: 2215.406688
B39: 2010-05-01 | C39: 6477.797333 | D39: -686646.5173 | E39: -2364.396027 | F39: 250625.9788 | G39: -436020.5385 | H39: 148.9893387 | I39: 2215.406688
B40: 2010-06-01 | C40: 6477.797333 | D40: -680168.72 | E40: -2364.396027 | F40: 248261.5828 | G40: -431907.1372 | H40: 148.9893387 | I40: 2215.406688
B41: 2010-07-01 | C41: 6477.797333 | D41: -673690.9227 | E41: -2364.396027 | F41: 245897.1868 | G41: -427793.7359 | H41: 148.9893387 | I41: 2215.406688
B42: 2010-08-01 | C42: 6477.797333 | D42: -667213.1253 | E42: -2364.396027 | F42: 243532.7907 | G42: -423680.3346 | H42: 148.9893387 | I42: 2215.406688
B43: 2010-09-01 | C43: 6477.797333 | D43: -660735.328 | E43: -2364.396027 | F43: 241168.3947 | G43: -419566.9333 | H43: 148.9893387 | I43: 2215.406688
B44: 2010-10-01 | C44: 6477.797333 | D44: -654257.5307 | E44: -2364.396027 | F44: 238803.9987 | G44: -415453.532 | H44: 148.9893387 | I44: 2215.406688
B45: 2010-11-01 | C45: 6477.797333 | D45: -647779.7333 | E45: -2364.396027 | F45: 236439.6027 | G45: -411340.1307 | H45: 148.9893387 | I45: 2215.406688
B46: 2010-12-01 | C46: 6477.797333 | D46: -641301.936 | E46: -2364.396027 | F46: 234075.2066 | G46: -407226.7294 | H46: 148.9893387 | I46: 2215.406688
B47: 2011-01-01 | C47: 6477.797333 | D47: -634824.1387 | E47: -2364.396027 | F47: 231710.8106 | G47: -403113.3281 | H47: 148.9893387 | I47: 2215.406688
B48: 2011-02-01 | C48: 6477.797333 | D48: -628346.3413 | E48: -2364.396027 | F48: 229346.4146 | G48: -398999.9267 | H48: 148.9893387 | I48: 2215.406688
B49: 2011-03-01 | C49: 6477.797333 | D49: -621868.544 | E49: -2364.396027 | F49: 226982.0186 | G49: -394886.5254 | H49: 148.9893387 | I49: 2215.406688
B50: 2011-04-01 | C50: 6477.797333 | D50: -615390.7467 | E50: -2364.396027 | F50: 224617.6225 | G50: -390773.1241 | H50: 148.9893387 | I50: 2215.406688
B51: 2011-05-01 | C51: 6477.797333 | D51: -608912.9493 | E51: -2364.396027 | F51: 222253.2265 | G51: -386659.7228 | H51: 148.9893387 | I51: 2215.406688
B52: 2011-06-01 | C52: 6477.797333 | D52: -602435.152 | E52: -2364.396027 | F52: 219888.8305 | G52: -382546.3215 | H52: 148.9893387 | I52: 2215.406688
B53: 2011-07-01 | C53: 6477.797333 | D53: -595957.3547 | E53: -2364.396027 | F53: 217524.4345 | G53: -378432.9202 | H53: 148.9893387 | I53: 2215.406688
B54: 2011-08-01 | C54: 6477.797333 | D54: -589479.5573 | E54: -2364.396027 | F54: 215160.0384 | G54: -374319.5189 | H54: 148.9893387 | I54: 2215.406688
B55: 2011-09-01 | C55: 6477.797333 | D55: -583001.76 | E55: -2364.396027 | F55: 212795.6424 | G55: -370206.1176 | H55: 148.9893387 | I55: 2215.406688
B56: 2011-10-01 | C56: 6477.797333 | D56: -576523.9627 | E56: -2364.396027 | F56: 210431.2464 | G56: -366092.7163 | H56: 148.9893387 | I56: 2215.406688
B57: 2011-11-01 | C57: 6477.797333 | D57: -570046.1653 | E57: -2364.396027 | F57: 208066.8503 | G57: -361979.315 | H57: 148.9893387 | I57: 2215.406688
B58: 2011-12-01 | C58: 6477.797333 | D58: -563568.368 | E58: -2364.396027 | F58: 205702.4543 | G58: -357865.9137 | H58: 148.9893387 | I58: 2215.406688
B59: 2012-01-01 | C59: 6477.797333 | D59: -557090.5707 | E59: -2364.396027 | F59: 203338.0583 | G59: -353752.5124 | H59: 148.9893387 | I59: 2215.406688
B60: 2012-02-01 | C60: 6477.797333 | D60: -550612.7733 | E60: -2364.396027 | F60: 200973.6623 | G60: -349639.1111 | H60: 148.9893387 | I60: 2215.406688
B61: 2012-03-01 | C61: 6477.797333 | D61: -544134.976 | E61: -2364.396027 | F61: 198609.2662 | G61: -345525.7098 | H61: 148.9893387 | I61: 2215.406688
B62: 2012-04-01 | C62: 6477.797333 | D62: -537657.1787 | E62: -2364.396027 | F62: 196244.8702 | G62: -341412.3085 | H62: 148.9893387 | I62: 2215.406688
B63: 2012-05-01 | C63: 6477.797333 | D63: -531179.3813 | E63: -2364.396027 | F63: 193880.4742 | G63: -337298.9071 | H63: 148.9893387 | I63: 2215.406688
B64: 2012-06-01 | C64: 6477.797333 | D64: -524701.584 | E64: -2364.396027 | F64: 191516.0782 | G64: -333185.5058 | H64: 148.9893387 | I64: 2215.406688
B65: 2012-07-01 | C65: 6477.797333 | D65: -518223.7867 | E65: -2364.396027 | F65: 189151.6821 | G65: -329072.1045 | H65: 148.9893387 | I65: 2215.406688
B66: 2012-08-01 | C66: 6477.797333 | D66: -511745.9893 | E66: -2364.396027 | F66: 186787.2861 | G66: -324958.7032 | H66: 148.9893387 | I66: 2215.406688
B67: 2012-09-01 | C67: 6477.797333 | D67: -505268.192 | E67: -2364.396027 | F67: 184422.8901 | G67: -320845.3019 | H67: 148.9893387 | I67: 2215.406688
B68: 2012-10-01 | C68: 6477.797333 | D68: -498790.3947 | E68: -2364.396027 | F68: 182058.4941 | G68: -316731.9006 | H68: 148.9893387 | I68: 2215.406688
B69: 2012-11-01 | C69: 6477.797333 | D69: -492312.5973 | E69: -2364.396027 | F69: 179694.098 | G69: -312618.4993 | H69: 148.9893387 | I69: 2215.406688
B70: 2012-12-01 | C70: 6477.797333 | D70: -485834.8 | E70: -2364.396027 | F70: 177329.702 | G70: -308505.098 | H70: 148.9893387 | I70: 2215.406688
B71: 2013-01-01 | C71: 6477.797333 | D71: -479357.0027 | E71: -2364.396027 | F71: 174965.306 | G71: -304391.6967 | H71: 148.9893387 | I71: 2215.406688
B72: 2013-02-01 | C72: 6477.797333 | D72: -472879.2053 | E72: -2364.396027 | F72: 172600.9099 | G72: -300278.2954 | H72: 148.9893387 | I72: 2215.406688
B73: 2013-03-01 | C73: 6477.797333 | D73: -466401.408 | E73: -2364.396027 | F73: 170236.5139 | G73: -296164.8941 | H73: 148.9893387 | I73: 2215.406688
B74: 2013-04-01 | C74: 6477.797333 | D74: -459923.6107 | E74: -2364.396027 | F74: 167872.1179 | G74: -292051.4928 | H74: 148.9893387 | I74: 2215.406688
B75: 2013-05-01 | C75: 6477.797333 | D75: -453445.8133 | E75: -2364.396027 | F75: 165507.7219 | G75: -287938.0915 | H75: 148.9893387 | I75: 2215.406688
B76: 2013-06-01 | C76: 6477.797333 | D76: -446968.016 | E76: -2364.396027 | F76: 163143.3258 | G76: -283824.6902 | H76: 148.9893387 | I76: 2215.406688
B77: 2013-07-01 | C77: 6477.797333 | D77: -440490.2187 | E77: -2364.396027 | F77: 160778.9298 | G77: -279711.2889 | H77: 148.9893387 | I77: 2215.406688
B78: 2013-08-01 | C78: 6477.797333 | D78: -434012.4213 | E78: -2364.396027 | F78: 158414.5338 | G78: -275597.8875 | H78: 148.9893387 | I78: 2215.406688
B79: 2013-09-01 | C79: 6477.797333 | D79: -427534.624 | E79: -2364.396027 | F79: 156050.1378 | G79: -271484.4862 | H79: 148.9893387 | I79: 2215.406688
B80: 2013-10-01 | C80: 6477.797333 | D80: -421056.8267 | E80: -2364.396027 | F80: 153685.7417 | G80: -267371.0849 | H80: 148.9893387 | I80: 2215.406688
B81: 2013-11-01 | C81: 6477.797333 | D81: -414579.0293 | E81: -2364.396027 | F81: 151321.3457 | G81: -263257.6836 | H81: 148.9893387 | I81: 2215.406688
B82: 2013-12-01 | C82: 6477.797333 | D82: -408101.232 | E82: -2364.396027 | F82: 148956.9497 | G82: -259144.2823 | H82: 148.9893387 | I82: 2215.406688
B83: 2014-01-01 | C83: 6477.797333 | D83: -401623.4347 | E83: -2364.396027 | F83: 146592.5537 | G83: -255030.881 | H83: 148.9893387 | I83: 2215.406688
B84: 2014-02-01 | C84: 6477.797333 | D84: -395145.6373 | E84: -2364.396027 | F84: 144228.1576 | G84: -250917.4797 | H84: 148.9893387 | I84: 2215.406688
B85: 2014-03-01 | C85: 6477.797333 | D85: -388667.84 | E85: -2364.396027 | F85: 141863.7616 | G85: -246804.0784 | H85: 148.9893387 | I85: 2215.406688
B86: 2014-04-01 | C86: 6477.797333 | D86: -382190.0427 | E86: -2364.396027 | F86: 139499.3656 | G86: -242690.6771 | H86: 148.9893387 | I86: 2215.406688
B87: 2014-05-01 | C87: 6477.797333 | D87: -375712.2453 | E87: -2364.396027 | F87: 137134.9695 | G87: -238577.2758 | H87: 148.9893387 | I87: 2215.406688
B88: 2014-06-01 | C88: 6477.797333 | D88: -369234.448 | E88: -2364.396027 | F88: 134770.5735 | G88: -234463.8745 | H88: 148.9893387 | I88: 2215.406688
B89: 2014-07-01 | C89: 6477.797333 | D89: -362756.6507 | E89: -2364.396027 | F89: 132406.1775 | G89: -230350.4732 | H89: 148.9893387 | I89: 2215.406688
B90: 2014-08-01 | C90: =-$F$15 -> 6477.797333 | D90: =+D89+C90 -> -356278.8533 | E90: -2364.396027 | F90: =+F89+E90 -> 130041.7815 | G90: =+G89+C90+E90 -> -226237.0719 | H90: 148.9893387 | I90: 2215.406688
B91: 2014-09-01 | C91: 6477.797333 | D91: -349801.056 | E91: =-C91*$J$21 -> -2364.396027 | F91: 127677.3854 | G91: -222123.6706 | H91: =+$H$21*$C91 -> 148.9893387 | I91: =+$I$21*$C91 -> 2215.406688
B92: 2014-10-01 | C92: 6477.797333 | D92: -343323.2587 | E92: -2364.396027 | F92: 125312.9894 | G92: -218010.2693 | H92: 148.9893387 | I92: 2215.406688
B93: 2014-11-01 | C93: 6477.797333 | D93: -336845.4613 | E93: -2364.396027 | F93: 122948.5934 | G93: -213896.8679 | H93: 148.9893387 | I93: 2215.406688
B94: 2014-12-01 | C94: 6477.797333 | D94: -330367.664 | E94: -2364.396027 | F94: 120584.1974 | G94: -209783.4666 | H94: 148.9893387 | I94: 2215.406688
B95: 2015-01-01 | C95: 6477.797333 | D95: -323889.8667 | E95: -2364.396027 | F95: 118219.8013 | G95: -205670.0653 | H95: 148.9893387 | I95: 2215.406688
B96: 2015-02-01 | C96: 6477.797333 | D96: -317412.0693 | E96: -2364.396027 | F96: 115855.4053 | G96: -201556.664 | H96: 148.9893387 | I96: 2215.406688
B97: 2015-03-01 | C97: 6477.797333 | D97: -310934.272 | E97: -2364.396027 | F97: 113491.0093 | G97: -197443.2627 | H97: 148.9893387 | I97: 2215.406688
B98: 2015-04-01 | C98: 6477.797333 | D98: -304456.4747 | E98: -2364.396027 | F98: 111126.6133 | G98: -193329.8614 | H98: 148.9893387 | I98: 2215.406688
B99: 2015-05-01 | C99: 6477.797333 | D99: -297978.6773 | E99: -2364.396027 | F99: 108762.2172 | G99: -189216.4601 | H99: 148.9893387 | I99: 2215.406688
B100: 2015-06-01 | C100: 6477.797333 | D100: -291500.88 | E100: -2364.396027 | F100: 106397.8212 | G100: -185103.0588 | H100: 148.9893387 | I100: 2215.406688
B101: 2015-07-01 | C101: 6477.797333 | D101: -285023.0827 | E101: -2364.396027 | F101: 104033.4252 | G101: -180989.6575 | H101: 148.9893387 | I101: 2215.406688
B102: 2015-08-01 | C102: 6477.797333 | D102: -278545.2853 | E102: -2364.396027 | F102: 101669.0291 | G102: -176876.2562 | H102: 148.9893387 | I102: 2215.406688
B103: 2015-09-01 | C103: 6477.797333 | D103: -272067.488 | E103: -2364.396027 | F103: 99304.63312 | G103: -172762.8549 | H103: 148.9893387 | I103: 2215.406688
B104: 2015-10-01 | C104: 6477.797333 | D104: -265589.6907 | E104: -2364.396027 | F104: 96940.23709 | G104: -168649.4536 | H104: 148.9893387 | I104: 2215.406688
B105: 2015-11-01 | C105: 6477.797333 | D105: -259111.8933 | E105: -2364.396027 | F105: 94575.84107 | G105: -164536.0523 | H105: 148.9893387 | I105: 2215.406688
B106: 2015-12-01 | C106: 6477.797333 | D106: -252634.096 | E106: -2364.396027 | F106: 92211.44504 | G106: -160422.651 | H106: 148.9893387 | I106: 2215.406688
B107: 2016-01-01 | C107: 6477.797333 | D107: -246156.2987 | E107: -2364.396027 | F107: 89847.04901 | G107: -156309.2497 | H107: 148.9893387 | I107: 2215.406688
B108: 2016-02-01 | C108: 6477.797333 | D108: -239678.5013 | E108: -2364.396027 | F108: 87482.65299 | G108: -152195.8483 | H108: 148.9893387 | I108: 2215.406688
B109: 2016-03-01 | C109: 6477.797333 | D109: -233200.704 | E109: -2364.396027 | F109: 85118.25696 | G109: -148082.447 | H109: 148.9893387 | I109: 2215.406688
B110: 2016-04-01 | C110: 6477.797333 | D110: -226722.9067 | E110: -2364.396027 | F110: 82753.86093 | G110: -143969.0457 | H110: 148.9893387 | I110: 2215.406688
B111: 2016-05-01 | C111: 6477.797333 | D111: -220245.1093 | E111: -2364.396027 | F111: 80389.46491 | G111: -139855.6444 | H111: 148.9893387 | I111: 2215.406688
B112: 2016-06-01 | C112: 6477.797333 | D112: -213767.312 | E112: -2364.396027 | F112: 78025.06888 | G112: -135742.2431 | H112: 148.9893387 | I112: 2215.406688
B113: 2016-07-01 | C113: 6477.797333 | D113: -207289.5147 | E113: -2364.396027 | F113: 75660.67285 | G113: -131628.8418 | H113: 148.9893387 | I113: 2215.406688
B114: 2016-08-01 | C114: 6477.797333 | D114: -200811.7173 | E114: -2364.396027 | F114: 73296.27683 | G114: -127515.4405 | H114: 148.9893387 | I114: 2215.406688
B115: 2016-09-01 | C115: 6477.797333 | D115: -194333.92 | E115: -2364.396027 | F115: 70931.8808 | G115: -123402.0392 | H115: 148.9893387 | I115: 2215.406688
B116: 2016-10-01 | C116: 6477.797333 | D116: -187856.1227 | E116: -2364.396027 | F116: 68567.48477 | G116: -119288.6379 | H116: 148.9893387 | I116: 2215.406688
B117: 2016-11-01 | C117: 6477.797333 | D117: -181378.3253 | E117: -2364.396027 | F117: 66203.08875 | G117: -115175.2366 | H117: 148.9893387 | I117: 2215.406688
B118: 2016-12-01 | C118: 6477.797333 | D118: -174900.528 | E118: -2364.396027 | F118: 63838.69272 | G118: -111061.8353 | H118: 148.9893387 | I118: 2215.406688
B119: 2017-01-01 | C119: 6477.797333 | D119: -168422.7307 | E119: -2364.396027 | F119: 61474.29669 | G119: -106948.434 | H119: 148.9893387 | I119: 2215.406688
B120: 2017-02-01 | C120: 6477.797333 | D120: -161944.9333 | E120: -2364.396027 | F120: 59109.90067 | G120: -102835.0327 | H120: 148.9893387 | I120: 2215.406688
B121: 2017-03-01 | C121: 6477.797333 | D121: -155467.136 | E121: -2364.396027 | F121: 56745.50464 | G121: -98721.63136 | H121: 148.9893387 | I121: 2215.406688
B122: 2017-04-01 | C122: 6477.797333 | D122: -148989.3387 | E122: -2364.396027 | F122: 54381.10861 | G122: -94608.23005 | H122: 148.9893387 | I122: 2215.406688
B123: 2017-05-01 | C123: 6477.797333 | D123: -142511.5413 | E123: -2364.396027 | F123: 52016.71259 | G123: -90494.82875 | H123: 148.9893387 | I123: 2215.406688
B124: 2017-06-01 | C124: 6477.797333 | D124: -136033.744 | E124: -2364.396027 | F124: 49652.31656 | G124: -86381.42744 | H124: 148.9893387 | I124: 2215.406688
B125: 2017-07-01 | C125: 6477.797333 | D125: -129555.9467 | E125: -2364.396027 | F125: 47287.92053 | G125: -82268.02613 | H125: 148.9893387 | I125: 2215.406688
B126: 2017-08-01 | C126: 6477.797333 | D126: -123078.1493 | E126: -2364.396027 | F126: 44923.52451 | G126: -78154.62483 | H126: 148.9893387 | I126: 2215.406688
B127: 2017-09-01 | C127: 6477.797333 | D127: -116600.352 | E127: -2364.396027 | F127: 42559.12848 | G127: -74041.22352 | H127: 148.9893387 | I127: 2215.406688
B128: 2017-10-01 | C128: 6477.797333 | D128: -110122.5547 | E128: -2364.396027 | F128: 40194.73245 | G128: -69927.82221 | H128: 148.9893387 | I128: 2215.406688
B129: 2017-11-01 | C129: 6477.797333 | D129: -103644.7573 | E129: -2364.396027 | F129: 37830.33643 | G129: -65814.42091 | H129: 148.9893387 | I129: 2215.406688
B130: 2017-12-01 | C130: 6477.797333 | D130: -97166.96 | E130: =-C130*$J$21 -> -2364.396027 | F130: 35465.9404 | G130: -61701.0196 | H130: 148.9893387 | I130: =+$I$21*$C130 -> 2215.406688
B131: 2018-01-01 | C131: =-$F$15 -> 6477.797333 | D131: =+D130+C131 -> -90689.16267 | E131: =-C131*$L$21 -> -1478.039018 | F131: =+F130+E131 -> 33987.90138 | G131: =+G130+C131+E131 -> -56701.26128 | H131: =+$H$21*$C131 -> 148.9893387 | I131: =C131*$K$21 -> 1329.049679
B132: 2018-02-01 | C132: =-$F$15 -> 6477.797333 | D132: =+D131+C132 -> -84211.36533 | E132: =-C132*$L$21 -> -1478.039018 | F132: =+F131+E132 -> 32509.86236 | G132: =+G131+C132+E132 -> -51701.50297 | H132: =+$H$21*$C132 -> 148.9893387 | I132: =C132*$K$21 -> 1329.049679
B133: 2018-03-01 | C133: 6477.797333 | D133: -77733.568 | E133: =-C133*$L$21 -> -1478.039018 | F133: 31031.82335 | G133: -46701.74465 | H133: 148.9893387 | I133: 1329.049679
B134: 2018-04-01 | C134: 6477.797333 | D134: -71255.77067 | E134: =-C134*$L$21 -> -1478.039018 | F134: 29553.78433 | G134: -41701.98634 | H134: 148.9893387 | I134: 1329.049679
B135: 2018-05-01 | C135: 6477.797333 | D135: -64777.97333 | E135: -1478.039018 | F135: 28075.74531 | G135: -36702.22802 | H135: 148.9893387 | I135: 1329.049679
B136: 2018-06-01 | C136: 6477.797333 | D136: -58300.176 | E136: -1478.039018 | F136: 26597.70629 | G136: -31702.46971 | H136: 148.9893387 | I136: 1329.049679
B137: 2018-07-01 | C137: 6477.797333 | D137: -51822.37867 | E137: -1478.039018 | F137: 25119.66728 | G137: -26702.71139 | H137: 148.9893387 | I137: 1329.049679
B138: 2018-08-01 | C138: 6477.797333 | D138: -45344.58133 | E138: -1478.039018 | F138: 23641.62826 | G138: -21702.95307 | H138: 148.9893387 | I138: 1329.049679
B139: 2018-09-01 | C139: 6477.797333 | D139: -38866.784 | E139: -1478.039018 | F139: 22163.58924 | G139: -16703.19476 | H139: 148.9893387 | I139: 1329.049679
B140: 2018-10-01 | C140: 6477.797333 | D140: -32388.98667 | E140: -1478.039018 | F140: 20685.55022 | G140: -11703.43644 | H140: 148.9893387 | I140: 1329.049679
B141: 2018-11-01 | C141: 6477.797333 | D141: -25911.18933 | E141: -1478.039018 | F141: 19207.51121 | G141: -6703.678126 | H141: 148.9893387 | I141: 1329.049679
B142: 2018-12-01 | C142: 6477.797333 | D142: -19433.392 | E142: -1478.039018 | F142: 17729.47219 | G142: -1703.919811 | H142: 148.9893387 | I142: 1329.049679
B143: 2019-01-01 | C143: 6477.797333 | D143: -12955.59467 | E143: -1478.039018 | F143: 16251.43317 | G143: 3295.838505 | H143: 148.9893387 | I143: 1329.049679
B144: 2019-02-01 | C144: 6477.797333 | D144: -6477.797333 | E144: -1478.039018 | F144: 14773.39415 | G144: 8295.596821 | H144: 148.9893387 | I144: 1329.049679
B145: 2019-03-01 | C145: 6477.797333 | D145: -1.082298695e-09 | E145: -1478.039018 | F145: 13295.35514 | G145: 13295.35514 | H145: 148.9893387 | I145: 1329.049679

Sheet 20105
A1: Amortization Schedule
A2: GL# 010.0000.2150.20105.002000 | F2: 10 years | G2: 10 years | H2: 10 years
F3: Amort | G3: Amort | H3: Amort | I3: Total to Amort
B4: (Gain) Loss | C4: Years | D4: Annual Amort | F4: June 2011-May 2021 | G4: June 2021-May 2031 | H4: June 2031-May 2041 | I4: June 2011-May 2041
A5: Morgan Stanley | B5: -6701857 | C5: 30 | D5: =B5/C5 -> -223395.2333 | F5: =+$D5*10 -> -2233952.333 | G5: -2233952.333 | H5: -2233952.333 | I5: =SUM(F5:H5) -> -6701857
A6: Wells Fargo | B6: -6799114 | C6: 30 | D6: =B6/C6 -> -226637.1333 | F6: -2266371.333 | G6: -2266371.333 | H6: -2266371.333 | I6: =SUM(F6:H6) -> -6799114
A7: BNP Paribas | B7: -6578076 | C7: 30 | D7: =B7/C7 -> -219269.2 | F7: -2192692 | G7: -2192692 | H7: -2192692 | I7: =SUM(F7:H7) -> -6578076
A8: Merrill Lynch | B8: 0 | C8: 30 | D8: =B8/C8 -> 0 | F8: =+$D8*10 -> 0 | G8: =+$D8*0 -> 0 | H8: 0 | I8: =SUM(F8:H8) -> 0
A10: Total | B10: =SUM(B5:B8) -> -20079047 | D10: =SUM(D5:D8) -> -669301.5667 | F10: =SUM(F5:F9) -> -6693015.667 | G10: =SUM(G5:G9) -> -6693015.667 | H10: =SUM(H5:H9) -> -6693015.667 | I10: =SUM(F10:H10) -> -20079047
D12: # months to Amort | F12: =10*12 -> 120 | G12: =10*12 -> 120 | H12: =10*12 -> 120
F14: DR (CR) | G14: DR (CR) | H14: DR (CR)
C15: LT Int Exp | D15: Monthly Amort | F15: =+F10/F12 -> -55775.13056 | G15: =+G10/G12 -> -55775.13056 | H15: =+H10/H12 -> -55775.13056
C16: 2830.xxxxx | D16: Def State Tax | E16: 0.023 | F16: =-F$15*$E16 -> 1282.828003 | G16: 1282.828003 | H16: 1282.828003
C17: 2830.xxxxx | D17: Def Fed Tax | E17: 0.342 | F17: 19075.09465 | G17: 19075.09465 | H17: 19075.09465
A20: T-Lock Settlement | G20: Net OCI | H20: Def State Tax | I20: Def Fed Tax
H21: =E16 -> 0.023 | I21: =E17 -> 0.342 | J21: =H21+I21 -> 0.365 | L21: 0.20517 | M21: =H21+L21 -> 0.22817
C22: 2150.20105 | D22: 2150.20105 | E22: 2150.20105 | F22: 2150.20105 | G22: 2150.20105 | H22: 2830.28206 | I22: 2830.28201
C23: Amort | D23: T-Lock Settlement | E23: Def Tax Adj | F23: Def Taxes | G23: Net of Tax | H23: Adjustment | I23: Adjustment
C24: DR (CR) | D24: DR (CR) | E24: DR (CR) | F24: DR (CR) | H24: DR (CR) | I24: DR (CR)
A25: Balance at June 30, 2011 | B25: 2011-06-01 | D25: =B10 -> -20079047 | F25: =-D25*$J$21 -> 7328852.155 | G25: =SUM(D25:F25) -> -12750194.84 | H25: 0 | I25: 0
B26: 2011-06-01 | C26: =-$F$15 -> 55775.13056 | D26: =+D25+C26 -> -20023271.87 | E26: =-C26*$J$21 -> -20357.92265 | F26: =+F25+E26 -> 7308494.232 | G26: =+G25+C26+E26 -> -12714777.64 | H26: =+$H$21*$C26 -> 1282.828003 | I26: =+$I$21*$C26 -> 19075.09465
B27: 2011-07-01 | C27: 55775.13056 | D27: -19967496.74 | E27: =-C27*$J$21 -> -20357.92265 | F27: 7288136.31 | G27: -12679360.43 | H27: =+$H$21*$C27 -> 1282.828003 | I27: =+$I$21*$C27 -> 19075.09465
B28: 2011-08-01 | C28: 55775.13056 | D28: -19911721.61 | E28: -20357.92265 | F28: 7267778.387 | G28: -12643943.22 | H28: 1282.828003 | I28: 19075.09465
B29: 2011-09-01 | C29: 55775.13056 | D29: -19855946.48 | E29: -20357.92265 | F29: 7247420.464 | G29: -12608526.01 | H29: 1282.828003 | I29: 19075.09465
B30: 2011-10-01 | C30: 55775.13056 | D30: -19800171.35 | E30: -20357.92265 | F30: 7227062.542 | G30: -12573108.81 | H30: 1282.828003 | I30: 19075.09465
B31: 2011-11-01 | C31: 55775.13056 | D31: -19744396.22 | E31: -20357.92265 | F31: 7206704.619 | G31: -12537691.6 | H31: 1282.828003 | I31: 19075.09465
B32: 2011-12-01 | C32: 55775.13056 | D32: -19688621.09 | E32: -20357.92265 | F32: 7186346.696 | G32: -12502274.39 | H32: 1282.828003 | I32: 19075.09465
B33: 2012-01-01 | C33: 55775.13056 | D33: -19632845.96 | E33: -20357.92265 | F33: 7165988.774 | G33: -12466857.18 | H33: 1282.828003 | I33: 19075.09465
B34: 2012-02-01 | C34: 55775.13056 | D34: -19577070.83 | E34: -20357.92265 | F34: 7145630.851 | G34: -12431439.97 | H34: 1282.828003 | I34: 19075.09465
B35: 2012-03-01 | C35: 55775.13056 | D35: -19521295.69 | E35: -20357.92265 | F35: 7125272.928 | G35: -12396022.77 | H35: 1282.828003 | I35: 19075.09465
B36: 2012-04-01 | C36: 55775.13056 | D36: -19465520.56 | E36: -20357.92265 | F36: 7104915.006 | G36: -12360605.56 | H36: 1282.828003 | I36: 19075.09465
B37: 2012-05-01 | C37: 55775.13056 | D37: -19409745.43 | E37: -20357.92265 | F37: 7084557.083 | G37: -12325188.35 | H37: 1282.828003 | I37: 19075.09465
B38: 2012-06-01 | C38: 55775.13056 | D38: -19353970.3 | E38: -20357.92265 | F38: 7064199.161 | G38: -12289771.14 | H38: 1282.828003 | I38: 19075.09465
B39: 2012-07-01 | C39: 55775.13056 | D39: -19298195.17 | E39: -20357.92265 | F39: 7043841.238 | G39: -12254353.93 | H39: 1282.828003 | I39: 19075.09465
B40: 2012-08-01 | C40: 55775.13056 | D40: -19242420.04 | E40: -20357.92265 | F40: 7023483.315 | G40: -12218936.73 | H40: 1282.828003 | I40: 19075.09465
B41: 2012-09-01 | C41: 55775.13056 | D41: -19186644.91 | E41: -20357.92265 | F41: 7003125.393 | G41: -12183519.52 | H41: 1282.828003 | I41: 19075.09465
B42: 2012-10-01 | C42: 55775.13056 | D42: -19130869.78 | E42: -20357.92265 | F42: 6982767.47 | G42: -12148102.31 | H42: 1282.828003 | I42: 19075.09465
B43: 2012-11-01 | C43: 55775.13056 | D43: -19075094.65 | E43: -20357.92265 | F43: 6962409.547 | G43: -12112685.1 | H43: 1282.828003 | I43: 19075.09465
B44: 2012-12-01 | C44: 55775.13056 | D44: -19019319.52 | E44: -20357.92265 | F44: 6942051.625 | G44: -12077267.89 | H44: 1282.828003 | I44: 19075.09465
B45: 2013-01-01 | C45: 55775.13056 | D45: -18963544.39 | E45: -20357.92265 | F45: 6921693.702 | G45: -12041850.69 | H45: 1282.828003 | I45: 19075.09465
B46: 2013-02-01 | C46: 55775.13056 | D46: -18907769.26 | E46: -20357.92265 | F46: 6901335.779 | G46: -12006433.48 | H46: 1282.828003 | I46: 19075.09465
B47: 2013-03-01 | C47: 55775.13056 | D47: -18851994.13 | E47: -20357.92265 | F47: 6880977.857 | G47: -11971016.27 | H47: 1282.828003 | I47: 19075.09465
B48: 2013-04-01 | C48: 55775.13056 | D48: -18796219 | E48: -20357.92265 | F48: 6860619.934 | G48: -11935599.06 | H48: 1282.828003 | I48: 19075.09465
B49: 2013-05-01 | C49: 55775.13056 | D49: -18740443.87 | E49: -20357.92265 | F49: 6840262.011 | G49: -11900181.86 | H49: 1282.828003 | I49: 19075.09465
B50: 2013-06-01 | C50: 55775.13056 | D50: -18684668.74 | E50: -20357.92265 | F50: 6819904.089 | G50: -11864764.65 | H50: 1282.828003 | I50: 19075.09465
B51: 2013-07-01 | C51: 55775.13056 | D51: -18628893.61 | E51: -20357.92265 | F51: 6799546.166 | G51: -11829347.44 | H51: 1282.828003 | I51: 19075.09465
B52: 2013-08-01 | C52: 55775.13056 | D52: -18573118.48 | E52: -20357.92265 | F52: 6779188.243 | G52: -11793930.23 | H52: 1282.828003 | I52: 19075.09465
B53: 2013-09-01 | C53: 55775.13056 | D53: -18517343.34 | E53: -20357.92265 | F53: 6758830.321 | G53: -11758513.02 | H53: 1282.828003 | I53: 19075.09465
B54: 2013-10-01 | C54: 55775.13056 | D54: -18461568.21 | E54: -20357.92265 | F54: 6738472.398 | G54: -11723095.82 | H54: 1282.828003 | I54: 19075.09465
B55: 2013-11-01 | C55: 55775.13056 | D55: -18405793.08 | E55: -20357.92265 | F55: 6718114.475 | G55: -11687678.61 | H55: 1282.828003 | I55: 19075.09465
B56: 2013-12-01 | C56: 55775.13056 | D56: -18350017.95 | E56: -20357.92265 | F56: 6697756.553 | G56: -11652261.4 | H56: 1282.828003 | I56: 19075.09465
B57: 2014-01-01 | C57: 55775.13056 | D57: -18294242.82 | E57: -20357.92265 | F57: 6677398.63 | G57: -11616844.19 | H57: 1282.828003 | I57: 19075.09465
B58: 2014-02-01 | C58: 55775.13056 | D58: -18238467.69 | E58: -20357.92265 | F58: 6657040.707 | G58: -11581426.98 | H58: 1282.828003 | I58: 19075.09465
B59: 2014-03-01 | C59: 55775.13056 | D59: -18182692.56 | E59: -20357.92265 | F59: 6636682.785 | G59: -11546009.78 | H59: 1282.828003 | I59: 19075.09465
B60: 2014-04-01 | C60: 55775.13056 | D60: -18126917.43 | E60: -20357.92265 | F60: 6616324.862 | G60: -11510592.57 | H60: 1282.828003 | I60: 19075.09465
B61: 2014-05-01 | C61: 55775.13056 | D61: -18071142.3 | E61: -20357.92265 | F61: 6595966.939 | G61: -11475175.36 | H61: 1282.828003 | I61: 19075.09465
B62: 2014-06-01 | C62: 55775.13056 | D62: -18015367.17 | E62: -20357.92265 | F62: 6575609.017 | G62: -11439758.15 | H62: 1282.828003 | I62: 19075.09465
B63: 2014-07-01 | C63: 55775.13056 | D63: -17959592.04 | E63: -20357.92265 | F63: 6555251.094 | G63: -11404340.94 | H63: 1282.828003 | I63: 19075.09465
B64: 2014-08-01 | C64: 55775.13056 | D64: -17903816.91 | E64: -20357.92265 | F64: 6534893.172 | G64: -11368923.74 | H64: 1282.828003 | I64: 19075.09465
B65: 2014-09-01 | C65: 55775.13056 | D65: -17848041.78 | E65: -20357.92265 | F65: 6514535.249 | G65: -11333506.53 | H65: 1282.828003 | I65: 19075.09465
B66: 2014-10-01 | C66: 55775.13056 | D66: -17792266.65 | E66: -20357.92265 | F66: 6494177.326 | G66: -11298089.32 | H66: 1282.828003 | I66: 19075.09465
B67: 2014-11-01 | C67: 55775.13056 | D67: -17736491.52 | E67: -20357.92265 | F67: 6473819.404 | G67: -11262672.11 | H67: 1282.828003 | I67: 19075.09465
B68: 2014-12-01 | C68: 55775.13056 | D68: -17680716.39 | E68: -20357.92265 | F68: 6453461.481 | G68: -11227254.91 | H68: 1282.828003 | I68: 19075.09465
B69: 2015-01-01 | C69: 55775.13056 | D69: -17624941.26 | E69: -20357.92265 | F69: 6433103.558 | G69: -11191837.7 | H69: 1282.828003 | I69: 19075.09465
B70: 2015-02-01 | C70: 55775.13056 | D70: -17569166.13 | E70: -20357.92265 | F70: 6412745.636 | G70: -11156420.49 | H70: 1282.828003 | I70: 19075.09465
B71: 2015-03-01 | C71: 55775.13056 | D71: -17513390.99 | E71: -20357.92265 | F71: 6392387.713 | G71: -11121003.28 | H71: 1282.828003 | I71: 19075.09465
B72: 2015-04-01 | C72: 55775.13056 | D72: -17457615.86 | E72: -20357.92265 | F72: 6372029.79 | G72: -11085586.07 | H72: 1282.828003 | I72: 19075.09465
B73: 2015-05-01 | C73: 55775.13056 | D73: -17401840.73 | E73: -20357.92265 | F73: 6351671.868 | G73: -11050168.87 | H73: 1282.828003 | I73: 19075.09465
B74: 2015-06-01 | C74: 55775.13056 | D74: -17346065.6 | E74: -20357.92265 | F74: 6331313.945 | G74: -11014751.66 | H74: 1282.828003 | I74: 19075.09465
B75: 2015-07-01 | C75: 55775.13056 | D75: -17290290.47 | E75: -20357.92265 | F75: 6310956.022 | G75: -10979334.45 | H75: 1282.828003 | I75: 19075.09465
B76: 2015-08-01 | C76: 55775.13056 | D76: -17234515.34 | E76: -20357.92265 | F76: 6290598.1 | G76: -10943917.24 | H76: 1282.828003 | I76: 19075.09465
B77: 2015-09-01 | C77: 55775.13056 | D77: -17178740.21 | E77: -20357.92265 | F77: 6270240.177 | G77: -10908500.03 | H77: 1282.828003 | I77: 19075.09465
B78: 2015-10-01 | C78: 55775.13056 | D78: -17122965.08 | E78: -20357.92265 | F78: 6249882.254 | G78: -10873082.83 | H78: 1282.828003 | I78: 19075.09465
B79: 2015-11-01 | C79: 55775.13056 | D79: -17067189.95 | E79: -20357.92265 | F79: 6229524.332 | G79: -10837665.62 | H79: 1282.828003 | I79: 19075.09465
B80: 2015-12-01 | C80: 55775.13056 | D80: -17011414.82 | E80: -20357.92265 | F80: 6209166.409 | G80: -10802248.41 | H80: 1282.828003 | I80: 19075.09465
B81: 2016-01-01 | C81: 55775.13056 | D81: -16955639.69 | E81: -20357.92265 | F81: 6188808.486 | G81: -10766831.2 | H81: 1282.828003 | I81: 19075.09465
B82: 2016-02-01 | C82: 55775.13056 | D82: -16899864.56 | E82: -20357.92265 | F82: 6168450.564 | G82: -10731413.99 | H82: 1282.828003 | I82: 19075.09465
B83: 2016-03-01 | C83: 55775.13056 | D83: -16844089.43 | E83: -20357.92265 | F83: 6148092.641 | G83: -10695996.79 | H83: 1282.828003 | I83: 19075.09465
B84: 2016-04-01 | C84: 55775.13056 | D84: -16788314.3 | E84: -20357.92265 | F84: 6127734.718 | G84: -10660579.58 | H84: 1282.828003 | I84: 19075.09465
B85: 2016-05-01 | C85: 55775.13056 | D85: -16732539.17 | E85: -20357.92265 | F85: 6107376.796 | G85: -10625162.37 | H85: 1282.828003 | I85: 19075.09465
B86: 2016-06-01 | C86: 55775.13056 | D86: -16676764.04 | E86: -20357.92265 | F86: 6087018.873 | G86: -10589745.16 | H86: 1282.828003 | I86: 19075.09465
B87: 2016-07-01 | C87: 55775.13056 | D87: -16620988.91 | E87: -20357.92265 | F87: 6066660.951 | G87: -10554327.96 | H87: 1282.828003 | I87: 19075.09465
B88: 2016-08-01 | C88: 55775.13056 | D88: -16565213.78 | E88: -20357.92265 | F88: 6046303.028 | G88: -10518910.75 | H88: 1282.828003 | I88: 19075.09465
B89: 2016-09-01 | C89: 55775.13056 | D89: -16509438.64 | E89: -20357.92265 | F89: 6025945.105 | G89: -10483493.54 | H89: 1282.828003 | I89: 19075.09465
B90: 2016-10-01 | C90: =-$F$15 -> 55775.13056 | D90: =+D89+C90 -> -16453663.51 | E90: -20357.92265 | F90: =+F89+E90 -> 6005587.183 | G90: =+G89+C90+E90 -> -10448076.33 | H90: 1282.828003 | I90: 19075.09465
B91: 2016-11-01 | C91: 55775.13056 | D91: -16397888.38 | E91: =-C91*$J$21 -> -20357.92265 | F91: 5985229.26 | G91: -10412659.12 | H91: =+$H$21*$C91 -> 1282.828003 | I91: =+$I$21*$C91 -> 19075.09465
B92: 2016-12-01 | C92: 55775.13056 | D92: -16342113.25 | E92: -20357.92265 | F92: 5964871.337 | G92: -10377241.92 | H92: 1282.828003 | I92: 19075.09465
B93: 2017-01-01 | C93: 55775.13056 | D93: -16286338.12 | E93: -20357.92265 | F93: 5944513.415 | G93: -10341824.71 | H93: 1282.828003 | I93: 19075.09465
B94: 2017-02-01 | C94: 55775.13056 | D94: -16230562.99 | E94: -20357.92265 | F94: 5924155.492 | G94: -10306407.5 | H94: 1282.828003 | I94: 19075.09465
B95: 2017-03-01 | C95: 55775.13056 | D95: -16174787.86 | E95: -20357.92265 | F95: 5903797.569 | G95: -10270990.29 | H95: 1282.828003 | I95: 19075.09465
B96: 2017-04-01 | C96: 55775.13056 | D96: -16119012.73 | E96: -20357.92265 | F96: 5883439.647 | G96: -10235573.08 | H96: 1282.828003 | I96: 19075.09465
B97: 2017-05-01 | C97: 55775.13056 | D97: -16063237.6 | E97: -20357.92265 | F97: 5863081.724 | G97: -10200155.88 | H97: 1282.828003 | I97: 19075.09465
B98: 2017-06-01 | C98: 55775.13056 | D98: -16007462.47 | E98: -20357.92265 | F98: 5842723.801 | G98: -10164738.67 | H98: 1282.828003 | I98: 19075.09465
B99: 2017-07-01 | C99: 55775.13056 | D99: -15951687.34 | E99: -20357.92265 | F99: 5822365.879 | G99: -10129321.46 | H99: 1282.828003 | I99: 19075.09465
B100: 2017-08-01 | C100: 55775.13056 | D100: -15895912.21 | E100: -20357.92265 | F100: 5802007.956 | G100: -10093904.25 | H100: 1282.828003 | I100: 19075.09465
B101: 2017-09-01 | C101: 55775.13056 | D101: -15840137.08 | E101: -20357.92265 | F101: 5781650.033 | G101: -10058487.04 | H101: 1282.828003 | I101: 19075.09465
B102: 2017-10-01 | C102: 55775.13056 | D102: -15784361.95 | E102: -20357.92265 | F102: 5761292.111 | G102: -10023069.84 | H102: 1282.828003 | I102: 19075.09465
B103: 2017-11-01 | C103: 55775.13056 | D103: -15728586.82 | E103: -20357.92265 | F103: 5740934.188 | G103: -9987652.629 | H103: 1282.828003 | I103: 19075.09465
B104: 2017-12-01 | C104: 55775.13056 | D104: -15672811.69 | E104: =-C104*$J$21 -> -20357.92265 | F104: 5720576.265 | G104: -9952235.421 | H104: 1282.828003 | I104: 19075.09465
B105: 2018-01-01 | C105: =-$F$15 -> 55775.13056 | D105: =+D104+C105 -> -15617036.56 | E105: =-C105*$M$21 -> -12726.21154 | F105: 5707850.054 | G105: -9909186.502 | H105: =+$H$21*$C105 -> 1282.828003 | I105: =C105*$L$21 -> 11443.38354
B106: 2018-02-01 | C106: =-$F$15 -> 55775.13056 | D106: =+D105+C106 -> -15561261.43 | E106: =-C106*$M$21 -> -12726.21154 | F106: 5695123.842 | G106: -9866137.583 | H106: =+$H$21*$C106 -> 1282.828003 | I106: =C106*$L$21 -> 11443.38354
B107: 2018-03-01 | C107: 55775.13056 | D107: -15505486.29 | E107: -12726.21154 | F107: 5682397.631 | G107: -9823088.664 | H107: 1282.828003 | I107: 11443.38354
B108: 2018-04-01 | C108: 55775.13056 | D108: -15449711.16 | E108: -12726.21154 | F108: 5669671.419 | G108: -9780039.745 | H108: 1282.828003 | I108: 11443.38354
B109: 2018-05-01 | C109: 55775.13056 | D109: -15393936.03 | E109: -12726.21154 | F109: 5656945.208 | G109: -9736990.826 | H109: 1282.828003 | I109: 11443.38354
B110: 2018-06-01 | C110: 55775.13056 | D110: -15338160.9 | E110: -12726.21154 | F110: 5644218.996 | G110: -9693941.907 | H110: 1282.828003 | I110: 11443.38354
B111: 2018-07-01 | C111: 55775.13056 | D111: -15282385.77 | E111: -12726.21154 | F111: 5631492.785 | G111: -9650892.988 | H111: 1282.828003 | I111: 11443.38354
B112: 2018-08-01 | C112: 55775.13056 | D112: -15226610.64 | E112: -12726.21154 | F112: 5618766.573 | G112: -9607844.069 | H112: 1282.828003 | I112: 11443.38354
B113: 2018-09-01 | C113: 55775.13056 | D113: -15170835.51 | E113: -12726.21154 | F113: 5606040.362 | G113: -9564795.15 | H113: 1282.828003 | I113: 11443.38354
B114: 2018-10-01 | C114: 55775.13056 | D114: -15115060.38 | E114: -12726.21154 | F114: 5593314.15 | G114: -9521746.231 | H114: 1282.828003 | I114: 11443.38354
B115: 2018-11-01 | C115: 55775.13056 | D115: -15059285.25 | E115: -12726.21154 | F115: 5580587.939 | G115: -9478697.311 | H115: 1282.828003 | I115: 11443.38354
B116: 2018-12-01 | C116: 55775.13056 | D116: -15003510.12 | E116: -12726.21154 | F116: 5567861.727 | G116: -9435648.392 | H116: 1282.828003 | I116: 11443.38354
B117: 2019-01-01 | C117: 55775.13056 | D117: -14947734.99 | E117: -12726.21154 | F117: 5555135.515 | G117: -9392599.473 | H117: 1282.828003 | I117: 11443.38354
B118: 2019-02-01 | C118: 55775.13056 | D118: -14891959.86 | E118: -12726.21154 | F118: 5542409.304 | G118: -9349550.554 | H118: 1282.828003 | I118: 11443.38354
B119: 2019-03-01 | C119: 55775.13056 | D119: -14836184.73 | E119: -12726.21154 | F119: 5529683.092 | G119: -9306501.635 | H119: 1282.828003 | I119: 11443.38354
B120: 2019-04-01 | C120: 55775.13056 | D120: -14780409.6 | E120: -12726.21154 | F120: 5516956.881 | G120: -9263452.716 | H120: 1282.828003 | I120: 11443.38354
B121: 2019-05-01 | C121: 55775.13056 | D121: -14724634.47 | E121: -12726.21154 | F121: 5504230.669 | G121: -9220403.797 | H121: 1282.828003 | I121: 11443.38354
B122: 2019-06-01 | C122: 55775.13056 | D122: -14668859.34 | E122: -12726.21154 | F122: 5491504.458 | G122: -9177354.878 | H122: 1282.828003 | I122: 11443.38354
B123: 2019-07-01 | C123: 55775.13056 | D123: -14613084.21 | E123: -12726.21154 | F123: 5478778.246 | G123: -9134305.959 | H123: 1282.828003 | I123: 11443.38354
B124: 2019-08-01 | C124: 55775.13056 | D124: -14557309.08 | E124: -12726.21154 | F124: 5466052.035 | G124: -9091257.04 | H124: 1282.828003 | I124: 11443.38354
B125: 2019-09-01 | C125: 55775.13056 | D125: -14501533.94 | E125: -12726.21154 | F125: 5453325.823 | G125: -9048208.121 | H125: 1282.828003 | I125: 11443.38354
B126: 2019-10-01 | C126: 55775.13056 | D126: -14445758.81 | E126: -12726.21154 | F126: 5440599.612 | G126: -9005159.202 | H126: 1282.828003 | I126: 11443.38354
B127: 2019-11-01 | C127: 55775.13056 | D127: -14389983.68 | E127: -12726.21154 | F127: 5427873.4 | G127: -8962110.283 | H127: 1282.828003 | I127: 11443.38354
B128: 2019-12-01 | C128: 55775.13056 | D128: -14334208.55 | E128: -12726.21154 | F128: 5415147.188 | G128: -8919061.364 | H128: 1282.828003 | I128: 11443.38354
B129: 2020-01-01 | C129: 55775.13056 | D129: -14278433.42 | E129: -12726.21154 | F129: 5402420.977 | G129: -8876012.445 | H129: 1282.828003 | I129: 11443.38354
B130: 2020-02-01 | C130: 55775.13056 | D130: -14222658.29 | E130: -12726.21154 | F130: 5389694.765 | G130: -8832963.526 | H130: 1282.828003 | I130: 11443.38354
B131: 2020-03-01 | C131: 55775.13056 | D131: -14166883.16 | E131: -12726.21154 | F131: 5376968.554 | G131: -8789914.607 | H131: 1282.828003 | I131: 11443.38354
B132: 2020-04-01 | C132: 55775.13056 | D132: -14111108.03 | E132: -12726.21154 | F132: 5364242.342 | G132: -8746865.688 | H132: 1282.828003 | I132: 11443.38354
B133: 2020-05-01 | C133: 55775.13056 | D133: -14055332.9 | E133: -12726.21154 | F133: 5351516.131 | G133: -8703816.769 | H133: 1282.828003 | I133: 11443.38354
B134: 2020-06-01 | C134: 55775.13056 | D134: -13999557.77 | E134: -12726.21154 | F134: 5338789.919 | G134: -8660767.85 | H134: 1282.828003 | I134: 11443.38354
B135: 2020-07-01 | C135: 55775.13056 | D135: -13943782.64 | E135: -12726.21154 | F135: 5326063.708 | G135: -8617718.931 | H135: 1282.828003 | I135: 11443.38354
B136: 2020-08-01 | C136: 55775.13056 | D136: -13888007.51 | E136: -12726.21154 | F136: 5313337.496 | G136: -8574670.012 | H136: 1282.828003 | I136: 11443.38354
B137: 2020-09-01 | C137: 55775.13056 | D137: -13832232.38 | E137: -12726.21154 | F137: 5300611.285 | G137: -8531621.093 | H137: 1282.828003 | I137: 11443.38354
B138: 2020-10-01 | C138: 55775.13056 | D138: -13776457.25 | E138: -12726.21154 | F138: 5287885.073 | G138: -8488572.174 | H138: 1282.828003 | I138: 11443.38354
B139: 2020-11-01 | C139: 55775.13056 | D139: -13720682.12 | E139: -12726.21154 | F139: 5275158.862 | G139: -8445523.255 | H139: 1282.828003 | I139: 11443.38354
B140: 2020-12-01 | C140: 55775.13056 | D140: -13664906.99 | E140: -12726.21154 | F140: 5262432.65 | G140: -8402474.336 | H140: 1282.828003 | I140: 11443.38354
B141: 2021-01-01 | C141: 55775.13056 | D141: -13609131.86 | E141: -12726.21154 | F141: 5249706.438 | G141: -8359425.417 | H141: 1282.828003 | I141: 11443.38354
B142: 2021-02-01 | C142: 55775.13056 | D142: -13553356.73 | E142: -12726.21154 | F142: 5236980.227 | G142: -8316376.498 | H142: 1282.828003 | I142: 11443.38354
B143: 2021-03-01 | C143: 55775.13056 | D143: -13497581.59 | E143: -12726.21154 | F143: 5224254.015 | G143: -8273327.579 | H143: 1282.828003 | I143: 11443.38354
B144: 2021-04-01 | C144: 55775.13056 | D144: -13441806.46 | E144: -12726.21154 | F144: 5211527.804 | G144: -8230278.66 | H144: 1282.828003 | I144: 11443.38354
B145: 2021-05-01 | C145: 55775.13056 | D145: -13386031.33 | E145: -12726.21154 | F145: 5198801.592 | G145: -8187229.741 | H145: 1282.828003 | I145: 11443.38354
B146: 2021-06-01 | C146: 55775.13056 | D146: -13330256.2 | E146: -12726.21154 | F146: 5186075.381 | G146: -8144180.822 | H146: 1282.828003 | I146: 11443.38354
B147: 2021-07-01 | C147: 55775.13056 | D147: -13274481.07 | E147: -12726.21154 | F147: 5173349.169 | G147: -8101131.903 | H147: 1282.828003 | I147: 11443.38354
B148: 2021-08-01 | C148: 55775.13056 | D148: -13218705.94 | E148: -12726.21154 | F148: 5160622.958 | G148: -8058082.984 | H148: 1282.828003 | I148: 11443.38354
B149: 2021-09-01 | C149: 55775.13056 | D149: -13162930.81 | E149: -12726.21154 | F149: 5147896.746 | G149: -8015034.065 | H149: 1282.828003 | I149: 11443.38354
B150: 2021-10-01 | C150: 55775.13056 | D150: -13107155.68 | E150: -12726.21154 | F150: 5135170.535 | G150: -7971985.146 | H150: 1282.828003 | I150: 11443.38354
B151: 2021-11-01 | C151: 55775.13056 | D151: -13051380.55 | E151: -12726.21154 | F151: 5122444.323 | G151: -7928936.227 | H151: 1282.828003 | I151: 11443.38354
B152: 2021-12-01 | C152: 55775.13056 | D152: -12995605.42 | E152: -12726.21154 | F152: 5109718.112 | G152: -7885887.308 | H152: 1282.828003 | I152: 11443.38354
B153: 2022-01-01 | C153: 55775.13056 | D153: -12939830.29 | E153: -12726.21154 | F153: 5096991.9 | G153: -7842838.389 | H153: 1282.828003 | I153: 11443.38354
B154: 2022-02-01 | C154: 55775.13056 | D154: -12884055.16 | E154: -12726.21154 | F154: =+F153+E154 -> 5084265.688 | G154: =+G153+C154+E154 -> -7799789.47 | H154: 1282.828003 | I154: 11443.38354
B155: 2022-03-01 | C155: 55775.13056 | D155: -12828280.03 | E155: -12726.21154 | F155: 5071539.477 | G155: -7756740.551 | H155: 1282.828003 | I155: 11443.38354
B156: 2022-04-01 | C156: 55775.13056 | D156: -12772504.9 | E156: -12726.21154 | F156: 5058813.265 | G156: -7713691.632 | H156: 1282.828003 | I156: 11443.38354
B157: 2022-05-01 | C157: 55775.13056 | D157: -12716729.77 | E157: -12726.21154 | F157: 5046087.054 | G157: -7670642.713 | H157: 1282.828003 | I157: 11443.38354
B158: 2022-06-01 | C158: 55775.13056 | D158: -12660954.64 | E158: -12726.21154 | F158: 5033360.842 | G158: -7627593.794 | H158: 1282.828003 | I158: 11443.38354
B159: 2022-07-01 | C159: 55775.13056 | D159: -12605179.51 | E159: -12726.21154 | F159: 5020634.631 | G159: -7584544.875 | H159: 1282.828003 | I159: 11443.38354
B160: 2022-08-01 | C160: 55775.13056 | D160: -12549404.38 | E160: -12726.21154 | F160: 5007908.419 | G160: -7541495.956 | H160: 1282.828003 | I160: 11443.38354
B161: 2022-09-01 | C161: 55775.13056 | D161: -12493629.24 | E161: -12726.21154 | F161: 4995182.208 | G161: -7498447.037 | H161: 1282.828003 | I161: 11443.38354
B162: 2022-10-01 | C162: 55775.13056 | D162: -12437854.11 | E162: -12726.21154 | F162: 4982455.996 | G162: -7455398.118 | H162: 1282.828003 | I162: 11443.38354
B163: 2022-11-01 | C163: 55775.13056 | D163: -12382078.98 | E163: -12726.21154 | F163: 4969729.785 | G163: -7412349.199 | H163: 1282.828003 | I163: 11443.38354
B164: 2022-12-01 | C164: 55775.13056 | D164: -12326303.85 | E164: -12726.21154 | F164: 4957003.573 | G164: -7369300.28 | H164: 1282.828003 | I164: 11443.38354
B165: 2023-01-01 | C165: 55775.13056 | D165: -12270528.72 | E165: -12726.21154 | F165: 4944277.362 | G165: -7326251.361 | H165: 1282.828003 | I165: 11443.38354
B166: 2023-02-01 | C166: 55775.13056 | D166: -12214753.59 | E166: -12726.21154 | F166: 4931551.15 | G166: -7283202.442 | H166: 1282.828003 | I166: 11443.38354
B167: 2023-03-01 | C167: 55775.13056 | D167: -12158978.46 | E167: -12726.21154 | F167: 4918824.938 | G167: -7240153.523 | H167: 1282.828003 | I167: 11443.38354
B168: 2023-04-01 | C168: 55775.13056 | D168: -12103203.33 | E168: -12726.21154 | F168: 4906098.727 | G168: -7197104.604 | H168: 1282.828003 | I168: 11443.38354
B169: 2023-05-01 | C169: 55775.13056 | D169: -12047428.2 | E169: -12726.21154 | F169: 4893372.515 | G169: -7154055.685 | H169: 1282.828003 | I169: 11443.38354
B170: 2023-06-01 | C170: =-$F$15 -> 55775.13056 | D170: =+D169+C170 -> -11991653.07 | E170: =-C170*$M$21 -> -12726.21154 | F170: 4880646.304 | G170: -7111006.766 | H170: =+$H$21*$C170 -> 1282.828003 | I170: =C170*$L$21 -> 11443.38354
B171: 2023-07-01 | C171: 55775.13056 | D171: -11935877.94 | E171: -12726.21154 | F171: 4867920.092 | G171: -7067957.847 | H171: 1282.828003 | I171: 11443.38354
B172: 2023-08-01 | C172: 55775.13056 | D172: -11880102.81 | E172: -12726.21154 | F172: 4855193.881 | G172: -7024908.928 | H172: 1282.828003 | I172: 11443.38354
B173: 2023-09-01 | C173: 55775.13056 | D173: -11824327.68 | E173: -12726.21154 | F173: 4842467.669 | G173: -6981860.009 | H173: 1282.828003 | I173: 11443.38354
B174: 2023-10-01 | C174: 55775.13056 | D174: -11768552.55 | E174: -12726.21154 | F174: 4829741.458 | G174: -6938811.09 | H174: 1282.828003 | I174: 11443.38354
B175: 2023-11-01 | C175: 55775.13056 | D175: -11712777.42 | E175: -12726.21154 | F175: 4817015.246 | G175: -6895762.17 | H175: 1282.828003 | I175: 11443.38354
B176: 2023-12-01 | C176: 55775.13056 | D176: -11657002.29 | E176: -12726.21154 | F176: 4804289.035 | G176: -6852713.251 | H176: 1282.828003 | I176: 11443.38354
B177: 2024-01-01 | C177: 55775.13056 | D177: -11601227.16 | E177: -12726.21154 | F177: 4791562.823 | G177: -6809664.332 | H177: 1282.828003 | I177: 11443.38354
B178: 2024-02-01 | C178: 55775.13056 | D178: -11545452.03 | E178: -12726.21154 | F178: 4778836.612 | G178: -6766615.413 | H178: 1282.828003 | I178: 11443.38354
B179: 2024-03-01 | C179: 55775.13056 | D179: -11489676.89 | E179: -12726.21154 | F179: 4766110.4 | G179: -6723566.494 | H179: 1282.828003 | I179: 11443.38354
B180: 2024-04-01 | C180: 55775.13056 | D180: -11433901.76 | E180: -12726.21154 | F180: 4753384.188 | G180: -6680517.575 | H180: 1282.828003 | I180: 11443.38354
B181: 2024-05-01 | C181: 55775.13056 | D181: -11378126.63 | E181: -12726.21154 | F181: 4740657.977 | G181: -6637468.656 | H181: 1282.828003 | I181: 11443.38354
B182: 2024-06-01 | C182: 55775.13056 | D182: -11322351.5 | E182: -12726.21154 | F182: 4727931.765 | G182: -6594419.737 | H182: 1282.828003 | I182: 11443.38354
B183: 2024-07-01 | C183: 55775.13056 | D183: -11266576.37 | E183: -12726.21154 | F183: 4715205.554 | G183: -6551370.818 | H183: 1282.828003 | I183: 11443.38354
B184: 2024-08-01 | C184: 55775.13056 | D184: -11210801.24 | E184: -12726.21154 | F184: 4702479.342 | G184: -6508321.899 | H184: 1282.828003 | I184: 11443.38354
B185: 2024-09-01 | C185: 55775.13056 | D185: -11155026.11 | E185: -12726.21154 | F185: 4689753.131 | G185: -6465272.98 | H185: 1282.828003 | I185: 11443.38354
B186: 2024-10-01 | C186: 55775.13056 | D186: -11099250.98 | E186: -12726.21154 | F186: 4677026.919 | G186: -6422224.061 | H186: 1282.828003 | I186: 11443.38354
B187: 2024-11-01 | C187: 55775.13056 | D187: -11043475.85 | E187: -12726.21154 | F187: 4664300.708 | G187: -6379175.142 | H187: 1282.828003 | I187: 11443.38354
B188: 2024-12-01 | C188: 55775.13056 | D188: -10987700.72 | E188: -12726.21154 | F188: 4651574.496 | G188: -6336126.223 | H188: 1282.828003 | I188: 11443.38354
B189: 2025-01-01 | C189: 55775.13056 | D189: -10931925.59 | E189: -12726.21154 | F189: 4638848.285 | G189: -6293077.304 | H189: 1282.828003 | I189: 11443.38354
B190: 2025-02-01 | C190: 55775.13056 | D190: -10876150.46 | E190: -12726.21154 | F190: 4626122.073 | G190: -6250028.385 | H190: 1282.828003 | I190: 11443.38354
B191: 2025-03-01 | C191: 55775.13056 | D191: -10820375.33 | E191: -12726.21154 | F191: 4613395.862 | G191: -6206979.466 | H191: 1282.828003 | I191: 11443.38354
B192: 2025-04-01 | C192: 55775.13056 | D192: -10764600.2 | E192: -12726.21154 | F192: 4600669.65 | G192: -6163930.547 | H192: 1282.828003 | I192: 11443.38354
B193: 2025-05-01 | C193: 55775.13056 | D193: -10708825.07 | E193: -12726.21154 | F193: 4587943.438 | G193: -6120881.628 | H193: 1282.828003 | I193: 11443.38354
B194: 2025-06-01 | C194: 55775.13056 | D194: -10653049.94 | E194: -12726.21154 | F194: 4575217.227 | G194: -6077832.709 | H194: 1282.828003 | I194: 11443.38354
B195: 2025-07-01 | C195: 55775.13056 | D195: -10597274.81 | E195: -12726.21154 | F195: 4562491.015 | G195: -6034783.79 | H195: 1282.828003 | I195: 11443.38354
B196: 2025-08-01 | C196: 55775.13056 | D196: -10541499.68 | E196: -12726.21154 | F196: 4549764.804 | G196: -5991734.871 | H196: 1282.828003 | I196: 11443.38354
B197: 2025-09-01 | C197: 55775.13056 | D197: -10485724.54 | E197: -12726.21154 | F197: 4537038.592 | G197: -5948685.952 | H197: 1282.828003 | I197: 11443.38354
B198: 2025-10-01 | C198: 55775.13056 | D198: -10429949.41 | E198: -12726.21154 | F198: 4524312.381 | G198: -5905637.033 | H198: 1282.828003 | I198: 11443.38354
B199: 2025-11-01 | C199: 55775.13056 | D199: -10374174.28 | E199: -12726.21154 | F199: 4511586.169 | G199: -5862588.114 | H199: 1282.828003 | I199: 11443.38354
B200: 2025-12-01 | C200: 55775.13056 | D200: -10318399.15 | E200: -12726.21154 | F200: 4498859.958 | G200: -5819539.195 | H200: 1282.828003 | I200: 11443.38354
B201: 2026-01-01 | C201: 55775.13056 | D201: -10262624.02 | E201: -12726.21154 | F201: 4486133.746 | G201: -5776490.276 | H201: 1282.828003 | I201: 11443.38354
B202: 2026-02-01 | C202: 55775.13056 | D202: -10206848.89 | E202: -12726.21154 | F202: 4473407.535 | G202: -5733441.357 | H202: 1282.828003 | I202: 11443.38354
B203: 2026-03-01 | C203: 55775.13056 | D203: -10151073.76 | E203: -12726.21154 | F203: 4460681.323 | G203: -5690392.438 | H203: 1282.828003 | I203: 11443.38354
B204: 2026-04-01 | C204: 55775.13056 | D204: -10095298.63 | E204: -12726.21154 | F204: 4447955.112 | G204: -5647343.519 | H204: 1282.828003 | I204: 11443.38354
B205: 2026-05-01 | C205: 55775.13056 | D205: -10039523.5 | E205: -12726.21154 | F205: 4435228.9 | G205: -5604294.6 | H205: 1282.828003 | I205: 11443.38354
... 180 more rows

Sheet 20107
A1: Amortization Schedule
A2: GL# 010.0000.2150.20107.002000 | F2: 10 years | G2: 10 years | H2: 10 years
B4: (Gain) Loss | C4: Years | D4: Annual Amort | F4: Jan 2013-Dec-2023 | G4: Jan 2023-Dec-2033 | H4: Jan 2033-Dec-2042 | I4: Jan 2013-Dec-2043
A5: Deutsche Bank AG | B5: 17703796.05 | C5: 30 | D5: =B5/C5 -> 590126.535 | F5: =D5*10 -> 5901265.35 | G5: =D5*10 -> 5901265.35 | H5: =D5*10 -> 5901265.35 | I5: =SUM(F5:H5) -> 17703796.05
A6: Goldman Sachs | B6: 24403396 | C6: 30 | D6: =B6/C6 -> 813446.5333 | F6: =D6*10 -> 8134465.333 | G6: =D6*10 -> 8134465.333 | H6: =D6*10 -> 8134465.333 | I6: =SUM(F6:H6) -> 24403396
A7: Bank of Tokyo - Mitsubishi UFJ | B7: 24518512 | C7: 30 | D7: =B7/C7 -> 817283.7333 | F7: =D7*10 -> 8172837.333 | G7: =D7*10 -> 8172837.333 | H7: =D7*10 -> 8172837.333 | I7: =SUM(F7:H7) -> 24518512
A9: Total | B9: =SUM(B5:B7) -> 66625704.05 | D9: =SUM(D5:D7) -> 2220856.802 | F9: =SUM(F5:F8) -> 22208568.02 | G9: =SUM(G5:G8) -> 22208568.02 | H9: =SUM(H5:H8) -> 22208568.02 | I9: =SUM(F9:H9) -> 66625704.05
D11: # months to Amort | F11: =10*12 -> 120 | G11: =10*12 -> 120 | H11: =10*12 -> 120 | I11: =SUM(F11:H11) -> 360
F13: DR (CR) | G13: DR (CR) | H13: DR (CR)
C14: LT Int Exp | D14: Monthly Amort | F14: =F9/F11 -> 185071.4001 | G14: =G9/G11 -> 185071.4001 | H14: =H9/H11 -> 185071.4001
C15: 2830.xxxxx | D15: Def State Tax | E15: 0.023 | F15: =F14*E15 -> 4256.642203 | G15: =G14*E15 -> 4256.642203 | H15: =H14*E15 -> 4256.642203 | I15: =H15*360 -> 1532391.193
C16: 2830.xxxxx | D16: Def Fed Tax | E16: 0.342 | F16: =F14*E16 -> 63294.41885 | G16: =G14*E16 -> 63294.41885 | H16: =H14*E16 -> 63294.41885 | I16: =H16*360 -> 22785990.79
E17: 0.20517
A19: T-Lock Settlement | G19: Net OCI | H19: Def State Tax | I19: Def Fed Tax
H20: =E15 -> 0.023 | I20: =E16 -> 0.342 | J20: =H20+I20 -> 0.365 | L20: 0.20517 | M20: =H20+L20 -> 0.22817
C21: 2150.20107 | D21: 2150.20107 | E21: 2150.20107 | F21: 2150.20107 | G21: 2150.20107 | H21: 2830.28206 | I21: 2830.28201
C22: Amort | D22: T-Lock Settlement | E22: Def Tax Adj | F22: Def Taxes | G22: Net of Tax | H22: Adjustment | I22: Adjustment
C23: DR (CR) | D23: DR (CR) | E23: DR (CR) | F23: DR (CR) | H23: DR (CR) | I23: DR (CR)
A24: Balance at June 30, 2011 | B24: 2013-01-01 | D24: =B9 -> 66625704.05 | F24: =-D24*J20 -> -24318381.98 | G24: =SUM(D24:F24) -> 42307322.07 | H24: 0 | I24: 0
B25: 2013-02-01 | C25: =-$F$14 -> -185071.4001 | D25: =D24+C25 -> 66440632.65 | E25: =-C25*$J$20 -> 67551.06105 | F25: =F24+E25 -> -24250830.92 | G25: =G24+C25+E25 -> 42189801.73 | H25: =$H$20*C25 -> -4256.642203 | I25: =$I$20*C25 -> -63294.41885
B26: 2013-03-01 | C26: =-$F$14 -> -185071.4001 | D26: =D25+C26 -> 66255561.25 | E26: =-C26*$J$20 -> 67551.06105 | F26: =F25+E26 -> -24183279.86 | G26: =G25+C26+E26 -> 42072281.39 | H26: =$H$20*C26 -> -4256.642203 | I26: =$I$20*C26 -> -63294.41885
B27: 2013-04-01 | C27: =-$F$14 -> -185071.4001 | D27: 66070489.85 | E27: 67551.06105 | F27: -24115728.8 | G27: 41954761.05 | H27: -4256.642203 | I27: -63294.41885
B28: 2013-05-01 | C28: -185071.4001 | D28: 65885418.45 | E28: 67551.06105 | F28: -24048177.73 | G28: 41837240.72 | H28: -4256.642203 | I28: -63294.41885
B29: 2013-06-01 | C29: -185071.4001 | D29: 65700347.05 | E29: 67551.06105 | F29: -23980626.67 | G29: 41719720.38 | H29: -4256.642203 | I29: -63294.41885
B30: 2013-07-01 | C30: -185071.4001 | D30: 65515275.65 | E30: 67551.06105 | F30: -23913075.61 | G30: 41602200.04 | H30: -4256.642203 | I30: -63294.41885
B31: 2013-08-01 | C31: -185071.4001 | D31: 65330204.25 | E31: 67551.06105 | F31: -23845524.55 | G31: 41484679.7 | H31: -4256.642203 | I31: -63294.41885
B32: 2013-09-01 | C32: -185071.4001 | D32: 65145132.85 | E32: 67551.06105 | F32: -23777973.49 | G32: 41367159.36 | H32: -4256.642203 | I32: -63294.41885
B33: 2013-10-01 | C33: -185071.4001 | D33: 64960061.45 | E33: 67551.06105 | F33: -23710422.43 | G33: 41249639.02 | H33: -4256.642203 | I33: -63294.41885
B34: 2013-11-01 | C34: -185071.4001 | D34: 64774990.05 | E34: 67551.06105 | F34: -23642871.37 | G34: 41132118.68 | H34: -4256.642203 | I34: -63294.41885
B35: 2013-12-01 | C35: -185071.4001 | D35: 64589918.65 | E35: 67551.06105 | F35: -23575320.31 | G35: 41014598.34 | H35: -4256.642203 | I35: -63294.41885
B36: 2014-01-01 | C36: -185071.4001 | D36: 64404847.25 | E36: 67551.06105 | F36: -23507769.25 | G36: 40897078 | H36: -4256.642203 | I36: -63294.41885
B37: 2014-02-01 | C37: -185071.4001 | D37: 64219775.85 | E37: 67551.06105 | F37: -23440218.18 | G37: 40779557.66 | H37: -4256.642203 | I37: -63294.41885
B38: 2014-03-01 | C38: -185071.4001 | D38: 64034704.45 | E38: 67551.06105 | F38: -23372667.12 | G38: 40662037.32 | H38: -4256.642203 | I38: -63294.41885
B39: 2014-04-01 | C39: -185071.4001 | D39: 63849633.05 | E39: 67551.06105 | F39: -23305116.06 | G39: 40544516.99 | H39: -4256.642203 | I39: -63294.41885
B40: 2014-05-01 | C40: -185071.4001 | D40: 63664561.65 | E40: 67551.06105 | F40: -23237565 | G40: 40426996.65 | H40: -4256.642203 | I40: -63294.41885
B41: 2014-06-01 | C41: -185071.4001 | D41: 63479490.25 | E41: 67551.06105 | F41: -23170013.94 | G41: 40309476.31 | H41: -4256.642203 | I41: -63294.41885
B42: 2014-07-01 | C42: -185071.4001 | D42: 63294418.85 | E42: 67551.06105 | F42: -23102462.88 | G42: 40191955.97 | H42: -4256.642203 | I42: -63294.41885
B43: 2014-08-01 | C43: -185071.4001 | D43: 63109347.45 | E43: 67551.06105 | F43: -23034911.82 | G43: 40074435.63 | H43: -4256.642203 | I43: -63294.41885
B44: 2014-09-01 | C44: -185071.4001 | D44: 62924276.05 | E44: 67551.06105 | F44: -22967360.76 | G44: 39956915.29 | H44: -4256.642203 | I44: -63294.41885
B45: 2014-10-01 | C45: -185071.4001 | D45: 62739204.65 | E45: 67551.06105 | F45: -22899809.7 | G45: 39839394.95 | H45: -4256.642203 | I45: -63294.41885
B46: 2014-11-01 | C46: -185071.4001 | D46: 62554133.25 | E46: 67551.06105 | F46: -22832258.64 | G46: 39721874.61 | H46: -4256.642203 | I46: -63294.41885
B47: 2014-12-01 | C47: -185071.4001 | D47: 62369061.85 | E47: 67551.06105 | F47: -22764707.57 | G47: 39604354.27 | H47: -4256.642203 | I47: -63294.41885
B48: 2015-01-01 | C48: -185071.4001 | D48: 62183990.45 | E48: 67551.06105 | F48: -22697156.51 | G48: 39486833.93 | H48: -4256.642203 | I48: -63294.41885
B49: 2015-02-01 | C49: -185071.4001 | D49: 61998919.05 | E49: 67551.06105 | F49: -22629605.45 | G49: 39369313.59 | H49: -4256.642203 | I49: -63294.41885
B50: 2015-03-01 | C50: -185071.4001 | D50: 61813847.65 | E50: 67551.06105 | F50: -22562054.39 | G50: 39251793.26 | H50: -4256.642203 | I50: -63294.41885
B51: 2015-04-01 | C51: -185071.4001 | D51: 61628776.25 | E51: 67551.06105 | F51: -22494503.33 | G51: 39134272.92 | H51: -4256.642203 | I51: -63294.41885
B52: 2015-05-01 | C52: -185071.4001 | D52: 61443704.85 | E52: 67551.06105 | F52: -22426952.27 | G52: 39016752.58 | H52: -4256.642203 | I52: -63294.41885
B53: 2015-06-01 | C53: -185071.4001 | D53: 61258633.45 | E53: 67551.06105 | F53: -22359401.21 | G53: 38899232.24 | H53: -4256.642203 | I53: -63294.41885
B54: 2015-07-01 | C54: -185071.4001 | D54: 61073562.05 | E54: 67551.06105 | F54: -22291850.15 | G54: 38781711.9 | H54: -4256.642203 | I54: -63294.41885
B55: 2015-08-01 | C55: -185071.4001 | D55: 60888490.65 | E55: 67551.06105 | F55: -22224299.09 | G55: 38664191.56 | H55: -4256.642203 | I55: -63294.41885
B56: 2015-09-01 | C56: -185071.4001 | D56: 60703419.25 | E56: 67551.06105 | F56: -22156748.02 | G56: 38546671.22 | H56: -4256.642203 | I56: -63294.41885
B57: 2015-10-01 | C57: -185071.4001 | D57: 60518347.85 | E57: 67551.06105 | F57: -22089196.96 | G57: 38429150.88 | H57: -4256.642203 | I57: -63294.41885
B58: 2015-11-01 | C58: -185071.4001 | D58: 60333276.45 | E58: 67551.06105 | F58: -22021645.9 | G58: 38311630.54 | H58: -4256.642203 | I58: -63294.41885
B59: 2015-12-01 | C59: -185071.4001 | D59: 60148205.05 | E59: 67551.06105 | F59: -21954094.84 | G59: 38194110.2 | H59: -4256.642203 | I59: -63294.41885
B60: 2016-01-01 | C60: -185071.4001 | D60: 59963133.64 | E60: 67551.06105 | F60: -21886543.78 | G60: 38076589.86 | H60: -4256.642203 | I60: -63294.41885
B61: 2016-02-01 | C61: -185071.4001 | D61: 59778062.24 | E61: 67551.06105 | F61: -21818992.72 | G61: 37959069.53 | H61: -4256.642203 | I61: -63294.41885
B62: 2016-03-01 | C62: -185071.4001 | D62: 59592990.84 | E62: 67551.06105 | F62: -21751441.66 | G62: 37841549.19 | H62: -4256.642203 | I62: -63294.41885
B63: 2016-04-01 | C63: -185071.4001 | D63: 59407919.44 | E63: 67551.06105 | F63: -21683890.6 | G63: 37724028.85 | H63: -4256.642203 | I63: -63294.41885
B64: 2016-05-01 | C64: -185071.4001 | D64: 59222848.04 | E64: 67551.06105 | F64: -21616339.54 | G64: 37606508.51 | H64: -4256.642203 | I64: -63294.41885
B65: 2016-06-01 | C65: -185071.4001 | D65: 59037776.64 | E65: 67551.06105 | F65: -21548788.48 | G65: 37488988.17 | H65: -4256.642203 | I65: -63294.41885
B66: 2016-07-01 | C66: -185071.4001 | D66: 58852705.24 | E66: 67551.06105 | F66: -21481237.41 | G66: 37371467.83 | H66: -4256.642203 | I66: -63294.41885
B67: 2016-08-01 | C67: -185071.4001 | D67: 58667633.84 | E67: 67551.06105 | F67: -21413686.35 | G67: 37253947.49 | H67: -4256.642203 | I67: -63294.41885
B68: 2016-09-01 | C68: -185071.4001 | D68: 58482562.44 | E68: 67551.06105 | F68: -21346135.29 | G68: 37136427.15 | H68: -4256.642203 | I68: -63294.41885
B69: 2016-10-01 | C69: -185071.4001 | D69: 58297491.04 | E69: 67551.06105 | F69: -21278584.23 | G69: 37018906.81 | H69: -4256.642203 | I69: -63294.41885
B70: 2016-11-01 | C70: -185071.4001 | D70: 58112419.64 | E70: 67551.06105 | F70: -21211033.17 | G70: 36901386.47 | H70: -4256.642203 | I70: -63294.41885
B71: 2016-12-01 | C71: -185071.4001 | D71: 57927348.24 | E71: 67551.06105 | F71: -21143482.11 | G71: 36783866.13 | H71: -4256.642203 | I71: -63294.41885
B72: 2017-01-01 | C72: -185071.4001 | D72: 57742276.84 | E72: 67551.06105 | F72: -21075931.05 | G72: 36666345.8 | H72: -4256.642203 | I72: -63294.41885
B73: 2017-02-01 | C73: -185071.4001 | D73: 57557205.44 | E73: 67551.06105 | F73: -21008379.99 | G73: 36548825.46 | H73: -4256.642203 | I73: -63294.41885
B74: 2017-03-01 | C74: -185071.4001 | D74: 57372134.04 | E74: 67551.06105 | F74: -20940828.93 | G74: 36431305.12 | H74: -4256.642203 | I74: -63294.41885
B75: 2017-04-01 | C75: -185071.4001 | D75: 57187062.64 | E75: 67551.06105 | F75: -20873277.86 | G75: 36313784.78 | H75: -4256.642203 | I75: -63294.41885
B76: 2017-05-01 | C76: -185071.4001 | D76: 57001991.24 | E76: 67551.06105 | F76: -20805726.8 | G76: 36196264.44 | H76: -4256.642203 | I76: -63294.41885
B77: 2017-06-01 | C77: -185071.4001 | D77: 56816919.84 | E77: 67551.06105 | F77: -20738175.74 | G77: 36078744.1 | H77: -4256.642203 | I77: -63294.41885
B78: 2017-07-01 | C78: -185071.4001 | D78: 56631848.44 | E78: 67551.06105 | F78: -20670624.68 | G78: 35961223.76 | H78: -4256.642203 | I78: -63294.41885
B79: 2017-08-01 | C79: -185071.4001 | D79: 56446777.04 | E79: 67551.06105 | F79: -20603073.62 | G79: 35843703.42 | H79: -4256.642203 | I79: -63294.41885
B80: 2017-09-01 | C80: -185071.4001 | D80: 56261705.64 | E80: 67551.06105 | F80: -20535522.56 | G80: 35726183.08 | H80: -4256.642203 | I80: -63294.41885
B81: 2017-10-01 | C81: -185071.4001 | D81: 56076634.24 | E81: 67551.06105 | F81: -20467971.5 | G81: 35608662.74 | H81: -4256.642203 | I81: -63294.41885
B82: 2017-11-01 | C82: -185071.4001 | D82: 55891562.84 | E82: 67551.06105 | F82: -20400420.44 | G82: 35491142.4 | H82: -4256.642203 | I82: -63294.41885
B83: 2017-12-01 | C83: -185071.4001 | D83: 55706491.44 | E83: =-C83*$J$20 -> 67551.06105 | F83: -20332869.38 | G83: 35373622.07 | H83: -4256.642203 | I83: =$I$20*C83 -> -63294.41885
B84: 2018-01-01 | C84: =-$F$14 -> -185071.4001 | D84: =D83+C84 -> 55521420.04 | E84: =-C84*$M$20 -> 42227.74137 | F84: =F83+E84 -> -20290641.63 | G84: =G83+C84+E84 -> 35230778.41 | H84: =$H$20*C84 -> -4256.642203 | I84: =C84*$L$20 -> -37971.09917
B85: 2018-02-01 | C85: =-$F$14 -> -185071.4001 | D85: =D84+C85 -> 55336348.64 | E85: =-C85*$M$20 -> 42227.74137 | F85: =F84+E85 -> -20248413.89 | G85: =G84+C85+E85 -> 35087934.75 | H85: =$H$20*C85 -> -4256.642203 | I85: =C85*$L$20 -> -37971.09917
B86: 2018-03-01 | C86: -185071.4001 | D86: 55151277.24 | E86: =-C86*$M$20 -> 42227.74137 | F86: -20206186.15 | G86: 34945091.09 | H86: -4256.642203 | I86: -37971.09917
B87: 2018-04-01 | C87: -185071.4001 | D87: 54966205.84 | E87: =-C87*$M$20 -> 42227.74137 | F87: -20163958.41 | G87: 34802247.43 | H87: -4256.642203 | I87: -37971.09917
B88: 2018-05-01 | C88: -185071.4001 | D88: 54781134.44 | E88: 42227.74137 | F88: -20121730.67 | G88: 34659403.77 | H88: -4256.642203 | I88: -37971.09917
B89: 2018-06-01 | C89: -185071.4001 | D89: 54596063.04 | E89: 42227.74137 | F89: -20079502.93 | G89: 34516560.11 | H89: -4256.642203 | I89: -37971.09917
B90: 2018-07-01 | C90: -185071.4001 | D90: 54410991.64 | E90: 42227.74137 | F90: -20037275.19 | G90: 34373716.45 | H90: -4256.642203 | I90: -37971.09917
B91: 2018-08-01 | C91: -185071.4001 | D91: 54225920.24 | E91: 42227.74137 | F91: -19995047.45 | G91: 34230872.8 | H91: -4256.642203 | I91: -37971.09917
B92: 2018-09-01 | C92: -185071.4001 | D92: 54040848.84 | E92: 42227.74137 | F92: -19952819.7 | G92: 34088029.14 | H92: -4256.642203 | I92: -37971.09917
B93: 2018-10-01 | C93: -185071.4001 | D93: 53855777.44 | E93: 42227.74137 | F93: -19910591.96 | G93: 33945185.48 | H93: -4256.642203 | I93: -37971.09917
B94: 2018-11-01 | C94: -185071.4001 | D94: 53670706.04 | E94: 42227.74137 | F94: -19868364.22 | G94: 33802341.82 | H94: -4256.642203 | I94: -37971.09917
B95: 2018-12-01 | C95: -185071.4001 | D95: 53485634.64 | E95: 42227.74137 | F95: -19826136.48 | G95: 33659498.16 | H95: -4256.642203 | I95: -37971.09917
B96: 2019-01-01 | C96: -185071.4001 | D96: 53300563.24 | E96: 42227.74137 | F96: -19783908.74 | G96: 33516654.5 | H96: -4256.642203 | I96: -37971.09917
B97: 2019-02-01 | C97: -185071.4001 | D97: 53115491.84 | E97: 42227.74137 | F97: -19741681 | G97: 33373810.84 | H97: -4256.642203 | I97: -37971.09917
B98: 2019-03-01 | C98: -185071.4001 | D98: 52930420.44 | E98: 42227.74137 | F98: -19699453.26 | G98: 33230967.18 | H98: -4256.642203 | I98: -37971.09917
B99: 2019-04-01 | C99: -185071.4001 | D99: 52745349.04 | E99: 42227.74137 | F99: -19657225.51 | G99: 33088123.53 | H99: -4256.642203 | I99: -37971.09917
B100: 2019-05-01 | C100: -185071.4001 | D100: 52560277.64 | E100: 42227.74137 | F100: -19614997.77 | G100: 32945279.87 | H100: -4256.642203 | I100: -37971.09917
B101: 2019-06-01 | C101: -185071.4001 | D101: 52375206.24 | E101: 42227.74137 | F101: -19572770.03 | G101: 32802436.21 | H101: -4256.642203 | I101: -37971.09917
B102: 2019-07-01 | C102: -185071.4001 | D102: 52190134.84 | E102: 42227.74137 | F102: -19530542.29 | G102: 32659592.55 | H102: -4256.642203 | I102: -37971.09917
B103: 2019-08-01 | C103: -185071.4001 | D103: 52005063.44 | E103: 42227.74137 | F103: -19488314.55 | G103: 32516748.89 | H103: -4256.642203 | I103: -37971.09917
B104: 2019-09-01 | C104: -185071.4001 | D104: 51819992.04 | E104: 42227.74137 | F104: -19446086.81 | G104: 32373905.23 | H104: -4256.642203 | I104: -37971.09917
B105: 2019-10-01 | C105: -185071.4001 | D105: 51634920.64 | E105: 42227.74137 | F105: -19403859.07 | G105: 32231061.57 | H105: -4256.642203 | I105: -37971.09917
B106: 2019-11-01 | C106: -185071.4001 | D106: 51449849.24 | E106: 42227.74137 | F106: -19361631.32 | G106: 32088217.91 | H106: -4256.642203 | I106: -37971.09917
B107: 2019-12-01 | C107: -185071.4001 | D107: 51264777.84 | E107: 42227.74137 | F107: -19319403.58 | G107: 31945374.26 | H107: -4256.642203 | I107: -37971.09917
B108: 2020-01-01 | C108: -185071.4001 | D108: 51079706.44 | E108: 42227.74137 | F108: -19277175.84 | G108: 31802530.6 | H108: -4256.642203 | I108: -37971.09917
B109: 2020-02-01 | C109: -185071.4001 | D109: 50894635.04 | E109: 42227.74137 | F109: -19234948.1 | G109: 31659686.94 | H109: -4256.642203 | I109: -37971.09917
B110: 2020-03-01 | C110: -185071.4001 | D110: 50709563.64 | E110: 42227.74137 | F110: -19192720.36 | G110: 31516843.28 | H110: -4256.642203 | I110: -37971.09917
B111: 2020-04-01 | C111: -185071.4001 | D111: 50524492.24 | E111: 42227.74137 | F111: -19150492.62 | G111: 31373999.62 | H111: -4256.642203 | I111: -37971.09917
B112: 2020-05-01 | C112: -185071.4001 | D112: 50339420.84 | E112: 42227.74137 | F112: -19108264.88 | G112: 31231155.96 | H112: -4256.642203 | I112: -37971.09917
B113: 2020-06-01 | C113: -185071.4001 | D113: 50154349.44 | E113: 42227.74137 | F113: -19066037.14 | G113: 31088312.3 | H113: -4256.642203 | I113: -37971.09917
B114: 2020-07-01 | C114: -185071.4001 | D114: 49969278.04 | E114: 42227.74137 | F114: -19023809.39 | G114: 30945468.64 | H114: -4256.642203 | I114: -37971.09917
B115: 2020-08-01 | C115: -185071.4001 | D115: 49784206.64 | E115: 42227.74137 | F115: -18981581.65 | G115: 30802624.98 | H115: -4256.642203 | I115: -37971.09917
B116: 2020-09-01 | C116: -185071.4001 | D116: 49599135.24 | E116: 42227.74137 | F116: -18939353.91 | G116: 30659781.33 | H116: -4256.642203 | I116: -37971.09917
B117: 2020-10-01 | C117: -185071.4001 | D117: 49414063.84 | E117: 42227.74137 | F117: -18897126.17 | G117: 30516937.67 | H117: -4256.642203 | I117: -37971.09917
B118: 2020-11-01 | C118: -185071.4001 | D118: 49228992.44 | E118: 42227.74137 | F118: -18854898.43 | G118: 30374094.01 | H118: -4256.642203 | I118: -37971.09917
B119: 2020-12-01 | C119: -185071.4001 | D119: 49043921.04 | E119: 42227.74137 | F119: -18812670.69 | G119: 30231250.35 | H119: -4256.642203 | I119: -37971.09917
B120: 2021-01-01 | C120: -185071.4001 | D120: 48858849.64 | E120: 42227.74137 | F120: -18770442.95 | G120: 30088406.69 | H120: -4256.642203 | I120: -37971.09917
B121: 2021-02-01 | C121: -185071.4001 | D121: 48673778.24 | E121: 42227.74137 | F121: -18728215.2 | G121: 29945563.03 | H121: -4256.642203 | I121: -37971.09917
B122: 2021-03-01 | C122: -185071.4001 | D122: 48488706.84 | E122: 42227.74137 | F122: -18685987.46 | G122: 29802719.37 | H122: -4256.642203 | I122: -37971.09917
B123: 2021-04-01 | C123: -185071.4001 | D123: 48303635.44 | E123: 42227.74137 | F123: -18643759.72 | G123: 29659875.71 | H123: -4256.642203 | I123: -37971.09917
B124: 2021-05-01 | C124: -185071.4001 | D124: 48118564.04 | E124: 42227.74137 | F124: -18601531.98 | G124: 29517032.06 | H124: -4256.642203 | I124: -37971.09917
B125: 2021-06-01 | C125: -185071.4001 | D125: 47933492.64 | E125: 42227.74137 | F125: -18559304.24 | G125: 29374188.4 | H125: -4256.642203 | I125: -37971.09917
B126: 2021-07-01 | C126: -185071.4001 | D126: 47748421.24 | E126: 42227.74137 | F126: -18517076.5 | G126: 29231344.74 | H126: -4256.642203 | I126: -37971.09917
B127: 2021-08-01 | C127: -185071.4001 | D127: 47563349.84 | E127: 42227.74137 | F127: -18474848.76 | G127: 29088501.08 | H127: -4256.642203 | I127: -37971.09917
B128: 2021-09-01 | C128: -185071.4001 | D128: 47378278.44 | E128: 42227.74137 | F128: -18432621.01 | G128: 28945657.42 | H128: -4256.642203 | I128: -37971.09917
B129: 2021-10-01 | C129: -185071.4001 | D129: 47193207.04 | E129: 42227.74137 | F129: -18390393.27 | G129: 28802813.76 | H129: -4256.642203 | I129: -37971.09917
B130: 2021-11-01 | C130: -185071.4001 | D130: 47008135.64 | E130: 42227.74137 | F130: -18348165.53 | G130: 28659970.1 | H130: -4256.642203 | I130: -37971.09917
B131: 2021-12-01 | C131: -185071.4001 | D131: 46823064.24 | E131: 42227.74137 | F131: -18305937.79 | G131: 28517126.44 | H131: -4256.642203 | I131: -37971.09917
B132: 2022-01-01 | C132: -185071.4001 | D132: 46637992.83 | E132: 42227.74137 | F132: -18263710.05 | G132: 28374282.79 | H132: -4256.642203 | I132: -37971.09917
B133: 2022-02-01 | C133: -185071.4001 | D133: 46452921.43 | E133: 42227.74137 | F133: -18221482.31 | G133: 28231439.13 | H133: -4256.642203 | I133: -37971.09917
B134: 2022-03-01 | C134: -185071.4001 | D134: 46267850.03 | E134: 42227.74137 | F134: -18179254.57 | G134: 28088595.47 | H134: -4256.642203 | I134: -37971.09917
B135: 2022-04-01 | C135: -185071.4001 | D135: 46082778.63 | E135: 42227.74137 | F135: -18137026.83 | G135: 27945751.81 | H135: -4256.642203 | I135: -37971.09917
B136: 2022-05-01 | C136: -185071.4001 | D136: 45897707.23 | E136: 42227.74137 | F136: -18094799.08 | G136: 27802908.15 | H136: -4256.642203 | I136: -37971.09917
B137: 2022-06-01 | C137: -185071.4001 | D137: 45712635.83 | E137: 42227.74137 | F137: -18052571.34 | G137: 27660064.49 | H137: -4256.642203 | I137: -37971.09917
B138: 2022-07-01 | C138: -185071.4001 | D138: 45527564.43 | E138: 42227.74137 | F138: -18010343.6 | G138: 27517220.83 | H138: -4256.642203 | I138: -37971.09917
B139: 2022-08-01 | C139: -185071.4001 | D139: 45342493.03 | E139: 42227.74137 | F139: -17968115.86 | G139: 27374377.17 | H139: -4256.642203 | I139: -37971.09917
B140: 2022-09-01 | C140: -185071.4001 | D140: 45157421.63 | E140: 42227.74137 | F140: -17925888.12 | G140: 27231533.52 | H140: -4256.642203 | I140: -37971.09917
B141: 2022-10-01 | C141: -185071.4001 | D141: 44972350.23 | E141: 42227.74137 | F141: -17883660.38 | G141: 27088689.86 | H141: -4256.642203 | I141: -37971.09917
B142: 2022-11-01 | C142: -185071.4001 | D142: 44787278.83 | E142: 42227.74137 | F142: -17841432.64 | G142: 26945846.2 | H142: -4256.642203 | I142: -37971.09917
B143: 2022-12-01 | C143: -185071.4001 | D143: 44602207.43 | E143: 42227.74137 | F143: -17799204.89 | G143: 26803002.54 | H143: -4256.642203 | I143: -37971.09917
B144: 2023-01-01 | C144: -185071.4001 | D144: 44417136.03 | E144: 42227.74137 | F144: -17756977.15 | G144: 26660158.88 | H144: -4256.642203 | I144: -37971.09917
B145: 2023-02-01 | C145: -185071.4001 | D145: 44232064.63 | E145: 42227.74137 | F145: -17714749.41 | G145: 26517315.22 | H145: -4256.642203 | I145: -37971.09917
B146: 2023-03-01 | C146: -185071.4001 | D146: 44046993.23 | E146: 42227.74137 | F146: -17672521.67 | G146: 26374471.56 | H146: -4256.642203 | I146: -37971.09917
B147: 2023-04-01 | C147: -185071.4001 | D147: 43861921.83 | E147: 42227.74137 | F147: -17630293.93 | G147: 26231627.9 | H147: -4256.642203 | I147: -37971.09917
B148: 2023-05-01 | C148: -185071.4001 | D148: 43676850.43 | E148: 42227.74137 | F148: -17588066.19 | G148: 26088784.25 | H148: -4256.642203 | I148: -37971.09917
B149: 2023-06-01 | C149: =-$F$14 -> -185071.4001 | D149: =D148+C149 -> 43491779.03 | E149: 42227.74137 | F149: =F148+E149 -> -17545838.45 | G149: =G148+C149+E149 -> 25945940.59 | H149: =$H$20*C149 -> -4256.642203 | I149: =C149*$L$20 -> -37971.09917
B150: 2023-07-01 | C150: -185071.4001 | D150: 43306707.63 | E150: 42227.74137 | F150: -17503610.7 | G150: 25803096.93 | H150: -4256.642203 | I150: -37971.09917
B151: 2023-08-01 | C151: -185071.4001 | D151: 43121636.23 | E151: =-C151*$M$20 -> 42227.74137 | F151: -17461382.96 | G151: 25660253.27 | H151: -4256.642203 | I151: -37971.09917
B152: 2023-09-01 | C152: -185071.4001 | D152: 42936564.83 | E152: 42227.74137 | F152: -17419155.22 | G152: 25517409.61 | H152: -4256.642203 | I152: -37971.09917
B153: 2023-10-01 | C153: -185071.4001 | D153: 42751493.43 | E153: 42227.74137 | F153: -17376927.48 | G153: 25374565.95 | H153: -4256.642203 | I153: -37971.09917
B154: 2023-11-01 | C154: -185071.4001 | D154: 42566422.03 | E154: 42227.74137 | F154: -17334699.74 | G154: 25231722.29 | H154: -4256.642203 | I154: -37971.09917
B155: 2023-12-01 | C155: -185071.4001 | D155: 42381350.63 | E155: 42227.74137 | F155: -17292472 | G155: 25088878.63 | H155: -4256.642203 | I155: -37971.09917
B156: 2024-01-01 | C156: -185071.4001 | D156: 42196279.23 | E156: 42227.74137 | F156: -17250244.26 | G156: 24946034.98 | H156: -4256.642203 | I156: -37971.09917
B157: 2024-02-01 | C157: -185071.4001 | D157: 42011207.83 | E157: 42227.74137 | F157: -17208016.51 | G157: 24803191.32 | H157: -4256.642203 | I157: -37971.09917
B158: 2024-03-01 | C158: -185071.4001 | D158: 41826136.43 | E158: 42227.74137 | F158: -17165788.77 | G158: 24660347.66 | H158: -4256.642203 | I158: -37971.09917
B159: 2024-04-01 | C159: -185071.4001 | D159: 41641065.03 | E159: 42227.74137 | F159: -17123561.03 | G159: 24517504 | H159: -4256.642203 | I159: -37971.09917
B160: 2024-05-01 | C160: -185071.4001 | D160: 41455993.63 | E160: 42227.74137 | F160: -17081333.29 | G160: 24374660.34 | H160: -4256.642203 | I160: -37971.09917
B161: 2024-06-01 | C161: -185071.4001 | D161: 41270922.23 | E161: 42227.74137 | F161: -17039105.55 | G161: 24231816.68 | H161: -4256.642203 | I161: -37971.09917
B162: 2024-07-01 | C162: -185071.4001 | D162: 41085850.83 | E162: 42227.74137 | F162: -16996877.81 | G162: 24088973.02 | H162: -4256.642203 | I162: -37971.09917
B163: 2024-08-01 | C163: -185071.4001 | D163: 40900779.43 | E163: 42227.74137 | F163: -16954650.07 | G163: 23946129.36 | H163: -4256.642203 | I163: -37971.09917
B164: 2024-09-01 | C164: -185071.4001 | D164: 40715708.03 | E164: 42227.74137 | F164: -16912422.33 | G164: 23803285.71 | H164: -4256.642203 | I164: -37971.09917
B165: 2024-10-01 | C165: -185071.4001 | D165: 40530636.63 | E165: 42227.74137 | F165: -16870194.58 | G165: 23660442.05 | H165: -4256.642203 | I165: -37971.09917
B166: 2024-11-01 | C166: -185071.4001 | D166: 40345565.23 | E166: 42227.74137 | F166: -16827966.84 | G166: 23517598.39 | H166: -4256.642203 | I166: -37971.09917
B167: 2024-12-01 | C167: -185071.4001 | D167: 40160493.83 | E167: 42227.74137 | F167: -16785739.1 | G167: 23374754.73 | H167: -4256.642203 | I167: -37971.09917
B168: 2025-01-01 | C168: -185071.4001 | D168: 39975422.43 | E168: 42227.74137 | F168: -16743511.36 | G168: 23231911.07 | H168: -4256.642203 | I168: -37971.09917
B169: 2025-02-01 | C169: -185071.4001 | D169: 39790351.03 | E169: 42227.74137 | F169: -16701283.62 | G169: 23089067.41 | H169: -4256.642203 | I169: -37971.09917
B170: 2025-03-01 | C170: -185071.4001 | D170: 39605279.63 | E170: 42227.74137 | F170: -16659055.88 | G170: 22946223.75 | H170: -4256.642203 | I170: -37971.09917
B171: 2025-04-01 | C171: -185071.4001 | D171: 39420208.23 | E171: 42227.74137 | F171: -16616828.14 | G171: 22803380.09 | H171: -4256.642203 | I171: -37971.09917
B172: 2025-05-01 | C172: -185071.4001 | D172: 39235136.83 | E172: 42227.74137 | F172: -16574600.39 | G172: 22660536.44 | H172: -4256.642203 | I172: -37971.09917
B173: 2025-06-01 | C173: -185071.4001 | D173: 39050065.43 | E173: 42227.74137 | F173: -16532372.65 | G173: 22517692.78 | H173: -4256.642203 | I173: -37971.09917
B174: 2025-07-01 | C174: -185071.4001 | D174: 38864994.03 | E174: 42227.74137 | F174: -16490144.91 | G174: 22374849.12 | H174: -4256.642203 | I174: -37971.09917
B175: 2025-08-01 | C175: -185071.4001 | D175: 38679922.63 | E175: 42227.74137 | F175: -16447917.17 | G175: 22232005.46 | H175: -4256.642203 | I175: -37971.09917
B176: 2025-09-01 | C176: -185071.4001 | D176: 38494851.23 | E176: 42227.74137 | F176: -16405689.43 | G176: 22089161.8 | H176: -4256.642203 | I176: -37971.09917
B177: 2025-10-01 | C177: -185071.4001 | D177: 38309779.83 | E177: 42227.74137 | F177: -16363461.69 | G177: 21946318.14 | H177: -4256.642203 | I177: -37971.09917
B178: 2025-11-01 | C178: -185071.4001 | D178: 38124708.43 | E178: 42227.74137 | F178: -16321233.95 | G178: 21803474.48 | H178: -4256.642203 | I178: -37971.09917
B179: 2025-12-01 | C179: -185071.4001 | D179: 37939637.03 | E179: 42227.74137 | F179: -16279006.2 | G179: 21660630.82 | H179: -4256.642203 | I179: -37971.09917
B180: 2026-01-01 | C180: -185071.4001 | D180: 37754565.63 | E180: 42227.74137 | F180: -16236778.46 | G180: 21517787.16 | H180: -4256.642203 | I180: -37971.09917
B181: 2026-02-01 | C181: -185071.4001 | D181: 37569494.23 | E181: 42227.74137 | F181: -16194550.72 | G181: 21374943.51 | H181: -4256.642203 | I181: -37971.09917
B182: 2026-03-01 | C182: -185071.4001 | D182: 37384422.83 | E182: 42227.74137 | F182: -16152322.98 | G182: 21232099.85 | H182: -4256.642203 | I182: -37971.09917
B183: 2026-04-01 | C183: -185071.4001 | D183: 37199351.43 | E183: 42227.74137 | F183: -16110095.24 | G183: 21089256.19 | H183: -4256.642203 | I183: -37971.09917
B184: 2026-05-01 | C184: -185071.4001 | D184: 37014280.03 | E184: 42227.74137 | F184: -16067867.5 | G184: 20946412.53 | H184: -4256.642203 | I184: -37971.09917
B185: 2026-06-01 | C185: -185071.4001 | D185: 36829208.63 | E185: 42227.74137 | F185: -16025639.76 | G185: 20803568.87 | H185: -4256.642203 | I185: -37971.09917
B186: 2026-07-01 | C186: -185071.4001 | D186: 36644137.23 | E186: 42227.74137 | F186: -15983412.02 | G186: 20660725.21 | H186: -4256.642203 | I186: -37971.09917
B187: 2026-08-01 | C187: -185071.4001 | D187: 36459065.83 | E187: 42227.74137 | F187: -15941184.27 | G187: 20517881.55 | H187: -4256.642203 | I187: -37971.09917
B188: 2026-09-01 | C188: -185071.4001 | D188: 36273994.43 | E188: 42227.74137 | F188: -15898956.53 | G188: 20375037.89 | H188: -4256.642203 | I188: -37971.09917
B189: 2026-10-01 | C189: -185071.4001 | D189: 36088923.03 | E189: 42227.74137 | F189: -15856728.79 | G189: 20232194.24 | H189: -4256.642203 | I189: -37971.09917
B190: 2026-11-01 | C190: -185071.4001 | D190: 35903851.63 | E190: 42227.74137 | F190: -15814501.05 | G190: 20089350.58 | H190: -4256.642203 | I190: -37971.09917
B191: 2026-12-01 | C191: -185071.4001 | D191: 35718780.23 | E191: 42227.74137 | F191: -15772273.31 | G191: 19946506.92 | H191: -4256.642203 | I191: -37971.09917
B192: 2027-01-01 | C192: -185071.4001 | D192: 35533708.83 | E192: 42227.74137 | F192: -15730045.57 | G192: 19803663.26 | H192: -4256.642203 | I192: -37971.09917
B193: 2027-02-01 | C193: -185071.4001 | D193: 35348637.43 | E193: 42227.74137 | F193: -15687817.83 | G193: 19660819.6 | H193: -4256.642203 | I193: -37971.09917
B194: 2027-03-01 | C194: -185071.4001 | D194: 35163566.03 | E194: 42227.74137 | F194: -15645590.08 | G194: 19517975.94 | H194: -4256.642203 | I194: -37971.09917
B195: 2027-04-01 | C195: -185071.4001 | D195: 34978494.63 | E195: 42227.74137 | F195: -15603362.34 | G195: 19375132.28 | H195: -4256.642203 | I195: -37971.09917
B196: 2027-05-01 | C196: -185071.4001 | D196: 34793423.23 | E196: 42227.74137 | F196: -15561134.6 | G196: 19232288.62 | H196: -4256.642203 | I196: -37971.09917
B197: 2027-06-01 | C197: -185071.4001 | D197: 34608351.83 | E197: 42227.74137 | F197: -15518906.86 | G197: 19089444.97 | H197: -4256.642203 | I197: -37971.09917
B198: 2027-07-01 | C198: -185071.4001 | D198: 34423280.43 | E198: 42227.74137 | F198: -15476679.12 | G198: 18946601.31 | H198: -4256.642203 | I198: -37971.09917
B199: 2027-08-01 | C199: -185071.4001 | D199: 34238209.03 | E199: 42227.74137 | F199: -15434451.38 | G199: 18803757.65 | H199: -4256.642203 | I199: -37971.09917
B200: 2027-09-01 | C200: -185071.4001 | D200: 34053137.63 | E200: 42227.74137 | F200: -15392223.64 | G200: 18660913.99 | H200: -4256.642203 | I200: -37971.09917
B201: 2027-10-01 | C201: -185071.4001 | D201: 33868066.23 | E201: 42227.74137 | F201: -15349995.89 | G201: 18518070.33 | H201: -4256.642203 | I201: -37971.09917
B202: 2027-11-01 | C202: -185071.4001 | D202: 33682994.83 | E202: 42227.74137 | F202: -15307768.15 | G202: 18375226.67 | H202: -4256.642203 | I202: -37971.09917
B203: 2027-12-01 | C203: -185071.4001 | D203: 33497923.43 | E203: 42227.74137 | F203: -15265540.41 | G203: 18232383.01 | H203: -4256.642203 | I203: -37971.09917
B204: 2028-01-01 | C204: -185071.4001 | D204: 33312852.02 | E204: 42227.74137 | F204: -15223312.67 | G204: 18089539.35 | H204: -4256.642203 | I204: -37971.09917
B205: 2028-02-01 | C205: -185071.4001 | D205: 33127780.62 | E205: 42227.74137 | F205: -15181084.93 | G205: 17946695.7 | H205: -4256.642203 | I205: -37971.09917
... 179 more rows

Sheet 20108
A1: Amortization Schedule
A2: GL# 010.0000.2150.20108.002000
B4: (Gain) Loss | C4: Years | D4: Annual Amort
A5: RBS | B5: -3940950 | C5: 30 | D5: =B5/C5 -> -131365
A6: Goldman Sachs | B6: -3085120 | C6: 30 | D6: =B6/C6 -> -102837.3333
A7: Morgan Stanley | B7: -3210000 | C7: 30 | D7: =B7/C7 -> -107000
A8: JPMorgan | B8: -3128280 | C8: 30 | D8: =B8/C8 -> -104276
A10: Total | B10: =SUM(B5:B8) -> -13364350 | D10: =SUM(D5:D8) -> -445478.3333
F14: DR (CR)
C15: LT Int Exp | D15: Monthly Amort | F15: =B10/360 -> -37123.19444
C16: 2830.xxxxx | D16: Def State Tax | E16: 0.023 | F16: =-F15*E16 -> 853.8334722
C17: 2830.xxxxx | D17: Def Fed Tax | E17: 0.342 | F17: =-F15*E17 -> 12696.1325
E18: =SUM(E16:E17) -> 0.365
E19: 20.517
A20: T-Lock Settlement | G20: Net OCI | H20: Def State Tax | I20: Def Fed Tax
H21: =E16 -> 0.023 | I21: =E17 -> 0.342 | J21: =H21+I21 -> 0.365 | L21: 0.20517 | M21: =H21+L21 -> 0.22817
C22: 2150.20108 | D22: 2150.20108 | E22: 2150.20108 | F22: 2150.20108 | G22: 2150.20108 | H22: 2830.28206 | I22: 2830.28201
C23: Amort | D23: T-Lock Settlement | E23: Def Tax Adj | F23: Def Taxes | G23: Net of Tax | H23: Adjustment | I23: Adjustment
C24: DR (CR) | D24: DR (CR) | E24: DR (CR) | F24: DR (CR) | H24: DR (CR) | I24: DR (CR)
B25: 2014-10-01 | D25: =B10 -> -13364350 | F25: =-D25*E18 -> 4877987.75 | G25: =SUM(D25:F25) -> -8486362.25 | H25: 0 | I25: 0
B26: 2014-11-01 | C26: =-$F$15 -> 37123.19444 | D26: =D25+C26 -> -13327226.81 | E26: =$F$15*$E$18 -> -13549.96597 | F26: =F25+E26 -> 4864437.784 | G26: =G25+C26+E26 -> -8462789.022 | H26: =$F$16 -> 853.8334722 | I26: =$F$17 -> 12696.1325
B27: 2014-12-01 | C27: =-$F$15 -> 37123.19444 | D27: =D26+C27 -> -13290103.61 | E27: =$F$15*$E$18 -> -13549.96597 | F27: =F26+E27 -> 4850887.818 | G27: =G26+C27+E27 -> -8439215.793 | H27: =$F$16 -> 853.8334722 | I27: =$F$17 -> 12696.1325
B28: 2015-01-01 | C28: 37123.19444 | D28: -13252980.42 | E28: -13549.96597 | F28: =F27+E28 -> 4837337.852 | G28: -8415642.565 | H28: 853.8334722 | I28: 12696.1325
B29: 2015-02-01 | C29: 37123.19444 | D29: -13215857.22 | E29: -13549.96597 | F29: 4823787.886 | G29: -8392069.336 | H29: 853.8334722 | I29: 12696.1325
B30: 2015-03-01 | C30: 37123.19444 | D30: -13178734.03 | E30: -13549.96597 | F30: 4810237.92 | G30: -8368496.108 | H30: 853.8334722 | I30: 12696.1325
B31: 2015-04-01 | C31: 37123.19444 | D31: -13141610.83 | E31: -13549.96597 | F31: 4796687.954 | G31: -8344922.879 | H31: 853.8334722 | I31: 12696.1325
B32: 2015-05-01 | C32: 37123.19444 | D32: -13104487.64 | E32: -13549.96597 | F32: 4783137.988 | G32: -8321349.651 | H32: 853.8334722 | I32: 12696.1325
B33: 2015-06-01 | C33: 37123.19444 | D33: -13067364.44 | E33: -13549.96597 | F33: 4769588.022 | G33: -8297776.422 | H33: 853.8334722 | I33: 12696.1325
B34: 2015-07-01 | C34: 37123.19444 | D34: -13030241.25 | E34: -13549.96597 | F34: 4756038.056 | G34: -8274203.194 | H34: 853.8334722 | I34: 12696.1325
B35: 2015-08-01 | C35: 37123.19444 | D35: -12993118.06 | E35: -13549.96597 | F35: 4742488.09 | G35: -8250629.965 | H35: 853.8334722 | I35: 12696.1325
B36: 2015-09-01 | C36: 37123.19444 | D36: -12955994.86 | E36: -13549.96597 | F36: 4728938.124 | G36: -8227056.737 | H36: 853.8334722 | I36: 12696.1325
B37: 2015-10-01 | C37: 37123.19444 | D37: -12918871.67 | E37: -13549.96597 | F37: 4715388.158 | G37: -8203483.508 | H37: 853.8334722 | I37: 12696.1325
B38: 2015-11-01 | C38: 37123.19444 | D38: -12881748.47 | E38: -13549.96597 | F38: 4701838.192 | G38: -8179910.28 | H38: 853.8334722 | I38: 12696.1325
B39: 2015-12-01 | C39: 37123.19444 | D39: -12844625.28 | E39: -13549.96597 | F39: 4688288.226 | G39: -8156337.051 | H39: 853.8334722 | I39: 12696.1325
B40: 2016-01-01 | C40: 37123.19444 | D40: -12807502.08 | E40: -13549.96597 | F40: 4674738.26 | G40: -8132763.823 | H40: 853.8334722 | I40: 12696.1325
B41: 2016-02-01 | C41: 37123.19444 | D41: -12770378.89 | E41: -13549.96597 | F41: 4661188.294 | G41: -8109190.594 | H41: 853.8334722 | I41: 12696.1325
B42: 2016-03-01 | C42: 37123.19444 | D42: -12733255.69 | E42: -13549.96597 | F42: 4647638.328 | G42: -8085617.366 | H42: 853.8334722 | I42: 12696.1325
B43: 2016-04-01 | C43: 37123.19444 | D43: -12696132.5 | E43: -13549.96597 | F43: 4634088.362 | G43: -8062044.138 | H43: 853.8334722 | I43: 12696.1325
B44: 2016-05-01 | C44: 37123.19444 | D44: -12659009.31 | E44: -13549.96597 | F44: 4620538.397 | G44: -8038470.909 | H44: 853.8334722 | I44: 12696.1325
B45: 2016-06-01 | C45: 37123.19444 | D45: -12621886.11 | E45: -13549.96597 | F45: 4606988.431 | G45: -8014897.681 | H45: 853.8334722 | I45: 12696.1325
B46: 2016-07-01 | C46: 37123.19444 | D46: -12584762.92 | E46: -13549.96597 | F46: 4593438.465 | G46: -7991324.452 | H46: 853.8334722 | I46: 12696.1325
B47: 2016-08-01 | C47: 37123.19444 | D47: -12547639.72 | E47: -13549.96597 | F47: 4579888.499 | G47: -7967751.224 | H47: 853.8334722 | I47: 12696.1325
B48: 2016-09-01 | C48: 37123.19444 | D48: -12510516.53 | E48: -13549.96597 | F48: 4566338.533 | G48: -7944177.995 | H48: 853.8334722 | I48: 12696.1325
B49: 2016-10-01 | C49: 37123.19444 | D49: -12473393.33 | E49: -13549.96597 | F49: 4552788.567 | G49: -7920604.767 | H49: 853.8334722 | I49: 12696.1325
B50: 2016-11-01 | C50: 37123.19444 | D50: -12436270.14 | E50: -13549.96597 | F50: 4539238.601 | G50: -7897031.538 | H50: 853.8334722 | I50: 12696.1325
B51: 2016-12-01 | C51: 37123.19444 | D51: -12399146.94 | E51: -13549.96597 | F51: 4525688.635 | G51: -7873458.31 | H51: 853.8334722 | I51: 12696.1325
B52: 2017-01-01 | C52: 37123.19444 | D52: -12362023.75 | E52: -13549.96597 | F52: 4512138.669 | G52: -7849885.081 | H52: 853.8334722 | I52: 12696.1325
B53: 2017-02-01 | C53: 37123.19444 | D53: -12324900.56 | E53: -13549.96597 | F53: 4498588.703 | G53: -7826311.853 | H53: 853.8334722 | I53: 12696.1325
B54: 2017-03-01 | C54: 37123.19444 | D54: -12287777.36 | E54: -13549.96597 | F54: 4485038.737 | G54: -7802738.624 | H54: 853.8334722 | I54: 12696.1325
B55: 2017-04-01 | C55: 37123.19444 | D55: -12250654.17 | E55: -13549.96597 | F55: 4471488.771 | G55: -7779165.396 | H55: 853.8334722 | I55: 12696.1325
B56: 2017-05-01 | C56: 37123.19444 | D56: -12213530.97 | E56: -13549.96597 | F56: 4457938.805 | G56: -7755592.167 | H56: 853.8334722 | I56: 12696.1325
B57: 2017-06-01 | C57: 37123.19444 | D57: -12176407.78 | E57: -13549.96597 | F57: 4444388.839 | G57: -7732018.939 | H57: 853.8334722 | I57: 12696.1325
B58: 2017-07-01 | C58: 37123.19444 | D58: -12139284.58 | E58: -13549.96597 | F58: 4430838.873 | G58: -7708445.71 | H58: 853.8334722 | I58: 12696.1325
B59: 2017-08-01 | C59: 37123.19444 | D59: -12102161.39 | E59: -13549.96597 | F59: 4417288.907 | G59: -7684872.482 | H59: 853.8334722 | I59: 12696.1325
B60: 2017-09-01 | C60: 37123.19444 | D60: -12065038.19 | E60: -13549.96597 | F60: 4403738.941 | G60: -7661299.253 | H60: 853.8334722 | I60: 12696.1325
B61: 2017-10-01 | C61: 37123.19444 | D61: -12027915 | E61: -13549.96597 | F61: 4390188.975 | G61: -7637726.025 | H61: 853.8334722 | I61: 12696.1325
B62: 2017-11-01 | C62: 37123.19444 | D62: -11990791.81 | E62: -13549.96597 | F62: 4376639.009 | G62: -7614152.797 | H62: 853.8334722 | I62: 12696.1325
B63: 2017-12-01 | C63: 37123.19444 | D63: -11953668.61 | E63: -13549.96597 | F63: 4363089.043 | G63: -7590579.568 | H63: 853.8334722 | I63: 12696.1325
B64: 2018-01-01 | C64: =-$F$15 -> 37123.19444 | D64: =D63+C64 -> -11916545.42 | E64: =$F$15*$M$21 -> -8470.399276 | F64: 4354618.644 | G64: =G63+C64+E64 -> -7561926.773 | H64: =C64*$H$21 -> 853.8334722 | I64: =C64*$L$21 -> 7616.565804
B65: 2018-02-01 | C65: =-$F$15 -> 37123.19444 | D65: =D64+C65 -> -11879422.22 | E65: =$F$15*$M$21 -> -8470.399276 | F65: 4346148.245 | G65: =G64+C65+E65 -> -7533273.978 | H65: =C65*$H$21 -> 853.8334722 | I65: =C65*$L$21 -> 7616.565804
B66: 2018-03-01 | C66: 37123.19444 | D66: -11842299.03 | E66: =$F$15*$M$21 -> -8470.399276 | F66: 4337677.845 | G66: -7504621.183 | H66: 853.8334722 | I66: 7616.565804
B67: 2018-04-01 | C67: 37123.19444 | D67: -11805175.83 | E67: =$F$15*$M$21 -> -8470.399276 | F67: 4329207.446 | G67: -7475968.387 | H67: 853.8334722 | I67: 7616.565804
B68: 2018-05-01 | C68: 37123.19444 | D68: -11768052.64 | E68: =$F$15*$M$21 -> -8470.399276 | F68: 4320737.047 | G68: -7447315.592 | H68: 853.8334722 | I68: 7616.565804
B69: 2018-06-01 | C69: 37123.19444 | D69: -11730929.44 | E69: =$F$15*$M$21 -> -8470.399276 | F69: 4312266.647 | G69: -7418662.797 | H69: 853.8334722 | I69: 7616.565804
B70: 2018-07-01 | C70: 37123.19444 | D70: -11693806.25 | E70: -8470.399276 | F70: 4303796.248 | G70: -7390010.002 | H70: 853.8334722 | I70: 7616.565804
B71: 2018-08-01 | C71: 37123.19444 | D71: -11656683.06 | E71: -8470.399276 | F71: 4295325.849 | G71: -7361357.207 | H71: 853.8334722 | I71: 7616.565804
B72: 2018-09-01 | C72: 37123.19444 | D72: -11619559.86 | E72: -8470.399276 | F72: 4286855.45 | G72: -7332704.412 | H72: 853.8334722 | I72: 7616.565804
B73: 2018-10-01 | C73: 37123.19444 | D73: -11582436.67 | E73: -8470.399276 | F73: 4278385.05 | G73: -7304051.616 | H73: 853.8334722 | I73: 7616.565804
B74: 2018-11-01 | C74: 37123.19444 | D74: -11545313.47 | E74: -8470.399276 | F74: 4269914.651 | G74: -7275398.821 | H74: 853.8334722 | I74: 7616.565804
B75: 2018-12-01 | C75: 37123.19444 | D75: -11508190.28 | E75: -8470.399276 | F75: 4261444.252 | G75: -7246746.026 | H75: 853.8334722 | I75: 7616.565804
B76: 2019-01-01 | C76: 37123.19444 | D76: -11471067.08 | E76: -8470.399276 | F76: 4252973.852 | G76: -7218093.231 | H76: 853.8334722 | I76: 7616.565804
B77: 2019-02-01 | C77: 37123.19444 | D77: -11433943.89 | E77: -8470.399276 | F77: 4244503.453 | G77: -7189440.436 | H77: 853.8334722 | I77: 7616.565804
B78: 2019-03-01 | C78: 37123.19444 | D78: -11396820.69 | E78: -8470.399276 | F78: 4236033.054 | G78: -7160787.641 | H78: 853.8334722 | I78: 7616.565804
B79: 2019-04-01 | C79: 37123.19444 | D79: -11359697.5 | E79: -8470.399276 | F79: 4227562.655 | G79: -7132134.845 | H79: 853.8334722 | I79: 7616.565804
B80: 2019-05-01 | C80: 37123.19444 | D80: -11322574.31 | E80: -8470.399276 | F80: 4219092.255 | G80: -7103482.05 | H80: 853.8334722 | I80: 7616.565804
B81: 2019-06-01 | C81: 37123.19444 | D81: -11285451.11 | E81: -8470.399276 | F81: 4210621.856 | G81: -7074829.255 | H81: 853.8334722 | I81: 7616.565804
B82: 2019-07-01 | C82: 37123.19444 | D82: -11248327.92 | E82: -8470.399276 | F82: 4202151.457 | G82: -7046176.46 | H82: 853.8334722 | I82: 7616.565804
B83: 2019-08-01 | C83: 37123.19444 | D83: -11211204.72 | E83: -8470.399276 | F83: 4193681.058 | G83: -7017523.665 | H83: 853.8334722 | I83: 7616.565804
B84: 2019-09-01 | C84: 37123.19444 | D84: -11174081.53 | E84: -8470.399276 | F84: 4185210.658 | G84: -6988870.87 | H84: 853.8334722 | I84: 7616.565804
B85: 2019-10-01 | C85: 37123.19444 | D85: -11136958.33 | E85: -8470.399276 | F85: 4176740.259 | G85: -6960218.074 | H85: 853.8334722 | I85: 7616.565804
B86: 2019-11-01 | C86: 37123.19444 | D86: -11099835.14 | E86: -8470.399276 | F86: 4168269.86 | G86: -6931565.279 | H86: 853.8334722 | I86: 7616.565804
B87: 2019-12-01 | C87: 37123.19444 | D87: -11062711.94 | E87: -8470.399276 | F87: 4159799.46 | G87: -6902912.484 | H87: 853.8334722 | I87: 7616.565804
B88: 2020-01-01 | C88: 37123.19444 | D88: -11025588.75 | E88: -8470.399276 | F88: 4151329.061 | G88: -6874259.689 | H88: 853.8334722 | I88: 7616.565804
B89: 2020-02-01 | C89: 37123.19444 | D89: -10988465.56 | E89: -8470.399276 | F89: 4142858.662 | G89: -6845606.894 | H89: 853.8334722 | I89: 7616.565804
B90: 2020-03-01 | C90: 37123.19444 | D90: -10951342.36 | E90: -8470.399276 | F90: 4134388.263 | G90: -6816954.099 | H90: 853.8334722 | I90: 7616.565804
B91: 2020-04-01 | C91: 37123.19444 | D91: -10914219.17 | E91: -8470.399276 | F91: 4125917.863 | G91: -6788301.303 | H91: 853.8334722 | I91: 7616.565804
B92: 2020-05-01 | C92: 37123.19444 | D92: -10877095.97 | E92: -8470.399276 | F92: =F91+E92 -> 4117447.464 | G92: -6759648.508 | H92: 853.8334722 | I92: 7616.565804
B93: 2020-06-01 | C93: 37123.19444 | D93: -10839972.78 | E93: -8470.399276 | F93: 4108977.065 | G93: -6730995.713 | H93: 853.8334722 | I93: 7616.565804
B94: 2020-07-01 | C94: 37123.19444 | D94: -10802849.58 | E94: -8470.399276 | F94: 4100506.665 | G94: -6702342.918 | H94: 853.8334722 | I94: 7616.565804
B95: 2020-08-01 | C95: 37123.19444 | D95: -10765726.39 | E95: -8470.399276 | F95: 4092036.266 | G95: -6673690.123 | H95: 853.8334722 | I95: 7616.565804
B96: 2020-09-01 | C96: 37123.19444 | D96: -10728603.19 | E96: -8470.399276 | F96: 4083565.867 | G96: -6645037.328 | H96: 853.8334722 | I96: 7616.565804
B97: 2020-10-01 | C97: 37123.19444 | D97: -10691480 | E97: -8470.399276 | F97: 4075095.468 | G97: -6616384.532 | H97: 853.8334722 | I97: 7616.565804
B98: 2020-11-01 | C98: 37123.19444 | D98: -10654356.81 | E98: -8470.399276 | F98: 4066625.068 | G98: -6587731.737 | H98: 853.8334722 | I98: 7616.565804
B99: 2020-12-01 | C99: 37123.19444 | D99: -10617233.61 | E99: -8470.399276 | F99: 4058154.669 | G99: -6559078.942 | H99: 853.8334722 | I99: 7616.565804
B100: 2021-01-01 | C100: 37123.19444 | D100: -10580110.42 | E100: -8470.399276 | F100: 4049684.27 | G100: -6530426.147 | H100: 853.8334722 | I100: 7616.565804
B101: 2021-02-01 | C101: 37123.19444 | D101: -10542987.22 | E101: -8470.399276 | F101: 4041213.871 | G101: -6501773.352 | H101: 853.8334722 | I101: 7616.565804
B102: 2021-03-01 | C102: 37123.19444 | D102: -10505864.03 | E102: -8470.399276 | F102: 4032743.471 | G102: -6473120.557 | H102: 853.8334722 | I102: 7616.565804
B103: 2021-04-01 | C103: 37123.19444 | D103: -10468740.83 | E103: -8470.399276 | F103: 4024273.072 | G103: -6444467.761 | H103: 853.8334722 | I103: 7616.565804
B104: 2021-05-01 | C104: 37123.19444 | D104: -10431617.64 | E104: -8470.399276 | F104: 4015802.673 | G104: -6415814.966 | H104: 853.8334722 | I104: 7616.565804
B105: 2021-06-01 | C105: 37123.19444 | D105: -10394494.44 | E105: -8470.399276 | F105: 4007332.273 | G105: -6387162.171 | H105: 853.8334722 | I105: 7616.565804
B106: 2021-07-01 | C106: 37123.19444 | D106: -10357371.25 | E106: -8470.399276 | F106: 3998861.874 | G106: -6358509.376 | H106: 853.8334722 | I106: 7616.565804
B107: 2021-08-01 | C107: 37123.19444 | D107: -10320248.06 | E107: -8470.399276 | F107: 3990391.475 | G107: -6329856.581 | H107: 853.8334722 | I107: 7616.565804
B108: 2021-09-01 | C108: 37123.19444 | D108: -10283124.86 | E108: -8470.399276 | F108: 3981921.076 | G108: -6301203.785 | H108: 853.8334722 | I108: 7616.565804
B109: 2021-10-01 | C109: 37123.19444 | D109: -10246001.67 | E109: -8470.399276 | F109: 3973450.676 | G109: -6272550.99 | H109: 853.8334722 | I109: 7616.565804
B110: 2021-11-01 | C110: 37123.19444 | D110: -10208878.47 | E110: -8470.399276 | F110: 3964980.277 | G110: -6243898.195 | H110: 853.8334722 | I110: 7616.565804
B111: 2021-12-01 | C111: 37123.19444 | D111: -10171755.28 | E111: -8470.399276 | F111: 3956509.878 | G111: -6215245.4 | H111: 853.8334722 | I111: 7616.565804
B112: 2022-01-01 | C112: 37123.19444 | D112: -10134632.08 | E112: -8470.399276 | F112: 3948039.479 | G112: -6186592.605 | H112: 853.8334722 | I112: 7616.565804
B113: 2022-02-01 | C113: 37123.19444 | D113: -10097508.89 | E113: -8470.399276 | F113: 3939569.079 | G113: -6157939.81 | H113: 853.8334722 | I113: 7616.565804
B114: 2022-03-01 | C114: 37123.19444 | D114: -10060385.69 | E114: -8470.399276 | F114: 3931098.68 | G114: -6129287.014 | H114: 853.8334722 | I114: 7616.565804
B115: 2022-04-01 | C115: 37123.19444 | D115: -10023262.5 | E115: -8470.399276 | F115: 3922628.281 | G115: -6100634.219 | H115: 853.8334722 | I115: 7616.565804
B116: 2022-05-01 | C116: 37123.19444 | D116: -9986139.306 | E116: -8470.399276 | F116: 3914157.881 | G116: -6071981.424 | H116: 853.8334722 | I116: 7616.565804
B117: 2022-06-01 | C117: 37123.19444 | D117: -9949016.111 | E117: -8470.399276 | F117: 3905687.482 | G117: -6043328.629 | H117: 853.8334722 | I117: 7616.565804
B118: 2022-07-01 | C118: 37123.19444 | D118: -9911892.917 | E118: -8470.399276 | F118: 3897217.083 | G118: -6014675.834 | H118: 853.8334722 | I118: 7616.565804
B119: 2022-08-01 | C119: 37123.19444 | D119: -9874769.722 | E119: -8470.399276 | F119: 3888746.684 | G119: -5986023.039 | H119: 853.8334722 | I119: 7616.565804
B120: 2022-09-01 | C120: 37123.19444 | D120: -9837646.528 | E120: -8470.399276 | F120: 3880276.284 | G120: -5957370.243 | H120: 853.8334722 | I120: 7616.565804
B121: 2022-10-01 | C121: 37123.19444 | D121: -9800523.333 | E121: -8470.399276 | F121: 3871805.885 | G121: -5928717.448 | H121: 853.8334722 | I121: 7616.565804
B122: 2022-11-01 | C122: 37123.19444 | D122: -9763400.139 | E122: -8470.399276 | F122: 3863335.486 | G122: -5900064.653 | H122: 853.8334722 | I122: 7616.565804
B123: 2022-12-01 | C123: 37123.19444 | D123: -9726276.944 | E123: -8470.399276 | F123: 3854865.086 | G123: -5871411.858 | H123: 853.8334722 | I123: 7616.565804
B124: 2023-01-01 | C124: 37123.19444 | D124: -9689153.75 | E124: -8470.399276 | F124: 3846394.687 | G124: -5842759.063 | H124: 853.8334722 | I124: 7616.565804
B125: 2023-02-01 | C125: 37123.19444 | D125: -9652030.556 | E125: -8470.399276 | F125: 3837924.288 | G125: -5814106.268 | H125: 853.8334722 | I125: 7616.565804
B126: 2023-03-01 | C126: 37123.19444 | D126: -9614907.361 | E126: -8470.399276 | F126: 3829453.889 | G126: -5785453.472 | H126: 853.8334722 | I126: 7616.565804
B127: 2023-04-01 | C127: 37123.19444 | D127: -9577784.167 | E127: -8470.399276 | F127: 3820983.489 | G127: -5756800.677 | H127: 853.8334722 | I127: 7616.565804
B128: 2023-05-01 | C128: 37123.19444 | D128: -9540660.972 | E128: -8470.399276 | F128: 3812513.09 | G128: -5728147.882 | H128: 853.8334722 | I128: 7616.565804
B129: 2023-06-01 | C129: =-$F$15 -> 37123.19444 | D129: =D128+C129 -> -9503537.778 | E129: -8470.399276 | F129: 3804042.691 | G129: =G128+C129+E129 -> -5699495.087 | H129: =C129*$H$21 -> 853.8334722 | I129: =C129*$L$21 -> 7616.565804
B130: 2023-07-01 | C130: 37123.19444 | D130: -9466414.583 | E130: -8470.399276 | F130: 3795572.292 | G130: -5670842.292 | H130: 853.8334722 | I130: 7616.565804
B131: 2023-08-01 | C131: 37123.19444 | D131: -9429291.389 | E131: -8470.399276 | F131: 3787101.892 | G131: -5642189.497 | H131: 853.8334722 | I131: 7616.565804
B132: 2023-09-01 | C132: 37123.19444 | D132: -9392168.194 | E132: -8470.399276 | F132: 3778631.493 | G132: -5613536.701 | H132: 853.8334722 | I132: 7616.565804
B133: 2023-10-01 | C133: 37123.19444 | D133: -9355045 | E133: =$F$15*$M$21 -> -8470.399276 | F133: 3770161.094 | G133: -5584883.906 | H133: 853.8334722 | I133: 7616.565804
B134: 2023-11-01 | C134: 37123.19444 | D134: -9317921.806 | E134: -8470.399276 | F134: 3761690.694 | G134: -5556231.111 | H134: 853.8334722 | I134: 7616.565804
B135: 2023-12-01 | C135: 37123.19444 | D135: -9280798.611 | E135: -8470.399276 | F135: 3753220.295 | G135: -5527578.316 | H135: 853.8334722 | I135: 7616.565804
B136: 2024-01-01 | C136: 37123.19444 | D136: -9243675.417 | E136: -8470.399276 | F136: 3744749.896 | G136: -5498925.521 | H136: 853.8334722 | I136: 7616.565804
B137: 2024-02-01 | C137: 37123.19444 | D137: -9206552.222 | E137: -8470.399276 | F137: 3736279.497 | G137: -5470272.726 | H137: 853.8334722 | I137: 7616.565804
B138: 2024-03-01 | C138: 37123.19444 | D138: -9169429.028 | E138: -8470.399276 | F138: 3727809.097 | G138: -5441619.93 | H138: 853.8334722 | I138: 7616.565804
B139: 2024-04-01 | C139: 37123.19444 | D139: -9132305.833 | E139: -8470.399276 | F139: 3719338.698 | G139: -5412967.135 | H139: 853.8334722 | I139: 7616.565804
B140: 2024-05-01 | C140: 37123.19444 | D140: -9095182.639 | E140: -8470.399276 | F140: 3710868.299 | G140: -5384314.34 | H140: 853.8334722 | I140: 7616.565804
B141: 2024-06-01 | C141: 37123.19444 | D141: -9058059.444 | E141: -8470.399276 | F141: 3702397.899 | G141: -5355661.545 | H141: 853.8334722 | I141: 7616.565804
B142: 2024-07-01 | C142: 37123.19444 | D142: -9020936.25 | E142: -8470.399276 | F142: 3693927.5 | G142: -5327008.75 | H142: 853.8334722 | I142: 7616.565804
B143: 2024-08-01 | C143: 37123.19444 | D143: -8983813.056 | E143: -8470.399276 | F143: 3685457.101 | G143: -5298355.955 | H143: 853.8334722 | I143: 7616.565804
B144: 2024-09-01 | C144: 37123.19444 | D144: -8946689.861 | E144: -8470.399276 | F144: 3676986.702 | G144: -5269703.159 | H144: 853.8334722 | I144: 7616.565804
B145: 2024-10-01 | C145: 37123.19444 | D145: -8909566.667 | E145: -8470.399276 | F145: 3668516.302 | G145: -5241050.364 | H145: 853.8334722 | I145: 7616.565804
B146: 2024-11-01 | C146: 37123.19444 | D146: -8872443.472 | E146: -8470.399276 | F146: 3660045.903 | G146: -5212397.569 | H146: 853.8334722 | I146: 7616.565804
B147: 2024-12-01 | C147: 37123.19444 | D147: -8835320.278 | E147: -8470.399276 | F147: 3651575.504 | G147: -5183744.774 | H147: 853.8334722 | I147: 7616.565804
B148: 2025-01-01 | C148: 37123.19444 | D148: -8798197.083 | E148: -8470.399276 | F148: 3643105.105 | G148: -5155091.979 | H148: 853.8334722 | I148: 7616.565804
B149: 2025-02-01 | C149: 37123.19444 | D149: -8761073.889 | E149: -8470.399276 | F149: 3634634.705 | G149: -5126439.184 | H149: 853.8334722 | I149: 7616.565804
B150: 2025-03-01 | C150: 37123.19444 | D150: -8723950.694 | E150: -8470.399276 | F150: 3626164.306 | G150: -5097786.388 | H150: 853.8334722 | I150: 7616.565804
B151: 2025-04-01 | C151: 37123.19444 | D151: -8686827.5 | E151: -8470.399276 | F151: 3617693.907 | G151: -5069133.593 | H151: 853.8334722 | I151: 7616.565804
B152: 2025-05-01 | C152: 37123.19444 | D152: -8649704.306 | E152: -8470.399276 | F152: 3609223.507 | G152: -5040480.798 | H152: 853.8334722 | I152: 7616.565804
B153: 2025-06-01 | C153: 37123.19444 | D153: -8612581.111 | E153: -8470.399276 | F153: 3600753.108 | G153: -5011828.003 | H153: 853.8334722 | I153: 7616.565804
B154: 2025-07-01 | C154: 37123.19444 | D154: -8575457.917 | E154: -8470.399276 | F154: 3592282.709 | G154: -4983175.208 | H154: 853.8334722 | I154: 7616.565804
B155: 2025-08-01 | C155: 37123.19444 | D155: -8538334.722 | E155: -8470.399276 | F155: 3583812.31 | G155: -4954522.413 | H155: 853.8334722 | I155: 7616.565804
B156: 2025-09-01 | C156: 37123.19444 | D156: -8501211.528 | E156: -8470.399276 | F156: =F155+E156 -> 3575341.91 | G156: -4925869.617 | H156: 853.8334722 | I156: 7616.565804
B157: 2025-10-01 | C157: 37123.19444 | D157: -8464088.333 | E157: -8470.399276 | F157: 3566871.511 | G157: -4897216.822 | H157: 853.8334722 | I157: 7616.565804
B158: 2025-11-01 | C158: 37123.19444 | D158: -8426965.139 | E158: -8470.399276 | F158: 3558401.112 | G158: -4868564.027 | H158: 853.8334722 | I158: 7616.565804
B159: 2025-12-01 | C159: 37123.19444 | D159: -8389841.944 | E159: -8470.399276 | F159: 3549930.713 | G159: -4839911.232 | H159: 853.8334722 | I159: 7616.565804
B160: 2026-01-01 | C160: 37123.19444 | D160: -8352718.75 | E160: -8470.399276 | F160: 3541460.313 | G160: -4811258.437 | H160: 853.8334722 | I160: 7616.565804
B161: 2026-02-01 | C161: 37123.19444 | D161: -8315595.556 | E161: -8470.399276 | F161: 3532989.914 | G161: -4782605.642 | H161: 853.8334722 | I161: 7616.565804
B162: 2026-03-01 | C162: 37123.19444 | D162: -8278472.361 | E162: -8470.399276 | F162: 3524519.515 | G162: -4753952.846 | H162: 853.8334722 | I162: 7616.565804
B163: 2026-04-01 | C163: 37123.19444 | D163: -8241349.167 | E163: -8470.399276 | F163: 3516049.115 | G163: -4725300.051 | H163: 853.8334722 | I163: 7616.565804
B164: 2026-05-01 | C164: 37123.19444 | D164: -8204225.972 | E164: -8470.399276 | F164: 3507578.716 | G164: -4696647.256 | H164: 853.8334722 | I164: 7616.565804
B165: 2026-06-01 | C165: 37123.19444 | D165: -8167102.778 | E165: -8470.399276 | F165: 3499108.317 | G165: -4667994.461 | H165: 853.8334722 | I165: 7616.565804
B166: 2026-07-01 | C166: 37123.19444 | D166: -8129979.583 | E166: -8470.399276 | F166: 3490637.918 | G166: -4639341.666 | H166: 853.8334722 | I166: 7616.565804
B167: 2026-08-01 | C167: 37123.19444 | D167: -8092856.389 | E167: -8470.399276 | F167: 3482167.518 | G167: -4610688.871 | H167: 853.8334722 | I167: 7616.565804
B168: 2026-09-01 | C168: 37123.19444 | D168: -8055733.194 | E168: -8470.399276 | F168: 3473697.119 | G168: -4582036.075 | H168: 853.8334722 | I168: 7616.565804
B169: 2026-10-01 | C169: 37123.19444 | D169: -8018610 | E169: -8470.399276 | F169: 3465226.72 | G169: -4553383.28 | H169: 853.8334722 | I169: 7616.565804
B170: 2026-11-01 | C170: 37123.19444 | D170: -7981486.806 | E170: -8470.399276 | F170: 3456756.32 | G170: -4524730.485 | H170: 853.8334722 | I170: 7616.565804
B171: 2026-12-01 | C171: 37123.19444 | D171: -7944363.611 | E171: -8470.399276 | F171: 3448285.921 | G171: -4496077.69 | H171: 853.8334722 | I171: 7616.565804
B172: 2027-01-01 | C172: 37123.19444 | D172: -7907240.417 | E172: -8470.399276 | F172: 3439815.522 | G172: -4467424.895 | H172: 853.8334722 | I172: 7616.565804
B173: 2027-02-01 | C173: 37123.19444 | D173: -7870117.222 | E173: -8470.399276 | F173: 3431345.123 | G173: -4438772.1 | H173: 853.8334722 | I173: 7616.565804
B174: 2027-03-01 | C174: 37123.19444 | D174: -7832994.028 | E174: -8470.399276 | F174: 3422874.723 | G174: -4410119.304 | H174: 853.8334722 | I174: 7616.565804
B175: 2027-04-01 | C175: 37123.19444 | D175: -7795870.833 | E175: -8470.399276 | F175: 3414404.324 | G175: -4381466.509 | H175: 853.8334722 | I175: 7616.565804
B176: 2027-05-01 | C176: 37123.19444 | D176: -7758747.639 | E176: -8470.399276 | F176: 3405933.925 | G176: -4352813.714 | H176: 853.8334722 | I176: 7616.565804
B177: 2027-06-01 | C177: 37123.19444 | D177: -7721624.444 | E177: -8470.399276 | F177: 3397463.526 | G177: -4324160.919 | H177: 853.8334722 | I177: 7616.565804
B178: 2027-07-01 | C178: 37123.19444 | D178: -7684501.25 | E178: -8470.399276 | F178: 3388993.126 | G178: -4295508.124 | H178: 853.8334722 | I178: 7616.565804
B179: 2027-08-01 | C179: 37123.19444 | D179: -7647378.056 | E179: -8470.399276 | F179: 3380522.727 | G179: -4266855.329 | H179: 853.8334722 | I179: 7616.565804
B180: 2027-09-01 | C180: 37123.19444 | D180: -7610254.861 | E180: -8470.399276 | F180: 3372052.328 | G180: -4238202.533 | H180: 853.8334722 | I180: 7616.565804
B181: 2027-10-01 | C181: 37123.19444 | D181: -7573131.667 | E181: -8470.399276 | F181: 3363581.928 | G181: -4209549.738 | H181: 853.8334722 | I181: 7616.565804
B182: 2027-11-01 | C182: 37123.19444 | D182: -7536008.472 | E182: -8470.399276 | F182: 3355111.529 | G182: -4180896.943 | H182: 853.8334722 | I182: 7616.565804
B183: 2027-12-01 | C183: 37123.19444 | D183: -7498885.278 | E183: -8470.399276 | F183: 3346641.13 | G183: -4152244.148 | H183: 853.8334722 | I183: 7616.565804
B184: 2028-01-01 | C184: 37123.19444 | D184: -7461762.083 | E184: -8470.399276 | F184: 3338170.731 | G184: -4123591.353 | H184: 853.8334722 | I184: 7616.565804
B185: 2028-02-01 | C185: 37123.19444 | D185: -7424638.889 | E185: -8470.399276 | F185: 3329700.331 | G185: -4094938.558 | H185: 853.8334722 | I185: 7616.565804
B186: 2028-03-01 | C186: 37123.19444 | D186: -7387515.694 | E186: -8470.399276 | F186: 3321229.932 | G186: -4066285.762 | H186: 853.8334722 | I186: 7616.565804
B187: 2028-04-01 | C187: 37123.19444 | D187: -7350392.5 | E187: -8470.399276 | F187: 3312759.533 | G187: -4037632.967 | H187: 853.8334722 | I187: 7616.565804
B188: 2028-05-01 | C188: 37123.19444 | D188: -7313269.306 | E188: -8470.399276 | F188: 3304289.134 | G188: -4008980.172 | H188: 853.8334722 | I188: 7616.565804
B189: 2028-06-01 | C189: 37123.19444 | D189: -7276146.111 | E189: -8470.399276 | F189: 3295818.734 | G189: -3980327.377 | H189: 853.8334722 | I189: 7616.565804
B190: 2028-07-01 | C190: 37123.19444 | D190: -7239022.917 | E190: -8470.399276 | F190: 3287348.335 | G190: -3951674.582 | H190: 853.8334722 | I190: 7616.565804
B191: 2028-08-01 | C191: 37123.19444 | D191: -7201899.722 | E191: -8470.399276 | F191: 3278877.936 | G191: -3923021.787 | H191: 853.8334722 | I191: 7616.565804
B192: 2028-09-01 | C192: 37123.19444 | D192: -7164776.528 | E192: -8470.399276 | F192: 3270407.536 | G192: -3894368.991 | H192: 853.8334722 | I192: 7616.565804
B193: 2028-10-01 | C193: =-$F$15 -> 37123.19444 | D193: =D192+C193 -> -7127653.333 | E193: -8470.399276 | F193: 3261937.137 | G193: =G192+C193+E193 -> -3865716.196 | H193: =C193*$H$21 -> 853.8334722 | I193: =C193*$L$21 -> 7616.565804
B194: 2028-11-01 | C194: 37123.19444 | D194: -7090530.139 | E194: -8470.399276 | F194: 3253466.738 | G194: -3837063.401 | H194: 853.8334722 | I194: 7616.565804
B195: 2028-12-01 | C195: 37123.19444 | D195: -7053406.944 | E195: -8470.399276 | F195: 3244996.339 | G195: -3808410.606 | H195: 853.8334722 | I195: 7616.565804
B196: 2029-01-01 | C196: 37123.19444 | D196: -7016283.75 | E196: -8470.399276 | F196: 3236525.939 | G196: -3779757.811 | H196: 853.8334722 | I196: 7616.565804
B197: 2029-02-01 | C197: 37123.19444 | D197: -6979160.556 | E197: =$F$15*$M$21 -> -8470.399276 | F197: 3228055.54 | G197: -3751105.016 | H197: 853.8334722 | I197: 7616.565804
B198: 2029-03-01 | C198: 37123.19444 | D198: -6942037.361 | E198: -8470.399276 | F198: 3219585.141 | G198: -3722452.22 | H198: 853.8334722 | I198: 7616.565804
B199: 2029-04-01 | C199: 37123.19444 | D199: -6904914.167 | E199: -8470.399276 | F199: 3211114.741 | G199: -3693799.425 | H199: 853.8334722 | I199: 7616.565804
B200: 2029-05-01 | C200: 37123.19444 | D200: -6867790.972 | E200: -8470.399276 | F200: 3202644.342 | G200: -3665146.63 | H200: 853.8334722 | I200: 7616.565804
B201: 2029-06-01 | C201: 37123.19444 | D201: -6830667.778 | E201: -8470.399276 | F201: 3194173.943 | G201: -3636493.835 | H201: 853.8334722 | I201: 7616.565804
B202: 2029-07-01 | C202: 37123.19444 | D202: -6793544.583 | E202: -8470.399276 | F202: 3185703.544 | G202: -3607841.04 | H202: 853.8334722 | I202: 7616.565804
B203: 2029-08-01 | C203: 37123.19444 | D203: -6756421.389 | E203: -8470.399276 | F203: 3177233.144 | G203: -3579188.245 | H203: 853.8334722 | I203: 7616.565804
B204: 2029-09-01 | C204: 37123.19444 | D204: -6719298.194 | E204: -8470.399276 | F204: 3168762.745 | G204: -3550535.449 | H204: 853.8334722 | I204: 7616.565804
B205: 2029-10-01 | C205: 37123.19444 | D205: -6682175 | E205: -8470.399276 | F205: 3160292.346 | G205: -3521882.654 | H205: 853.8334722 | I205: 7616.565804
... 180 more rows

Sheet 20109
A1: Amortization Schedule
A2: GL# 010.0000.2150.20109.002000
A3: 06/15/17-10/15/44
B4: (Gain) Loss | C4: Years | D4: Annual Amort
A5: UBS | B5: 18305434 | C5: 27 | D5: =B5/C5 -> 677979.037 | G5: =C5*12 -> 324 | H5: months
A6: Credit Agricole | B6: 18690073 | C6: 27 | D6: =B6/C6 -> 692224.9259 | G6: 4 | H6: 4 months
G7: 328
A10: Total | B10: =SUM(B5:B8) -> 36995507 | D10: =SUM(D5:D8) -> 1370203.963
F14: DR (CR)
C15: LT Int Exp | D15: Monthly Amort | F15: =B10/328 -> 112791.1799
C16: 2830.xxxxx | D16: Def State Tax | E16: 0.023 | F16: =-F15*E16 -> -2594.197137
C17: 2830.xxxxx | D17: Def Fed Tax | E17: 0.342 | F17: =-F15*E17 -> -38574.58352
E18: =SUM(E16:E17) -> 0.365
A20: T-Lock Settlement | G20: Net OCI | H20: Def State Tax | I20: Def Fed Tax
H21: =E16 -> 0.023 | I21: =E17 -> 0.342 | J21: =H21+I21 -> 0.365 | L21: 0.20517 | M21: =H21+L21 -> 0.22817
C22: 2150.20109 | D22: 2150.20109 | E22: 2150.20109 | F22: 2150.20109 | G22: 2150.20109 | H22: 2830.28206 | I22: 2830.28201
C23: Amort | D23: T-Lock Settlement | E23: Def Tax Adj | F23: Def Taxes | G23: Net of Tax | H23: Adjustment | I23: Adjustment
C24: DR (CR) | D24: DR (CR) | E24: DR (CR) | F24: DR (CR) | H24: DR (CR) | I24: DR (CR)
B25: 2017-06-15 | D25: =B10 -> 36995507 | F25: =-D25*E18 -> -13503360.06 | G25: =SUM(D25:F25) -> 23492146.95 | H25: 0 | I25: 0
B26: 2017-07-15 | C26: =-$F$15 -> -112791.1799 | D26: =D25+C26 -> 36882715.82 | E26: =$F$15*$E$18 -> 41168.78066 | F26: =F25+E26 -> -13462191.27 | G26: =G25+C26+E26 -> 23420524.55 | H26: =$F$16 -> -2594.197137 | I26: =$F$17 -> -38574.58352
B27: 2017-08-15 | C27: =-$F$15 -> -112791.1799 | D27: =D26+C27 -> 36769924.64 | E27: =$F$15*$E$18 -> 41168.78066 | F27: =F26+E27 -> -13421022.49 | G27: =G26+C27+E27 -> 23348902.15 | H27: =$F$16 -> -2594.197137 | I27: =$F$17 -> -38574.58352
B28: 2017-09-15 | C28: -112791.1799 | D28: 36657133.46 | E28: 41168.78066 | F28: =F27+E28 -> -13379853.71 | G28: 23277279.75 | H28: -2594.197137 | I28: -38574.58352
B29: 2017-10-15 | C29: -112791.1799 | D29: 36544342.28 | E29: 41168.78066 | F29: -13338684.93 | G29: 23205657.35 | H29: -2594.197137 | I29: -38574.58352
B30: 2017-11-15 | C30: -112791.1799 | D30: 36431551.1 | E30: 41168.78066 | F30: -13297516.15 | G30: 23134034.95 | H30: -2594.197137 | I30: -38574.58352
B31: 2017-12-15 | C31: -112791.1799 | D31: 36318759.92 | E31: =$F$15*$E$18 -> 41168.78066 | F31: -13256347.37 | G31: 23062412.55 | H31: -2594.197137 | I31: -38574.58352
B32: 2018-01-15 | C32: =-$F$15 -> -112791.1799 | D32: =D31+C32 -> 36205968.74 | E32: =$F$15*$M$21 -> 25735.56351 | F32: =F31+E32 -> -13230611.81 | G32: =G31+C32+E32 -> 22975356.93 | H32: =C32*$H$21 -> -2594.197137 | I32: =C32*$L$21 -> -23141.36638
B33: 2018-02-15 | C33: =-$F$15 -> -112791.1799 | D33: =D32+C33 -> 36093177.56 | E33: =$F$15*$M$21 -> 25735.56351 | F33: =F32+E33 -> -13204876.24 | G33: =G32+C33+E33 -> 22888301.32 | H33: =C33*$H$21 -> -2594.197137 | I33: =C33*$L$21 -> -23141.36638
B34: 2018-03-15 | C34: -112791.1799 | D34: 35980386.38 | E34: 25735.56351 | F34: -13179140.68 | G34: 22801245.7 | H34: -2594.197137 | I34: -23141.36638
B35: 2018-04-15 | C35: -112791.1799 | D35: 35867595.2 | E35: 25735.56351 | F35: -13153405.12 | G35: 22714190.08 | H35: -2594.197137 | I35: -23141.36638
B36: 2018-05-15 | C36: -112791.1799 | D36: 35754804.02 | E36: 25735.56351 | F36: -13127669.55 | G36: 22627134.47 | H36: -2594.197137 | I36: -23141.36638
B37: 2018-06-15 | C37: -112791.1799 | D37: 35642012.84 | E37: 25735.56351 | F37: -13101933.99 | G37: 22540078.85 | H37: -2594.197137 | I37: -23141.36638
B38: 2018-07-15 | C38: -112791.1799 | D38: 35529221.66 | E38: 25735.56351 | F38: -13076198.43 | G38: 22453023.24 | H38: -2594.197137 | I38: -23141.36638
B39: 2018-08-15 | C39: -112791.1799 | D39: 35416430.48 | E39: 25735.56351 | F39: -13050462.86 | G39: 22365967.62 | H39: -2594.197137 | I39: -23141.36638
B40: 2018-09-15 | C40: -112791.1799 | D40: 35303639.3 | E40: 25735.56351 | F40: -13024727.3 | G40: 22278912 | H40: -2594.197137 | I40: -23141.36638
B41: 2018-10-15 | C41: -112791.1799 | D41: 35190848.12 | E41: 25735.56351 | F41: -12998991.74 | G41: 22191856.39 | H41: -2594.197137 | I41: -23141.36638
B42: 2018-11-15 | C42: -112791.1799 | D42: 35078056.94 | E42: 25735.56351 | F42: -12973256.17 | G42: 22104800.77 | H42: -2594.197137 | I42: -23141.36638
B43: 2018-12-15 | C43: -112791.1799 | D43: 34965265.76 | E43: 25735.56351 | F43: -12947520.61 | G43: 22017745.15 | H43: -2594.197137 | I43: -23141.36638
B44: 2019-01-15 | C44: -112791.1799 | D44: 34852474.58 | E44: 25735.56351 | F44: -12921785.05 | G44: 21930689.54 | H44: -2594.197137 | I44: -23141.36638
B45: 2019-02-15 | C45: -112791.1799 | D45: 34739683.4 | E45: 25735.56351 | F45: -12896049.48 | G45: 21843633.92 | H45: -2594.197137 | I45: -23141.36638
B46: 2019-03-15 | C46: -112791.1799 | D46: 34626892.22 | E46: 25735.56351 | F46: -12870313.92 | G46: 21756578.3 | H46: -2594.197137 | I46: -23141.36638
B47: 2019-04-15 | C47: -112791.1799 | D47: 34514101.04 | E47: 25735.56351 | F47: -12844578.35 | G47: 21669522.69 | H47: -2594.197137 | I47: -23141.36638
B48: 2019-05-15 | C48: -112791.1799 | D48: 34401309.86 | E48: 25735.56351 | F48: -12818842.79 | G48: 21582467.07 | H48: -2594.197137 | I48: -23141.36638
B49: 2019-06-15 | C49: -112791.1799 | D49: 34288518.68 | E49: 25735.56351 | F49: -12793107.23 | G49: 21495411.46 | H49: -2594.197137 | I49: -23141.36638
B50: 2019-07-15 | C50: -112791.1799 | D50: 34175727.5 | E50: 25735.56351 | F50: -12767371.66 | G50: 21408355.84 | H50: -2594.197137 | I50: -23141.36638
B51: 2019-08-15 | C51: -112791.1799 | D51: 34062936.32 | E51: 25735.56351 | F51: -12741636.1 | G51: 21321300.22 | H51: -2594.197137 | I51: -23141.36638
B52: 2019-09-15 | C52: -112791.1799 | D52: 33950145.14 | E52: 25735.56351 | F52: -12715900.54 | G52: 21234244.61 | H52: -2594.197137 | I52: -23141.36638
B53: 2019-10-15 | C53: -112791.1799 | D53: 33837353.96 | E53: 25735.56351 | F53: -12690164.97 | G53: 21147188.99 | H53: -2594.197137 | I53: -23141.36638
B54: 2019-11-15 | C54: -112791.1799 | D54: 33724562.78 | E54: 25735.56351 | F54: -12664429.41 | G54: 21060133.37 | H54: -2594.197137 | I54: -23141.36638
B55: 2019-12-15 | C55: -112791.1799 | D55: 33611771.6 | E55: 25735.56351 | F55: -12638693.85 | G55: 20973077.76 | H55: -2594.197137 | I55: -23141.36638
B56: 2020-01-15 | C56: -112791.1799 | D56: 33498980.42 | E56: 25735.56351 | F56: -12612958.28 | G56: 20886022.14 | H56: -2594.197137 | I56: -23141.36638
B57: 2020-02-15 | C57: -112791.1799 | D57: 33386189.24 | E57: 25735.56351 | F57: -12587222.72 | G57: 20798966.52 | H57: -2594.197137 | I57: -23141.36638
B58: 2020-03-15 | C58: -112791.1799 | D58: 33273398.06 | E58: 25735.56351 | F58: -12561487.16 | G58: 20711910.91 | H58: -2594.197137 | I58: -23141.36638
B59: 2020-04-15 | C59: -112791.1799 | D59: 33160606.88 | E59: 25735.56351 | F59: -12535751.59 | G59: 20624855.29 | H59: -2594.197137 | I59: -23141.36638
B60: 2020-05-15 | C60: -112791.1799 | D60: 33047815.7 | E60: 25735.56351 | F60: -12510016.03 | G60: 20537799.68 | H60: -2594.197137 | I60: -23141.36638
B61: 2020-06-15 | C61: -112791.1799 | D61: 32935024.52 | E61: 25735.56351 | F61: -12484280.47 | G61: 20450744.06 | H61: -2594.197137 | I61: -23141.36638
B62: 2020-07-15 | C62: -112791.1799 | D62: 32822233.34 | E62: 25735.56351 | F62: -12458544.9 | G62: 20363688.44 | H62: -2594.197137 | I62: -23141.36638
B63: 2020-08-15 | C63: -112791.1799 | D63: 32709442.16 | E63: 25735.56351 | F63: -12432809.34 | G63: 20276632.83 | H63: -2594.197137 | I63: -23141.36638
B64: 2020-09-15 | C64: -112791.1799 | D64: 32596650.98 | E64: 25735.56351 | F64: -12407073.78 | G64: 20189577.21 | H64: -2594.197137 | I64: -23141.36638
B65: 2020-10-15 | C65: -112791.1799 | D65: 32483859.8 | E65: 25735.56351 | F65: -12381338.21 | G65: 20102521.59 | H65: -2594.197137 | I65: -23141.36638
B66: 2020-11-15 | C66: -112791.1799 | D66: 32371068.63 | E66: 25735.56351 | F66: -12355602.65 | G66: 20015465.98 | H66: -2594.197137 | I66: -23141.36638
B67: 2020-12-15 | C67: -112791.1799 | D67: 32258277.45 | E67: 25735.56351 | F67: -12329867.08 | G67: 19928410.36 | H67: -2594.197137 | I67: -23141.36638
B68: 2021-01-15 | C68: -112791.1799 | D68: 32145486.27 | E68: 25735.56351 | F68: -12304131.52 | G68: 19841354.74 | H68: -2594.197137 | I68: -23141.36638
B69: 2021-02-15 | C69: -112791.1799 | D69: 32032695.09 | E69: 25735.56351 | F69: -12278395.96 | G69: 19754299.13 | H69: -2594.197137 | I69: -23141.36638
B70: 2021-03-15 | C70: -112791.1799 | D70: 31919903.91 | E70: 25735.56351 | F70: -12252660.39 | G70: 19667243.51 | H70: -2594.197137 | I70: -23141.36638
B71: 2021-04-15 | C71: -112791.1799 | D71: 31807112.73 | E71: 25735.56351 | F71: -12226924.83 | G71: 19580187.9 | H71: -2594.197137 | I71: -23141.36638
B72: 2021-05-15 | C72: -112791.1799 | D72: 31694321.55 | E72: 25735.56351 | F72: -12201189.27 | G72: 19493132.28 | H72: -2594.197137 | I72: -23141.36638
B73: 2021-06-15 | C73: -112791.1799 | D73: 31581530.37 | E73: 25735.56351 | F73: -12175453.7 | G73: 19406076.66 | H73: -2594.197137 | I73: -23141.36638
B74: 2021-07-15 | C74: -112791.1799 | D74: 31468739.19 | E74: 25735.56351 | F74: -12149718.14 | G74: 19319021.05 | H74: -2594.197137 | I74: -23141.36638
B75: 2021-08-15 | C75: -112791.1799 | D75: 31355948.01 | E75: 25735.56351 | F75: -12123982.58 | G75: 19231965.43 | H75: -2594.197137 | I75: -23141.36638
B76: 2021-09-15 | C76: -112791.1799 | D76: 31243156.83 | E76: 25735.56351 | F76: -12098247.01 | G76: 19144909.81 | H76: -2594.197137 | I76: -23141.36638
B77: 2021-10-15 | C77: -112791.1799 | D77: 31130365.65 | E77: 25735.56351 | F77: -12072511.45 | G77: 19057854.2 | H77: -2594.197137 | I77: -23141.36638
B78: 2021-11-15 | C78: -112791.1799 | D78: 31017574.47 | E78: 25735.56351 | F78: -12046775.89 | G78: 18970798.58 | H78: -2594.197137 | I78: -23141.36638
B79: 2021-12-15 | C79: -112791.1799 | D79: 30904783.29 | E79: 25735.56351 | F79: -12021040.32 | G79: 18883742.96 | H79: -2594.197137 | I79: -23141.36638
B80: 2022-01-15 | C80: -112791.1799 | D80: 30791992.11 | E80: 25735.56351 | F80: -11995304.76 | G80: 18796687.35 | H80: -2594.197137 | I80: -23141.36638
B81: 2022-02-15 | C81: -112791.1799 | D81: 30679200.93 | E81: 25735.56351 | F81: -11969569.2 | G81: 18709631.73 | H81: -2594.197137 | I81: -23141.36638
B82: 2022-03-15 | C82: -112791.1799 | D82: 30566409.75 | E82: 25735.56351 | F82: -11943833.63 | G82: 18622576.12 | H82: -2594.197137 | I82: -23141.36638
B83: 2022-04-15 | C83: -112791.1799 | D83: 30453618.57 | E83: 25735.56351 | F83: -11918098.07 | G83: 18535520.5 | H83: -2594.197137 | I83: -23141.36638
B84: 2022-05-15 | C84: -112791.1799 | D84: 30340827.39 | E84: 25735.56351 | F84: -11892362.5 | G84: 18448464.88 | H84: -2594.197137 | I84: -23141.36638
B85: 2022-06-15 | C85: -112791.1799 | D85: 30228036.21 | E85: 25735.56351 | F85: -11866626.94 | G85: 18361409.27 | H85: -2594.197137 | I85: -23141.36638
B86: 2022-07-15 | C86: -112791.1799 | D86: 30115245.03 | E86: 25735.56351 | F86: -11840891.38 | G86: 18274353.65 | H86: -2594.197137 | I86: -23141.36638
B87: 2022-08-15 | C87: -112791.1799 | D87: 30002453.85 | E87: 25735.56351 | F87: -11815155.81 | G87: 18187298.03 | H87: -2594.197137 | I87: -23141.36638
B88: 2022-09-15 | C88: -112791.1799 | D88: 29889662.67 | E88: 25735.56351 | F88: -11789420.25 | G88: 18100242.42 | H88: -2594.197137 | I88: -23141.36638
B89: 2022-10-15 | C89: -112791.1799 | D89: 29776871.49 | E89: 25735.56351 | F89: -11763684.69 | G89: 18013186.8 | H89: -2594.197137 | I89: -23141.36638
B90: 2022-11-15 | C90: -112791.1799 | D90: 29664080.31 | E90: 25735.56351 | F90: -11737949.12 | G90: 17926131.18 | H90: -2594.197137 | I90: -23141.36638
B91: 2022-12-15 | C91: -112791.1799 | D91: 29551289.13 | E91: 25735.56351 | F91: -11712213.56 | G91: 17839075.57 | H91: -2594.197137 | I91: -23141.36638
B92: 2023-01-15 | C92: -112791.1799 | D92: 29438497.95 | E92: 25735.56351 | F92: -11686478 | G92: 17752019.95 | H92: -2594.197137 | I92: -23141.36638
B93: 2023-02-15 | C93: -112791.1799 | D93: 29325706.77 | E93: 25735.56351 | F93: -11660742.43 | G93: 17664964.34 | H93: -2594.197137 | I93: -23141.36638
B94: 2023-03-15 | C94: -112791.1799 | D94: 29212915.59 | E94: 25735.56351 | F94: -11635006.87 | G94: 17577908.72 | H94: -2594.197137 | I94: -23141.36638
B95: 2023-04-15 | C95: -112791.1799 | D95: 29100124.41 | E95: 25735.56351 | F95: -11609271.31 | G95: 17490853.1 | H95: -2594.197137 | I95: -23141.36638
B96: 2023-05-15 | C96: -112791.1799 | D96: 28987333.23 | E96: 25735.56351 | F96: -11583535.74 | G96: 17403797.49 | H96: -2594.197137 | I96: -23141.36638
B97: 2023-06-15 | C97: =-$F$15 -> -112791.1799 | D97: =D96+C97 -> 28874542.05 | E97: =$F$15*$M$21 -> 25735.56351 | F97: =F96+E97 -> -11557800.18 | G97: =G96+C97+E97 -> 17316741.87 | H97: =C97*$H$21 -> -2594.197137 | I97: =C97*$L$21 -> -23141.36638
B98: 2023-07-15 | C98: -112791.1799 | D98: 28761750.87 | E98: 25735.56351 | F98: -11532064.62 | G98: 17229686.25 | H98: -2594.197137 | I98: -23141.36638
B99: 2023-08-15 | C99: -112791.1799 | D99: 28648959.69 | E99: 25735.56351 | F99: -11506329.05 | G99: 17142630.64 | H99: -2594.197137 | I99: -23141.36638
B100: 2023-09-15 | C100: -112791.1799 | D100: 28536168.51 | E100: 25735.56351 | F100: -11480593.49 | G100: 17055575.02 | H100: -2594.197137 | I100: -23141.36638
B101: 2023-10-15 | C101: -112791.1799 | D101: 28423377.33 | E101: 25735.56351 | F101: -11454857.93 | G101: 16968519.4 | H101: -2594.197137 | I101: -23141.36638
B102: 2023-11-15 | C102: -112791.1799 | D102: 28310586.15 | E102: 25735.56351 | F102: -11429122.36 | G102: 16881463.79 | H102: -2594.197137 | I102: -23141.36638
B103: 2023-12-15 | C103: -112791.1799 | D103: 28197794.97 | E103: 25735.56351 | F103: -11403386.8 | G103: 16794408.17 | H103: -2594.197137 | I103: -23141.36638
B104: 2024-01-15 | C104: -112791.1799 | D104: 28085003.79 | E104: 25735.56351 | F104: -11377651.23 | G104: 16707352.55 | H104: -2594.197137 | I104: -23141.36638
B105: 2024-02-15 | C105: -112791.1799 | D105: 27972212.61 | E105: 25735.56351 | F105: -11351915.67 | G105: 16620296.94 | H105: -2594.197137 | I105: -23141.36638
B106: 2024-03-15 | C106: -112791.1799 | D106: 27859421.43 | E106: 25735.56351 | F106: -11326180.11 | G106: 16533241.32 | H106: -2594.197137 | I106: -23141.36638
B107: 2024-04-15 | C107: -112791.1799 | D107: 27746630.25 | E107: 25735.56351 | F107: -11300444.54 | G107: 16446185.71 | H107: -2594.197137 | I107: -23141.36638
B108: 2024-05-15 | C108: -112791.1799 | D108: 27633839.07 | E108: 25735.56351 | F108: -11274708.98 | G108: 16359130.09 | H108: -2594.197137 | I108: -23141.36638
B109: 2024-06-15 | C109: -112791.1799 | D109: 27521047.89 | E109: 25735.56351 | F109: -11248973.42 | G109: 16272074.47 | H109: -2594.197137 | I109: -23141.36638
B110: 2024-07-15 | C110: -112791.1799 | D110: 27408256.71 | E110: 25735.56351 | F110: -11223237.85 | G110: 16185018.86 | H110: -2594.197137 | I110: -23141.36638
B111: 2024-08-15 | C111: -112791.1799 | D111: 27295465.53 | E111: 25735.56351 | F111: -11197502.29 | G111: 16097963.24 | H111: -2594.197137 | I111: -23141.36638
B112: 2024-09-15 | C112: -112791.1799 | D112: 27182674.35 | E112: 25735.56351 | F112: -11171766.73 | G112: 16010907.62 | H112: -2594.197137 | I112: -23141.36638
B113: 2024-10-15 | C113: -112791.1799 | D113: 27069883.17 | E113: 25735.56351 | F113: -11146031.16 | G113: 15923852.01 | H113: -2594.197137 | I113: -23141.36638
B114: 2024-11-15 | C114: -112791.1799 | D114: 26957091.99 | E114: 25735.56351 | F114: -11120295.6 | G114: 15836796.39 | H114: -2594.197137 | I114: -23141.36638
B115: 2024-12-15 | C115: -112791.1799 | D115: 26844300.81 | E115: 25735.56351 | F115: -11094560.04 | G115: 15749740.77 | H115: -2594.197137 | I115: -23141.36638
B116: 2025-01-15 | C116: -112791.1799 | D116: 26731509.63 | E116: 25735.56351 | F116: -11068824.47 | G116: 15662685.16 | H116: -2594.197137 | I116: -23141.36638
B117: 2025-02-15 | C117: -112791.1799 | D117: 26618718.45 | E117: 25735.56351 | F117: -11043088.91 | G117: 15575629.54 | H117: -2594.197137 | I117: -23141.36638
B118: 2025-03-15 | C118: -112791.1799 | D118: 26505927.27 | E118: 25735.56351 | F118: -11017353.35 | G118: 15488573.93 | H118: -2594.197137 | I118: -23141.36638
B119: 2025-04-15 | C119: -112791.1799 | D119: 26393136.09 | E119: 25735.56351 | F119: -10991617.78 | G119: 15401518.31 | H119: -2594.197137 | I119: -23141.36638
B120: 2025-05-15 | C120: -112791.1799 | D120: 26280344.91 | E120: 25735.56351 | F120: -10965882.22 | G120: 15314462.69 | H120: -2594.197137 | I120: -23141.36638
B121: 2025-06-15 | C121: -112791.1799 | D121: 26167553.73 | E121: 25735.56351 | F121: -10940146.65 | G121: 15227407.08 | H121: -2594.197137 | I121: -23141.36638
B122: 2025-07-15 | C122: -112791.1799 | D122: 26054762.55 | E122: 25735.56351 | F122: -10914411.09 | G122: 15140351.46 | H122: -2594.197137 | I122: -23141.36638
B123: 2025-08-15 | C123: -112791.1799 | D123: 25941971.37 | E123: 25735.56351 | F123: -10888675.53 | G123: 15053295.84 | H123: -2594.197137 | I123: -23141.36638
B124: 2025-09-15 | C124: -112791.1799 | D124: 25829180.19 | E124: 25735.56351 | F124: -10862939.96 | G124: 14966240.23 | H124: -2594.197137 | I124: -23141.36638
B125: 2025-10-15 | C125: -112791.1799 | D125: 25716389.01 | E125: 25735.56351 | F125: -10837204.4 | G125: 14879184.61 | H125: -2594.197137 | I125: -23141.36638
B126: 2025-11-15 | C126: -112791.1799 | D126: 25603597.83 | E126: 25735.56351 | F126: -10811468.84 | G126: 14792128.99 | H126: -2594.197137 | I126: -23141.36638
B127: 2025-12-15 | C127: -112791.1799 | D127: 25490806.65 | E127: 25735.56351 | F127: -10785733.27 | G127: 14705073.38 | H127: -2594.197137 | I127: -23141.36638
B128: 2026-01-15 | C128: -112791.1799 | D128: 25378015.47 | E128: 25735.56351 | F128: -10759997.71 | G128: 14618017.76 | H128: -2594.197137 | I128: -23141.36638
B129: 2026-02-15 | C129: -112791.1799 | D129: 25265224.29 | E129: 25735.56351 | F129: -10734262.15 | G129: 14530962.15 | H129: -2594.197137 | I129: -23141.36638
B130: 2026-03-15 | C130: -112791.1799 | D130: 25152433.11 | E130: 25735.56351 | F130: -10708526.58 | G130: 14443906.53 | H130: -2594.197137 | I130: -23141.36638
B131: 2026-04-15 | C131: -112791.1799 | D131: 25039641.93 | E131: 25735.56351 | F131: -10682791.02 | G131: 14356850.91 | H131: -2594.197137 | I131: -23141.36638
B132: 2026-05-15 | C132: -112791.1799 | D132: 24926850.75 | E132: 25735.56351 | F132: -10657055.46 | G132: 14269795.3 | H132: -2594.197137 | I132: -23141.36638
B133: 2026-06-15 | C133: -112791.1799 | D133: 24814059.57 | E133: 25735.56351 | F133: -10631319.89 | G133: 14182739.68 | H133: -2594.197137 | I133: -23141.36638
B134: 2026-07-15 | C134: -112791.1799 | D134: 24701268.39 | E134: 25735.56351 | F134: -10605584.33 | G134: 14095684.06 | H134: -2594.197137 | I134: -23141.36638
B135: 2026-08-15 | C135: -112791.1799 | D135: 24588477.21 | E135: 25735.56351 | F135: -10579848.77 | G135: 14008628.45 | H135: -2594.197137 | I135: -23141.36638
B136: 2026-09-15 | C136: -112791.1799 | D136: 24475686.03 | E136: 25735.56351 | F136: -10554113.2 | G136: 13921572.83 | H136: -2594.197137 | I136: -23141.36638
B137: 2026-10-15 | C137: -112791.1799 | D137: 24362894.85 | E137: 25735.56351 | F137: -10528377.64 | G137: 13834517.21 | H137: -2594.197137 | I137: -23141.36638
B138: 2026-11-15 | C138: -112791.1799 | D138: 24250103.67 | E138: 25735.56351 | F138: -10502642.08 | G138: 13747461.6 | H138: -2594.197137 | I138: -23141.36638
B139: 2026-12-15 | C139: -112791.1799 | D139: 24137312.49 | E139: 25735.56351 | F139: -10476906.51 | G139: 13660405.98 | H139: -2594.197137 | I139: -23141.36638
B140: 2027-01-15 | C140: -112791.1799 | D140: 24024521.31 | E140: 25735.56351 | F140: -10451170.95 | G140: 13573350.37 | H140: -2594.197137 | I140: -23141.36638
B141: 2027-02-15 | C141: -112791.1799 | D141: 23911730.13 | E141: 25735.56351 | F141: -10425435.38 | G141: 13486294.75 | H141: -2594.197137 | I141: -23141.36638
B142: 2027-03-15 | C142: -112791.1799 | D142: 23798938.95 | E142: 25735.56351 | F142: -10399699.82 | G142: 13399239.13 | H142: -2594.197137 | I142: -23141.36638
B143: 2027-04-15 | C143: -112791.1799 | D143: 23686147.77 | E143: 25735.56351 | F143: -10373964.26 | G143: 13312183.52 | H143: -2594.197137 | I143: -23141.36638
B144: 2027-05-15 | C144: -112791.1799 | D144: 23573356.59 | E144: 25735.56351 | F144: -10348228.69 | G144: 13225127.9 | H144: -2594.197137 | I144: -23141.36638
B145: 2027-06-15 | C145: -112791.1799 | D145: 23460565.41 | E145: 25735.56351 | F145: -10322493.13 | G145: 13138072.28 | H145: -2594.197137 | I145: -23141.36638
B146: 2027-07-15 | C146: -112791.1799 | D146: 23347774.23 | E146: 25735.56351 | F146: -10296757.57 | G146: 13051016.67 | H146: -2594.197137 | I146: -23141.36638
B147: 2027-08-15 | C147: -112791.1799 | D147: 23234983.05 | E147: 25735.56351 | F147: -10271022 | G147: 12963961.05 | H147: -2594.197137 | I147: -23141.36638
B148: 2027-09-15 | C148: -112791.1799 | D148: 23122191.88 | E148: 25735.56351 | F148: -10245286.44 | G148: 12876905.43 | H148: -2594.197137 | I148: -23141.36638
B149: 2027-10-15 | C149: -112791.1799 | D149: 23009400.7 | E149: 25735.56351 | F149: -10219550.88 | G149: 12789849.82 | H149: -2594.197137 | I149: -23141.36638
B150: 2027-11-15 | C150: -112791.1799 | D150: 22896609.52 | E150: 25735.56351 | F150: -10193815.31 | G150: 12702794.2 | H150: -2594.197137 | I150: -23141.36638
B151: 2027-12-15 | C151: -112791.1799 | D151: 22783818.34 | E151: 25735.56351 | F151: -10168079.75 | G151: 12615738.59 | H151: -2594.197137 | I151: -23141.36638
B152: 2028-01-15 | C152: -112791.1799 | D152: 22671027.16 | E152: 25735.56351 | F152: -10142344.19 | G152: 12528682.97 | H152: -2594.197137 | I152: -23141.36638
B153: 2028-02-15 | C153: -112791.1799 | D153: 22558235.98 | E153: 25735.56351 | F153: -10116608.62 | G153: 12441627.35 | H153: -2594.197137 | I153: -23141.36638
B154: 2028-03-15 | C154: -112791.1799 | D154: 22445444.8 | E154: 25735.56351 | F154: -10090873.06 | G154: 12354571.74 | H154: -2594.197137 | I154: -23141.36638
B155: 2028-04-15 | C155: -112791.1799 | D155: 22332653.62 | E155: 25735.56351 | F155: -10065137.5 | G155: 12267516.12 | H155: -2594.197137 | I155: -23141.36638
B156: 2028-05-15 | C156: -112791.1799 | D156: 22219862.44 | E156: 25735.56351 | F156: -10039401.93 | G156: 12180460.5 | H156: -2594.197137 | I156: -23141.36638
B157: 2028-06-15 | C157: -112791.1799 | D157: 22107071.26 | E157: 25735.56351 | F157: -10013666.37 | G157: 12093404.89 | H157: -2594.197137 | I157: -23141.36638
B158: 2028-07-15 | C158: -112791.1799 | D158: 21994280.08 | E158: 25735.56351 | F158: -9987930.805 | G158: 12006349.27 | H158: -2594.197137 | I158: -23141.36638
B159: 2028-08-15 | C159: -112791.1799 | D159: 21881488.9 | E159: 25735.56351 | F159: -9962195.241 | G159: 11919293.65 | H159: -2594.197137 | I159: -23141.36638
B160: 2028-09-15 | C160: -112791.1799 | D160: 21768697.72 | E160: 25735.56351 | F160: -9936459.678 | G160: 11832238.04 | H160: -2594.197137 | I160: -23141.36638
B161: 2028-10-15 | C161: =-$F$15 -> -112791.1799 | D161: =D160+C161 -> 21655906.54 | E161: =$F$15*$M$21 -> 25735.56351 | F161: =F160+E161 -> -9910724.114 | G161: =G160+C161+E161 -> 11745182.42 | H161: =C161*$H$21 -> -2594.197137 | I161: =C161*$L$21 -> -23141.36638
B162: 2028-11-15 | C162: -112791.1799 | D162: 21543115.36 | E162: 25735.56351 | F162: -9884988.551 | G162: 11658126.81 | H162: -2594.197137 | I162: -23141.36638
B163: 2028-12-15 | C163: -112791.1799 | D163: 21430324.18 | E163: 25735.56351 | F163: -9859252.987 | G163: 11571071.19 | H163: -2594.197137 | I163: -23141.36638
B164: 2029-01-15 | C164: -112791.1799 | D164: 21317533 | E164: 25735.56351 | F164: -9833517.424 | G164: 11484015.57 | H164: -2594.197137 | I164: -23141.36638
B165: 2029-02-15 | C165: -112791.1799 | D165: 21204741.82 | E165: 25735.56351 | F165: -9807781.86 | G165: 11396959.96 | H165: -2594.197137 | I165: -23141.36638
B166: 2029-03-15 | C166: -112791.1799 | D166: 21091950.64 | E166: 25735.56351 | F166: -9782046.297 | G166: 11309904.34 | H166: -2594.197137 | I166: -23141.36638
B167: 2029-04-15 | C167: -112791.1799 | D167: 20979159.46 | E167: 25735.56351 | F167: -9756310.733 | G167: 11222848.72 | H167: -2594.197137 | I167: -23141.36638
B168: 2029-05-15 | C168: -112791.1799 | D168: 20866368.28 | E168: 25735.56351 | F168: -9730575.17 | G168: 11135793.11 | H168: -2594.197137 | I168: -23141.36638
B169: 2029-06-15 | C169: -112791.1799 | D169: 20753577.1 | E169: 25735.56351 | F169: -9704839.606 | G169: 11048737.49 | H169: -2594.197137 | I169: -23141.36638
B170: 2029-07-15 | C170: -112791.1799 | D170: 20640785.92 | E170: 25735.56351 | F170: -9679104.043 | G170: 10961681.87 | H170: -2594.197137 | I170: -23141.36638
B171: 2029-08-15 | C171: -112791.1799 | D171: 20527994.74 | E171: 25735.56351 | F171: -9653368.479 | G171: 10874626.26 | H171: -2594.197137 | I171: -23141.36638
B172: 2029-09-15 | C172: -112791.1799 | D172: 20415203.56 | E172: 25735.56351 | F172: -9627632.916 | G172: 10787570.64 | H172: -2594.197137 | I172: -23141.36638
B173: 2029-10-15 | C173: -112791.1799 | D173: 20302412.38 | E173: 25735.56351 | F173: -9601897.352 | G173: 10700515.03 | H173: -2594.197137 | I173: -23141.36638
B174: 2029-11-15 | C174: -112791.1799 | D174: 20189621.2 | E174: 25735.56351 | F174: -9576161.789 | G174: 10613459.41 | H174: -2594.197137 | I174: -23141.36638
B175: 2029-12-15 | C175: -112791.1799 | D175: 20076830.02 | E175: 25735.56351 | F175: -9550426.225 | G175: 10526403.79 | H175: -2594.197137 | I175: -23141.36638
B176: 2030-01-15 | C176: -112791.1799 | D176: 19964038.84 | E176: 25735.56351 | F176: -9524690.662 | G176: 10439348.18 | H176: -2594.197137 | I176: -23141.36638
B177: 2030-02-15 | C177: -112791.1799 | D177: 19851247.66 | E177: 25735.56351 | F177: -9498955.098 | G177: 10352292.56 | H177: -2594.197137 | I177: -23141.36638
B178: 2030-03-15 | C178: -112791.1799 | D178: 19738456.48 | E178: 25735.56351 | F178: -9473219.535 | G178: 10265236.94 | H178: -2594.197137 | I178: -23141.36638
B179: 2030-04-15 | C179: -112791.1799 | D179: 19625665.3 | E179: 25735.56351 | F179: -9447483.971 | G179: 10178181.33 | H179: -2594.197137 | I179: -23141.36638
B180: 2030-05-15 | C180: -112791.1799 | D180: 19512874.12 | E180: 25735.56351 | F180: -9421748.408 | G180: 10091125.71 | H180: -2594.197137 | I180: -23141.36638
B181: 2030-06-15 | C181: -112791.1799 | D181: 19400082.94 | E181: 25735.56351 | F181: -9396012.844 | G181: 10004070.09 | H181: -2594.197137 | I181: -23141.36638
B182: 2030-07-15 | C182: -112791.1799 | D182: 19287291.76 | E182: 25735.56351 | F182: -9370277.281 | G182: 9917014.479 | H182: -2594.197137 | I182: -23141.36638
B183: 2030-08-15 | C183: -112791.1799 | D183: 19174500.58 | E183: 25735.56351 | F183: -9344541.717 | G183: 9829958.862 | H183: -2594.197137 | I183: -23141.36638
B184: 2030-09-15 | C184: -112791.1799 | D184: 19061709.4 | E184: 25735.56351 | F184: -9318806.154 | G184: 9742903.246 | H184: -2594.197137 | I184: -23141.36638
B185: 2030-10-15 | C185: -112791.1799 | D185: 18948918.22 | E185: 25735.56351 | F185: -9293070.59 | G185: 9655847.629 | H185: -2594.197137 | I185: -23141.36638
B186: 2030-11-15 | C186: -112791.1799 | D186: 18836127.04 | E186: 25735.56351 | F186: -9267335.027 | G186: 9568792.013 | H186: -2594.197137 | I186: -23141.36638
B187: 2030-12-15 | C187: -112791.1799 | D187: 18723335.86 | E187: 25735.56351 | F187: -9241599.463 | G187: 9481736.397 | H187: -2594.197137 | I187: -23141.36638
B188: 2031-01-15 | C188: -112791.1799 | D188: 18610544.68 | E188: 25735.56351 | F188: -9215863.9 | G188: 9394680.78 | H188: -2594.197137 | I188: -23141.36638
B189: 2031-02-15 | C189: -112791.1799 | D189: 18497753.5 | E189: 25735.56351 | F189: -9190128.336 | G189: 9307625.164 | H189: -2594.197137 | I189: -23141.36638
B190: 2031-03-15 | C190: -112791.1799 | D190: 18384962.32 | E190: 25735.56351 | F190: -9164392.773 | G190: 9220569.548 | H190: -2594.197137 | I190: -23141.36638
B191: 2031-04-15 | C191: -112791.1799 | D191: 18272171.14 | E191: 25735.56351 | F191: -9138657.209 | G191: 9133513.931 | H191: -2594.197137 | I191: -23141.36638
B192: 2031-05-15 | C192: -112791.1799 | D192: 18159379.96 | E192: 25735.56351 | F192: -9112921.646 | G192: 9046458.315 | H192: -2594.197137 | I192: -23141.36638
B193: 2031-06-15 | C193: -112791.1799 | D193: 18046588.78 | E193: 25735.56351 | F193: -9087186.082 | G193: 8959402.698 | H193: -2594.197137 | I193: -23141.36638
B194: 2031-07-15 | C194: -112791.1799 | D194: 17933797.6 | E194: 25735.56351 | F194: -9061450.518 | G194: 8872347.082 | H194: -2594.197137 | I194: -23141.36638
B195: 2031-08-15 | C195: -112791.1799 | D195: 17821006.42 | E195: 25735.56351 | F195: -9035714.955 | G195: 8785291.466 | H195: -2594.197137 | I195: -23141.36638
B196: 2031-09-15 | C196: -112791.1799 | D196: 17708215.24 | E196: 25735.56351 | F196: -9009979.391 | G196: 8698235.849 | H196: -2594.197137 | I196: -23141.36638
B197: 2031-10-15 | C197: -112791.1799 | D197: 17595424.06 | E197: 25735.56351 | F197: -8984243.828 | G197: 8611180.233 | H197: -2594.197137 | I197: -23141.36638
B198: 2031-11-15 | C198: -112791.1799 | D198: 17482632.88 | E198: 25735.56351 | F198: -8958508.264 | G198: 8524124.617 | H198: -2594.197137 | I198: -23141.36638
B199: 2031-12-15 | C199: -112791.1799 | D199: 17369841.7 | E199: 25735.56351 | F199: -8932772.701 | G199: 8437069 | H199: -2594.197137 | I199: -23141.36638
B200: 2032-01-15 | C200: -112791.1799 | D200: 17257050.52 | E200: 25735.56351 | F200: -8907037.137 | G200: 8350013.384 | H200: -2594.197137 | I200: -23141.36638
B201: 2032-02-15 | C201: -112791.1799 | D201: 17144259.34 | E201: 25735.56351 | F201: -8881301.574 | G201: 8262957.768 | H201: -2594.197137 | I201: -23141.36638
B202: 2032-03-15 | C202: -112791.1799 | D202: 17031468.16 | E202: 25735.56351 | F202: -8855566.01 | G202: 8175902.151 | H202: -2594.197137 | I202: -23141.36638
B203: 2032-04-15 | C203: -112791.1799 | D203: 16918676.98 | E203: 25735.56351 | F203: -8829830.447 | G203: 8088846.535 | H203: -2594.197137 | I203: -23141.36638
B204: 2032-05-15 | C204: -112791.1799 | D204: 16805885.8 | E204: 25735.56351 | F204: -8804094.883 | G204: 8001790.918 | H204: -2594.197137 | I204: -23141.36638
B205: 2032-06-15 | C205: -112791.1799 | D205: 16693094.62 | E205: 25735.56351 | F205: -8778359.32 | G205: 7914735.302 | H205: -2594.197137 | I205: -23141.36638
B206: 2032-07-15 | C206: -112791.1799 | D206: 16580303.44 | E206: 25735.56351 | F206: -8752623.756 | G206: 7827679.686 | H206: -2594.197137 | I206: -23141.36638
... 147 more rows

Sheet 1890 Unamort Loss on Reacq Debt
A1: Activity by Month
A3: Account=1890 (Unamortized Loss on Reacquired Debt)
B5: JUN-17 | C5: JUL-17 | D5: AUG-17 | E5: SEP-17 | F5: OCT-17 | G5: NOV-17 | H5: DEC-17 | I5: JAN-18 | J5: FEB-18 | K5: Mar-18 | L5: Apr-18 | M5: May-18 | N5: June-18
B6: Actual | C6: Actual | D6: Actual | E6: Actual | F6: Actual | G6: Actual | H6: Actual | I6: Actual | J6: Actual | K6: Actual | L6: Actual | M6: Actual | N6: Actual
A8: Trial Balance
A9: 13531 250MM 6.35% due Jun-17 | B9: -1680.53 | C9: 0 | D9: 0 | E9: 0 | F9: 0 | G9: 0 | H9: 0 | I9: 0 | J9: 0 | K9: 0 | L9: 0 | M9: 0 | N9: 0
A10: 13533 8.5 percent Senior notes due 2009-450M | B10: -58882.81 | C10: -58882.81 | D10: -58882.81 | E10: -58882.81 | F10: -58882.81 | G10: -58882.81 | H10: -58882.81 | I10: -58882.81 | J10: -58882.81 | K10: -58882.81 | L10: -58882.81 | M10: -58882.81 | N10: -58882.81
A11: 19100 Retirement of MVG Debt | B11: -13988.35 | C11: -13988.35 | D11: -13988.35 | E11: -13988.35 | F11: -13988.35 | G11: -13988.35 | H11: -13988.35 | I11: -13988.35 | J11: -13988.35 | K11: -13988.35 | L11: -13988.35 | M11: -13988.35 | N11: -13988.35
A12: 19105 Retirement Premium on NP Series Q | B12: -28131.73 | C12: -28131.73 | D12: -28131.73 | E12: -28131.73 | F12: -28131.73 | G12: -28131.73 | H12: -28131.73 | I12: -28131.73 | J12: -28131.73 | K12: -28131.73 | L12: -28131.73 | M12: -28131.73 | N12: -28131.73
A13: 19107 Retirement Premium on NP Series T | B13: -30228.87 | C13: -30228.87 | D13: -30228.87 | E13: -30228.87 | F13: -30228.87 | G13: -30228.87 | H13: -30228.87 | I13: -30228.87 | J13: -30228.87 | K13: -30228.87 | L13: -30228.87 | M13: -30228.87 | N13: -30228.87
A14: 19108 Retirement Premium on NP Series U | B14: -30726.59 | C14: -30726.59 | D14: -30726.59 | E14: -30726.59 | F14: -30726.59 | G14: -30726.59 | H14: -30726.59 | I14: -30726.59 | J14: -30726.59 | K14: -30726.59 | L14: -30726.59 | M14: -30726.59 | N14: -30726.59
A15: 19110 Retirement Premium on FMB Series P | B15: -2819.73 | C15: -2819.73 | D15: -2819.73 | E15: -2819.73 | F15: -2819.73 | G15: -2819.73 | H15: 2819.73 | I15: -0.01 | J15: 0 | K15: 0 | L15: 0 | M15: 0 | N15: 0
A16: 19113 Retirement Premium on NP Series J | B16: -46699.79 | C16: -46699.79 | D16: -46699.79 | E16: -46699.79 | F16: -46699.79 | G16: -46699.79 | H16: -46699.79 | I16: -46699.79 | J16: -46699.79 | K16: -46699.79 | L16: -46699.79 | M16: -46699.79 | N16: -46699.79
A17: TOTAL | B17: =SUM(B9:B16) -> -213158.4 | C17: -211477.87 | D17: -211477.87 | E17: -211477.87 | F17: -211477.87 | G17: -211477.87 | H17: -205838.41 | I17: -208658.15 | J17: -208658.14 | K17: -208658.14 | L17: -208658.14 | M17: =SUM(M9:M16) -> -208658.14 | N17: -208658.14
B19: 0 | C19: 0 | D19: 0 | E19: 0 | F19: 0 | G19: 0 | H19: 0 | I19: 0 | J19: 0 | K19: 0 | L19: 0 | M19: 0 | N19: 0
A21: Balance by Month
A23: Account=1890 (Unamortized Loss on Reacquired Debt)
B25: JUN-17 | C25: JUL-17 | D25: AUG-17 | E25: SEP-17 | F25: OCT-17 | G25: NOV-17 | H25: DEC-17 | I25: JAN-18 | J25: FEB-18 | K25: MAR-18 | L25: APR-18 | M25: MAY-18 | N25: MAY-18
B26: Actual | C26: Actual | D26: Actual | E26: Actual | F26: Actual | G26: Actual | H26: Actual | I26: Actual | J26: Actual | K26: Actual | L26: Actual | M26: Actual | N26: Actual
A28: Trial Balance
A29: 13531 250MM 6.35% due Jun-17 | B29: 0 | C29: 0 | D29: 0 | E29: 0 | F29: 0 | G29: 0 | H29: 0 | I29: 0 | J29: 0 | K29: 0 | L29: 0 | M29: 0 | N29: 0
A30: 13533 8.5 percent Senior notes due 2009-450M | B30: 1236538.74 | C30: 1177655.93 | D30: 1118773.12 | E30: 1059890.31 | F30: 1001007.5 | G30: 942124.69 | H30: 883241.88 | I30: 824359.07 | J30: 765476.26 | K30: 706593.45 | L30: 647710.64 | M30: 588827.83 | N30: =+M30+N10 -> 529945.02
A31: 19100 Retirement of MVG Debt | B31: 4287427.53 | C31: 4273439.18 | D31: 4259450.83 | E31: 4245462.48 | F31: 4231474.13 | G31: 4217485.78 | H31: 4203497.43 | I31: 4189509.08 | J31: 4175520.73 | K31: 4161532.38 | L31: 4147544.03 | M31: 4133555.68 | N31: =+M31+N11 -> 4119567.33
A32: 19105 Retirement Premium on NP Series Q | B32: 956478.54 | C32: 928346.81 | D32: 900215.08 | E32: 872083.35 | F32: 843951.62 | G32: 815819.89 | H32: 787688.16 | I32: 759556.43 | J32: 731424.7 | K32: 703292.97 | L32: 675161.24 | M32: 647029.51 | N32: 618897.78
A33: 19107 Retirement Premium on NP Series T | B33: 1420756.79 | C33: 1390527.92 | D33: 1360299.05 | E33: 1330070.18 | F33: 1299841.31 | G33: 1269612.44 | H33: 1239383.57 | I33: 1209154.7 | J33: 1178925.83 | K33: 1148696.96 | L33: 1118468.09 | M33: 1088239.22 | N33: 1058010.35
A34: 19108 Retirement Premium on NP Series U | B34: 1782142.62 | C34: 1751416.03 | D34: 1720689.44 | E34: 1689962.85 | F34: 1659236.26 | G34: 1628509.67 | H34: 1597783.08 | I34: 1567056.49 | J34: 1536329.9 | K34: 1505603.31 | L34: 1474876.72 | M34: 1444150.13 | N34: 1413423.54
A35: 19110 Retirement Premium on FMB Series P | B35: 11278.93 | C35: 8459.2 | D35: 5639.47 | E35: 2819.74 | F35: 0.01 | G35: -2819.72 | H35: 0.01 | I35: 2.182785203e-13 | J35: 2.182785203e-13 | K35: 2.182785203e-13 | L35: 2.182785203e-13 | M35: 2.182785203e-13 | N35: 2.182785203e-13
A36: 19113 Retirement Premium on NP Series J | B36: 2148190.24 | C36: 2101490.45 | D36: 2054790.66 | E36: 2008090.87 | F36: 1961391.08 | G36: 1914691.29 | H36: 1867991.5 | I36: 1821291.71 | J36: 1774591.92 | K36: 1727892.13 | L36: 1681192.34 | M36: 1634492.55 | N36: 1587792.76
A37: TOTAL | B37: =SUM(B29:B36) -> 11842813.39 | C37: 11631335.52 | D37: 11419857.65 | E37: 11208379.78 | F37: 10996901.91 | G37: 10785424.04 | H37: =SUM(H29:H36) -> 10579585.63 | I37: 10370927.48 | J37: 10162269.34 | K37: 9953611.2 | L37: 9744953.06 | M37: 9536294.92 | N37: =SUM(N29:N36) -> 9327636.78
B39: 0 | C39: 0 | D39: 0 | E39: 0 | F39: 0 | G39: 0 | H39: 0 | I39: 0 | J39: 0 | K39: 0 | L39: 0 | M39: 0 | N39: 0

Sheet June-18
A1: Interest Rate Swap Valuation
A2: Month End | B2: 2018-06-30 | F2: Brian
A4: MTM Valuation | F4: Richard
A5: March 2019 Interest Rate Swaps
A7: Start Date: Mar 15, 2019
A8: Maturity Date: Mar 15, 2049
B9: MTM | D9: General Ledger Balance
A10: Company | B10: 2018-06-30 | C10: CVA Adjustment | D10: 2018-06-30 | E10: Amount Hedged | F10: All-in Price | G10: Valuation Date | H10: % of Tot
A11: BOTM | B11: -16108540.72 | C11: -64714.53 | D11: -16043826.19 | E11: 75000000 | F11: 0.03985 | G11: 2018-06-30 | H11: 0.1666666667 | I11: 0.006641666667
A12: JP Morgan | B12: -21625322.44 | C12: -85395.39 | D12: -21539927.05 | E12: 100000000 | F12: 0.03975 | G12: 2018-06-30 | H12: 0.2222222222 | I12: 0.008833333333
A13: BNP Paribas | B13: -14296430.4 | C13: -58122.63 | D13: -14238307.77 | E13: 75000000 | F13: 0.0388 | G13: 2018-06-30 | H13: 0.1666666667 | I13: 0.006466666667
A14: CIBC | B14: -12432112 | C14: -49807.78 | D14: -12382304.22 | E14: 75000000 | F14: 0.0375 | G14: 2018-06-30 | H14: 0.1666666667 | I14: 0.00625
A15: Morgan Stanley | B15: -9549219 | C15: -40901.71 | D15: -9508317.29 | E15: 75000000 | F15: 0.036 | G15: 2018-06-30 | H15: 0.1666666667 | I15: 0.006
A16: Bank of America | B16: -2060503.62 | C16: -10285.41 | D16: -2050218.21 | E16: 50000000 | F16: 0.031575 | G16: 2018-06-30 | H16: 0.1111111111 | I16: 0.003508333333
A17: Total | B17: -76072128.18 | C17: -309227.45 | D17: -75762900.73 | E17: 450000000 | H17: 1 | I17: 0.0377 | J17: weighted avg
